Workbook

Sheet Worksheet
B1: STATE AID TO SCHOOLS PAYMENT WORKSHEET
B2: North Dakota Department of Public Instruction
B3: Office of Fiscal Management - SFO
B6: District Name | C6: County District Number | E6: Payment Month | F6: School Year
B7: =Dname ->  | E7: =Pay(+PmtMonth,4) -> August | F7: =SchoolYear-1&"-"&SchoolYear -> 
A10: A | B10: STATE AID FORMULA:
A11: Student membership includes regular school year average daily membership (ADM). ADM for students attending school in
A12: Montana and Minnesota (NDCC 15.1-29.01), South Dakota students attending school in North Dakota (NDCC
A13: 15.1-29-02.1) under cross border attendance agreements, and students in private or out-of-state placements for purposes
A14: other than education (NDCC 15.1-29-14) are also included.
A15: Student Membership | D15: ADM | E15: Weighting Factor | F15: Weighted ADM
A16: 1 | B16: Pk Special Education | E16: 1 | F16: =ROUND(IF(Dtype=4,0,+E16*D16),2) -> 
A17: =+A16+1 -> 2 | B17: Kindergarten | E17: 1
A18: 3 | B18: Grade 1-6 | E18: 1
A19: 4 | B19: Grade 7-8 | E19: 1
A20: 5 | B20: Grade 9-12 | E20: 1
A21: 6 | B21: Alternative High School | E21: 1
A22: 7 | B22: Total Average Daily Membership (ADM) | F22: =SUM(F16:F21) -> 
A24: Other Program Membership
A25: =+A22+1 -> 8 | B25: ="Alt High School (from line "&A21&")" -> Alt High School (from line 6) | D25: =+F21 ->  | E25: 0.25 | F25: =ROUND(IF(Dtype=4,0,+E25*D25),2) -> 
A26: =+A25+1 -> 9 | B26: ="Special Ed ADM (from line "&A22&")" -> Special Ed ADM (from line 7) | D26: =ADM ->  | E26: 0.082
A27: =+A26+1 -> 10 | B27: ="PK Special Ed ADM (from line "&A16&")" -> PK Special Ed ADM (from line 1) | D27: =+F16 ->  | E27: 0.17
A28: 11 | B28: ="Regional Education Association (if member from line "&$A$22&")" -> Regional Education Association (if member from line 7) | D28: =IF(REANo>0,ADM,0) ->  | E28: 0.002
A29: 12 | B29: 2022-23 Fall Enrollment above 2022 ADM | E29: 0.7
A30: 13 | B30: Spring 2022 On Time ADM Adjustment | E30: 0.6
A31: 14 | B31: ELL Level 1 | E31: 0.4
A32: 15 | B32: ELL Level 2 | E32: 0.28
A33: 16 | B33: ELL Level 3 | E33: 0.07
A34: 17 | B34: At Risk | E34: 0.025
A35: 18 | B35: Home-Education (district supervised) | E35: 0.2
A36: =A35+1 -> 19 | B36: Alt Middle School | E36: 0.15
B37: Summer Programs
A38: =+A36+1 -> 20 | B38: Summer School | E38: 0.6 | F38: =ROUND(IF(Dtype=4,0,+E38*D38),2) -> 
A39: =A38+1 -> 21 | B39: Special Ed ESY | E39: 1 | F39: =ROUND(IF(Dtype=4,0,+E39*D39),2) -> 
B40: Isolated School District
A41: =+A39+1 -> 22 | B41: >275 sq miles and <100 ADM | D41: =IF(AND(SqMiles>275,ADM<100),ADM,0) ->  | E41: 0.1 | F41: =ROUND(IF(Dtype=4,0,+E41*D41),2) -> 
A42: =+A41+1 -> 23 | B42: >600 sq miles and <50 ADM | D42: =IF(AND(SqMiles>600,ADM<50),50-ADM,0) ->  | E42: 1.1 | F42: =ROUND(IF(Dtype=4,0,+E42*D42),2) -> 
A44: =+A42+1 -> 24 | B44: ="Total Weighted Average Daily Membership (add lines "&A22&" through "&A42&")" -> Total Weighted Average Daily Membership (add lines 7 through 23) | F44: =SUM(F22:F43) -> 
A45: =+A44+1 -> 25 | B45: School District Size Weighting Factor | F45: =ROUND(IF(ADM=0,0,IF(Data2!M1=0,IF(Dtype=1,MAX(VLOOKUP(ADM,FactorTable,4,TRUE),VLOOKUP(ADM,FactorTable,5,TRUE)/ADM),MAX(VLOOKUP(ADM/0.6,FactorTable,4,TRUE),VLOOKUP(ADM/0.6,FactorTable,5,TRUE)/(ADM/0.6))),VLOOKUP(CoDist,FactorTableR,5,FALSE))),4) -> 
A46: =+A45+1 -> 26 | B46: Total Weighted Student Units | F46: =ROUND(+F44*F45,2) -> 
A47: =+A46+1 -> 27 | B47: Per Student Payment Rate | F47: 10237 | I47: 10036
A48: =+A47+1 -> 28 | B48: Total Formula Payment | F48: =ROUND(+F46*BaseRate,2) ->  | I48: =ROUND(wsu*I47,2) -> 
A50: Formula Adjustments | D50: =MinAdj -> 0.7
A51: =+A48+1 -> 29 | B51: ="Transition Maximum Adjustment (from line "&A124&")" -> Transition Maximum Adjustment (from line 68) | D51: =F124 ->  | E51: 0 | F51: =MIN(D51,F48)-F48 ->  | G51: =F124 ->  | H51: 0 | I51: =MIN(G51,F48)-F48 -> 
A52: =+A51+1 -> 30 | B52: ="Transition Minimum Adjustment (from line "&A133&") with 15% Reduction" -> Transition Minimum Adjustment (from line 75) with 15% Reduction | D52: =F133 ->  | E52: =ROUND((MAX(D52,SUM(F48,F51))-SUM(F48,F51)),2) ->  | F52: =ROUND(E52*D50,2) ->  | G52: =F133 ->  | H52: =ROUND((MAX(G52,SUM(I48,I51))-SUM(I48,I51)),2) ->  | I52: =ROUND(H52*D50,2) -> 
A53: =+A52+1 -> 31 | B53: ="Total Adjusted Formula Amount (total lines "&A48&", "&A51&" and "&A52&")" -> Total Adjusted Formula Amount (total lines 28, 29 and 30) | F53: =SUM(F48:F52) ->  | I53: =SUM(I48:I52) -> 
A54: =+A53+1 -> 32 | B54: ="Contribution from Property Tax (from line "&A91&")" -> Contribution from Property Tax (from line 48) | F54: =MIN(+F91,F53) ->  | I54: =MIN(+F91,I53) -> 
A55: =+A54+1 -> 33 | B55: ="Contribution from Other Local Revenue (from line "&A81&")" -> Contribution from Other Local Revenue (from line 41) | F55: =MIN(+F81,SUM(F53,-F54)) ->  | I55: =MIN(+F81,SUM(I53,-I54)) -> 
A56: =+A55+1 -> 34 | B56: ="State Aid Payment (line "&A53&" minus lines "&A54&" and "&A55&")" -> State Aid Payment (line 31 minus lines 32 and 33) | F56: =+F53-F54-F55 ->  | I56: =+I53-I54-I55 -> 
A58: State School Aid Summary | D58: Entitlement | E58: EFB Offset | F58: Net Entitlement | I58: =F56-I56 -> 
A59: 1 | B59: ="State Aid Formula Payment (from line "&A56&")" -> State Aid Formula Payment (from line 34) | D59: =+F56 ->  | E59: =MAX(-D59,MIN(0,-$F$98)) ->  | F59: =SUM(D59:E59) -> 
A60: 2 | B60: ="Transportation (from line "&A115&")" -> Transportation (from line 64) | D60: =F115 -> 0 | E60: =MAX(-D60,MIN(0,SUM($D$59:D59)-$F$98)) ->  | F60: =SUM(D60:E60) -> 
A61: 3 | B61: State Child Placement | D61: =+Data2!CO1 ->  | E61: =MAX(-D61,MIN(0,SUM($D$59:D60)-$F$98)) -> 
A62: 4 | B62: Special Education Contracts - Agency | D62: =+Data2!CP1 ->  | E62: =MAX(-D62,MIN(0,SUM($D$59:D61)-$F$98)) -> 
A63: 5 | B63: Special Education Contracts - School Placed | D63: =+Data2!CQ1 ->  | E63: =MAX(-D63,MIN(0,SUM($D$59:D62)-$F$98)) -> 
A64: 6 | B64: Special Education Contracts - Boarding | D64: =+Data2!CR1 ->  | E64: =MAX(-D64,MIN(0,SUM($D$59:D63)-$F$98)) -> 
A65: 7 | B65: Special Education - Gifted and Talented | D65: =+Data2!CS1 ->  | E65: =MAX(-D65,MIN(0,SUM($D$59:D64)-$F$98)) -> 
B67: Total State Aid | D67: =SUM(D59:D66) ->  | E67: =SUM(E59:E66) ->  | F67: =SUM(F59:F66) -> 
B69: ="Excess Fund Balance Offset (from line "&A98&")" -> Excess Fund Balance Offset (from line 52) | E69: =F98 -> 
A71: SUPPORTING CALCULATIONS | F71: =+F7 -> 
A74: B | B74: CONTRIBUTION FROM OTHER LOCAL REVENUE | C74: Total Revenue | D74: Apportioned Revenue | E74: Percent
A75: =+A56+1 -> 35 | B75: 1300 Tuition | D75: =IF($D$83=0,C75,ROUND(C75*($E$83),2)) ->  | E75: 0.75 | F75: =ROUND(+E75*D75,2) -> 
A76: =+A75+1 -> 36 | B76: 2999 County | D76: =IF($D$83=0,C76,ROUND(C76*($E$83),2)) ->  | E76: 0.75 | F76: =ROUND(+E76*D76,2) -> 
A77: 37 | B77: US Flood | E77: 0.75
A78: 38 | B78: Electric Generation, Distribution and Transmission Tax | E78: 0.75
A79: 39 | B79: Mobile Home and Other In-Lieu Taxes | E79: 0.75
A80: 40 | B80: Telecommunications | E80: 0.75
A81: 41 | B81: Contribution from Other Local Revenue | F81: =SUM(F75:F80) -> 
C82: S & I Levy | D82: Total Levy | E82: Non S & I Percentage
C83: =SIMills ->  | D83: =TotalMills ->  | E83: =ROUND(IF(D83=0,0,(1-C83/D83)),4) -> 
A84: C | B84: CONTRIBUTION FROM PROPERTY TAX
A85: =A81+1 -> 42 | B85: District Taxable Valuation | F85: =TaxValue -> 
A86: =A85+1 -> 43 | B86: Contribution Mill Rate | F86: 60
A87: 44 | B87: ="Contribution from Property Tax (line "&A85&" times line "&A86&" divided by 1000)" -> Contribution from Property Tax (line 42 times line 43 divided by 1000) | F87: =ROUND(F85*F86/1000,2) -> 
A88: 45 | B88: Minimum Local Effort Adjustment (NDCC 15.1-27-04.2) | E88: =IF(wsu=0,0,IF(F85/wsu<STVPP*0.2,ROUND(STVPP*0.2*wsu*F86/1000,2),0)) ->  | F88: =MAX(0,E88-F87) -> 
A89: 46 | B89: Maximum Contribution Increase Adjustment (NDCC 15.1-27-04.1.4.a.) | E89: =ROUND(PYPropertyTaxContribution*1.12,2) ->  | F89: =IF(SchoolYear=2014,0,MIN(0,E89-SUM(F87:F88))) -> 
A90: 47 | B90: Local Effort Adjustment NDCC 15.1-27-04.3 | F90: =IF(E89>F87,0,ROUND(-F89*PropTaxAdj,2)) -> 
A91: 48 | B91: ="Adjusted Contribution from Property Tax (total lines "&A87&", "&A88&" and "&A89&")" -> Adjusted Contribution from Property Tax (total lines 44, 45 and 46) | F91: =SUM(F87:F90) -> 
A94: D | B94: EXCESS FUND BALANCE OFFSET (Delayed through 2023)
A95: =A91+1 -> 49 | B95: General Fund Ending Balance | F95: =EFB -> 
A96: =+A95+1 -> 50 | B96: General Fund Expenditures | F96: =Expend -> 
A97: =+A96+1 -> 51 | B97: =TEXT(EFBPercent,"00%")&" of General Fund Expenditures + "&TEXT(EFBAdd,"$#,000") -> 35% of General Fund Expenditures + $50,000 | F97: =ROUND(+F96*EFBPercent+EFBAdd,2) -> 
A98: =+A97+1 -> 52 | B98: ="Excess Fund Balance Offset (line "&A95&" minus line "&A97&", if less than zero enter zero)" -> Excess Fund Balance Offset (line 49 minus line 51, if less than zero enter zero) | F98: =MAX(0,F95-F97) -> 
A101: E | B101: TRANSPORTATION WORKSHEET
B103: Transportation Statistics | C103: Rate | D103: Miles | E103: Rides | F103: Total
A104: =+A98+1 -> 53 | B104: Small Bus Miles | C104: 0.52 | E104: xxxxx | F104: =ROUND(+D104*C104,2) -> 0
A105: =+A104+1 -> 54 | B105: Large Bus Miles | C105: 1.11 | E105: xxxxx | F105: =ROUND(+D105*C105,2) -> 0
A106: =+A105+1 -> 55 | B106: Rural Rides | C106: 0.3 | D106: xxxxx | F106: =ROUND(+E106*C106,2) -> 0
A107: 56 | B107: Small In-City Miles | C107: 0.52 | E107: xxxxx | F107: =ROUND(+D107*C107,2) -> 0
A108: 57 | B108: Large In-City Miles | C108: 1.11 | E108: xxxxx | F108: =ROUND(+D108*C108,2) -> 0
A109: 58 | B109: In-City Rides | C109: 0.3 | D109: xxxxx | F109: =ROUND(+E109*C109,2) -> 0
A110: 59 | B110: Family - To School | C110: 0.25 | E110: xxxxx | F110: =ROUND(+D110*C110,2) -> 0
A111: 60 | B111: Family - To Bus | C111: 0.25 | E111: xxxxx | F111: =ROUND(+D111*C111,2) -> 0
A112: 61 | B112: Not Reimbursable | C112: 0
A113: 62 | B113: Total Transportation Reimbursement | F113: =SUM(F104:F112) -> 0
A114: 63 | B114: Reimbursement Cap --- 90% of transportation expenditures
A115: 64 | B115: Transportation Grant Total (lesser of 90% cap or total) | F115: =IF(ISERROR(MIN(F113:F114)),0,MIN(F113:F114)) -> 0
A118: F | B118: BASELINE FUNDING - MINIMUM AND MAXIMUM PAYMENTS
A119: =+A115+1 -> 65 | B119: Baseline Funding (2018-19 Formula Payment) | F119: =+Baseline -> 
A120: =+A119+1 -> 66 | B120: Baseline Weighted Student Units (2018-19) | F120: =Baselinewsu -> 
A121: =+A120+1 -> 67 | B121: Baseline Funding Rate | F121: =ROUND(IF(F120=0,0,F119/F120),2) -> 
A123: Adjustment for Maximum | C123: Baseline Funding Rate | D123: Maximum Percent | E123: Weighted Student Units
A124: =+A121+1 -> 68 | B124: Maximum Increase Amount | C124: =+$F$121 ->  | D124: 1.1 | E124: =+$F$46 ->  | F124: =ROUND(+E124*D124*C124,2) -> 
A126: Adjustment for Minimum | C126: Baseline Funding Rate | D126: Minimum Percent | E126: Weighted Student Units
A127: =A124+1 -> 69 | B127: Minimum Increase Per Student | C127: =+$F$121 ->  | D127: 1.02 | E127: =MIN(F46,F120) ->  | F127: =ROUND(+E127*D127*C127,2) -> 
A128: =+A127+1 -> 70 | B128: WSUs Above Baseline | C128: =BaseRate -> 10237 | E128: =MAX(F46-F120,0) ->  | F128: =ROUND(E128*C128,2) -> 
A129: 71 | B129: Basline Funding Per Student | F129: =SUM(F127:F128) -> 
A130: 72 | B130: ="Baseline Funding (from line "&A119&")" -> Baseline Funding (from line 65) | F130: =Baseline -> 
A131: 73 | B131: Minimum Funding Percentage | F131: 1
A132: 74 | B132: Minimum Funding Amount | F132: =+F130*F131 -> 
A133: 75 | B133: ="Minimum Increase Amount (greater of line "&A129&" or line "&A132&")" -> Minimum Increase Amount (greater of line 71 or line 74) | F133: =MAX(F132,F129) -> 

Sheet Payment (hidden)
B1: STATE SCHOOL AID PAYMENT VOUCHER
B2: North Dakota Department of Public Instruction
B3: Office of Fiscal Management - SFO
A6: School Year | C6: =SchoolYear-1 & "-" & SchoolYear -> 
A7: State Issued ID | C7: =+CoDist -> 0
A8: =Worksheet!B6 -> District Name | C8: =Dname -> 
A9: Payment Month | C9: =Pay(D9,4) -> August | D9: 08
A10: Vendor ID | C10: =VendorID -> 
B12: Acct Code | D12: =IF(Pay(PmtMonth,5)<4,"Est. Entitlement","Net Entitlement") -> Est. Entitlement | E12: Adjustments | F12: Annual Total | G12: Prior Payments | H12: =Pay(D9,4)&" Payment" -> August Payment | I12: Year to Date | J12: Redirect Amount | K12: Adjustments
A13: 1 | B13: 3110 | C13: State Aid Formula Payment | D13: =ROUND(IF(ISERROR(+Worksheet!F59),0,Worksheet!F59),2) -> 0 | E13: =SUM(IF(A13=PmtLn,AdjAmt,0)) -> -5527.98 | F13: =+E13+D13 -> -5527.98 | G13: =SUM(IF(Pay(PmtMonth,6)>=PriorSeqMonth,IF(CoDist=PriorCodist,PriorStateAid,0))) ->  | H13: =ROUND(ROUND(Pay(PmtMonth,1)*(D13+J13)+K13,2)-G13,2) ->  | I13: =SUM(G13:H13) ->  | J13: =SUM(IF(AdjCode<=2,AdjAmt,0)) -> -5527.98 | K13: =+E13-J13 -> 0
A14: 2 | B14: 3130 | C14: Transportation | D14: =ROUND(IF(ISERROR(+Worksheet!F60),0,Worksheet!F60),2) -> 0 | E14: =SUM(IF(A14=PmtLn,AdjAmt,0)) -> 0 | F14: 0 | G14: =SUM(IF(Pay(PmtMonth,6)>=PriorSeqMonth,IF(CoDist=PriorCodist,PriorTransp,0))) ->  | H14: =ROUND(ROUND(Pay(PmtMonth,1)*(D14+J14)+K14,2)-G14,2) ->  | J14: =SUM(IF(PmtLn&AdjCode="22",AdjAmt,0)) -> 0 | K14: =+E14-J14 -> 0
A15: 3 | B15: 3140 | C15: State Child Placement | D15: =+Worksheet!F61 ->  | E15: =SUM(IF(A15=PmtLn,AdjAmt,0)) -> 0 | G15: =SUM(IF(Pay(PmtMonth,6)>=PriorSeqMonth,IF(CoDist=PriorCodist,priorStateChildPlacement,0))) ->  | H15: =ROUND(Pay(PmtMonth,2)*(F15)-G15,2) -> 
A16: 4 | B16: 3200 | C16: Special Education Contracts - Agency | D16: =+Worksheet!F62 ->  | E16: =SUM(IF(A16=PmtLn,AdjAmt,0)) -> 0 | G16: =SUM(IF(Pay(PmtMonth,6)>=PriorSeqMonth,IF(CoDist=PriorCodist,priorSpedAgency,0))) ->  | H16: =ROUND(Pay(PmtMonth,2)*(F16)-G16,2) -> 
A17: 5 | B17: 3200 | C17: Special Education Contracts - School | D17: =+Worksheet!F63 ->  | E17: =SUM(IF(A17=PmtLn,AdjAmt,0)) -> 0 | G17: =SUM(IF(Pay(PmtMonth,6)>=PriorSeqMonth,IF(CoDist=PriorCodist,priorSpedSchool,0))) ->  | H17: =ROUND(Pay(PmtMonth,2)*(F17)-G17,2) -> 
A18: 6 | B18: 3200 | C18: Special Education - Boarding | D18: =+Worksheet!F64 ->  | E18: =SUM(IF(A18=PmtLn,AdjAmt,0)) -> 0 | G18: =SUM(IF(Pay(PmtMonth,6)>=PriorSeqMonth,IF(CoDist=PriorCodist,priorSpedBoarding,0))) ->  | H18: =ROUND(Pay(PmtMonth,2)*(F18)-G18,2) -> 
A19: 7 | B19: 3110 | C19: Gifted and Talented | D19: =+Worksheet!F65 ->  | E19: =SUM(IF(A19=PmtLn,AdjAmt,0)) -> 0 | F19: =+E19+D19 ->  | G19: =SUM(IF(Pay(PmtMonth,6)>=PriorSeqMonth,IF(CoDist=PriorCodist,priorSpedGiftedTalented,0))) ->  | H19: =ROUND(Pay(PmtMonth,2)*(F19)-G19,2) ->  | I19: =SUM(G19:H19) -> 
J20: 0 | K20: =+E20-J20 -> 0
C21: Total State Aid | D21: =SUM(D13:D20) ->  | E21: -5527.98
A25: Adjustment Detail
A26: Pmt Line | B26: Adj Code | C26: Description | D26: Date | E26: Acct Code | F26: Adj Amount | G26: Comment
A27: 1 | B27: 2 | C27: Payment To REA | E27: 3110 | F27: -5527.98 | G27: Roughrider Ed Services Program | J27: 01 | K27: January
J28: 02 | K28: February
J29: 03 | K29: March
J30: 04 | K30: April
J31: 05 | K31: May
J32: 06 | K32: June
J33: 07 | K33: July
J34: 08 | K34: August
J35: 09 | K35: September
J36: 10 | K36: October
J37: 11 | K37: November
J38: 12 | K38: December

Sheet Factors (hidden)
A1: Factor Tables
A2: K-12 Weighting Factors - High School | F2: Highest at next lowest
A3: Tier 1 | B3: 0 | C3: 0-110 | D3: ADM | E3: 1.46 | F3: 0
B4: 110 | C4: 110-125 | D4: ADM | E4: 1.44 | F4: =G4 -> 160.59 | G4: =ROUND((+B4-0.01)*E3,2) -> 160.59
A5: Tier new | B5: 125 | C5: 125-130 | D5: ADM | E5: 1.43 | F5: =G5 -> 179.99 | G5: 179.99
B6: 130 | C6: 130-135 | D6: ADM | E6: 1.41 | F6: 185.89 | G6: 185.89
B7: 135 | C7: 135-140 | D7: ADM | E7: 1.39 | F7: 190.34 | G7: =ROUND((+B7-0.01)*E6,2) -> 190.34
B8: 140 | C8: 140-145 | D8: ADM | E8: 1.37 | F8: 194.59 | G8: 194.59
B9: 145 | C9: 145-150 | D9: ADM | E9: 1.35 | F9: 198.64 | G9: 198.64
B10: 150 | C10: 150-155 | D10: ADM | E10: 1.34 | F10: 202.49 | G10: 202.49
B11: 155 | C11: 155-160 | D11: ADM | E11: 1.32 | F11: 207.69 | G11: 207.69
B12: 160 | C12: 160-165 | D12: ADM | E12: 1.3 | F12: 211.19 | G12: 211.19
B13: 165 | C13: 165-175 | D13: ADM | E13: 1.29 | F13: 214.49 | G13: 214.49
B14: 175 | C14: 175-185 | D14: ADM | E14: 1.27 | F14: 225.74 | G14: 225.74
A15: Tier 2 | B15: 185 | C15: 185-200 | D15: ADM | E15: 1.26 | F15: 234.94 | G15: 234.94
B16: 200 | C16: 200-215 | D16: ADM | E16: 1.24 | F16: 251.99 | G16: 251.99
B17: 215 | C17: 215-230 | D17: ADM | E17: 1.23 | F17: 266.59 | G17: 266.59
B18: 230 | C18: 230-245 | D18: ADM | E18: 1.21 | F18: 282.89 | G18: 282.89
B19: 245 | C19: 245-260 | D19: ADM | E19: 1.2 | F19: 296.44 | G19: 296.44
B20: 260 | C20: 260-270 | D20: ADM | E20: 1.19 | F20: 311.99 | G20: 311.99
B21: 270 | C21: 270-275 | D21: ADM | E21: 1.18 | F21: 321.29 | G21: 321.29
B22: 275 | C22: 275-280 | D22: ADM | E22: 1.17 | F22: 324.49 | G22: 324.49
B23: 280 | C23: 280-285 | D23: ADM | E23: 1.16 | F23: 327.59 | G23: 327.59
B24: 285 | C24: 285-290 | D24: ADM | E24: 1.15 | F24: 330.59 | G24: 330.59
B25: 290 | C25: 290-295 | D25: ADM | E25: 1.14 | F25: 333.49 | G25: 333.49
B26: 295 | C26: 295-300 | D26: ADM | E26: 1.13 | F26: 336.29 | G26: =ROUND((+B26-0.01)*E25,2) -> 336.29
B27: 300 | C27: 300-305 | D27: ADM | E27: 1.12 | F27: 338.99 | G27: 338.99
B28: 305 | C28: 305-310 | D28: ADM | E28: 1.11 | F28: 341.59 | G28: 341.59
B29: 310 | C29: 310-320 | D29: ADM | E29: 1.1 | F29: 344.09 | G29: 344.09
B30: 320 | C30: 320-335 | D30: ADM | E30: 1.09 | F30: 351.99 | G30: 351.99
B31: 335 | C31: 335-350 | D31: ADM | E31: 1.08 | F31: 365.14 | G31: 365.14
B32: 350 | C32: 350-360 | D32: ADM | E32: 1.07 | F32: 377.99 | G32: 377.99
B33: 360 | C33: 360-370 | D33: ADM | E33: 1.06 | F33: 385.19 | G33: 385.19
B34: 370 | C34: 370-380 | D34: ADM | E34: 1.05 | F34: 392.19 | G34: 392.19
B35: 380 | C35: 380-390 | D35: ADM | E35: 1.04 | F35: 398.99 | G35: 398.99
B36: 390 | C36: 390-400 | D36: ADM | E36: 1.03 | F36: 405.59 | G36: 405.59
B37: 400 | C37: 400-600 | D37: ADM | E37: 1.02 | F37: 411.99 | G37: 411.99
B38: 600 | C38: 600-900 | D38: ADM | E38: 1.01 | F38: 611.99 | G38: 611.99
A39: Tier 3 | B39: 900 | C39: Over 900 | D39: ADM | E39: 1 | F39: 908.99 | G39: 908.99
A42: K-8 Weighting Factors - Elementary
A43: Tier 1 | B43: 0 | C43: 0-125 | D43: ADM | E43: 1.25
A44: Tier 2 | B44: 125 | C44: 125-200 | D44: ADM | E44: 1.17 | F44: 156.24
A45: Tier 3 | B45: 200 | C45: Over 200 | D45: ADM | E45: 1 | F45: 233.99
A48: Atlernative Factors | F48: NOTE: Delete year 7's going forward
A49: Codist | B49: EntityID | C49: Merged Flag | D49: Former District | E49: Blended | F49: Merged Yr | G49: Years | I49: base adm | J49: reg factor | K49: 1-4Factor | L49: 5th yr factor | M49: 6th yr factor
A50: 42-019 | B50: 1053 | E50: 1.46 | F50: 202021 | G50: 2
A51: 09-085 | B51: 1183 | E51: 1.3929 | F51: 202021 | G51: 2 | K51: 1.3929 | L51: 1.3619 | M51: 1.3309
A52: 53-007 | E52: 1.0418 | F52: 202122 | G52: 1
A53: 50-018 | E53: 1.0662 | F53: 202122 | G53: 1
A54: 25-060 | E54: 1.312
A55: 34-100 | E55: 1.3286
A56: 51-161 | E56: 1.24
A57: 32-001 | E57: 1.3893
A58: 20-007 | E58: 1.46

Sheet Dataset (hidden)
A1: State Aid Payment System
A2: Main Formula Data Requirements
A5: No. | B5: Description | C5: Data Source | D5: School Year | E5: Amount
A6: 1 | B6: CoDist | C6: Setup
A7: 2 | B7: EducationalEntityID | C7: Setup
A8: 3 | B8: VendorID | C8: Setup
A9: 4 | B9: SchoolYear | C9: Setup
A10: 5 | B10: Dname | C10: Setup
A11: 6 | B11: Dtype | C11: Setup
A12: 7 | B12: Sped Unit | C12: Setup
A13: 8 | B13: Sped% | C13: Setup
A14: 9 | B14: REAAssoc | C14: Setup
A15: 10 | B15: BaseLineFunding | C15: Setup | E15: =+Data2!J$217 -> 1270836810 | F15: ..\Adjustments\Baseline\State School Aid Baseline 2014-15.xlsx
A16: 11 | B16: Baselinewsu | C16: Setup | E16: =+Data2!K217 -> 128045.32 | F16: ..\Adjustments\Baseline\State School Aid Baseline 2014-15.xlsx
A17: 12 | B17: SqMiles | C17: Setup | E17: =+Data2!L$217 -> 69105.89
A18: 14 | B18: Reorg Flag | C18: Setup | E18: =+Data2!M217 -> 15
A19: 15 | B19: TAXVAL | C19: TaxValue | E19: =+Data2!N217 -> 5325615559
A20: 16 | B20: GFEFB | C20: Finance | E20: =+Data2!Q217 -> 0 | F20: ..\ExtractFiles\FinanceData2016.xls
A21: 17 | B21: GFExpend | C21: Finance | E21: =+Data2!R217 -> 0 | F21: ..\ExtractFiles\FinanceData2016.xls
A22: 18 | B22: 1300Tuition | C22: Finance | E22: =+Data2!S217 -> 14548052.08 | F22: ..\ExtractFiles\FinanceData2016.xls
A23: 19 | B23: 2999County | C23: State Treasurer | E23: =+Data2!T$217 -> 38043494.94 | F23: ..\ExtractFiles\FinanceData2016.xls
A24: 20 | B24: US Flood | C24: County Treasurer | E24: =+Data2!U$217 -> 10840043.58 | F24: ..\ExtractFiles\FinanceData2016.xls
A25: 21 | B25: REC Gross Receipts | C25: County Treasurer | E25: =+Data2!V$217 -> 11227048.52 | F25: ..\ExtractFiles\FinanceData2016.xls
A26: 22 | B26: Mobile Home and other in-lieu | C26: County Treasurer | E26: =+Data2!W$217 -> 8019682.85 | F26: ..\ExtractFiles\FinanceData2016.xls
A27: 23 | B27: Telecom | C27: County Treasurer | E27: =+Data2!X$217 -> 4744174.69 | F27: ..\ExtractFiles\FinanceData2016.xls
A28: 24 | B28: ADMPk | C28: STARS | E28: =+Data2!Y217 -> 1109.05 | F28: ..\ExtractFiles\FndAidADM2016.xls
A29: 25 | B29: ADMKg | C29: STARS | E29: =+Data2!Z217 -> 9570.4 | F29: ..\ExtractFiles\FndAidADM2016.xls
A30: 26 | B30: ADM16 | C30: STARS | E30: =+Data2!AA217 -> 53655.12 | F30: ..\ExtractFiles\FndAidADM2016.xls
A31: 27 | B31: ADM78 | C31: STARS | E31: =+Data2!AB217 -> 17821.53 | F31: ..\ExtractFiles\FndAidADM2016.xls
A32: 28 | B32: ADM912 | C32: STARS | E32: =+Data2!AC217 -> 32633.63 | F32: ..\ExtractFiles\FndAidADM2016.xls
A33: 29 | B33: ADMAltHS | C33: STARS | E33: =+Data2!AD217 -> 752.95 | F33: ..\ExtractFiles\FndAidADM2016.xls
A34: 30 | B34: ELL1 | C34: STARS | E34: =+Data2!AG217 -> 286.38 | F34: ..\Extract Files\ELL 2016.xlsm
A35: 31 | B35: ELL2 | C35: STARS | E35: =+Data2!AH217 -> 509.51 | F35: ..\Extract Files\ELL 2016.xlsm
A36: 32 | B36: ELL3 | C36: STARS | E36: =+Data2!AI217 -> 994.5 | F36: ..\Extract Files\ELL 2016.xlsm
A37: 33 | B37: AtRisk | C37: Setup | E37: =+Data2!AJ217 -> 62.001
A38: 34 | B38: HomeSchool | C38: STARS | E38: =+Data2!AK217 -> 45.76 | F38: ..\ExtractFiles\FndAidADM2016.xls
A39: 36 | B39: AltMiddleSchool | C39: STARS | E39: =+Data2!AL217 -> 5.91
A40: 37 | B40: SummerSchool | C40: STARS | E40: =+Data2!AM217 -> 2455.72 | F40: ..\ExtractFiles\FndAidADM2016.xls
A41: 39 | B41: ESYSpEd | C41: STARS | E41: =+Data2!AN217 -> 55.35 | F41: ..\ExtractFiles\FndAidADM2016.xls
A42: 40 | B42: SmRuralMiles | C42: STARS | E42: =+Data2!AO217 -> 1120000.4 | F42: ..\Extract Files\Transportation 2016.xls
A43: 41 | B43: LgRuralMiles | C43: STARS | E43: =+Data2!AP217 -> 20439554.99 | F43: ..\Extract Files\Transportation 2016.xls
A44: 42 | B44: RuralRides | C44: STARS | E44: =+Data2!AQ217 -> 11185419 | F44: ..\Extract Files\Transportation 2016.xls
A45: 43 | B45: SmIncityMiles | C45: STARS | E45: =+Data2!AR217 -> 1889.47 | F45: ..\Extract Files\Transportation 2016.xls
A46: 44 | B46: LgIncityMiles | C46: STARS | E46: =+Data2!AS217 -> 1318310.34 | F46: ..\Extract Files\Transportation 2016.xls
A47: 45 | B47: IncityRides | C47: STARS | E47: =+Data2!AT217 -> 4697872 | F47: ..\Extract Files\Transportation 2016.xls
A48: 46 | B48: FamilyToSchool | C48: STARS | E48: =+Data2!AU217 -> 343184.6 | F48: ..\Extract Files\Transportation 2016.xls
A49: 47 | B49: FamilyToBus | C49: STARS | E49: =+Data2!AV217 -> 60079.5 | F49: ..\Extract Files\Transportation 2016.xls
A50: 48 | B50: TranspCap90 | C50: Finance | E50: =+Data2!AW217 -> 63300536.91 | F50: ..\Extract Files\TCost90 2016.xls
A51: 49 | B51: PYPropertyTaxContribution | C51: Setup | E51: =+Data2!AX217 -> 296893936.2

Sheet Data2 (hidden)
A1: =CoDist -> 0 | B1: =VLOOKUP(CoDist,Data2,B2,FALSE) ->  | K1: =VLOOKUP(CoDist,Data2,K2,FALSE) ->  | L1: =VLOOKUP(CoDist,Data2,L2,FALSE) ->  | M1: =VLOOKUP(CoDist,Data2,M2,FALSE) ->  | AI1: =VLOOKUP(CoDist,Data2,AI2,FALSE) ->  | AL1: =VLOOKUP(CoDist,Data2,AL2,FALSE) ->  | AM1: =VLOOKUP(CoDist,Data2,AM2,FALSE) ->  | CI1: =VLOOKUP(CoDist,Data2,CI2,FALSE) -> 
A2: 1 | B2: =+A2+1 -> 2 | C2: =+B2+1 -> 3 | D2: 4 | E2: 5 | F2: 6 | G2: =+F2+1 -> 7 | H2: 8 | I2: 9 | J2: 10 | K2: 11 | L2: 12 | M2: 13 | N2: 14 | O2: =+N2+1 -> 15 | P2: 16 | Q2: 17 | R2: 18 | S2: 19 | T2: =+S2+1 -> 20 | U2: =+T2+1 -> 21 | V2: 22 | W2: 23 | X2: 24 | Y2: 25 | Z2: 26 | AA2: 27 | AB2: 28 | AC2: 29 | AD2: =+AC2+1 -> 30 | AE2: =+AD2+1 -> 31 | AF2: =+AE2+1 -> 32 | AG2: =+AF2+1 -> 33 | AH2: 34 | AI2: 35 | AJ2: 36 | AK2: 37 | AL2: =+AK2+1 -> 38 | AM2: 39 | AN2: 40 | AO2: 41 | AP2: 42 | AQ2: 43 | AR2: 44 | AS2: 45 | AT2: 46 | AU2: 47 | AV2: 48 | AW2: 49 | AX2: 50 | AY2: 51 | AZ2: 52 | BA2: 53 | BB2: 54 | BC2: 55 | BD2: 56 | BE2: 57 | BF2: 58 | BG2: 59 | BH2: 60 | BI2: 61 | BJ2: 62 | BK2: 63 | BL2: 64 | BM2: 65 | BN2: 66 | BO2: 67 | BP2: 68 | BQ2: =+BP2+1 -> 69 | BR2: 70 | BS2: 71 | BT2: =+BS2+1 -> 72 | BU2: 73 | BV2: 74 | BW2: 75 | BX2: 76 | BY2: 77 | BZ2: 78 | CA2: 79 | CB2: 80 | CC2: 81 | CD2: 82 | CE2: 83 | CF2: 84 | CG2: 85 | CH2: 86 | CI2: 87 | CJ2: 88 | CK2: 89 | CL2: 90 | CM2: 91 | CN2: 92 | CO2: 93 | CP2: 94 | CQ2: 95 | CR2: 96 | CS2: 97 | CT2: 98 | CU2: 99 | CV2: 100 | CW2: 101 | CX2: 102 | CY2: 103 | CZ2: =+CY2+1 -> 104 | DA2: 105 | DB2: 106 | DC2: 107 | DD2: 108 | DE2: 109 | DF2: 110 | DG2: 111 | DH2: 112 | DI2: 113
CM3: Gross State Aid | CO3: 3 | CP3: 5 | CQ3: 6 | CR3: 7 | CS3: 8 | CU3: EFB Offset
A4: CoDist | B4: EducationalEntityID | C4: VendorID | D4: SchoolYear | E4: Dname | F4: Dtype | G4: Sped Unit | H4: Sped% | I4: REAAssoc | J4: BaseLineFunding | K4: Baselinewsu | L4: SqMiles | M4: Reorg Flag | N4: TAXVAL | O4: S& I Mills | P4: Total Mills | Q4: GFEFB | R4: GFExpend | S4: 1300Tuition | T4: 2999County | U4: US Flood | V4: REC Gross Receipts | W4: Mobile Home and other in-lieu | X4: Telecom | Y4: ADMPk | Z4: ADMKg | AA4: ADM16 | AB4: ADM78 | AC4: ADM912 | AD4: ADMAltHS | AE4: OnTime | AF4: WSUAdj | AG4: ELL1 | AH4: ELL2 | AI4: ELL3 | AJ4: AtRisk | AK4: HomeSchool | AL4: AltMiddleSchool | AM4: SummerSchool | AN4: ESYSpEd | AO4: SmRuralMiles | AP4: LgRuralMiles | AQ4: RuralRides | AR4: SmIncityMiles | AS4: LgIncityMiles | AT4: IncityRides | AU4: FamilyToSchool | AV4: FamilyToBus | AW4: TranspCap90 | AX4: PYPropertyTaxContribution | AY4: SpedAdjustment | AZ4: REAAdjustment | BA4: Sped redirect EducationalEntityID | BB4: REA redirect EducationalEntityID | BD4: District Taxable Valuation Per wsu | BE4: Baseline Funding Rate | BF4: Contribution From Property Tax Deduct | BG4: Pk Special Education | BH4: Kindergarten | BI4: Grade 1-6 | BJ4: Grade 7-8 | BK4: Grade 9-12 | BL4: Alternative High School | BM4: Total Average Daily Membership (ADM) | BN4: Alt High School | BO4: Special Ed ADM | BP4: PK Special Ed ADM | BQ4: On Time | BR4: WSU Adj | BS4: REA | BT4: ELL1 | BU4: ELL2 | BV4: ELL3 | BW4: At Risk | BX4: Home-Education (district supervised) | BY4: AltMiddleSchool | BZ4: Summer | CA4: ESY Sped | CB4: Isolated275 | CC4: Isolated600 | CD4: Formula ADM | CE4: School Size Adjustment | CF4: Total wsu | CG4: Formula Pmt | CH4: Transition Maximum | CI4: Transition Minimum | CJ4: Adjusted Formula Amount | CK4: Contribution from Property Tax | CL4: Contribution from In-Lieu | CM4: State Aid Formula Payment | CN4: Transportation | CO4: State Child Placement | CP4: Special Education Contracts - Agency | CQ4: Special Education Contracts - School Placed | CR4: Special Education Contracts - Boarding | CS4: Gifted and Talented | CU4: State Aid Formula Payment | CV4: Transportation | CW4: State Child Placement | CX4: Special Education Contracts - Agency | CY4: Special Education Contracts - School Placed | CZ4: Special Education Contracts - Boarding | DA4: Gifted and Talented | DC4: State Aid Formula Payment | DD4: Transportation | DE4: State Child Placement | DF4: Special Education Contracts - Agency | DG4: Special Education Contracts - School Placed | DH4: Special Education Contracts - Boarding | DI4: Gifted and Talented
A5: 01-013 | B5: 1065 | C5: 0000008483 | D5: 2023 | E5: Hettinger 13 | F5: 1 | G5: 45-701 | H5: 100 | I5: 45-371 | J5: 3490694.48 | K5: 361.88 | L5: 860.94 | M5: 0 | N5: 15373452 | O5: 0 | P5: 95.34 | Q5: 0 | R5: 0 | S5: 23958.74 | T5: 0 | U5: 0 | V5: 26470.52 | W5: 15126.12 | X5: 11.69 | Y5: 4.05 | Z5: 24 | AA5: 120 | AB5: 35 | AC5: 88 | AD5: 0 | AE5: 3 | AF5: 0 | AG5: 0.04 | AH5: 2 | AI5: 2 | AJ5: 0.202 | AK5: 0 | AL5: 0 | AM5: 3.06 | AN5: 0.04 | AO5: 0 | AP5: 101063.5 | AQ5: 19378 | AR5: 0 | AS5: 0 | AT5: 0 | AU5: 0 | AV5: 0 | AW5: 290709.28 | AX5: 920295.36 | AY5: =MAX(ROUND(IF(F5<4,IF(H5=0,(SUM(Y5:AD5)*Worksheet!$E$26+Y5*Worksheet!$E$27+AN5*Worksheet!$E$39)*-BaseRate,0)),2),MIN(0,-DC5)) -> 0 | AZ5: =MAX(ROUND(IF(F5=4,0,IF(I5=0,0,ROUND(SUM(Y5:AD5)*Worksheet!$E$28,2)*-BaseRate)),2),MIN(0,-DC5-AY5)) -> -5527.98 | BA5: =IF($AY5=0,0,VLOOKUP($G5,$A$5:$B$215,2,FALSE)) -> 0 | BB5: =IF($AZ5=0,0,VLOOKUP($I5,$A$5:$B$215,2,FALSE)) -> 1407 | BD5: =ROUND(IF(CF5=0,0,IF(N5/CF5<0.2*STVPP,STVPP*0.2,N5/CF5)),2) -> 43146.28 | BE5: =IF(K5=0,0,ROUND(J5/K5,2)) -> 9646 | BF5: =IFERROR(ROUND(IF(AND(AX5*1.12<N5*60/1000,N5/CF5<STVPP*0.2),(CF5*STVPP*0.2*Worksheet!$F$86/1000-AX5*1.12)*PropTaxAdj,IF(AX5*1.12<N5*60/1000,(N5*60/1000-AX5*1.12)*PropTaxAdj,0)),2),0) -> 0 | BG5: =ROUND(IF($F5=4,0,Y5*Worksheet!$E$16),2) -> 4.05 | BH5: =ROUND(IF($F5=4,0,Z5*Worksheet!$E$17),2) -> 24 | BI5: =ROUND(IF($F5=4,0,AA5*Worksheet!$E$18),2) -> 120 | BJ5: =ROUND(IF($F5=4,0,AB5*Worksheet!$E$19),2) -> 35 | BK5: =ROUND(IF($F5=4,0,AC5*Worksheet!$E$20),2) -> 88 | BL5: =ROUND(AD5*Worksheet!$E$21,2) -> 0 | BM5: =SUM(BG5:BL5) -> 271.05 | BN5: =ROUND(AD5*Worksheet!$E$25,2) -> 0 | BO5: =ROUND(SUM(BM5)*Worksheet!$E$26,2) -> 22.23 | BP5: =ROUND(Y5*Worksheet!$E$27,2) -> 0.69 | BQ5: =ROUND(AE5*Worksheet!$E$29,2) -> 2.1 | BR5: =ROUND(AF5*Worksheet!$E$30,2) -> 0 | BS5: =ROUND(IF($I5<>0,$BM5*Worksheet!$E$28,0),2) -> 0.54 | BT5: =ROUND(AG5*Worksheet!$E$31,2) -> 0.02 | BU5: =ROUND(AH5*Worksheet!$E$32,2) -> 0.56 | BV5: =ROUND(AI5*Worksheet!$E$33,2) -> 0.14 | BW5: =ROUND(ROUND(AJ5*BM5,2)*Worksheet!$E$34,2) -> 1.37 | BX5: =ROUND(AK5*Worksheet!$E$35,2) -> 0 | BY5: =ROUND(AL5*Worksheet!$E$36,2) -> 0 | BZ5: =ROUND(AM5*Worksheet!$E$38,2) -> 1.84 | CA5: =ROUND(AN5*Worksheet!$E$39,2) -> 0.04 | CB5: =IF(AND(L5>275,SUM(Y5:AD5)<100),ROUND(SUM(Y5:AD5)*Worksheet!$E$41,2),0) -> 0 | CC5: =IF(AND(L5>600,SUM(Y5:AD5)<50),ROUND((50-SUM(Y5:AD5))*(Worksheet!$E$41+1),2),0) -> 0 | CD5: =SUM(BM5:CC5) -> 300.58 | CE5: =ROUND(IF(BM5=0,0,IF(M5=0,IF(F5=1,MAX(VLOOKUP(BM5,FactorTable,4,TRUE),VLOOKUP(BM5,FactorTable,5,TRUE)/BM5),MAX(VLOOKUP(BM5/0.6,FactorTable,4,TRUE),VLOOKUP(BM5/0.6,FactorTable,5,TRUE)/(BM5/0.6))),VLOOKUP(A5,FactorTableR,5,FALSE))),4) -> 1.1854 | CF5: =ROUND(+CE5*CD5,2) -> 356.31 | CG5: =ROUND(+CF5*BaseRate,2) -> 3647545.47 | CH5: =MIN(ROUND(BE5*CF5*Worksheet!$D$124,2),CG5)-CG5 -> 0 | CI5: =ROUND(IF(F5=4,0,(MAX(ROUND(MAX((BE5*MIN(CF5,K5)*Worksheet!$D$127)+MAX(CF5-K5,0)*Worksheet!$F$47,SUM(J5)),2),SUM(CG5:CH5))-SUM(CG5:CH5))*MinAdj),2) -> 0 | CJ5: =SUM(CG5:CI5) -> 3647545.47 | CK5: =IF(CF5=0,0,-MIN(CJ5,ROUND(AX5*1.12+BF5,2),MIN(CJ5,ROUND(IF(ROUND(IF(CF5=0,0,N5/CF5),2)<STVPP*0.2,STVPP*0.2*CF5*Worksheet!$F$86/1000,N5*Worksheet!$F$86/1000),2)))) -> -922407.12 | CL5: =-MIN(SUM(CJ5,CK5),IF($P5=0,(ROUND(Worksheet!$E$75*S5,2)+ROUND(Worksheet!$E$76*T5,2)+ROUND(Worksheet!$E$77*U5,2)+ROUND(Worksheet!$E$78*V5,2)+ROUND(Worksheet!$E$79*W5,2)+ROUND(Worksheet!$E$80*X5,2)),(ROUND(ROUND(S5*ROUND((1-$O5/$P5),4),2)*Worksheet!$E$75,2)+ROUND(ROUND(T5*ROUND((1-$O5/$P5),4),2)*Worksheet!$E$76,2)+ROUND(ROUND(U5*ROUND((1-$O5/$P5),4),2)*Worksheet!$E$77,2)+ROUND(ROUND(V5*ROUND((1-$O5/$P5),4),2)*Worksheet!$E$78,2)+ROUND(ROUND(W5*ROUND((1-$O5/$P5),4),2)*Worksheet!$E$79,2)+ROUND(ROUND(X5*ROUND((1-$O5/$P5),4),2)*Worksheet!$E$80,2)))) -> -49175.31 | CM5: =SUM(CJ5:CL5) -> 2675963.04 | CN5: =MIN(AW5,ROUND(AO5*Worksheet!$C$104,2)+ROUND(AR5*Worksheet!$C$107,2)+ROUND(AP5*Worksheet!$C$105,2)+ROUND(AS5*Worksheet!$C$108,2)+ROUND(AQ5*Worksheet!$C$106,2)+ROUND(AT5*Worksheet!$C$109,2)+ROUND(AU5*Worksheet!$C$110,2)+ROUND(AV5*Worksheet!$C$111,2)) -> 117993.89 | CU5: =MAX(-CM5,MIN(0,ROUND($R5*EFBPercent+EFBAdd,2)-$Q5)) -> 0 | CV5: =MAX(-CN5,MIN(0,ROUND($R5*EFBPercent+EFBAdd,2)-$Q5),MIN(0,SUM($CM5:CM5)+MIN(0,ROUND($R5*EFBPercent+EFBAdd,2)-$Q5))) -> 0 | CW5: =MAX(-CO5,MIN(0,ROUND($R5*EFBPercent+EFBAdd,2)-$Q5),MIN(0,SUM($CM5:CN5)+MIN(0,ROUND($R5*EFBPercent+EFBAdd,2)-$Q5))) -> 0 | CX5: =MAX(-CP5,MIN(0,ROUND($R5*EFBPercent+EFBAdd,2)-$Q5),MIN(0,SUM($CM5:CO5)+MIN(0,ROUND($R5*EFBPercent+EFBAdd,2)-$Q5))) -> 0 | CY5: =MAX(-CQ5,MIN(0,ROUND($R5*EFBPercent+EFBAdd,2)-$Q5),MIN(0,SUM($CM5:CP5)+MIN(0,ROUND($R5*EFBPercent+EFBAdd,2)-$Q5))) -> 0 | CZ5: =MAX(-CR5,MIN(0,ROUND($R5*EFBPercent+EFBAdd,2)-$Q5),MIN(0,SUM($CM5:CQ5)+MIN(0,ROUND($R5*EFBPercent+EFBAdd,2)-$Q5))) -> 0 | DA5: =MAX(-CS5,MIN(0,ROUND($R5*EFBPercent+EFBAdd,2)-$Q5),MIN(0,SUM($CM5:CR5)+MIN(0,ROUND($R5*EFBPercent+EFBAdd,2)-$Q5))) -> 0 | DC5: =+CM5+CU5 -> 2675963.04 | DD5: =+CN5+CV5 -> 117993.89 | DE5: =+CO5+CW5 -> 0 | DF5: =+CP5+CX5 -> 0 | DG5: =+CQ5+CY5 -> 0 | DH5: =+CR5+CZ5 -> 0 | DI5: =+CS5+DA5 -> 0
A6: 02-002 | B6: 1164 | C6: 0000008647 | D6: 2023 | E6: Valley City 2 | F6: 1 | G6: 02-727 | H6: 0 | I6: 09-375 | J6: 11490604.57 | K6: 1191.23 | L6: 357.94 | M6: 0 | N6: 41853346 | O6: 0 | P6: 100.36 | Q6: 0 | R6: 0 | S6: 13000 | T6: 0 | U6: 623.18 | V6: 21395.38 | W6: 79826.31 | X6: 46492.03 | Y6: 8.72 | Z6: 80 | AA6: 444 | AB6: 154 | AC6: 362.59 | AD6: 3.41 | AE6: 13.47 | AF6: 0 | AG6: 0 | AH6: 0 | AI6: 1 | AJ6: 0.38 | AK6: 0 | AL6: 0 | AM6: 12.3 | AN6: 0.8 | AO6: 5120 | AP6: 93542 | AQ6: 80622 | AR6: 0 | AS6: 8050 | AT6: 42350 | AU6: 0 | AV6: 0 | AW6: 331009.52 | AX6: 2446393.92 | AY6: =MAX(ROUND(IF(F6<4,IF(H6=0,(SUM(Y6:AD6)*Worksheet!$E$26+Y6*Worksheet!$E$27+AN6*Worksheet!$E$39)*-BaseRate,0)),2),MIN(0,-DC6)) -> -907053.89 | AZ6: =MAX(ROUND(IF(F6=4,0,IF(I6=0,0,ROUND(SUM(Y6:AD6)*Worksheet!$E$28,2)*-BaseRate)),2),MIN(0,-DC6-AY6)) -> -21600.07 | BA6: 2522 | BB6: 1408 | BD6: 35736.66 | BE6: 9646 | BF6: =IFERROR(ROUND(IF(AND(AX6*1.12<N6*60/1000,N6/CF6<STVPP*0.2),(CF6*STVPP*0.2*Worksheet!$F$86/1000-AX6*1.12)*PropTaxAdj,IF(AX6*1.12<N6*60/1000,(N6*60/1000-AX6*1.12)*PropTaxAdj,0)),2),0) -> 0 | BG6: =ROUND(IF($F6=4,0,Y6*Worksheet!$E$16),2) -> 8.72 | BH6: =ROUND(IF($F6=4,0,Z6*Worksheet!$E$17),2) -> 80 | BI6: =ROUND(IF($F6=4,0,AA6*Worksheet!$E$18),2) -> 444 | BJ6: =ROUND(IF($F6=4,0,AB6*Worksheet!$E$19),2) -> 154 | BK6: =ROUND(IF($F6=4,0,AC6*Worksheet!$E$20),2) -> 362.59 | BL6: =ROUND(AD6*Worksheet!$E$21,2) -> 3.41 | BM6: 1052.72 | BN6: =ROUND(AD6*Worksheet!$E$25,2) -> 0.85 | BO6: =ROUND(SUM(BM6)*Worksheet!$E$26,2) -> 86.32 | BP6: =ROUND(Y6*Worksheet!$E$27,2) -> 1.48 | BQ6: =ROUND(AE6*Worksheet!$E$29,2) -> 9.43 | BR6: =ROUND(AF6*Worksheet!$E$30,2) -> 0 | BS6: =ROUND(IF($I6<>0,$BM6*Worksheet!$E$28,0),2) -> 2.11 | BT6: =ROUND(AG6*Worksheet!$E$31,2) -> 0 | BU6: =ROUND(AH6*Worksheet!$E$32,2) -> 0 | BV6: =ROUND(AI6*Worksheet!$E$33,2) -> 0.07 | BW6: =ROUND(ROUND(AJ6*BM6,2)*Worksheet!$E$34,2) -> 10 | BX6: =ROUND(AK6*Worksheet!$E$35,2) -> 0 | BY6: =ROUND(AL6*Worksheet!$E$36,2) -> 0 | BZ6: =ROUND(AM6*Worksheet!$E$38,2) -> 7.38 | CA6: =ROUND(AN6*Worksheet!$E$39,2) -> 0.8 | CB6: =IF(AND(L6>275,SUM(Y6:AD6)<100),ROUND(SUM(Y6:AD6)*Worksheet!$E$41,2),0) -> 0 | CC6: =IF(AND(L6>600,SUM(Y6:AD6)<50),ROUND((50-SUM(Y6:AD6))*(Worksheet!$E$41+1),2),0) -> 0 | CD6: 1171.16 | CE6: 1 | CF6: 1171.16 | CG6: 11989164.92 | CH6: =MIN(ROUND(BE6*CF6*Worksheet!$D$124,2),CG6)-CG6 -> 0 | CI6: =ROUND(IF(F6=4,0,(MAX(ROUND(MAX((BE6*MIN(CF6,K6)*Worksheet!$D$127)+MAX(CF6-K6,0)*Worksheet!$F$47,SUM(J6)),2),SUM(CG6:CH6))-SUM(CG6:CH6))*MinAdj),2) -> 0 | CJ6: 11989164.92 | CK6: =IF(CF6=0,0,-MIN(CJ6,ROUND(AX6*1.12+BF6,2),MIN(CJ6,ROUND(IF(ROUND(IF(CF6=0,0,N6/CF6),2)<STVPP*0.2,STVPP*0.2*CF6*Worksheet!$F$86/1000,N6*Worksheet!$F$86/1000),2)))) -> -2511200.76 | CL6: =-MIN(SUM(CJ6,CK6),IF($P6=0,(ROUND(Worksheet!$E$75*S6,2)+ROUND(Worksheet!$E$76*T6,2)+ROUND(Worksheet!$E$77*U6,2)+ROUND(Worksheet!$E$78*V6,2)+ROUND(Worksheet!$E$79*W6,2)+ROUND(Worksheet!$E$80*X6,2)),(ROUND(ROUND(S6*ROUND((1-$O6/$P6),4),2)*Worksheet!$E$75,2)+ROUND(ROUND(T6*ROUND((1-$O6/$P6),4),2)*Worksheet!$E$76,2)+ROUND(ROUND(U6*ROUND((1-$O6/$P6),4),2)*Worksheet!$E$77,2)+ROUND(ROUND(V6*ROUND((1-$O6/$P6),4),2)*Worksheet!$E$78,2)+ROUND(ROUND(W6*ROUND((1-$O6/$P6),4),2)*Worksheet!$E$79,2)+ROUND(ROUND(X6*ROUND((1-$O6/$P6),4),2)*Worksheet!$E$80,2)))) -> -121002.68 | CM6: 9356961.48 | CN6: =MIN(AW6,ROUND(AO6*Worksheet!$C$104,2)+ROUND(AR6*Worksheet!$C$107,2)+ROUND(AP6*Worksheet!$C$105,2)+ROUND(AS6*Worksheet!$C$108,2)+ROUND(AQ6*Worksheet!$C$106,2)+ROUND(AT6*Worksheet!$C$109,2)+ROUND(AU6*Worksheet!$C$110,2)+ROUND(AV6*Worksheet!$C$111,2)) -> 152321.12 | CU6: 0 | CV6: =MAX(-CN6,MIN(0,ROUND($R6*EFBPercent+EFBAdd,2)-$Q6),MIN(0,SUM($CM6:CM6)+MIN(0,ROUND($R6*EFBPercent+EFBAdd,2)-$Q6))) -> 0 | CW6: =MAX(-CO6,MIN(0,ROUND($R6*EFBPercent+EFBAdd,2)-$Q6),MIN(0,SUM($CM6:CN6)+MIN(0,ROUND($R6*EFBPercent+EFBAdd,2)-$Q6))) -> 0 | CX6: =MAX(-CP6,MIN(0,ROUND($R6*EFBPercent+EFBAdd,2)-$Q6),MIN(0,SUM($CM6:CO6)+MIN(0,ROUND($R6*EFBPercent+EFBAdd,2)-$Q6))) -> 0 | CY6: =MAX(-CQ6,MIN(0,ROUND($R6*EFBPercent+EFBAdd,2)-$Q6),MIN(0,SUM($CM6:CP6)+MIN(0,ROUND($R6*EFBPercent+EFBAdd,2)-$Q6))) -> 0 | CZ6: =MAX(-CR6,MIN(0,ROUND($R6*EFBPercent+EFBAdd,2)-$Q6),MIN(0,SUM($CM6:CQ6)+MIN(0,ROUND($R6*EFBPercent+EFBAdd,2)-$Q6))) -> 0 | DA6: =MAX(-CS6,MIN(0,ROUND($R6*EFBPercent+EFBAdd,2)-$Q6),MIN(0,SUM($CM6:CR6)+MIN(0,ROUND($R6*EFBPercent+EFBAdd,2)-$Q6))) -> 0 | DC6: 9356961.48 | DD6: 152321.12 | DE6: 0 | DF6: 0 | DG6: 0 | DH6: 0 | DI6: 0
A7: 02-007 | B7: 1006 | C7: 0000089887 | D7: 2023 | E7: Barnes County North 7 | F7: 1 | G7: 02-727 | H7: 0 | I7: 09-375 | J7: 4523477.37 | K7: 328.19 | L7: 717.41 | M7: 0 | N7: 33376095 | O7: 0 | P7: 67.65 | Q7: 0 | R7: 0 | S7: 0 | T7: 312.03 | U7: 761.67 | V7: 351257.68 | W7: 13845.24 | X7: 30756.06 | Y7: 0.02 | Z7: 17 | AA7: 99 | AB7: 36 | AC7: 77 | AD7: 0 | AE7: 2.79 | AF7: 0 | AG7: 0 | AH7: 0 | AI7: 0 | AJ7: 0.376 | AK7: 0 | AL7: 0 | AM7: 0 | AN7: 0.05 | AO7: 23100 | AP7: 169400 | AQ7: 95196 | AR7: 0 | AS7: 0 | AT7: 0 | AU7: 0 | AV7: 0 | AW7: 416612.33 | AX7: 1951736.7 | AY7: =MAX(ROUND(IF(F7<4,IF(H7=0,(SUM(Y7:AD7)*Worksheet!$E$26+Y7*Worksheet!$E$27+AN7*Worksheet!$E$39)*-BaseRate,0)),2),MIN(0,-DC7)) -> -192793.83 | AZ7: =MAX(ROUND(IF(F7=4,0,IF(I7=0,0,ROUND(SUM(Y7:AD7)*Worksheet!$E$28,2)*-BaseRate)),2),MIN(0,-DC7-AY7)) -> -4709.02 | BA7: 2522 | BB7: 1408 | BD7: 107505.3 | BE7: 13783.11 | BF7: =IFERROR(ROUND(IF(AND(AX7*1.12<N7*60/1000,N7/CF7<STVPP*0.2),(CF7*STVPP*0.2*Worksheet!$F$86/1000-AX7*1.12)*PropTaxAdj,IF(AX7*1.12<N7*60/1000,(N7*60/1000-AX7*1.12)*PropTaxAdj,0)),2),0) -> 0 | BG7: =ROUND(IF($F7=4,0,Y7*Worksheet!$E$16),2) -> 0.02 | BH7: =ROUND(IF($F7=4,0,Z7*Worksheet!$E$17),2) -> 17 | BI7: =ROUND(IF($F7=4,0,AA7*Worksheet!$E$18),2) -> 99 | BJ7: =ROUND(IF($F7=4,0,AB7*Worksheet!$E$19),2) -> 36 | BK7: =ROUND(IF($F7=4,0,AC7*Worksheet!$E$20),2) -> 77 | BL7: =ROUND(AD7*Worksheet!$E$21,2) -> 0 | BM7: 229.02 | BN7: =ROUND(AD7*Worksheet!$E$25,2) -> 0 | BO7: =ROUND(SUM(BM7)*Worksheet!$E$26,2) -> 18.78 | BP7: =ROUND(Y7*Worksheet!$E$27,2) -> 0 | BQ7: =ROUND(AE7*Worksheet!$E$29,2) -> 1.95 | BR7: =ROUND(AF7*Worksheet!$E$30,2) -> 0 | BS7: =ROUND(IF($I7<>0,$BM7*Worksheet!$E$28,0),2) -> 0.46 | BT7: =ROUND(AG7*Worksheet!$E$31,2) -> 0 | BU7: =ROUND(AH7*Worksheet!$E$32,2) -> 0 | BV7: =ROUND(AI7*Worksheet!$E$33,2) -> 0 | BW7: =ROUND(ROUND(AJ7*BM7,2)*Worksheet!$E$34,2) -> 2.15 | BX7: =ROUND(AK7*Worksheet!$E$35,2) -> 0 | BY7: =ROUND(AL7*Worksheet!$E$36,2) -> 0 | BZ7: =ROUND(AM7*Worksheet!$E$38,2) -> 0 | CA7: =ROUND(AN7*Worksheet!$E$39,2) -> 0.05 | CB7: =IF(AND(L7>275,SUM(Y7:AD7)<100),ROUND(SUM(Y7:AD7)*Worksheet!$E$41,2),0) -> 0 | CC7: =IF(AND(L7>600,SUM(Y7:AD7)<50),ROUND((50-SUM(Y7:AD7))*(Worksheet!$E$41+1),2),0) -> 0 | CD7: 252.41 | CE7: 1.23 | CF7: 310.46 | CG7: 3178179.02 | CH7: =MIN(ROUND(BE7*CF7*Worksheet!$D$124,2),CG7)-CG7 -> 0 | CI7: =ROUND(IF(F7=4,0,(MAX(ROUND(MAX((BE7*MIN(CF7,K7)*Worksheet!$D$127)+MAX(CF7-K7,0)*Worksheet!$F$47,SUM(J7)),2),SUM(CG7:CH7))-SUM(CG7:CH7))*MinAdj),2) -> 941708.85 | CJ7: 4119887.87 | CK7: =IF(CF7=0,0,-MIN(CJ7,ROUND(AX7*1.12+BF7,2),MIN(CJ7,ROUND(IF(ROUND(IF(CF7=0,0,N7/CF7),2)<STVPP*0.2,STVPP*0.2*CF7*Worksheet!$F$86/1000,N7*Worksheet!$F$86/1000),2)))) -> -2002565.7 | CL7: =-MIN(SUM(CJ7,CK7),IF($P7=0,(ROUND(Worksheet!$E$75*S7,2)+ROUND(Worksheet!$E$76*T7,2)+ROUND(Worksheet!$E$77*U7,2)+ROUND(Worksheet!$E$78*V7,2)+ROUND(Worksheet!$E$79*W7,2)+ROUND(Worksheet!$E$80*X7,2)),(ROUND(ROUND(S7*ROUND((1-$O7/$P7),4),2)*Worksheet!$E$75,2)+ROUND(ROUND(T7*ROUND((1-$O7/$P7),4),2)*Worksheet!$E$76,2)+ROUND(ROUND(U7*ROUND((1-$O7/$P7),4),2)*Worksheet!$E$77,2)+ROUND(ROUND(V7*ROUND((1-$O7/$P7),4),2)*Worksheet!$E$78,2)+ROUND(ROUND(W7*ROUND((1-$O7/$P7),4),2)*Worksheet!$E$79,2)+ROUND(ROUND(X7*ROUND((1-$O7/$P7),4),2)*Worksheet!$E$80,2)))) -> -297699.51 | CM7: 1819622.66 | CN7: =MIN(AW7,ROUND(AO7*Worksheet!$C$104,2)+ROUND(AR7*Worksheet!$C$107,2)+ROUND(AP7*Worksheet!$C$105,2)+ROUND(AS7*Worksheet!$C$108,2)+ROUND(AQ7*Worksheet!$C$106,2)+ROUND(AT7*Worksheet!$C$109,2)+ROUND(AU7*Worksheet!$C$110,2)+ROUND(AV7*Worksheet!$C$111,2)) -> 228604.8 | CU7: 0 | CV7: =MAX(-CN7,MIN(0,ROUND($R7*EFBPercent+EFBAdd,2)-$Q7),MIN(0,SUM($CM7:CM7)+MIN(0,ROUND($R7*EFBPercent+EFBAdd,2)-$Q7))) -> 0 | CW7: =MAX(-CO7,MIN(0,ROUND($R7*EFBPercent+EFBAdd,2)-$Q7),MIN(0,SUM($CM7:CN7)+MIN(0,ROUND($R7*EFBPercent+EFBAdd,2)-$Q7))) -> 0 | CX7: =MAX(-CP7,MIN(0,ROUND($R7*EFBPercent+EFBAdd,2)-$Q7),MIN(0,SUM($CM7:CO7)+MIN(0,ROUND($R7*EFBPercent+EFBAdd,2)-$Q7))) -> 0 | CY7: =MAX(-CQ7,MIN(0,ROUND($R7*EFBPercent+EFBAdd,2)-$Q7),MIN(0,SUM($CM7:CP7)+MIN(0,ROUND($R7*EFBPercent+EFBAdd,2)-$Q7))) -> 0 | CZ7: =MAX(-CR7,MIN(0,ROUND($R7*EFBPercent+EFBAdd,2)-$Q7),MIN(0,SUM($CM7:CQ7)+MIN(0,ROUND($R7*EFBPercent+EFBAdd,2)-$Q7))) -> 0 | DA7: =MAX(-CS7,MIN(0,ROUND($R7*EFBPercent+EFBAdd,2)-$Q7),MIN(0,SUM($CM7:CR7)+MIN(0,ROUND($R7*EFBPercent+EFBAdd,2)-$Q7))) -> 0 | DC7: 1819622.66 | DD7: 228604.8 | DE7: 0 | DF7: 0 | DG7: 0 | DH7: 0 | DI7: 0
A8: 02-046 | B8: 1085 | C8: 0000008516 | D8: 2023 | E8: Litchville-Marion 46 | F8: 1 | G8: 47-702 | H8: 0 | I8: 09-375 | J8: 2269835.67 | K8: 166.62 | L8: 511.5 | M8: 0 | N8: 17803004 | O8: 0 | P8: 71.66 | Q8: 0 | R8: 0 | S8: 0 | T8: 29.13 | U8: 0 | V8: 14890.19 | W8: 5215.6 | X8: 10089.09 | Y8: 0.03 | Z8: 14 | AA8: 72 | AB8: 23 | AC8: 25 | AD8: 0 | AE8: 0.74 | AF8: 0 | AG8: 0 | AH8: 0 | AI8: 0 | AJ8: 0.493 | AK8: 0 | AL8: 0 | AM8: 0 | AN8: 0 | AO8: 15225 | AP8: 120575 | AQ8: 20300 | AR8: 0 | AS8: 0 | AT8: 0 | AU8: 0 | AV8: 0 | AW8: 255788.17 | AX8: 1048567.38 | AY8: =MAX(ROUND(IF(F8<4,IF(H8=0,(SUM(Y8:AD8)*Worksheet!$E$26+Y8*Worksheet!$E$27+AN8*Worksheet!$E$39)*-BaseRate,0)),2),MIN(0,-DC8)) -> -112561.55 | AZ8: =MAX(ROUND(IF(F8=4,0,IF(I8=0,0,ROUND(SUM(Y8:AD8)*Worksheet!$E$28,2)*-BaseRate)),2),MIN(0,-DC8-AY8)) -> -2763.99 | BA8: 2512 | BB8: 1408 | BD8: 85620.18 | BE8: 13622.83 | BF8: =IFERROR(ROUND(IF(AND(AX8*1.12<N8*60/1000,N8/CF8<STVPP*0.2),(CF8*STVPP*0.2*Worksheet!$F$86/1000-AX8*1.12)*PropTaxAdj,IF(AX8*1.12<N8*60/1000,(N8*60/1000-AX8*1.12)*PropTaxAdj,0)),2),0) -> 0 | BG8: =ROUND(IF($F8=4,0,Y8*Worksheet!$E$16),2) -> 0.03 | BH8: =ROUND(IF($F8=4,0,Z8*Worksheet!$E$17),2) -> 14 | BI8: =ROUND(IF($F8=4,0,AA8*Worksheet!$E$18),2) -> 72 | BJ8: =ROUND(IF($F8=4,0,AB8*Worksheet!$E$19),2) -> 23 | BK8: =ROUND(IF($F8=4,0,AC8*Worksheet!$E$20),2) -> 25 | BL8: =ROUND(AD8*Worksheet!$E$21,2) -> 0 | BM8: 134.03 | BN8: =ROUND(AD8*Worksheet!$E$25,2) -> 0 | BO8: =ROUND(SUM(BM8)*Worksheet!$E$26,2) -> 10.99 | BP8: =ROUND(Y8*Worksheet!$E$27,2) -> 0.01 | BQ8: =ROUND(AE8*Worksheet!$E$29,2) -> 0.52 | BR8: =ROUND(AF8*Worksheet!$E$30,2) -> 0 | BS8: =ROUND(IF($I8<>0,$BM8*Worksheet!$E$28,0),2) -> 0.27 | BT8: =ROUND(AG8*Worksheet!$E$31,2) -> 0 | BU8: =ROUND(AH8*Worksheet!$E$32,2) -> 0 | BV8: =ROUND(AI8*Worksheet!$E$33,2) -> 0 | BW8: =ROUND(ROUND(AJ8*BM8,2)*Worksheet!$E$34,2) -> 1.65 | BX8: =ROUND(AK8*Worksheet!$E$35,2) -> 0 | BY8: =ROUND(AL8*Worksheet!$E$36,2) -> 0 | BZ8: =ROUND(AM8*Worksheet!$E$38,2) -> 0 | CA8: =ROUND(AN8*Worksheet!$E$39,2) -> 0 | CB8: =IF(AND(L8>275,SUM(Y8:AD8)<100),ROUND(SUM(Y8:AD8)*Worksheet!$E$41,2),0) -> 0 | CC8: =IF(AND(L8>600,SUM(Y8:AD8)<50),ROUND((50-SUM(Y8:AD8))*(Worksheet!$E$41+1),2),0) -> 0 | CD8: 147.47 | CE8: 1.41 | CF8: 207.93 | CG8: 2128579.41 | CH8: =MIN(ROUND(BE8*CF8*Worksheet!$D$124,2),CG8)-CG8 -> 0 | CI8: =ROUND(IF(F8=4,0,(MAX(ROUND(MAX((BE8*MIN(CF8,K8)*Worksheet!$D$127)+MAX(CF8-K8,0)*Worksheet!$F$47,SUM(J8)),2),SUM(CG8:CH8))-SUM(CG8:CH8))*MinAdj),2) -> 426680.6 | CJ8: 2555260.01 | CK8: =IF(CF8=0,0,-MIN(CJ8,ROUND(AX8*1.12+BF8,2),MIN(CJ8,ROUND(IF(ROUND(IF(CF8=0,0,N8/CF8),2)<STVPP*0.2,STVPP*0.2*CF8*Worksheet!$F$86/1000,N8*Worksheet!$F$86/1000),2)))) -> -1068180.24 | CL8: =-MIN(SUM(CJ8,CK8),IF($P8=0,(ROUND(Worksheet!$E$75*S8,2)+ROUND(Worksheet!$E$76*T8,2)+ROUND(Worksheet!$E$77*U8,2)+ROUND(Worksheet!$E$78*V8,2)+ROUND(Worksheet!$E$79*W8,2)+ROUND(Worksheet!$E$80*X8,2)),(ROUND(ROUND(S8*ROUND((1-$O8/$P8),4),2)*Worksheet!$E$75,2)+ROUND(ROUND(T8*ROUND((1-$O8/$P8),4),2)*Worksheet!$E$76,2)+ROUND(ROUND(U8*ROUND((1-$O8/$P8),4),2)*Worksheet!$E$77,2)+ROUND(ROUND(V8*ROUND((1-$O8/$P8),4),2)*Worksheet!$E$78,2)+ROUND(ROUND(W8*ROUND((1-$O8/$P8),4),2)*Worksheet!$E$79,2)+ROUND(ROUND(X8*ROUND((1-$O8/$P8),4),2)*Worksheet!$E$80,2)))) -> -22668.01 | CM8: 1464411.76 | CN8: =MIN(AW8,ROUND(AO8*Worksheet!$C$104,2)+ROUND(AR8*Worksheet!$C$107,2)+ROUND(AP8*Worksheet!$C$105,2)+ROUND(AS8*Worksheet!$C$108,2)+ROUND(AQ8*Worksheet!$C$106,2)+ROUND(AT8*Worksheet!$C$109,2)+ROUND(AU8*Worksheet!$C$110,2)+ROUND(AV8*Worksheet!$C$111,2)) -> 147845.25 | CU8: 0 | CV8: =MAX(-CN8,MIN(0,ROUND($R8*EFBPercent+EFBAdd,2)-$Q8),MIN(0,SUM($CM8:CM8)+MIN(0,ROUND($R8*EFBPercent+EFBAdd,2)-$Q8))) -> 0 | CW8: =MAX(-CO8,MIN(0,ROUND($R8*EFBPercent+EFBAdd,2)-$Q8),MIN(0,SUM($CM8:CN8)+MIN(0,ROUND($R8*EFBPercent+EFBAdd,2)-$Q8))) -> 0 | CX8: =MAX(-CP8,MIN(0,ROUND($R8*EFBPercent+EFBAdd,2)-$Q8),MIN(0,SUM($CM8:CO8)+MIN(0,ROUND($R8*EFBPercent+EFBAdd,2)-$Q8))) -> 0 | CY8: =MAX(-CQ8,MIN(0,ROUND($R8*EFBPercent+EFBAdd,2)-$Q8),MIN(0,SUM($CM8:CP8)+MIN(0,ROUND($R8*EFBPercent+EFBAdd,2)-$Q8))) -> 0 | CZ8: =MAX(-CR8,MIN(0,ROUND($R8*EFBPercent+EFBAdd,2)-$Q8),MIN(0,SUM($CM8:CQ8)+MIN(0,ROUND($R8*EFBPercent+EFBAdd,2)-$Q8))) -> 0 | DA8: =MAX(-CS8,MIN(0,ROUND($R8*EFBPercent+EFBAdd,2)-$Q8),MIN(0,SUM($CM8:CR8)+MIN(0,ROUND($R8*EFBPercent+EFBAdd,2)-$Q8))) -> 0 | DC8: 1464411.76 | DD8: 147845.25 | DE8: 0 | DF8: 0 | DG8: 0 | DH8: 0 | DI8: 0
A9: 02-727 | B9: 2522 | C9: 0000005293 | D9: 2023 | E9: Sheyenne Valley Special Ed Unit | F9: 7 | G9: 02-727 | H9: 100 | I9: 0 | J9: 0 | K9: 0 | L9: 0 | M9: 0 | N9: 0 | O9: 0 | P9: 0 | Q9: 0 | R9: 0 | S9: 0 | T9: 0 | U9: 0 | V9: 0 | W9: 0 | X9: 0 | Y9: 0 | Z9: 0 | AA9: 0 | AB9: 0 | AC9: 0 | AD9: 0 | AE9: 0 | AF9: 0 | AG9: 0 | AH9: 0 | AI9: 0 | AJ9: 0 | AK9: 0 | AL9: 0 | AM9: 0 | AN9: 0 | AO9: 74100 | AP9: 0 | AQ9: 0 | AR9: 0 | AS9: 0 | AT9: 0 | AU9: 0 | AV9: 0 | AW9: 32669.84 | AX9: 0 | AY9: =MAX(ROUND(IF(F9<4,IF(H9=0,(SUM(Y9:AD9)*Worksheet!$E$26+Y9*Worksheet!$E$27+AN9*Worksheet!$E$39)*-BaseRate,0)),2),MIN(0,-DC9)) -> 0 | AZ9: =MAX(ROUND(IF(F9=4,0,IF(I9=0,0,ROUND(SUM(Y9:AD9)*Worksheet!$E$28,2)*-BaseRate)),2),MIN(0,-DC9-AY9)) -> 0 | BA9: 0 | BB9: 0 | BD9: 0 | BE9: 0 | BF9: =IFERROR(ROUND(IF(AND(AX9*1.12<N9*60/1000,N9/CF9<STVPP*0.2),(CF9*STVPP*0.2*Worksheet!$F$86/1000-AX9*1.12)*PropTaxAdj,IF(AX9*1.12<N9*60/1000,(N9*60/1000-AX9*1.12)*PropTaxAdj,0)),2),0) -> 0 | BG9: =ROUND(IF($F9=4,0,Y9*Worksheet!$E$16),2) -> 0 | BH9: =ROUND(IF($F9=4,0,Z9*Worksheet!$E$17),2) -> 0 | BI9: =ROUND(IF($F9=4,0,AA9*Worksheet!$E$18),2) -> 0 | BJ9: =ROUND(IF($F9=4,0,AB9*Worksheet!$E$19),2) -> 0 | BK9: =ROUND(IF($F9=4,0,AC9*Worksheet!$E$20),2) -> 0 | BL9: =ROUND(AD9*Worksheet!$E$21,2) -> 0 | BM9: 0 | BN9: =ROUND(AD9*Worksheet!$E$25,2) -> 0 | BO9: =ROUND(SUM(BM9)*Worksheet!$E$26,2) -> 0 | BP9: =ROUND(Y9*Worksheet!$E$27,2) -> 0 | BQ9: =ROUND(AE9*Worksheet!$E$29,2) -> 0 | BR9: =ROUND(AF9*Worksheet!$E$30,2) -> 0 | BS9: =ROUND(IF($I9<>0,$BM9*Worksheet!$E$28,0),2) -> 0 | BT9: =ROUND(AG9*Worksheet!$E$31,2) -> 0 | BU9: =ROUND(AH9*Worksheet!$E$32,2) -> 0 | BV9: =ROUND(AI9*Worksheet!$E$33,2) -> 0 | BW9: =ROUND(ROUND(AJ9*BM9,2)*Worksheet!$E$34,2) -> 0 | BX9: =ROUND(AK9*Worksheet!$E$35,2) -> 0 | BY9: =ROUND(AL9*Worksheet!$E$36,2) -> 0 | BZ9: =ROUND(AM9*Worksheet!$E$38,2) -> 0 | CA9: =ROUND(AN9*Worksheet!$E$39,2) -> 0 | CB9: =IF(AND(L9>275,SUM(Y9:AD9)<100),ROUND(SUM(Y9:AD9)*Worksheet!$E$41,2),0) -> 0 | CC9: =IF(AND(L9>600,SUM(Y9:AD9)<50),ROUND((50-SUM(Y9:AD9))*(Worksheet!$E$41+1),2),0) -> 0 | CD9: 0 | CE9: 0 | CF9: 0 | CG9: 0 | CH9: =MIN(ROUND(BE9*CF9*Worksheet!$D$124,2),CG9)-CG9 -> 0 | CI9: =ROUND(IF(F9=4,0,(MAX(ROUND(MAX((BE9*MIN(CF9,K9)*Worksheet!$D$127)+MAX(CF9-K9,0)*Worksheet!$F$47,SUM(J9)),2),SUM(CG9:CH9))-SUM(CG9:CH9))*MinAdj),2) -> 0 | CJ9: 0 | CK9: =IF(CF9=0,0,-MIN(CJ9,ROUND(AX9*1.12+BF9,2),MIN(CJ9,ROUND(IF(ROUND(IF(CF9=0,0,N9/CF9),2)<STVPP*0.2,STVPP*0.2*CF9*Worksheet!$F$86/1000,N9*Worksheet!$F$86/1000),2)))) -> 0 | CL9: =-MIN(SUM(CJ9,CK9),IF($P9=0,(ROUND(Worksheet!$E$75*S9,2)+ROUND(Worksheet!$E$76*T9,2)+ROUND(Worksheet!$E$77*U9,2)+ROUND(Worksheet!$E$78*V9,2)+ROUND(Worksheet!$E$79*W9,2)+ROUND(Worksheet!$E$80*X9,2)),(ROUND(ROUND(S9*ROUND((1-$O9/$P9),4),2)*Worksheet!$E$75,2)+ROUND(ROUND(T9*ROUND((1-$O9/$P9),4),2)*Worksheet!$E$76,2)+ROUND(ROUND(U9*ROUND((1-$O9/$P9),4),2)*Worksheet!$E$77,2)+ROUND(ROUND(V9*ROUND((1-$O9/$P9),4),2)*Worksheet!$E$78,2)+ROUND(ROUND(W9*ROUND((1-$O9/$P9),4),2)*Worksheet!$E$79,2)+ROUND(ROUND(X9*ROUND((1-$O9/$P9),4),2)*Worksheet!$E$80,2)))) -> 0 | CM9: 0 | CN9: =MIN(AW9,ROUND(AO9*Worksheet!$C$104,2)+ROUND(AR9*Worksheet!$C$107,2)+ROUND(AP9*Worksheet!$C$105,2)+ROUND(AS9*Worksheet!$C$108,2)+ROUND(AQ9*Worksheet!$C$106,2)+ROUND(AT9*Worksheet!$C$109,2)+ROUND(AU9*Worksheet!$C$110,2)+ROUND(AV9*Worksheet!$C$111,2)) -> 32669.84 | CU9: 0 | CV9: =MAX(-CN9,MIN(0,ROUND($R9*EFBPercent+EFBAdd,2)-$Q9),MIN(0,SUM($CM9:CM9)+MIN(0,ROUND($R9*EFBPercent+EFBAdd,2)-$Q9))) -> 0 | CW9: =MAX(-CO9,MIN(0,ROUND($R9*EFBPercent+EFBAdd,2)-$Q9),MIN(0,SUM($CM9:CN9)+MIN(0,ROUND($R9*EFBPercent+EFBAdd,2)-$Q9))) -> 0 | CX9: =MAX(-CP9,MIN(0,ROUND($R9*EFBPercent+EFBAdd,2)-$Q9),MIN(0,SUM($CM9:CO9)+MIN(0,ROUND($R9*EFBPercent+EFBAdd,2)-$Q9))) -> 0 | CY9: =MAX(-CQ9,MIN(0,ROUND($R9*EFBPercent+EFBAdd,2)-$Q9),MIN(0,SUM($CM9:CP9)+MIN(0,ROUND($R9*EFBPercent+EFBAdd,2)-$Q9))) -> 0 | CZ9: =MAX(-CR9,MIN(0,ROUND($R9*EFBPercent+EFBAdd,2)-$Q9),MIN(0,SUM($CM9:CQ9)+MIN(0,ROUND($R9*EFBPercent+EFBAdd,2)-$Q9))) -> 0 | DA9: =MAX(-CS9,MIN(0,ROUND($R9*EFBPercent+EFBAdd,2)-$Q9),MIN(0,SUM($CM9:CR9)+MIN(0,ROUND($R9*EFBPercent+EFBAdd,2)-$Q9))) -> 0 | DC9: 0 | DD9: 32669.84 | DE9: 0 | DF9: 0 | DG9: 0 | DH9: 0 | DI9: 0
A10: 03-005 | B10: 1105 | C10: 0000008540 | D10: 2023 | E10: Minnewaukan 5 | F10: 1 | G10: 36-714 | H10: 0 | I10: 36-370 | J10: 2927254.06 | K10: 331.43 | L10: 230 | M10: 0 | N10: 3929679 | O10: 0 | P10: 51.08 | Q10: 0 | R10: 0 | S10: 31143.36 | T10: 0 | U10: 0 | V10: 6524.87 | W10: 943.41 | X10: 9002.03 | Y10: 2.25 | Z10: 20 | AA10: 134 | AB10: 47 | AC10: 75 | AD10: 0 | AE10: 4.65 | AF10: 0 | AG10: 0 | AH10: 0 | AI10: 0 | AJ10: 0.971 | AK10: 0 | AL10: 0 | AM10: 0 | AN10: 0 | AO10: 0 | AP10: 102912 | AQ10: 89283 | AR10: 0 | AS10: 0 | AT10: 0 | AU10: 3500 | AV10: 0 | AW10: 366390.68 | AX10: 231540.18 | AY10: =MAX(ROUND(IF(F10<4,IF(H10=0,(SUM(Y10:AD10)*Worksheet!$E$26+Y10*Worksheet!$E$27+AN10*Worksheet!$E$39)*-BaseRate,0)),2),MIN(0,-DC10)) -> -237488.16 | AZ10: =MAX(ROUND(IF(F10=4,0,IF(I10=0,0,ROUND(SUM(Y10:AD10)*Worksheet!$E$28,2)*-BaseRate)),2),MIN(0,-DC10-AY10)) -> -5732.72 | BA10: 2514 | BB10: 1405 | BD10: 10764.77 | BE10: 8832.19 | BF10: =IFERROR(ROUND(IF(AND(AX10*1.12<N10*60/1000,N10/CF10<STVPP*0.2),(CF10*STVPP*0.2*Worksheet!$F$86/1000-AX10*1.12)*PropTaxAdj,IF(AX10*1.12<N10*60/1000,(N10*60/1000-AX10*1.12)*PropTaxAdj,0)),2),0) -> 0 | BG10: =ROUND(IF($F10=4,0,Y10*Worksheet!$E$16),2) -> 2.25 | BH10: =ROUND(IF($F10=4,0,Z10*Worksheet!$E$17),2) -> 20 | BI10: =ROUND(IF($F10=4,0,AA10*Worksheet!$E$18),2) -> 134 | BJ10: =ROUND(IF($F10=4,0,AB10*Worksheet!$E$19),2) -> 47 | BK10: =ROUND(IF($F10=4,0,AC10*Worksheet!$E$20),2) -> 75 | BL10: =ROUND(AD10*Worksheet!$E$21,2) -> 0 | BM10: 278.25 | BN10: =ROUND(AD10*Worksheet!$E$25,2) -> 0 | BO10: =ROUND(SUM(BM10)*Worksheet!$E$26,2) -> 22.82 | BP10: =ROUND(Y10*Worksheet!$E$27,2) -> 0.38 | BQ10: =ROUND(AE10*Worksheet!$E$29,2) -> 3.25 | BR10: =ROUND(AF10*Worksheet!$E$30,2) -> 0 | BS10: =ROUND(IF($I10<>0,$BM10*Worksheet!$E$28,0),2) -> 0.56 | BT10: =ROUND(AG10*Worksheet!$E$31,2) -> 0 | BU10: =ROUND(AH10*Worksheet!$E$32,2) -> 0 | BV10: =ROUND(AI10*Worksheet!$E$33,2) -> 0 | BW10: =ROUND(ROUND(AJ10*BM10,2)*Worksheet!$E$34,2) -> 6.75 | BX10: =ROUND(AK10*Worksheet!$E$35,2) -> 0 | BY10: =ROUND(AL10*Worksheet!$E$36,2) -> 0 | BZ10: =ROUND(AM10*Worksheet!$E$38,2) -> 0 | CA10: =ROUND(AN10*Worksheet!$E$39,2) -> 0 | CB10: =IF(AND(L10>275,SUM(Y10:AD10)<100),ROUND(SUM(Y10:AD10)*Worksheet!$E$41,2),0) -> 0 | CC10: =IF(AND(L10>600,SUM(Y10:AD10)<50),ROUND((50-SUM(Y10:AD10))*(Worksheet!$E$41+1),2),0) -> 0 | CD10: 312.01 | CE10: 1.17 | CF10: 365.05 | CG10: 3737016.85 | CH10: =MIN(ROUND(BE10*CF10*Worksheet!$D$124,2),CG10)-CG10 -> -190406.79 | CI10: =ROUND(IF(F10=4,0,(MAX(ROUND(MAX((BE10*MIN(CF10,K10)*Worksheet!$D$127)+MAX(CF10-K10,0)*Worksheet!$F$47,SUM(J10)),2),SUM(CG10:CH10))-SUM(CG10:CH10))*MinAdj),2) -> 0 | CJ10: 3546610.06 | CK10: =IF(CF10=0,0,-MIN(CJ10,ROUND(AX10*1.12+BF10,2),MIN(CJ10,ROUND(IF(ROUND(IF(CF10=0,0,N10/CF10),2)<STVPP*0.2,STVPP*0.2*CF10*Worksheet!$F$86/1000,N10*Worksheet!$F$86/1000),2)))) -> -235780.74 | CL10: =-MIN(SUM(CJ10,CK10),IF($P10=0,(ROUND(Worksheet!$E$75*S10,2)+ROUND(Worksheet!$E$76*T10,2)+ROUND(Worksheet!$E$77*U10,2)+ROUND(Worksheet!$E$78*V10,2)+ROUND(Worksheet!$E$79*W10,2)+ROUND(Worksheet!$E$80*X10,2)),(ROUND(ROUND(S10*ROUND((1-$O10/$P10),4),2)*Worksheet!$E$75,2)+ROUND(ROUND(T10*ROUND((1-$O10/$P10),4),2)*Worksheet!$E$76,2)+ROUND(ROUND(U10*ROUND((1-$O10/$P10),4),2)*Worksheet!$E$77,2)+ROUND(ROUND(V10*ROUND((1-$O10/$P10),4),2)*Worksheet!$E$78,2)+ROUND(ROUND(W10*ROUND((1-$O10/$P10),4),2)*Worksheet!$E$79,2)+ROUND(ROUND(X10*ROUND((1-$O10/$P10),4),2)*Worksheet!$E$80,2)))) -> -35710.25 | CM10: 3275119.07 | CN10: =MIN(AW10,ROUND(AO10*Worksheet!$C$104,2)+ROUND(AR10*Worksheet!$C$107,2)+ROUND(AP10*Worksheet!$C$105,2)+ROUND(AS10*Worksheet!$C$108,2)+ROUND(AQ10*Worksheet!$C$106,2)+ROUND(AT10*Worksheet!$C$109,2)+ROUND(AU10*Worksheet!$C$110,2)+ROUND(AV10*Worksheet!$C$111,2)) -> 141892.22 | CU10: 0 | CV10: =MAX(-CN10,MIN(0,ROUND($R10*EFBPercent+EFBAdd,2)-$Q10),MIN(0,SUM($CM10:CM10)+MIN(0,ROUND($R10*EFBPercent+EFBAdd,2)-$Q10))) -> 0 | CW10: =MAX(-CO10,MIN(0,ROUND($R10*EFBPercent+EFBAdd,2)-$Q10),MIN(0,SUM($CM10:CN10)+MIN(0,ROUND($R10*EFBPercent+EFBAdd,2)-$Q10))) -> 0 | CX10: =MAX(-CP10,MIN(0,ROUND($R10*EFBPercent+EFBAdd,2)-$Q10),MIN(0,SUM($CM10:CO10)+MIN(0,ROUND($R10*EFBPercent+EFBAdd,2)-$Q10))) -> 0 | CY10: =MAX(-CQ10,MIN(0,ROUND($R10*EFBPercent+EFBAdd,2)-$Q10),MIN(0,SUM($CM10:CP10)+MIN(0,ROUND($R10*EFBPercent+EFBAdd,2)-$Q10))) -> 0 | CZ10: =MAX(-CR10,MIN(0,ROUND($R10*EFBPercent+EFBAdd,2)-$Q10),MIN(0,SUM($CM10:CQ10)+MIN(0,ROUND($R10*EFBPercent+EFBAdd,2)-$Q10))) -> 0 | DA10: =MAX(-CS10,MIN(0,ROUND($R10*EFBPercent+EFBAdd,2)-$Q10),MIN(0,SUM($CM10:CR10)+MIN(0,ROUND($R10*EFBPercent+EFBAdd,2)-$Q10))) -> 0 | DC10: 3275119.07 | DD10: 141892.22 | DE10: 0 | DF10: 0 | DG10: 0 | DH10: 0 | DI10: 0
A11: 03-006 | B11: 1080 | C11: 0000008511 | D11: 2023 | E11: Leeds 6 | F11: 1 | G11: 36-714 | H11: 0 | I11: 36-370 | J11: 1992184.07 | K11: 195.23 | L11: 396.75 | M11: 0 | N11: 12535188 | O11: 8.88 | P11: 93.89 | Q11: 0 | R11: 0 | S11: 625 | T11: 0 | U11: 0 | V11: 7631.58 | W11: 6032.01 | X11: 16573.35 | Y11: 2 | Z11: 13 | AA11: 57 | AB11: 24 | AC11: 29 | AD11: 0 | AE11: 2.6 | AF11: 0 | AG11: 0 | AH11: 0.99 | AI11: 0 | AJ11: 0.355 | AK11: 0 | AL11: 0 | AM11: 3.19 | AN11: 0 | AO11: 0 | AP11: 61950 | AQ11: 18200 | AR11: 0 | AS11: 1400 | AT11: 8750 | AU11: 0 | AV11: 0 | AW11: 98028.6 | AX11: 743553.06 | AY11: =MAX(ROUND(IF(F11<4,IF(H11=0,(SUM(Y11:AD11)*Worksheet!$E$26+Y11*Worksheet!$E$27+AN11*Worksheet!$E$39)*-BaseRate,0)),2),MIN(0,-DC11)) -> -108409.83 | AZ11: =MAX(ROUND(IF(F11=4,0,IF(I11=0,0,ROUND(SUM(Y11:AD11)*Worksheet!$E$28,2)*-BaseRate)),2),MIN(0,-DC11-AY11)) -> -2559.25 | BA11: 2514 | BB11: 1405 | BD11: 61758.82 | BE11: 10204.29 | BF11: =IFERROR(ROUND(IF(AND(AX11*1.12<N11*60/1000,N11/CF11<STVPP*0.2),(CF11*STVPP*0.2*Worksheet!$F$86/1000-AX11*1.12)*PropTaxAdj,IF(AX11*1.12<N11*60/1000,(N11*60/1000-AX11*1.12)*PropTaxAdj,0)),2),0) -> 0 | BG11: =ROUND(IF($F11=4,0,Y11*Worksheet!$E$16),2) -> 2 | BH11: =ROUND(IF($F11=4,0,Z11*Worksheet!$E$17),2) -> 13 | BI11: =ROUND(IF($F11=4,0,AA11*Worksheet!$E$18),2) -> 57 | BJ11: =ROUND(IF($F11=4,0,AB11*Worksheet!$E$19),2) -> 24 | BK11: =ROUND(IF($F11=4,0,AC11*Worksheet!$E$20),2) -> 29 | BL11: =ROUND(AD11*Worksheet!$E$21,2) -> 0 | BM11: 125 | BN11: =ROUND(AD11*Worksheet!$E$25,2) -> 0 | BO11: =ROUND(SUM(BM11)*Worksheet!$E$26,2) -> 10.25 | BP11: =ROUND(Y11*Worksheet!$E$27,2) -> 0.34 | BQ11: =ROUND(AE11*Worksheet!$E$29,2) -> 1.82 | BR11: =ROUND(AF11*Worksheet!$E$30,2) -> 0 | BS11: =ROUND(IF($I11<>0,$BM11*Worksheet!$E$28,0),2) -> 0.25 | BT11: =ROUND(AG11*Worksheet!$E$31,2) -> 0 | BU11: =ROUND(AH11*Worksheet!$E$32,2) -> 0.28 | BV11: =ROUND(AI11*Worksheet!$E$33,2) -> 0 | BW11: =ROUND(ROUND(AJ11*BM11,2)*Worksheet!$E$34,2) -> 1.11 | BX11: =ROUND(AK11*Worksheet!$E$35,2) -> 0 | BY11: =ROUND(AL11*Worksheet!$E$36,2) -> 0 | BZ11: =ROUND(AM11*Worksheet!$E$38,2) -> 1.91 | CA11: =ROUND(AN11*Worksheet!$E$39,2) -> 0 | CB11: =IF(AND(L11>275,SUM(Y11:AD11)<100),ROUND(SUM(Y11:AD11)*Worksheet!$E$41,2),0) -> 0 | CC11: =IF(AND(L11>600,SUM(Y11:AD11)<50),ROUND((50-SUM(Y11:AD11))*(Worksheet!$E$41+1),2),0) -> 0 | CD11: 140.96 | CE11: 1.4399 | CF11: 202.97 | CG11: 2077803.89 | CH11: =MIN(ROUND(BE11*CF11*Worksheet!$D$124,2),CG11)-CG11 -> 0 | CI11: =ROUND(IF(F11=4,0,(MAX(ROUND(MAX((BE11*MIN(CF11,K11)*Worksheet!$D$127)+MAX(CF11-K11,0)*Worksheet!$F$47,SUM(J11)),2),SUM(CG11:CH11))-SUM(CG11:CH11))*MinAdj),2) -> 23420.39 | CJ11: 2101224.28 | CK11: =IF(CF11=0,0,-MIN(CJ11,ROUND(AX11*1.12+BF11,2),MIN(CJ11,ROUND(IF(ROUND(IF(CF11=0,0,N11/CF11),2)<STVPP*0.2,STVPP*0.2*CF11*Worksheet!$F$86/1000,N11*Worksheet!$F$86/1000),2)))) -> -752111.28 | CL11: =-MIN(SUM(CJ11,CK11),IF($P11=0,(ROUND(Worksheet!$E$75*S11,2)+ROUND(Worksheet!$E$76*T11,2)+ROUND(Worksheet!$E$77*U11,2)+ROUND(Worksheet!$E$78*V11,2)+ROUND(Worksheet!$E$79*W11,2)+ROUND(Worksheet!$E$80*X11,2)),(ROUND(ROUND(S11*ROUND((1-$O11/$P11),4),2)*Worksheet!$E$75,2)+ROUND(ROUND(T11*ROUND((1-$O11/$P11),4),2)*Worksheet!$E$76,2)+ROUND(ROUND(U11*ROUND((1-$O11/$P11),4),2)*Worksheet!$E$77,2)+ROUND(ROUND(V11*ROUND((1-$O11/$P11),4),2)*Worksheet!$E$78,2)+ROUND(ROUND(W11*ROUND((1-$O11/$P11),4),2)*Worksheet!$E$79,2)+ROUND(ROUND(X11*ROUND((1-$O11/$P11),4),2)*Worksheet!$E$80,2)))) -> -20956.8 | CM11: 1328156.2 | CN11: =MIN(AW11,ROUND(AO11*Worksheet!$C$104,2)+ROUND(AR11*Worksheet!$C$107,2)+ROUND(AP11*Worksheet!$C$105,2)+ROUND(AS11*Worksheet!$C$108,2)+ROUND(AQ11*Worksheet!$C$106,2)+ROUND(AT11*Worksheet!$C$109,2)+ROUND(AU11*Worksheet!$C$110,2)+ROUND(AV11*Worksheet!$C$111,2)) -> 78403.5 | CU11: 0 | CV11: =MAX(-CN11,MIN(0,ROUND($R11*EFBPercent+EFBAdd,2)-$Q11),MIN(0,SUM($CM11:CM11)+MIN(0,ROUND($R11*EFBPercent+EFBAdd,2)-$Q11))) -> 0 | CW11: =MAX(-CO11,MIN(0,ROUND($R11*EFBPercent+EFBAdd,2)-$Q11),MIN(0,SUM($CM11:CN11)+MIN(0,ROUND($R11*EFBPercent+EFBAdd,2)-$Q11))) -> 0 | CX11: =MAX(-CP11,MIN(0,ROUND($R11*EFBPercent+EFBAdd,2)-$Q11),MIN(0,SUM($CM11:CO11)+MIN(0,ROUND($R11*EFBPercent+EFBAdd,2)-$Q11))) -> 0 | CY11: =MAX(-CQ11,MIN(0,ROUND($R11*EFBPercent+EFBAdd,2)-$Q11),MIN(0,SUM($CM11:CP11)+MIN(0,ROUND($R11*EFBPercent+EFBAdd,2)-$Q11))) -> 0 | CZ11: =MAX(-CR11,MIN(0,ROUND($R11*EFBPercent+EFBAdd,2)-$Q11),MIN(0,SUM($CM11:CQ11)+MIN(0,ROUND($R11*EFBPercent+EFBAdd,2)-$Q11))) -> 0 | DA11: =MAX(-CS11,MIN(0,ROUND($R11*EFBPercent+EFBAdd,2)-$Q11),MIN(0,SUM($CM11:CR11)+MIN(0,ROUND($R11*EFBPercent+EFBAdd,2)-$Q11))) -> 0 | DC11: 1328156.2 | DD11: 78403.5 | DE11: 0 | DF11: 0 | DG11: 0 | DH11: 0 | DI11: 0
A12: 03-009 | B12: 1088 | C12: 0000008519 | D12: 2023 | E12: Maddock 9 | F12: 1 | G12: 36-714 | H12: 0 | I12: 36-370 | J12: 1867882.04 | K12: 183.83 | L12: 396.67 | M12: 0 | N12: 10781857 | O12: 0 | P12: 102.79 | Q12: 0 | R12: 0 | S12: 975 | T12: 0 | U12: 0 | V12: 10363.13 | W12: 11465.14 | X12: 17282.26 | Y12: 3.16 | Z12: 12 | AA12: 50 | AB12: 17 | AC12: 42 | AD12: 0 | AE12: 2.24 | AF12: 0 | AG12: 0 | AH12: 0 | AI12: 0 | AJ12: 0.437 | AK12: 0 | AL12: 0 | AM12: 1.69 | AN12: 0 | AO12: 52152 | AP12: 63600 | AQ12: 21624 | AR12: 0 | AS12: 7632 | AT12: 17490 | AU12: 0 | AV12: 0 | AW12: 182963.53 | AX12: 639939.6 | AY12: =MAX(ROUND(IF(F12<4,IF(H12=0,(SUM(Y12:AD12)*Worksheet!$E$26+Y12*Worksheet!$E$27+AN12*Worksheet!$E$39)*-BaseRate,0)),2),MIN(0,-DC12)) -> -109723.44 | AZ12: =MAX(ROUND(IF(F12=4,0,IF(I12=0,0,ROUND(SUM(Y12:AD12)*Worksheet!$E$28,2)*-BaseRate)),2),MIN(0,-DC12-AY12)) -> -2559.25 | BA12: 2514 | BB12: 1405 | BD12: 53839.29 | BE12: 10160.92 | BF12: =IFERROR(ROUND(IF(AND(AX12*1.12<N12*60/1000,N12/CF12<STVPP*0.2),(CF12*STVPP*0.2*Worksheet!$F$86/1000-AX12*1.12)*PropTaxAdj,IF(AX12*1.12<N12*60/1000,(N12*60/1000-AX12*1.12)*PropTaxAdj,0)),2),0) -> 0 | BG12: =ROUND(IF($F12=4,0,Y12*Worksheet!$E$16),2) -> 3.16 | BH12: =ROUND(IF($F12=4,0,Z12*Worksheet!$E$17),2) -> 12 | BI12: =ROUND(IF($F12=4,0,AA12*Worksheet!$E$18),2) -> 50 | BJ12: =ROUND(IF($F12=4,0,AB12*Worksheet!$E$19),2) -> 17 | BK12: =ROUND(IF($F12=4,0,AC12*Worksheet!$E$20),2) -> 42 | BL12: =ROUND(AD12*Worksheet!$E$21,2) -> 0 | BM12: 124.16 | BN12: =ROUND(AD12*Worksheet!$E$25,2) -> 0 | BO12: =ROUND(SUM(BM12)*Worksheet!$E$26,2) -> 10.18 | BP12: =ROUND(Y12*Worksheet!$E$27,2) -> 0.54 | BQ12: =ROUND(AE12*Worksheet!$E$29,2) -> 1.57 | BR12: =ROUND(AF12*Worksheet!$E$30,2) -> 0 | BS12: =ROUND(IF($I12<>0,$BM12*Worksheet!$E$28,0),2) -> 0.25 | BT12: =ROUND(AG12*Worksheet!$E$31,2) -> 0 | BU12: =ROUND(AH12*Worksheet!$E$32,2) -> 0 | BV12: =ROUND(AI12*Worksheet!$E$33,2) -> 0 | BW12: =ROUND(ROUND(AJ12*BM12,2)*Worksheet!$E$34,2) -> 1.36 | BX12: =ROUND(AK12*Worksheet!$E$35,2) -> 0 | BY12: =ROUND(AL12*Worksheet!$E$36,2) -> 0 | BZ12: =ROUND(AM12*Worksheet!$E$38,2) -> 1.01 | CA12: =ROUND(AN12*Worksheet!$E$39,2) -> 0 | CB12: =IF(AND(L12>275,SUM(Y12:AD12)<100),ROUND(SUM(Y12:AD12)*Worksheet!$E$41,2),0) -> 0 | CC12: =IF(AND(L12>600,SUM(Y12:AD12)<50),ROUND((50-SUM(Y12:AD12))*(Worksheet!$E$41+1),2),0) -> 0 | CD12: 139.07 | CE12: 1.44 | CF12: 200.26 | CG12: 2050061.62 | CH12: =MIN(ROUND(BE12*CF12*Worksheet!$D$124,2),CG12)-CG12 -> 0 | CI12: =ROUND(IF(F12=4,0,(MAX(ROUND(MAX((BE12*MIN(CF12,K12)*Worksheet!$D$127)+MAX(CF12-K12,0)*Worksheet!$F$47,SUM(J12)),2),SUM(CG12:CH12))-SUM(CG12:CH12))*MinAdj),2) -> 16360.29 | CJ12: 2066421.91 | CK12: =IF(CF12=0,0,-MIN(CJ12,ROUND(AX12*1.12+BF12,2),MIN(CJ12,ROUND(IF(ROUND(IF(CF12=0,0,N12/CF12),2)<STVPP*0.2,STVPP*0.2*CF12*Worksheet!$F$86/1000,N12*Worksheet!$F$86/1000),2)))) -> -646911.42 | CL12: =-MIN(SUM(CJ12,CK12),IF($P12=0,(ROUND(Worksheet!$E$75*S12,2)+ROUND(Worksheet!$E$76*T12,2)+ROUND(Worksheet!$E$77*U12,2)+ROUND(Worksheet!$E$78*V12,2)+ROUND(Worksheet!$E$79*W12,2)+ROUND(Worksheet!$E$80*X12,2)),(ROUND(ROUND(S12*ROUND((1-$O12/$P12),4),2)*Worksheet!$E$75,2)+ROUND(ROUND(T12*ROUND((1-$O12/$P12),4),2)*Worksheet!$E$76,2)+ROUND(ROUND(U12*ROUND((1-$O12/$P12),4),2)*Worksheet!$E$77,2)+ROUND(ROUND(V12*ROUND((1-$O12/$P12),4),2)*Worksheet!$E$78,2)+ROUND(ROUND(W12*ROUND((1-$O12/$P12),4),2)*Worksheet!$E$79,2)+ROUND(ROUND(X12*ROUND((1-$O12/$P12),4),2)*Worksheet!$E$80,2)))) -> -30064.16 | CM12: 1389446.33 | CN12: =MIN(AW12,ROUND(AO12*Worksheet!$C$104,2)+ROUND(AR12*Worksheet!$C$107,2)+ROUND(AP12*Worksheet!$C$105,2)+ROUND(AS12*Worksheet!$C$108,2)+ROUND(AQ12*Worksheet!$C$106,2)+ROUND(AT12*Worksheet!$C$109,2)+ROUND(AU12*Worksheet!$C$110,2)+ROUND(AV12*Worksheet!$C$111,2)) -> 117920.76 | CU12: 0 | CV12: =MAX(-CN12,MIN(0,ROUND($R12*EFBPercent+EFBAdd,2)-$Q12),MIN(0,SUM($CM12:CM12)+MIN(0,ROUND($R12*EFBPercent+EFBAdd,2)-$Q12))) -> 0 | CW12: =MAX(-CO12,MIN(0,ROUND($R12*EFBPercent+EFBAdd,2)-$Q12),MIN(0,SUM($CM12:CN12)+MIN(0,ROUND($R12*EFBPercent+EFBAdd,2)-$Q12))) -> 0 | CX12: =MAX(-CP12,MIN(0,ROUND($R12*EFBPercent+EFBAdd,2)-$Q12),MIN(0,SUM($CM12:CO12)+MIN(0,ROUND($R12*EFBPercent+EFBAdd,2)-$Q12))) -> 0 | CY12: =MAX(-CQ12,MIN(0,ROUND($R12*EFBPercent+EFBAdd,2)-$Q12),MIN(0,SUM($CM12:CP12)+MIN(0,ROUND($R12*EFBPercent+EFBAdd,2)-$Q12))) -> 0 | CZ12: =MAX(-CR12,MIN(0,ROUND($R12*EFBPercent+EFBAdd,2)-$Q12),MIN(0,SUM($CM12:CQ12)+MIN(0,ROUND($R12*EFBPercent+EFBAdd,2)-$Q12))) -> 0 | DA12: =MAX(-CS12,MIN(0,ROUND($R12*EFBPercent+EFBAdd,2)-$Q12),MIN(0,SUM($CM12:CR12)+MIN(0,ROUND($R12*EFBPercent+EFBAdd,2)-$Q12))) -> 0 | DC12: 1389446.33 | DD12: 117920.76 | DE12: 0 | DF12: 0 | DG12: 0 | DH12: 0 | DI12: 0
A13: 03-016 | B13: 1129 | C13: 0000008577 | D13: 2023 | E13: Oberon 16 | F13: 2 | G13: 14-712 | H13: 100 | I13: 36-370 | J13: 746407.48 | K13: 77.38 | L13: 93.05 | M13: 0 | N13: 2588988 | O13: 0 | P13: 67.59 | Q13: 0 | R13: 0 | S13: 0 | T13: 0 | U13: 0 | V13: 1284.47 | W13: 4039.13 | X13: 3262.54 | Y13: 0 | Z13: 9 | AA13: 44 | AB13: 2 | AC13: 0 | AD13: 0 | AE13: 3.97 | AF13: 0 | AG13: 0 | AH13: 0 | AI13: 0 | AJ13: 0.983 | AK13: 0 | AL13: 0 | AM13: 0 | AN13: 0 | AO13: 0 | AP13: 42870 | AQ13: 19870 | AR13: 0 | AS13: 0 | AT13: 0 | AU13: 0 | AV13: 0 | AW13: 87971.65 | AX13: 155100.84 | AY13: =MAX(ROUND(IF(F13<4,IF(H13=0,(SUM(Y13:AD13)*Worksheet!$E$26+Y13*Worksheet!$E$27+AN13*Worksheet!$E$39)*-BaseRate,0)),2),MIN(0,-DC13)) -> 0 | AZ13: =MAX(ROUND(IF(F13=4,0,IF(I13=0,0,ROUND(SUM(Y13:AD13)*Worksheet!$E$28,2)*-BaseRate)),2),MIN(0,-DC13-AY13)) -> -1126.07 | BA13: 0 | BB13: 1405 | BD13: 27814.65 | BE13: 9646 | BF13: =IFERROR(ROUND(IF(AND(AX13*1.12<N13*60/1000,N13/CF13<STVPP*0.2),(CF13*STVPP*0.2*Worksheet!$F$86/1000-AX13*1.12)*PropTaxAdj,IF(AX13*1.12<N13*60/1000,(N13*60/1000-AX13*1.12)*PropTaxAdj,0)),2),0) -> 0 | BG13: =ROUND(IF($F13=4,0,Y13*Worksheet!$E$16),2) -> 0 | BH13: =ROUND(IF($F13=4,0,Z13*Worksheet!$E$17),2) -> 9 | BI13: =ROUND(IF($F13=4,0,AA13*Worksheet!$E$18),2) -> 44 | BJ13: =ROUND(IF($F13=4,0,AB13*Worksheet!$E$19),2) -> 2 | BK13: =ROUND(IF($F13=4,0,AC13*Worksheet!$E$20),2) -> 0 | BL13: =ROUND(AD13*Worksheet!$E$21,2) -> 0 | BM13: 55 | BN13: =ROUND(AD13*Worksheet!$E$25,2) -> 0 | BO13: =ROUND(SUM(BM13)*Worksheet!$E$26,2) -> 4.51 | BP13: =ROUND(Y13*Worksheet!$E$27,2) -> 0 | BQ13: =ROUND(AE13*Worksheet!$E$29,2) -> 2.78 | BR13: =ROUND(AF13*Worksheet!$E$30,2) -> 0 | BS13: =ROUND(IF($I13<>0,$BM13*Worksheet!$E$28,0),2) -> 0.11 | BT13: =ROUND(AG13*Worksheet!$E$31,2) -> 0 | BU13: =ROUND(AH13*Worksheet!$E$32,2) -> 0 | BV13: =ROUND(AI13*Worksheet!$E$33,2) -> 0 | BW13: =ROUND(ROUND(AJ13*BM13,2)*Worksheet!$E$34,2) -> 1.35 | BX13: =ROUND(AK13*Worksheet!$E$35,2) -> 0 | BY13: =ROUND(AL13*Worksheet!$E$36,2) -> 0 | BZ13: =ROUND(AM13*Worksheet!$E$38,2) -> 0 | CA13: =ROUND(AN13*Worksheet!$E$39,2) -> 0 | CB13: =IF(AND(L13>275,SUM(Y13:AD13)<100),ROUND(SUM(Y13:AD13)*Worksheet!$E$41,2),0) -> 0 | CC13: =IF(AND(L13>600,SUM(Y13:AD13)<50),ROUND((50-SUM(Y13:AD13))*(Worksheet!$E$41+1),2),0) -> 0 | CD13: 63.75 | CE13: 1.46 | CF13: 93.08 | CG13: 952859.96 | CH13: =MIN(ROUND(BE13*CF13*Worksheet!$D$124,2),CG13)-CG13 -> 0 | CI13: =ROUND(IF(F13=4,0,(MAX(ROUND(MAX((BE13*MIN(CF13,K13)*Worksheet!$D$127)+MAX(CF13-K13,0)*Worksheet!$F$47,SUM(J13)),2),SUM(CG13:CH13))-SUM(CG13:CH13))*MinAdj),2) -> 0 | CJ13: 952859.96 | CK13: =IF(CF13=0,0,-MIN(CJ13,ROUND(AX13*1.12+BF13,2),MIN(CJ13,ROUND(IF(ROUND(IF(CF13=0,0,N13/CF13),2)<STVPP*0.2,STVPP*0.2*CF13*Worksheet!$F$86/1000,N13*Worksheet!$F$86/1000),2)))) -> -155339.28 | CL13: =-MIN(SUM(CJ13,CK13),IF($P13=0,(ROUND(Worksheet!$E$75*S13,2)+ROUND(Worksheet!$E$76*T13,2)+ROUND(Worksheet!$E$77*U13,2)+ROUND(Worksheet!$E$78*V13,2)+ROUND(Worksheet!$E$79*W13,2)+ROUND(Worksheet!$E$80*X13,2)),(ROUND(ROUND(S13*ROUND((1-$O13/$P13),4),2)*Worksheet!$E$75,2)+ROUND(ROUND(T13*ROUND((1-$O13/$P13),4),2)*Worksheet!$E$76,2)+ROUND(ROUND(U13*ROUND((1-$O13/$P13),4),2)*Worksheet!$E$77,2)+ROUND(ROUND(V13*ROUND((1-$O13/$P13),4),2)*Worksheet!$E$78,2)+ROUND(ROUND(W13*ROUND((1-$O13/$P13),4),2)*Worksheet!$E$79,2)+ROUND(ROUND(X13*ROUND((1-$O13/$P13),4),2)*Worksheet!$E$80,2)))) -> -6439.61 | CM13: 791081.07 | CN13: =MIN(AW13,ROUND(AO13*Worksheet!$C$104,2)+ROUND(AR13*Worksheet!$C$107,2)+ROUND(AP13*Worksheet!$C$105,2)+ROUND(AS13*Worksheet!$C$108,2)+ROUND(AQ13*Worksheet!$C$106,2)+ROUND(AT13*Worksheet!$C$109,2)+ROUND(AU13*Worksheet!$C$110,2)+ROUND(AV13*Worksheet!$C$111,2)) -> 53546.7 | CU13: 0 | CV13: =MAX(-CN13,MIN(0,ROUND($R13*EFBPercent+EFBAdd,2)-$Q13),MIN(0,SUM($CM13:CM13)+MIN(0,ROUND($R13*EFBPercent+EFBAdd,2)-$Q13))) -> 0 | CW13: =MAX(-CO13,MIN(0,ROUND($R13*EFBPercent+EFBAdd,2)-$Q13),MIN(0,SUM($CM13:CN13)+MIN(0,ROUND($R13*EFBPercent+EFBAdd,2)-$Q13))) -> 0 | CX13: =MAX(-CP13,MIN(0,ROUND($R13*EFBPercent+EFBAdd,2)-$Q13),MIN(0,SUM($CM13:CO13)+MIN(0,ROUND($R13*EFBPercent+EFBAdd,2)-$Q13))) -> 0 | CY13: =MAX(-CQ13,MIN(0,ROUND($R13*EFBPercent+EFBAdd,2)-$Q13),MIN(0,SUM($CM13:CP13)+MIN(0,ROUND($R13*EFBPercent+EFBAdd,2)-$Q13))) -> 0 | CZ13: =MAX(-CR13,MIN(0,ROUND($R13*EFBPercent+EFBAdd,2)-$Q13),MIN(0,SUM($CM13:CQ13)+MIN(0,ROUND($R13*EFBPercent+EFBAdd,2)-$Q13))) -> 0 | DA13: =MAX(-CS13,MIN(0,ROUND($R13*EFBPercent+EFBAdd,2)-$Q13),MIN(0,SUM($CM13:CR13)+MIN(0,ROUND($R13*EFBPercent+EFBAdd,2)-$Q13))) -> 0 | DC13: 791081.07 | DD13: 53546.7 | DE13: 0 | DF13: 0 | DG13: 0 | DH13: 0 | DI13: 0
A14: 03-029 | B14: 1168 | C14: 0000008652 | D14: 2023 | E14: Warwick 29 | F14: 1 | G14: 36-714 | H14: 0 | I14: 36-370 | J14: 2283007.98 | K14: 300.22 | L14: 230.69 | M14: 0 | N14: 3031289 | O14: 0 | P14: 69.94 | Q14: 0 | R14: 0 | S14: 0 | T14: 0 | U14: 0 | V14: 4775.78 | W14: 4863.04 | X14: 5830.58 | Y14: 0.81 | Z14: 17 | AA14: 84 | AB14: 34 | AC14: 73 | AD14: 0 | AE14: 2.57 | AF14: 0 | AG14: 0 | AH14: 0 | AI14: 0 | AJ14: 0.982 | AK14: 0 | AL14: 0 | AM14: 0 | AN14: 0 | AO14: 0 | AP14: 83650 | AQ14: 68250 | AR14: 0 | AS14: 0 | AT14: 0 | AU14: 0 | AV14: 0 | AW14: 278463.83 | AX14: 177458.4 | AY14: =MAX(ROUND(IF(F14<4,IF(H14=0,(SUM(Y14:AD14)*Worksheet!$E$26+Y14*Worksheet!$E$27+AN14*Worksheet!$E$39)*-BaseRate,0)),2),MIN(0,-DC14)) -> -176691.85 | AZ14: =MAX(ROUND(IF(F14=4,0,IF(I14=0,0,ROUND(SUM(Y14:AD14)*Worksheet!$E$28,2)*-BaseRate)),2),MIN(0,-DC14-AY14)) -> -4299.54 | BA14: 2514 | BB14: 1405 | BD14: 10472.94 | BE14: 7604.45 | BF14: =IFERROR(ROUND(IF(AND(AX14*1.12<N14*60/1000,N14/CF14<STVPP*0.2),(CF14*STVPP*0.2*Worksheet!$F$86/1000-AX14*1.12)*PropTaxAdj,IF(AX14*1.12<N14*60/1000,(N14*60/1000-AX14*1.12)*PropTaxAdj,0)),2),0) -> 0 | BG14: =ROUND(IF($F14=4,0,Y14*Worksheet!$E$16),2) -> 0.81 | BH14: =ROUND(IF($F14=4,0,Z14*Worksheet!$E$17),2) -> 17 | BI14: =ROUND(IF($F14=4,0,AA14*Worksheet!$E$18),2) -> 84 | BJ14: =ROUND(IF($F14=4,0,AB14*Worksheet!$E$19),2) -> 34 | BK14: =ROUND(IF($F14=4,0,AC14*Worksheet!$E$20),2) -> 73 | BL14: =ROUND(AD14*Worksheet!$E$21,2) -> 0 | BM14: 208.81 | BN14: =ROUND(AD14*Worksheet!$E$25,2) -> 0 | BO14: =ROUND(SUM(BM14)*Worksheet!$E$26,2) -> 17.12 | BP14: =ROUND(Y14*Worksheet!$E$27,2) -> 0.14 | BQ14: =ROUND(AE14*Worksheet!$E$29,2) -> 1.8 | BR14: =ROUND(AF14*Worksheet!$E$30,2) -> 0 | BS14: =ROUND(IF($I14<>0,$BM14*Worksheet!$E$28,0),2) -> 0.42 | BT14: =ROUND(AG14*Worksheet!$E$31,2) -> 0 | BU14: =ROUND(AH14*Worksheet!$E$32,2) -> 0 | BV14: =ROUND(AI14*Worksheet!$E$33,2) -> 0 | BW14: =ROUND(ROUND(AJ14*BM14,2)*Worksheet!$E$34,2) -> 5.13 | BX14: =ROUND(AK14*Worksheet!$E$35,2) -> 0 | BY14: =ROUND(AL14*Worksheet!$E$36,2) -> 0 | BZ14: =ROUND(AM14*Worksheet!$E$38,2) -> 0 | CA14: =ROUND(AN14*Worksheet!$E$39,2) -> 0 | CB14: =IF(AND(L14>275,SUM(Y14:AD14)<100),ROUND(SUM(Y14:AD14)*Worksheet!$E$41,2),0) -> 0 | CC14: =IF(AND(L14>600,SUM(Y14:AD14)<50),ROUND((50-SUM(Y14:AD14))*(Worksheet!$E$41+1),2),0) -> 0 | CD14: 233.42 | CE14: 1.24 | CF14: 289.44 | CG14: 2962997.28 | CH14: =MIN(ROUND(BE14*CF14*Worksheet!$D$124,2),CG14)-CG14 -> -541862.07 | CI14: =ROUND(IF(F14=4,0,(MAX(ROUND(MAX((BE14*MIN(CF14,K14)*Worksheet!$D$127)+MAX(CF14-K14,0)*Worksheet!$F$47,SUM(J14)),2),SUM(CG14:CH14))-SUM(CG14:CH14))*MinAdj),2) -> 0 | CJ14: 2421135.21 | CK14: =IF(CF14=0,0,-MIN(CJ14,ROUND(AX14*1.12+BF14,2),MIN(CJ14,ROUND(IF(ROUND(IF(CF14=0,0,N14/CF14),2)<STVPP*0.2,STVPP*0.2*CF14*Worksheet!$F$86/1000,N14*Worksheet!$F$86/1000),2)))) -> -181877.34 | CL14: =-MIN(SUM(CJ14,CK14),IF($P14=0,(ROUND(Worksheet!$E$75*S14,2)+ROUND(Worksheet!$E$76*T14,2)+ROUND(Worksheet!$E$77*U14,2)+ROUND(Worksheet!$E$78*V14,2)+ROUND(Worksheet!$E$79*W14,2)+ROUND(Worksheet!$E$80*X14,2)),(ROUND(ROUND(S14*ROUND((1-$O14/$P14),4),2)*Worksheet!$E$75,2)+ROUND(ROUND(T14*ROUND((1-$O14/$P14),4),2)*Worksheet!$E$76,2)+ROUND(ROUND(U14*ROUND((1-$O14/$P14),4),2)*Worksheet!$E$77,2)+ROUND(ROUND(V14*ROUND((1-$O14/$P14),4),2)*Worksheet!$E$78,2)+ROUND(ROUND(W14*ROUND((1-$O14/$P14),4),2)*Worksheet!$E$79,2)+ROUND(ROUND(X14*ROUND((1-$O14/$P14),4),2)*Worksheet!$E$80,2)))) -> -11602.06 | CM14: 2227655.81 | CN14: =MIN(AW14,ROUND(AO14*Worksheet!$C$104,2)+ROUND(AR14*Worksheet!$C$107,2)+ROUND(AP14*Worksheet!$C$105,2)+ROUND(AS14*Worksheet!$C$108,2)+ROUND(AQ14*Worksheet!$C$106,2)+ROUND(AT14*Worksheet!$C$109,2)+ROUND(AU14*Worksheet!$C$110,2)+ROUND(AV14*Worksheet!$C$111,2)) -> 113326.5 | CU14: 0 | CV14: =MAX(-CN14,MIN(0,ROUND($R14*EFBPercent+EFBAdd,2)-$Q14),MIN(0,SUM($CM14:CM14)+MIN(0,ROUND($R14*EFBPercent+EFBAdd,2)-$Q14))) -> 0 | CW14: =MAX(-CO14,MIN(0,ROUND($R14*EFBPercent+EFBAdd,2)-$Q14),MIN(0,SUM($CM14:CN14)+MIN(0,ROUND($R14*EFBPercent+EFBAdd,2)-$Q14))) -> 0 | CX14: =MAX(-CP14,MIN(0,ROUND($R14*EFBPercent+EFBAdd,2)-$Q14),MIN(0,SUM($CM14:CO14)+MIN(0,ROUND($R14*EFBPercent+EFBAdd,2)-$Q14))) -> 0 | CY14: =MAX(-CQ14,MIN(0,ROUND($R14*EFBPercent+EFBAdd,2)-$Q14),MIN(0,SUM($CM14:CP14)+MIN(0,ROUND($R14*EFBPercent+EFBAdd,2)-$Q14))) -> 0 | CZ14: =MAX(-CR14,MIN(0,ROUND($R14*EFBPercent+EFBAdd,2)-$Q14),MIN(0,SUM($CM14:CQ14)+MIN(0,ROUND($R14*EFBPercent+EFBAdd,2)-$Q14))) -> 0 | DA14: =MAX(-CS14,MIN(0,ROUND($R14*EFBPercent+EFBAdd,2)-$Q14),MIN(0,SUM($CM14:CR14)+MIN(0,ROUND($R14*EFBPercent+EFBAdd,2)-$Q14))) -> 0 | DC14: 2227655.81 | DD14: 113326.5 | DE14: 0 | DF14: 0 | DG14: 0 | DH14: 0 | DI14: 0
A15: 03-030 | B15: 1045 | C15: 0000008461 | D15: 2023 | E15: Ft Totten 30 | F15: 1 | G15: 03-736 | H15: 100 | I15: 36-370 | J15: 1554011.69 | K15: 229.47 | L15: 34 | M15: 0 | N15: 212295 | O15: 0 | P15: 189.17 | Q15: 0 | R15: 0 | S15: 0 | T15: 0 | U15: 0 | V15: 3401.18 | W15: 1432.17 | X15: 11250.88 | Y15: 1.05 | Z15: 0 | AA15: 0 | AB15: 0 | AC15: 174.92 | AD15: 16.08 | AE15: 0 | AF15: 0 | AG15: 0 | AH15: 0 | AI15: 0 | AJ15: 0 | AK15: 0 | AL15: 0 | AM15: 0 | AN15: 0 | AO15: 0 | AP15: 112196 | AQ15: 55554 | AR15: 0 | AS15: 5504 | AT15: 6536 | AU15: 0 | AV15: 0 | AW15: 261329.68 | AX15: 113118.61 | AY15: =MAX(ROUND(IF(F15<4,IF(H15=0,(SUM(Y15:AD15)*Worksheet!$E$26+Y15*Worksheet!$E$27+AN15*Worksheet!$E$39)*-BaseRate,0)),2),MIN(0,-DC15)) -> 0 | AZ15: =MAX(ROUND(IF(F15=4,0,IF(I15=0,0,ROUND(SUM(Y15:AD15)*Worksheet!$E$28,2)*-BaseRate)),2),MIN(0,-DC15-AY15)) -> -3890.06 | BA15: 0 | BB15: 1405 | BD15: 7800.76 | BE15: 6772.18 | BF15: =IFERROR(ROUND(IF(AND(AX15*1.12<N15*60/1000,N15/CF15<STVPP*0.2),(CF15*STVPP*0.2*Worksheet!$F$86/1000-AX15*1.12)*PropTaxAdj,IF(AX15*1.12<N15*60/1000,(N15*60/1000-AX15*1.12)*PropTaxAdj,0)),2),0) -> 0 | BG15: =ROUND(IF($F15=4,0,Y15*Worksheet!$E$16),2) -> 1.05 | BH15: =ROUND(IF($F15=4,0,Z15*Worksheet!$E$17),2) -> 0 | BI15: =ROUND(IF($F15=4,0,AA15*Worksheet!$E$18),2) -> 0 | BJ15: =ROUND(IF($F15=4,0,AB15*Worksheet!$E$19),2) -> 0 | BK15: =ROUND(IF($F15=4,0,AC15*Worksheet!$E$20),2) -> 174.92 | BL15: =ROUND(AD15*Worksheet!$E$21,2) -> 16.08 | BM15: 192.05 | BN15: =ROUND(AD15*Worksheet!$E$25,2) -> 4.02 | BO15: =ROUND(SUM(BM15)*Worksheet!$E$26,2) -> 15.75 | BP15: =ROUND(Y15*Worksheet!$E$27,2) -> 0.18 | BQ15: =ROUND(AE15*Worksheet!$E$29,2) -> 0 | BR15: =ROUND(AF15*Worksheet!$E$30,2) -> 0 | BS15: =ROUND(IF($I15<>0,$BM15*Worksheet!$E$28,0),2) -> 0.38 | BT15: =ROUND(AG15*Worksheet!$E$31,2) -> 0 | BU15: =ROUND(AH15*Worksheet!$E$32,2) -> 0 | BV15: =ROUND(AI15*Worksheet!$E$33,2) -> 0 | BW15: =ROUND(ROUND(AJ15*BM15,2)*Worksheet!$E$34,2) -> 0 | BX15: =ROUND(AK15*Worksheet!$E$35,2) -> 0 | BY15: =ROUND(AL15*Worksheet!$E$36,2) -> 0 | BZ15: =ROUND(AM15*Worksheet!$E$38,2) -> 0 | CA15: =ROUND(AN15*Worksheet!$E$39,2) -> 0 | CB15: =IF(AND(L15>275,SUM(Y15:AD15)<100),ROUND(SUM(Y15:AD15)*Worksheet!$E$41,2),0) -> 0 | CC15: =IF(AND(L15>600,SUM(Y15:AD15)<50),ROUND((50-SUM(Y15:AD15))*(Worksheet!$E$41+1),2),0) -> 0 | CD15: 212.38 | CE15: 1.26 | CF15: 267.6 | CG15: 2739421.2 | CH15: =MIN(ROUND(BE15*CF15*Worksheet!$D$124,2),CG15)-CG15 -> -745962.3 | CI15: =ROUND(IF(F15=4,0,(MAX(ROUND(MAX((BE15*MIN(CF15,K15)*Worksheet!$D$127)+MAX(CF15-K15,0)*Worksheet!$F$47,SUM(J15)),2),SUM(CG15:CH15))-SUM(CG15:CH15))*MinAdj),2) -> 0 | CJ15: 1993458.9 | CK15: =IF(CF15=0,0,-MIN(CJ15,ROUND(AX15*1.12+BF15,2),MIN(CJ15,ROUND(IF(ROUND(IF(CF15=0,0,N15/CF15),2)<STVPP*0.2,STVPP*0.2*CF15*Worksheet!$F$86/1000,N15*Worksheet!$F$86/1000),2)))) -> -125248.94 | CL15: =-MIN(SUM(CJ15,CK15),IF($P15=0,(ROUND(Worksheet!$E$75*S15,2)+ROUND(Worksheet!$E$76*T15,2)+ROUND(Worksheet!$E$77*U15,2)+ROUND(Worksheet!$E$78*V15,2)+ROUND(Worksheet!$E$79*W15,2)+ROUND(Worksheet!$E$80*X15,2)),(ROUND(ROUND(S15*ROUND((1-$O15/$P15),4),2)*Worksheet!$E$75,2)+ROUND(ROUND(T15*ROUND((1-$O15/$P15),4),2)*Worksheet!$E$76,2)+ROUND(ROUND(U15*ROUND((1-$O15/$P15),4),2)*Worksheet!$E$77,2)+ROUND(ROUND(V15*ROUND((1-$O15/$P15),4),2)*Worksheet!$E$78,2)+ROUND(ROUND(W15*ROUND((1-$O15/$P15),4),2)*Worksheet!$E$79,2)+ROUND(ROUND(X15*ROUND((1-$O15/$P15),4),2)*Worksheet!$E$80,2)))) -> -12063.18 | CM15: 1856146.78 | CN15: =MIN(AW15,ROUND(AO15*Worksheet!$C$104,2)+ROUND(AR15*Worksheet!$C$107,2)+ROUND(AP15*Worksheet!$C$105,2)+ROUND(AS15*Worksheet!$C$108,2)+ROUND(AQ15*Worksheet!$C$106,2)+ROUND(AT15*Worksheet!$C$109,2)+ROUND(AU15*Worksheet!$C$110,2)+ROUND(AV15*Worksheet!$C$111,2)) -> 149274 | CU15: 0 | CV15: =MAX(-CN15,MIN(0,ROUND($R15*EFBPercent+EFBAdd,2)-$Q15),MIN(0,SUM($CM15:CM15)+MIN(0,ROUND($R15*EFBPercent+EFBAdd,2)-$Q15))) -> 0 | CW15: =MAX(-CO15,MIN(0,ROUND($R15*EFBPercent+EFBAdd,2)-$Q15),MIN(0,SUM($CM15:CN15)+MIN(0,ROUND($R15*EFBPercent+EFBAdd,2)-$Q15))) -> 0 | CX15: =MAX(-CP15,MIN(0,ROUND($R15*EFBPercent+EFBAdd,2)-$Q15),MIN(0,SUM($CM15:CO15)+MIN(0,ROUND($R15*EFBPercent+EFBAdd,2)-$Q15))) -> 0 | CY15: =MAX(-CQ15,MIN(0,ROUND($R15*EFBPercent+EFBAdd,2)-$Q15),MIN(0,SUM($CM15:CP15)+MIN(0,ROUND($R15*EFBPercent+EFBAdd,2)-$Q15))) -> 0 | CZ15: =MAX(-CR15,MIN(0,ROUND($R15*EFBPercent+EFBAdd,2)-$Q15),MIN(0,SUM($CM15:CQ15)+MIN(0,ROUND($R15*EFBPercent+EFBAdd,2)-$Q15))) -> 0 | DA15: =MAX(-CS15,MIN(0,ROUND($R15*EFBPercent+EFBAdd,2)-$Q15),MIN(0,SUM($CM15:CR15)+MIN(0,ROUND($R15*EFBPercent+EFBAdd,2)-$Q15))) -> 0 | DC15: 1856146.78 | DD15: 149274 | DE15: 0 | DF15: 0 | DG15: 0 | DH15: 0 | DI15: 0
A16: 03-736 | B16: 2507 | C16: 0000008916 | D16: 2023 | E16: Ft Totten Special Ed Unit | F16: 7 | G16: 03-736 | H16: 0 | I16: 0 | J16: 0 | K16: 0 | L16: 0 | M16: 0 | N16: 0 | O16: 0 | P16: 0 | Q16: 0 | R16: 0 | S16: 0 | T16: 0 | U16: 0 | V16: 0 | W16: 0 | X16: 0 | Y16: 0 | Z16: 0 | AA16: 0 | AB16: 0 | AC16: 0 | AD16: 0 | AE16: 0 | AF16: 0 | AG16: 0 | AH16: 0 | AI16: 0 | AJ16: 0 | AK16: 0 | AL16: 0 | AM16: 0 | AN16: 0 | AO16: 0 | AP16: 0 | AQ16: 0 | AR16: 0 | AS16: 0 | AT16: 0 | AU16: 0 | AV16: 0 | AW16: 0 | AX16: 0 | AY16: =MAX(ROUND(IF(F16<4,IF(H16=0,(SUM(Y16:AD16)*Worksheet!$E$26+Y16*Worksheet!$E$27+AN16*Worksheet!$E$39)*-BaseRate,0)),2),MIN(0,-DC16)) -> 0 | AZ16: =MAX(ROUND(IF(F16=4,0,IF(I16=0,0,ROUND(SUM(Y16:AD16)*Worksheet!$E$28,2)*-BaseRate)),2),MIN(0,-DC16-AY16)) -> 0 | BA16: 0 | BB16: 0 | BD16: 0 | BE16: 0 | BF16: =IFERROR(ROUND(IF(AND(AX16*1.12<N16*60/1000,N16/CF16<STVPP*0.2),(CF16*STVPP*0.2*Worksheet!$F$86/1000-AX16*1.12)*PropTaxAdj,IF(AX16*1.12<N16*60/1000,(N16*60/1000-AX16*1.12)*PropTaxAdj,0)),2),0) -> 0 | BG16: =ROUND(IF($F16=4,0,Y16*Worksheet!$E$16),2) -> 0 | BH16: =ROUND(IF($F16=4,0,Z16*Worksheet!$E$17),2) -> 0 | BI16: =ROUND(IF($F16=4,0,AA16*Worksheet!$E$18),2) -> 0 | BJ16: =ROUND(IF($F16=4,0,AB16*Worksheet!$E$19),2) -> 0 | BK16: =ROUND(IF($F16=4,0,AC16*Worksheet!$E$20),2) -> 0 | BL16: =ROUND(AD16*Worksheet!$E$21,2) -> 0 | BM16: 0 | BN16: =ROUND(AD16*Worksheet!$E$25,2) -> 0 | BO16: =ROUND(SUM(BM16)*Worksheet!$E$26,2) -> 0 | BP16: =ROUND(Y16*Worksheet!$E$27,2) -> 0 | BQ16: =ROUND(AE16*Worksheet!$E$29,2) -> 0 | BR16: =ROUND(AF16*Worksheet!$E$30,2) -> 0 | BS16: =ROUND(IF($I16<>0,$BM16*Worksheet!$E$28,0),2) -> 0 | BT16: =ROUND(AG16*Worksheet!$E$31,2) -> 0 | BU16: =ROUND(AH16*Worksheet!$E$32,2) -> 0 | BV16: =ROUND(AI16*Worksheet!$E$33,2) -> 0 | BW16: =ROUND(ROUND(AJ16*BM16,2)*Worksheet!$E$34,2) -> 0 | BX16: =ROUND(AK16*Worksheet!$E$35,2) -> 0 | BY16: =ROUND(AL16*Worksheet!$E$36,2) -> 0 | BZ16: =ROUND(AM16*Worksheet!$E$38,2) -> 0 | CA16: =ROUND(AN16*Worksheet!$E$39,2) -> 0 | CB16: =IF(AND(L16>275,SUM(Y16:AD16)<100),ROUND(SUM(Y16:AD16)*Worksheet!$E$41,2),0) -> 0 | CC16: =IF(AND(L16>600,SUM(Y16:AD16)<50),ROUND((50-SUM(Y16:AD16))*(Worksheet!$E$41+1),2),0) -> 0 | CD16: 0 | CE16: 0 | CF16: 0 | CG16: 0 | CH16: =MIN(ROUND(BE16*CF16*Worksheet!$D$124,2),CG16)-CG16 -> 0 | CI16: =ROUND(IF(F16=4,0,(MAX(ROUND(MAX((BE16*MIN(CF16,K16)*Worksheet!$D$127)+MAX(CF16-K16,0)*Worksheet!$F$47,SUM(J16)),2),SUM(CG16:CH16))-SUM(CG16:CH16))*MinAdj),2) -> 0 | CJ16: 0 | CK16: =IF(CF16=0,0,-MIN(CJ16,ROUND(AX16*1.12+BF16,2),MIN(CJ16,ROUND(IF(ROUND(IF(CF16=0,0,N16/CF16),2)<STVPP*0.2,STVPP*0.2*CF16*Worksheet!$F$86/1000,N16*Worksheet!$F$86/1000),2)))) -> 0 | CL16: =-MIN(SUM(CJ16,CK16),IF($P16=0,(ROUND(Worksheet!$E$75*S16,2)+ROUND(Worksheet!$E$76*T16,2)+ROUND(Worksheet!$E$77*U16,2)+ROUND(Worksheet!$E$78*V16,2)+ROUND(Worksheet!$E$79*W16,2)+ROUND(Worksheet!$E$80*X16,2)),(ROUND(ROUND(S16*ROUND((1-$O16/$P16),4),2)*Worksheet!$E$75,2)+ROUND(ROUND(T16*ROUND((1-$O16/$P16),4),2)*Worksheet!$E$76,2)+ROUND(ROUND(U16*ROUND((1-$O16/$P16),4),2)*Worksheet!$E$77,2)+ROUND(ROUND(V16*ROUND((1-$O16/$P16),4),2)*Worksheet!$E$78,2)+ROUND(ROUND(W16*ROUND((1-$O16/$P16),4),2)*Worksheet!$E$79,2)+ROUND(ROUND(X16*ROUND((1-$O16/$P16),4),2)*Worksheet!$E$80,2)))) -> 0 | CM16: 0 | CN16: =MIN(AW16,ROUND(AO16*Worksheet!$C$104,2)+ROUND(AR16*Worksheet!$C$107,2)+ROUND(AP16*Worksheet!$C$105,2)+ROUND(AS16*Worksheet!$C$108,2)+ROUND(AQ16*Worksheet!$C$106,2)+ROUND(AT16*Worksheet!$C$109,2)+ROUND(AU16*Worksheet!$C$110,2)+ROUND(AV16*Worksheet!$C$111,2)) -> 0 | CU16: 0 | CV16: =MAX(-CN16,MIN(0,ROUND($R16*EFBPercent+EFBAdd,2)-$Q16),MIN(0,SUM($CM16:CM16)+MIN(0,ROUND($R16*EFBPercent+EFBAdd,2)-$Q16))) -> 0 | CW16: =MAX(-CO16,MIN(0,ROUND($R16*EFBPercent+EFBAdd,2)-$Q16),MIN(0,SUM($CM16:CN16)+MIN(0,ROUND($R16*EFBPercent+EFBAdd,2)-$Q16))) -> 0 | CX16: =MAX(-CP16,MIN(0,ROUND($R16*EFBPercent+EFBAdd,2)-$Q16),MIN(0,SUM($CM16:CO16)+MIN(0,ROUND($R16*EFBPercent+EFBAdd,2)-$Q16))) -> 0 | CY16: =MAX(-CQ16,MIN(0,ROUND($R16*EFBPercent+EFBAdd,2)-$Q16),MIN(0,SUM($CM16:CP16)+MIN(0,ROUND($R16*EFBPercent+EFBAdd,2)-$Q16))) -> 0 | CZ16: =MAX(-CR16,MIN(0,ROUND($R16*EFBPercent+EFBAdd,2)-$Q16),MIN(0,SUM($CM16:CQ16)+MIN(0,ROUND($R16*EFBPercent+EFBAdd,2)-$Q16))) -> 0 | DA16: =MAX(-CS16,MIN(0,ROUND($R16*EFBPercent+EFBAdd,2)-$Q16),MIN(0,SUM($CM16:CR16)+MIN(0,ROUND($R16*EFBPercent+EFBAdd,2)-$Q16))) -> 0 | DC16: 0 | DD16: 0 | DE16: 0 | DF16: 0 | DG16: 0 | DH16: 0 | DI16: 0
A17: 04-001 | B17: 1011 | C17: 0000008414 | D17: 2023 | E17: Billings Co 1 | F17: 2 | G17: 45-701 | H17: 100 | I17: 45-371 | J17: 2306163.33 | K17: 109.55 | L17: 1152 | M17: 0 | N17: 19717516 | O17: 0 | P17: 57.16 | Q17: 0 | R17: 0 | S17: 10164.48 | T17: 1999681.93 | U17: 0 | V17: 34934.51 | W17: 8158.68 | X17: 13105.98 | Y17: 2.5 | Z17: 14 | AA17: 66 | AB17: 14 | AC17: 0 | AD17: 0 | AE17: 7 | AF17: 0 | AG17: 0 | AH17: 1 | AI17: 0 | AJ17: 0.077 | AK17: 0 | AL17: 0 | AM17: 0 | AN17: 0 | AO17: 0 | AP17: 105875 | AQ17: 19406 | AR17: 0 | AS17: 0 | AT17: 0 | AU17: 12568.4 | AV17: 12449.5 | AW17: 275188.18 | AX17: 1184662.32 | AY17: =MAX(ROUND(IF(F17<4,IF(H17=0,(SUM(Y17:AD17)*Worksheet!$E$26+Y17*Worksheet!$E$27+AN17*Worksheet!$E$39)*-BaseRate,0)),2),MIN(0,-DC17)) -> 0 | AZ17: =MAX(ROUND(IF(F17=4,0,IF(I17=0,0,ROUND(SUM(Y17:AD17)*Worksheet!$E$28,2)*-BaseRate)),2),MIN(0,-DC17-AY17)) -> 0 | BA17: 0 | BB17: 0 | BD17: 125079.4 | BE17: 21051.24 | BF17: =IFERROR(ROUND(IF(AND(AX17*1.12<N17*60/1000,N17/CF17<STVPP*0.2),(CF17*STVPP*0.2*Worksheet!$F$86/1000-AX17*1.12)*PropTaxAdj,IF(AX17*1.12<N17*60/1000,(N17*60/1000-AX17*1.12)*PropTaxAdj,0)),2),0) -> 0 | BG17: =ROUND(IF($F17=4,0,Y17*Worksheet!$E$16),2) -> 2.5 | BH17: =ROUND(IF($F17=4,0,Z17*Worksheet!$E$17),2) -> 14 | BI17: =ROUND(IF($F17=4,0,AA17*Worksheet!$E$18),2) -> 66 | BJ17: =ROUND(IF($F17=4,0,AB17*Worksheet!$E$19),2) -> 14 | BK17: =ROUND(IF($F17=4,0,AC17*Worksheet!$E$20),2) -> 0 | BL17: =ROUND(AD17*Worksheet!$E$21,2) -> 0 | BM17: 96.5 | BN17: =ROUND(AD17*Worksheet!$E$25,2) -> 0 | BO17: =ROUND(SUM(BM17)*Worksheet!$E$26,2) -> 7.91 | BP17: =ROUND(Y17*Worksheet!$E$27,2) -> 0.43 | BQ17: =ROUND(AE17*Worksheet!$E$29,2) -> 4.9 | BR17: =ROUND(AF17*Worksheet!$E$30,2) -> 0 | BS17: =ROUND(IF($I17<>0,$BM17*Worksheet!$E$28,0),2) -> 0.19 | BT17: =ROUND(AG17*Worksheet!$E$31,2) -> 0 | BU17: =ROUND(AH17*Worksheet!$E$32,2) -> 0.28 | BV17: =ROUND(AI17*Worksheet!$E$33,2) -> 0 | BW17: =ROUND(ROUND(AJ17*BM17,2)*Worksheet!$E$34,2) -> 0.19 | BX17: =ROUND(AK17*Worksheet!$E$35,2) -> 0 | BY17: =ROUND(AL17*Worksheet!$E$36,2) -> 0 | BZ17: =ROUND(AM17*Worksheet!$E$38,2) -> 0 | CA17: =ROUND(AN17*Worksheet!$E$39,2) -> 0 | CB17: =IF(AND(L17>275,SUM(Y17:AD17)<100),ROUND(SUM(Y17:AD17)*Worksheet!$E$41,2),0) -> 9.65 | CC17: =IF(AND(L17>600,SUM(Y17:AD17)<50),ROUND((50-SUM(Y17:AD17))*(Worksheet!$E$41+1),2),0) -> 0 | CD17: 120.05 | CE17: 1.3131 | CF17: 157.64 | CG17: 1613760.68 | CH17: =MIN(ROUND(BE17*CF17*Worksheet!$D$124,2),CG17)-CG17 -> 0 | CI17: =ROUND(IF(F17=4,0,(MAX(ROUND(MAX((BE17*MIN(CF17,K17)*Worksheet!$D$127)+MAX(CF17-K17,0)*Worksheet!$F$47,SUM(J17)),2),SUM(CG17:CH17))-SUM(CG17:CH17))*MinAdj),2) -> 861576.28 | CJ17: 2475336.96 | CK17: =IF(CF17=0,0,-MIN(CJ17,ROUND(AX17*1.12+BF17,2),MIN(CJ17,ROUND(IF(ROUND(IF(CF17=0,0,N17/CF17),2)<STVPP*0.2,STVPP*0.2*CF17*Worksheet!$F$86/1000,N17*Worksheet!$F$86/1000),2)))) -> -1183050.96 | CL17: =-MIN(SUM(CJ17,CK17),IF($P17=0,(ROUND(Worksheet!$E$75*S17,2)+ROUND(Worksheet!$E$76*T17,2)+ROUND(Worksheet!$E$77*U17,2)+ROUND(Worksheet!$E$78*V17,2)+ROUND(Worksheet!$E$79*W17,2)+ROUND(Worksheet!$E$80*X17,2)),(ROUND(ROUND(S17*ROUND((1-$O17/$P17),4),2)*Worksheet!$E$75,2)+ROUND(ROUND(T17*ROUND((1-$O17/$P17),4),2)*Worksheet!$E$76,2)+ROUND(ROUND(U17*ROUND((1-$O17/$P17),4),2)*Worksheet!$E$77,2)+ROUND(ROUND(V17*ROUND((1-$O17/$P17),4),2)*Worksheet!$E$78,2)+ROUND(ROUND(W17*ROUND((1-$O17/$P17),4),2)*Worksheet!$E$79,2)+ROUND(ROUND(X17*ROUND((1-$O17/$P17),4),2)*Worksheet!$E$80,2)))) -> -1292286 | CM17: 0 | CN17: =MIN(AW17,ROUND(AO17*Worksheet!$C$104,2)+ROUND(AR17*Worksheet!$C$107,2)+ROUND(AP17*Worksheet!$C$105,2)+ROUND(AS17*Worksheet!$C$108,2)+ROUND(AQ17*Worksheet!$C$106,2)+ROUND(AT17*Worksheet!$C$109,2)+ROUND(AU17*Worksheet!$C$110,2)+ROUND(AV17*Worksheet!$C$111,2)) -> 129597.53 | CU17: 0 | CV17: =MAX(-CN17,MIN(0,ROUND($R17*EFBPercent+EFBAdd,2)-$Q17),MIN(0,SUM($CM17:CM17)+MIN(0,ROUND($R17*EFBPercent+EFBAdd,2)-$Q17))) -> 0 | CW17: =MAX(-CO17,MIN(0,ROUND($R17*EFBPercent+EFBAdd,2)-$Q17),MIN(0,SUM($CM17:CN17)+MIN(0,ROUND($R17*EFBPercent+EFBAdd,2)-$Q17))) -> 0 | CX17: =MAX(-CP17,MIN(0,ROUND($R17*EFBPercent+EFBAdd,2)-$Q17),MIN(0,SUM($CM17:CO17)+MIN(0,ROUND($R17*EFBPercent+EFBAdd,2)-$Q17))) -> 0 | CY17: =MAX(-CQ17,MIN(0,ROUND($R17*EFBPercent+EFBAdd,2)-$Q17),MIN(0,SUM($CM17:CP17)+MIN(0,ROUND($R17*EFBPercent+EFBAdd,2)-$Q17))) -> 0 | CZ17: =MAX(-CR17,MIN(0,ROUND($R17*EFBPercent+EFBAdd,2)-$Q17),MIN(0,SUM($CM17:CQ17)+MIN(0,ROUND($R17*EFBPercent+EFBAdd,2)-$Q17))) -> 0 | DA17: =MAX(-CS17,MIN(0,ROUND($R17*EFBPercent+EFBAdd,2)-$Q17),MIN(0,SUM($CM17:CR17)+MIN(0,ROUND($R17*EFBPercent+EFBAdd,2)-$Q17))) -> 0 | DC17: 0 | DD17: 129597.53 | DE17: 0 | DF17: 0 | DG17: 0 | DH17: 0 | DI17: 0
A18: 05-001 | B18: 1013 | C18: 0000008418 | D18: 2023 | E18: Bottineau 1 | F18: 1 | G18: 05-726 | H18: 100 | I18: 05-377 | J18: 7552868.28 | K18: 751.89 | L18: 643.5 | M18: 0 | N18: 35677401 | O18: 14.09 | P18: 88.78 | Q18: 0 | R18: 0 | S18: 49536 | T18: 787404.03 | U18: 0 | V18: 31827.15 | W18: 38931.6 | X18: 39577.16 | Y18: 0.81 | Z18: 40 | AA18: 307 | AB18: 119 | AC18: 196 | AD18: 0 | AE18: 0 | AF18: 0 | AG18: 0 | AH18: 0 | AI18: 0 | AJ18: 0.318 | AK18: 0 | AL18: 0 | AM18: 10.26 | AN18: 0.27 | AO18: 0 | AP18: 221900 | AQ18: 114100 | AR18: 0 | AS18: 17325 | AT18: 116550 | AU18: 0 | AV18: 0 | AW18: 432394.74 | AX18: 2128746.12 | AY18: =MAX(ROUND(IF(F18<4,IF(H18=0,(SUM(Y18:AD18)*Worksheet!$E$26+Y18*Worksheet!$E$27+AN18*Worksheet!$E$39)*-BaseRate,0)),2),MIN(0,-DC18)) -> 0 | AZ18: =MAX(ROUND(IF(F18=4,0,IF(I18=0,0,ROUND(SUM(Y18:AD18)*Worksheet!$E$28,2)*-BaseRate)),2),MIN(0,-DC18-AY18)) -> -13615.21 | BA18: 0 | BB18: 1404 | BD18: 48367.61 | BE18: 10045.18 | BF18: =IFERROR(ROUND(IF(AND(AX18*1.12<N18*60/1000,N18/CF18<STVPP*0.2),(CF18*STVPP*0.2*Worksheet!$F$86/1000-AX18*1.12)*PropTaxAdj,IF(AX18*1.12<N18*60/1000,(N18*60/1000-AX18*1.12)*PropTaxAdj,0)),2),0) -> 0 | BG18: =ROUND(IF($F18=4,0,Y18*Worksheet!$E$16),2) -> 0.81 | BH18: =ROUND(IF($F18=4,0,Z18*Worksheet!$E$17),2) -> 40 | BI18: =ROUND(IF($F18=4,0,AA18*Worksheet!$E$18),2) -> 307 | BJ18: =ROUND(IF($F18=4,0,AB18*Worksheet!$E$19),2) -> 119 | BK18: =ROUND(IF($F18=4,0,AC18*Worksheet!$E$20),2) -> 196 | BL18: =ROUND(AD18*Worksheet!$E$21,2) -> 0 | BM18: 662.81 | BN18: =ROUND(AD18*Worksheet!$E$25,2) -> 0 | BO18: =ROUND(SUM(BM18)*Worksheet!$E$26,2) -> 54.35 | BP18: =ROUND(Y18*Worksheet!$E$27,2) -> 0.14 | BQ18: =ROUND(AE18*Worksheet!$E$29,2) -> 0 | BR18: =ROUND(AF18*Worksheet!$E$30,2) -> 0 | BS18: =ROUND(IF($I18<>0,$BM18*Worksheet!$E$28,0),2) -> 1.33 | BT18: =ROUND(AG18*Worksheet!$E$31,2) -> 0 | BU18: =ROUND(AH18*Worksheet!$E$32,2) -> 0 | BV18: =ROUND(AI18*Worksheet!$E$33,2) -> 0 | BW18: =ROUND(ROUND(AJ18*BM18,2)*Worksheet!$E$34,2) -> 5.27 | BX18: =ROUND(AK18*Worksheet!$E$35,2) -> 0 | BY18: =ROUND(AL18*Worksheet!$E$36,2) -> 0 | BZ18: =ROUND(AM18*Worksheet!$E$38,2) -> 6.16 | CA18: =ROUND(AN18*Worksheet!$E$39,2) -> 0.27 | CB18: =IF(AND(L18>275,SUM(Y18:AD18)<100),ROUND(SUM(Y18:AD18)*Worksheet!$E$41,2),0) -> 0 | CC18: =IF(AND(L18>600,SUM(Y18:AD18)<50),ROUND((50-SUM(Y18:AD18))*(Worksheet!$E$41+1),2),0) -> 0 | CD18: 730.33 | CE18: 1.01 | CF18: 737.63 | CG18: 7551118.31 | CH18: =MIN(ROUND(BE18*CF18*Worksheet!$D$124,2),CG18)-CG18 -> 0 | CI18: =ROUND(IF(F18=4,0,(MAX(ROUND(MAX((BE18*MIN(CF18,K18)*Worksheet!$D$127)+MAX(CF18-K18,0)*Worksheet!$F$47,SUM(J18)),2),SUM(CG18:CH18))-SUM(CG18:CH18))*MinAdj),2) -> 4690.24 | CJ18: 7555808.55 | CK18: =IF(CF18=0,0,-MIN(CJ18,ROUND(AX18*1.12+BF18,2),MIN(CJ18,ROUND(IF(ROUND(IF(CF18=0,0,N18/CF18),2)<STVPP*0.2,STVPP*0.2*CF18*Worksheet!$F$86/1000,N18*Worksheet!$F$86/1000),2)))) -> -2140644.06 | CL18: =-MIN(SUM(CJ18,CK18),IF($P18=0,(ROUND(Worksheet!$E$75*S18,2)+ROUND(Worksheet!$E$76*T18,2)+ROUND(Worksheet!$E$77*U18,2)+ROUND(Worksheet!$E$78*V18,2)+ROUND(Worksheet!$E$79*W18,2)+ROUND(Worksheet!$E$80*X18,2)),(ROUND(ROUND(S18*ROUND((1-$O18/$P18),4),2)*Worksheet!$E$75,2)+ROUND(ROUND(T18*ROUND((1-$O18/$P18),4),2)*Worksheet!$E$76,2)+ROUND(ROUND(U18*ROUND((1-$O18/$P18),4),2)*Worksheet!$E$77,2)+ROUND(ROUND(V18*ROUND((1-$O18/$P18),4),2)*Worksheet!$E$78,2)+ROUND(ROUND(W18*ROUND((1-$O18/$P18),4),2)*Worksheet!$E$79,2)+ROUND(ROUND(X18*ROUND((1-$O18/$P18),4),2)*Worksheet!$E$80,2)))) -> -597707.45 | CM18: 4817457.04 | CN18: =MIN(AW18,ROUND(AO18*Worksheet!$C$104,2)+ROUND(AR18*Worksheet!$C$107,2)+ROUND(AP18*Worksheet!$C$105,2)+ROUND(AS18*Worksheet!$C$108,2)+ROUND(AQ18*Worksheet!$C$106,2)+ROUND(AT18*Worksheet!$C$109,2)+ROUND(AU18*Worksheet!$C$110,2)+ROUND(AV18*Worksheet!$C$111,2)) -> 334734.75 | CU18: 0 | CV18: =MAX(-CN18,MIN(0,ROUND($R18*EFBPercent+EFBAdd,2)-$Q18),MIN(0,SUM($CM18:CM18)+MIN(0,ROUND($R18*EFBPercent+EFBAdd,2)-$Q18))) -> 0 | CW18: =MAX(-CO18,MIN(0,ROUND($R18*EFBPercent+EFBAdd,2)-$Q18),MIN(0,SUM($CM18:CN18)+MIN(0,ROUND($R18*EFBPercent+EFBAdd,2)-$Q18))) -> 0 | CX18: =MAX(-CP18,MIN(0,ROUND($R18*EFBPercent+EFBAdd,2)-$Q18),MIN(0,SUM($CM18:CO18)+MIN(0,ROUND($R18*EFBPercent+EFBAdd,2)-$Q18))) -> 0 | CY18: =MAX(-CQ18,MIN(0,ROUND($R18*EFBPercent+EFBAdd,2)-$Q18),MIN(0,SUM($CM18:CP18)+MIN(0,ROUND($R18*EFBPercent+EFBAdd,2)-$Q18))) -> 0 | CZ18: =MAX(-CR18,MIN(0,ROUND($R18*EFBPercent+EFBAdd,2)-$Q18),MIN(0,SUM($CM18:CQ18)+MIN(0,ROUND($R18*EFBPercent+EFBAdd,2)-$Q18))) -> 0 | DA18: =MAX(-CS18,MIN(0,ROUND($R18*EFBPercent+EFBAdd,2)-$Q18),MIN(0,SUM($CM18:CR18)+MIN(0,ROUND($R18*EFBPercent+EFBAdd,2)-$Q18))) -> 0 | DC18: 4817457.04 | DD18: 334734.75 | DE18: 0 | DF18: 0 | DG18: 0 | DH18: 0 | DI18: 0
A19: 05-017 | B19: 1171 | C19: 0000008655 | D19: 2023 | E19: Westhope 17 | F19: 1 | G19: 05-726 | H19: 100 | I19: 05-377 | J19: 1907710.82 | K19: 177.63 | L19: 345.81 | M19: 0 | N19: 8714789 | O19: 37.84 | P19: 115.04 | Q19: 0 | R19: 0 | S19: 0 | T19: 165363.23 | U19: 0 | V19: 13825.93 | W19: 9372.72 | X19: 12685.57 | Y19: 1.05 | Z19: 11 | AA19: 70 | AB19: 19 | AC19: 37 | AD19: 0 | AE19: 0 | AF19: 0 | AG19: 0 | AH19: 0 | AI19: 0 | AJ19: 0.363 | AK19: 0 | AL19: 0 | AM19: 6.29 | AN19: 0.05 | AO19: 0 | AP19: 93450 | AQ19: 21399 | AR19: 0 | AS19: 0 | AT19: 0 | AU19: 0 | AV19: 0 | AW19: 136306.29 | AX19: 518905.62 | AY19: =MAX(ROUND(IF(F19<4,IF(H19=0,(SUM(Y19:AD19)*Worksheet!$E$26+Y19*Worksheet!$E$27+AN19*Worksheet!$E$39)*-BaseRate,0)),2),MIN(0,-DC19)) -> 0 | AZ19: =MAX(ROUND(IF(F19=4,0,IF(I19=0,0,ROUND(SUM(Y19:AD19)*Worksheet!$E$28,2)*-BaseRate)),2),MIN(0,-DC19-AY19)) -> -2866.36 | BA19: 0 | BB19: 1404 | BD19: 40475.54 | BE19: 10739.8 | BF19: =IFERROR(ROUND(IF(AND(AX19*1.12<N19*60/1000,N19/CF19<STVPP*0.2),(CF19*STVPP*0.2*Worksheet!$F$86/1000-AX19*1.12)*PropTaxAdj,IF(AX19*1.12<N19*60/1000,(N19*60/1000-AX19*1.12)*PropTaxAdj,0)),2),0) -> 0 | BG19: =ROUND(IF($F19=4,0,Y19*Worksheet!$E$16),2) -> 1.05 | BH19: =ROUND(IF($F19=4,0,Z19*Worksheet!$E$17),2) -> 11 | BI19: =ROUND(IF($F19=4,0,AA19*Worksheet!$E$18),2) -> 70 | BJ19: =ROUND(IF($F19=4,0,AB19*Worksheet!$E$19),2) -> 19 | BK19: =ROUND(IF($F19=4,0,AC19*Worksheet!$E$20),2) -> 37 | BL19: =ROUND(AD19*Worksheet!$E$21,2) -> 0 | BM19: 138.05 | BN19: =ROUND(AD19*Worksheet!$E$25,2) -> 0 | BO19: =ROUND(SUM(BM19)*Worksheet!$E$26,2) -> 11.32 | BP19: =ROUND(Y19*Worksheet!$E$27,2) -> 0.18 | BQ19: =ROUND(AE19*Worksheet!$E$29,2) -> 0 | BR19: =ROUND(AF19*Worksheet!$E$30,2) -> 0 | BS19: =ROUND(IF($I19<>0,$BM19*Worksheet!$E$28,0),2) -> 0.28 | BT19: =ROUND(AG19*Worksheet!$E$31,2) -> 0 | BU19: =ROUND(AH19*Worksheet!$E$32,2) -> 0 | BV19: =ROUND(AI19*Worksheet!$E$33,2) -> 0 | BW19: =ROUND(ROUND(AJ19*BM19,2)*Worksheet!$E$34,2) -> 1.25 | BX19: =ROUND(AK19*Worksheet!$E$35,2) -> 0 | BY19: =ROUND(AL19*Worksheet!$E$36,2) -> 0 | BZ19: =ROUND(AM19*Worksheet!$E$38,2) -> 3.77 | CA19: =ROUND(AN19*Worksheet!$E$39,2) -> 0.05 | CB19: =IF(AND(L19>275,SUM(Y19:AD19)<100),ROUND(SUM(Y19:AD19)*Worksheet!$E$41,2),0) -> 0 | CC19: =IF(AND(L19>600,SUM(Y19:AD19)<50),ROUND((50-SUM(Y19:AD19))*(Worksheet!$E$41+1),2),0) -> 0 | CD19: 154.9 | CE19: 1.39 | CF19: 215.31 | CG19: 2204128.47 | CH19: =MIN(ROUND(BE19*CF19*Worksheet!$D$124,2),CG19)-CG19 -> 0 | CI19: =ROUND(IF(F19=4,0,(MAX(ROUND(MAX((BE19*MIN(CF19,K19)*Worksheet!$D$127)+MAX(CF19-K19,0)*Worksheet!$F$47,SUM(J19)),2),SUM(CG19:CH19))-SUM(CG19:CH19))*MinAdj),2) -> 89226.61 | CJ19: 2293355.08 | CK19: =IF(CF19=0,0,-MIN(CJ19,ROUND(AX19*1.12+BF19,2),MIN(CJ19,ROUND(IF(ROUND(IF(CF19=0,0,N19/CF19),2)<STVPP*0.2,STVPP*0.2*CF19*Worksheet!$F$86/1000,N19*Worksheet!$F$86/1000),2)))) -> -522887.34 | CL19: =-MIN(SUM(CJ19,CK19),IF($P19=0,(ROUND(Worksheet!$E$75*S19,2)+ROUND(Worksheet!$E$76*T19,2)+ROUND(Worksheet!$E$77*U19,2)+ROUND(Worksheet!$E$78*V19,2)+ROUND(Worksheet!$E$79*W19,2)+ROUND(Worksheet!$E$80*X19,2)),(ROUND(ROUND(S19*ROUND((1-$O19/$P19),4),2)*Worksheet!$E$75,2)+ROUND(ROUND(T19*ROUND((1-$O19/$P19),4),2)*Worksheet!$E$76,2)+ROUND(ROUND(U19*ROUND((1-$O19/$P19),4),2)*Worksheet!$E$77,2)+ROUND(ROUND(V19*ROUND((1-$O19/$P19),4),2)*Worksheet!$E$78,2)+ROUND(ROUND(W19*ROUND((1-$O19/$P19),4),2)*Worksheet!$E$79,2)+ROUND(ROUND(X19*ROUND((1-$O19/$P19),4),2)*Worksheet!$E$80,2)))) -> -101292.88 | CM19: 1669174.86 | CN19: =MIN(AW19,ROUND(AO19*Worksheet!$C$104,2)+ROUND(AR19*Worksheet!$C$107,2)+ROUND(AP19*Worksheet!$C$105,2)+ROUND(AS19*Worksheet!$C$108,2)+ROUND(AQ19*Worksheet!$C$106,2)+ROUND(AT19*Worksheet!$C$109,2)+ROUND(AU19*Worksheet!$C$110,2)+ROUND(AV19*Worksheet!$C$111,2)) -> 110149.2 | CU19: 0 | CV19: =MAX(-CN19,MIN(0,ROUND($R19*EFBPercent+EFBAdd,2)-$Q19),MIN(0,SUM($CM19:CM19)+MIN(0,ROUND($R19*EFBPercent+EFBAdd,2)-$Q19))) -> 0 | CW19: =MAX(-CO19,MIN(0,ROUND($R19*EFBPercent+EFBAdd,2)-$Q19),MIN(0,SUM($CM19:CN19)+MIN(0,ROUND($R19*EFBPercent+EFBAdd,2)-$Q19))) -> 0 | CX19: =MAX(-CP19,MIN(0,ROUND($R19*EFBPercent+EFBAdd,2)-$Q19),MIN(0,SUM($CM19:CO19)+MIN(0,ROUND($R19*EFBPercent+EFBAdd,2)-$Q19))) -> 0 | CY19: =MAX(-CQ19,MIN(0,ROUND($R19*EFBPercent+EFBAdd,2)-$Q19),MIN(0,SUM($CM19:CP19)+MIN(0,ROUND($R19*EFBPercent+EFBAdd,2)-$Q19))) -> 0 | CZ19: =MAX(-CR19,MIN(0,ROUND($R19*EFBPercent+EFBAdd,2)-$Q19),MIN(0,SUM($CM19:CQ19)+MIN(0,ROUND($R19*EFBPercent+EFBAdd,2)-$Q19))) -> 0 | DA19: =MAX(-CS19,MIN(0,ROUND($R19*EFBPercent+EFBAdd,2)-$Q19),MIN(0,SUM($CM19:CR19)+MIN(0,ROUND($R19*EFBPercent+EFBAdd,2)-$Q19))) -> 0 | DC19: 1669174.86 | DD19: 110149.2 | DE19: 0 | DF19: 0 | DG19: 0 | DH19: 0 | DI19: 0
A20: 05-054 | B20: 1122 | C20: 0000008569 | D20: 2023 | E20: Newburg-United 54 | F20: 1 | G20: 05-726 | H20: 100 | I20: 05-377 | J20: 2096120.28 | K20: 124.74 | L20: 382.98 | M20: 0 | N20: 10190366 | O20: 0 | P20: 66.75 | Q20: 0 | R20: 0 | S20: 44836.94 | T20: 59227.7 | U20: 0 | V20: 18913.51 | W20: 2250.72 | X20: 10664.99 | Y20: 0.22 | Z20: 7 | AA20: 40 | AB20: 11 | AC20: 15 | AD20: 0 | AE20: 0 | AF20: 0 | AG20: 0 | AH20: 0 | AI20: 0 | AJ20: 0.396 | AK20: 0 | AL20: 0 | AM20: 0 | AN20: 0 | AO20: 0 | AP20: 73500 | AQ20: 20558 | AR20: 0 | AS20: 0 | AT20: 0 | AU20: 0 | AV20: 0 | AW20: 147593.68 | AX20: 605507.7 | AY20: =MAX(ROUND(IF(F20<4,IF(H20=0,(SUM(Y20:AD20)*Worksheet!$E$26+Y20*Worksheet!$E$27+AN20*Worksheet!$E$39)*-BaseRate,0)),2),MIN(0,-DC20)) -> 0 | AZ20: =MAX(ROUND(IF(F20=4,0,IF(I20=0,0,ROUND(SUM(Y20:AD20)*Worksheet!$E$28,2)*-BaseRate)),2),MIN(0,-DC20-AY20)) -> -1535.55 | BA20: 0 | BB20: 1404 | BD20: 79805.51 | BE20: 16803.91 | BF20: =IFERROR(ROUND(IF(AND(AX20*1.12<N20*60/1000,N20/CF20<STVPP*0.2),(CF20*STVPP*0.2*Worksheet!$F$86/1000-AX20*1.12)*PropTaxAdj,IF(AX20*1.12<N20*60/1000,(N20*60/1000-AX20*1.12)*PropTaxAdj,0)),2),0) -> 0 | BG20: =ROUND(IF($F20=4,0,Y20*Worksheet!$E$16),2) -> 0.22 | BH20: =ROUND(IF($F20=4,0,Z20*Worksheet!$E$17),2) -> 7 | BI20: =ROUND(IF($F20=4,0,AA20*Worksheet!$E$18),2) -> 40 | BJ20: =ROUND(IF($F20=4,0,AB20*Worksheet!$E$19),2) -> 11 | BK20: =ROUND(IF($F20=4,0,AC20*Worksheet!$E$20),2) -> 15 | BL20: =ROUND(AD20*Worksheet!$E$21,2) -> 0 | BM20: 73.22 | BN20: =ROUND(AD20*Worksheet!$E$25,2) -> 0 | BO20: =ROUND(SUM(BM20)*Worksheet!$E$26,2) -> 6 | BP20: =ROUND(Y20*Worksheet!$E$27,2) -> 0.04 | BQ20: =ROUND(AE20*Worksheet!$E$29,2) -> 0 | BR20: =ROUND(AF20*Worksheet!$E$30,2) -> 0 | BS20: =ROUND(IF($I20<>0,$BM20*Worksheet!$E$28,0),2) -> 0.15 | BT20: =ROUND(AG20*Worksheet!$E$31,2) -> 0 | BU20: =ROUND(AH20*Worksheet!$E$32,2) -> 0 | BV20: =ROUND(AI20*Worksheet!$E$33,2) -> 0 | BW20: =ROUND(ROUND(AJ20*BM20,2)*Worksheet!$E$34,2) -> 0.73 | BX20: =ROUND(AK20*Worksheet!$E$35,2) -> 0 | BY20: =ROUND(AL20*Worksheet!$E$36,2) -> 0 | BZ20: =ROUND(AM20*Worksheet!$E$38,2) -> 0 | CA20: =ROUND(AN20*Worksheet!$E$39,2) -> 0 | CB20: =IF(AND(L20>275,SUM(Y20:AD20)<100),ROUND(SUM(Y20:AD20)*Worksheet!$E$41,2),0) -> 7.32 | CC20: =IF(AND(L20>600,SUM(Y20:AD20)<50),ROUND((50-SUM(Y20:AD20))*(Worksheet!$E$41+1),2),0) -> 0 | CD20: 87.46 | CE20: 1.46 | CF20: 127.69 | CG20: 1307162.53 | CH20: =MIN(ROUND(BE20*CF20*Worksheet!$D$124,2),CG20)-CG20 -> 0 | CI20: =ROUND(IF(F20=4,0,(MAX(ROUND(MAX((BE20*MIN(CF20,K20)*Worksheet!$D$127)+MAX(CF20-K20,0)*Worksheet!$F$47,SUM(J20)),2),SUM(CG20:CH20))-SUM(CG20:CH20))*MinAdj),2) -> 602755.13 | CJ20: 1909917.66 | CK20: =IF(CF20=0,0,-MIN(CJ20,ROUND(AX20*1.12+BF20,2),MIN(CJ20,ROUND(IF(ROUND(IF(CF20=0,0,N20/CF20),2)<STVPP*0.2,STVPP*0.2*CF20*Worksheet!$F$86/1000,N20*Worksheet!$F$86/1000),2)))) -> -611421.96 | CL20: =-MIN(SUM(CJ20,CK20),IF($P20=0,(ROUND(Worksheet!$E$75*S20,2)+ROUND(Worksheet!$E$76*T20,2)+ROUND(Worksheet!$E$77*U20,2)+ROUND(Worksheet!$E$78*V20,2)+ROUND(Worksheet!$E$79*W20,2)+ROUND(Worksheet!$E$80*X20,2)),(ROUND(ROUND(S20*ROUND((1-$O20/$P20),4),2)*Worksheet!$E$75,2)+ROUND(ROUND(T20*ROUND((1-$O20/$P20),4),2)*Worksheet!$E$76,2)+ROUND(ROUND(U20*ROUND((1-$O20/$P20),4),2)*Worksheet!$E$77,2)+ROUND(ROUND(V20*ROUND((1-$O20/$P20),4),2)*Worksheet!$E$78,2)+ROUND(ROUND(W20*ROUND((1-$O20/$P20),4),2)*Worksheet!$E$79,2)+ROUND(ROUND(X20*ROUND((1-$O20/$P20),4),2)*Worksheet!$E$80,2)))) -> -101920.4 | CM20: 1196575.3 | CN20: =MIN(AW20,ROUND(AO20*Worksheet!$C$104,2)+ROUND(AR20*Worksheet!$C$107,2)+ROUND(AP20*Worksheet!$C$105,2)+ROUND(AS20*Worksheet!$C$108,2)+ROUND(AQ20*Worksheet!$C$106,2)+ROUND(AT20*Worksheet!$C$109,2)+ROUND(AU20*Worksheet!$C$110,2)+ROUND(AV20*Worksheet!$C$111,2)) -> 87752.4 | CU20: 0 | CV20: =MAX(-CN20,MIN(0,ROUND($R20*EFBPercent+EFBAdd,2)-$Q20),MIN(0,SUM($CM20:CM20)+MIN(0,ROUND($R20*EFBPercent+EFBAdd,2)-$Q20))) -> 0 | CW20: =MAX(-CO20,MIN(0,ROUND($R20*EFBPercent+EFBAdd,2)-$Q20),MIN(0,SUM($CM20:CN20)+MIN(0,ROUND($R20*EFBPercent+EFBAdd,2)-$Q20))) -> 0 | CX20: =MAX(-CP20,MIN(0,ROUND($R20*EFBPercent+EFBAdd,2)-$Q20),MIN(0,SUM($CM20:CO20)+MIN(0,ROUND($R20*EFBPercent+EFBAdd,2)-$Q20))) -> 0 | CY20: =MAX(-CQ20,MIN(0,ROUND($R20*EFBPercent+EFBAdd,2)-$Q20),MIN(0,SUM($CM20:CP20)+MIN(0,ROUND($R20*EFBPercent+EFBAdd,2)-$Q20))) -> 0 | CZ20: =MAX(-CR20,MIN(0,ROUND($R20*EFBPercent+EFBAdd,2)-$Q20),MIN(0,SUM($CM20:CQ20)+MIN(0,ROUND($R20*EFBPercent+EFBAdd,2)-$Q20))) -> 0 | DA20: =MAX(-CS20,MIN(0,ROUND($R20*EFBPercent+EFBAdd,2)-$Q20),MIN(0,SUM($CM20:CR20)+MIN(0,ROUND($R20*EFBPercent+EFBAdd,2)-$Q20))) -> 0 | DC20: 1196575.3 | DD20: 87752.4 | DE20: 0 | DF20: 0 | DG20: 0 | DH20: 0 | DI20: 0
A21: 05-377 | B21: 1404 | C21: 0000053852 | D21: 2023 | E21: North Central Ed Cooperative | F21: 0 | G21: 0 | H21: 0 | I21: 0 | J21: 0 | K21: 0 | L21: 0 | M21: 0 | N21: 0 | O21: 0 | P21: 0 | Q21: 0 | R21: 0 | S21: 0 | T21: 0 | U21: 0 | V21: 0 | W21: 0 | X21: 0 | Y21: 0 | Z21: 0 | AA21: 0 | AB21: 0 | AC21: 0 | AD21: 0 | AE21: 0 | AF21: 0 | AG21: 0 | AH21: 0 | AI21: 0 | AJ21: 0 | AK21: 0 | AL21: 0 | AM21: 0 | AN21: 0 | AO21: 0 | AP21: 0 | AQ21: 0 | AR21: 0 | AS21: 0 | AT21: 0 | AU21: 0 | AV21: 0 | AW21: 0 | AX21: 0 | AY21: =MAX(ROUND(IF(F21<4,IF(H21=0,(SUM(Y21:AD21)*Worksheet!$E$26+Y21*Worksheet!$E$27+AN21*Worksheet!$E$39)*-BaseRate,0)),2),MIN(0,-DC21)) -> 0 | AZ21: =MAX(ROUND(IF(F21=4,0,IF(I21=0,0,ROUND(SUM(Y21:AD21)*Worksheet!$E$28,2)*-BaseRate)),2),MIN(0,-DC21-AY21)) -> 0 | BA21: 0 | BB21: 0 | BD21: 0 | BE21: 0 | BF21: =IFERROR(ROUND(IF(AND(AX21*1.12<N21*60/1000,N21/CF21<STVPP*0.2),(CF21*STVPP*0.2*Worksheet!$F$86/1000-AX21*1.12)*PropTaxAdj,IF(AX21*1.12<N21*60/1000,(N21*60/1000-AX21*1.12)*PropTaxAdj,0)),2),0) -> 0 | BG21: =ROUND(IF($F21=4,0,Y21*Worksheet!$E$16),2) -> 0 | BH21: =ROUND(IF($F21=4,0,Z21*Worksheet!$E$17),2) -> 0 | BI21: =ROUND(IF($F21=4,0,AA21*Worksheet!$E$18),2) -> 0 | BJ21: =ROUND(IF($F21=4,0,AB21*Worksheet!$E$19),2) -> 0 | BK21: =ROUND(IF($F21=4,0,AC21*Worksheet!$E$20),2) -> 0 | BL21: =ROUND(AD21*Worksheet!$E$21,2) -> 0 | BM21: 0 | BN21: =ROUND(AD21*Worksheet!$E$25,2) -> 0 | BO21: =ROUND(SUM(BM21)*Worksheet!$E$26,2) -> 0 | BP21: =ROUND(Y21*Worksheet!$E$27,2) -> 0 | BQ21: =ROUND(AE21*Worksheet!$E$29,2) -> 0 | BR21: =ROUND(AF21*Worksheet!$E$30,2) -> 0 | BS21: =ROUND(IF($I21<>0,$BM21*Worksheet!$E$28,0),2) -> 0 | BT21: =ROUND(AG21*Worksheet!$E$31,2) -> 0 | BU21: =ROUND(AH21*Worksheet!$E$32,2) -> 0 | BV21: =ROUND(AI21*Worksheet!$E$33,2) -> 0 | BW21: =ROUND(ROUND(AJ21*BM21,2)*Worksheet!$E$34,2) -> 0 | BX21: =ROUND(AK21*Worksheet!$E$35,2) -> 0 | BY21: =ROUND(AL21*Worksheet!$E$36,2) -> 0 | BZ21: =ROUND(AM21*Worksheet!$E$38,2) -> 0 | CA21: =ROUND(AN21*Worksheet!$E$39,2) -> 0 | CB21: =IF(AND(L21>275,SUM(Y21:AD21)<100),ROUND(SUM(Y21:AD21)*Worksheet!$E$41,2),0) -> 0 | CC21: =IF(AND(L21>600,SUM(Y21:AD21)<50),ROUND((50-SUM(Y21:AD21))*(Worksheet!$E$41+1),2),0) -> 0 | CD21: 0 | CE21: 0 | CF21: 0 | CG21: 0 | CH21: =MIN(ROUND(BE21*CF21*Worksheet!$D$124,2),CG21)-CG21 -> 0 | CI21: =ROUND(IF(F21=4,0,(MAX(ROUND(MAX((BE21*MIN(CF21,K21)*Worksheet!$D$127)+MAX(CF21-K21,0)*Worksheet!$F$47,SUM(J21)),2),SUM(CG21:CH21))-SUM(CG21:CH21))*MinAdj),2) -> 0 | CJ21: 0 | CK21: =IF(CF21=0,0,-MIN(CJ21,ROUND(AX21*1.12+BF21,2),MIN(CJ21,ROUND(IF(ROUND(IF(CF21=0,0,N21/CF21),2)<STVPP*0.2,STVPP*0.2*CF21*Worksheet!$F$86/1000,N21*Worksheet!$F$86/1000),2)))) -> 0 | CL21: =-MIN(SUM(CJ21,CK21),IF($P21=0,(ROUND(Worksheet!$E$75*S21,2)+ROUND(Worksheet!$E$76*T21,2)+ROUND(Worksheet!$E$77*U21,2)+ROUND(Worksheet!$E$78*V21,2)+ROUND(Worksheet!$E$79*W21,2)+ROUND(Worksheet!$E$80*X21,2)),(ROUND(ROUND(S21*ROUND((1-$O21/$P21),4),2)*Worksheet!$E$75,2)+ROUND(ROUND(T21*ROUND((1-$O21/$P21),4),2)*Worksheet!$E$76,2)+ROUND(ROUND(U21*ROUND((1-$O21/$P21),4),2)*Worksheet!$E$77,2)+ROUND(ROUND(V21*ROUND((1-$O21/$P21),4),2)*Worksheet!$E$78,2)+ROUND(ROUND(W21*ROUND((1-$O21/$P21),4),2)*Worksheet!$E$79,2)+ROUND(ROUND(X21*ROUND((1-$O21/$P21),4),2)*Worksheet!$E$80,2)))) -> 0 | CM21: 0 | CN21: =MIN(AW21,ROUND(AO21*Worksheet!$C$104,2)+ROUND(AR21*Worksheet!$C$107,2)+ROUND(AP21*Worksheet!$C$105,2)+ROUND(AS21*Worksheet!$C$108,2)+ROUND(AQ21*Worksheet!$C$106,2)+ROUND(AT21*Worksheet!$C$109,2)+ROUND(AU21*Worksheet!$C$110,2)+ROUND(AV21*Worksheet!$C$111,2)) -> 0 | CU21: 0 | CV21: =MAX(-CN21,MIN(0,ROUND($R21*EFBPercent+EFBAdd,2)-$Q21),MIN(0,SUM($CM21:CM21)+MIN(0,ROUND($R21*EFBPercent+EFBAdd,2)-$Q21))) -> 0 | CW21: =MAX(-CO21,MIN(0,ROUND($R21*EFBPercent+EFBAdd,2)-$Q21),MIN(0,SUM($CM21:CN21)+MIN(0,ROUND($R21*EFBPercent+EFBAdd,2)-$Q21))) -> 0 | CX21: =MAX(-CP21,MIN(0,ROUND($R21*EFBPercent+EFBAdd,2)-$Q21),MIN(0,SUM($CM21:CO21)+MIN(0,ROUND($R21*EFBPercent+EFBAdd,2)-$Q21))) -> 0 | CY21: =MAX(-CQ21,MIN(0,ROUND($R21*EFBPercent+EFBAdd,2)-$Q21),MIN(0,SUM($CM21:CP21)+MIN(0,ROUND($R21*EFBPercent+EFBAdd,2)-$Q21))) -> 0 | CZ21: =MAX(-CR21,MIN(0,ROUND($R21*EFBPercent+EFBAdd,2)-$Q21),MIN(0,SUM($CM21:CQ21)+MIN(0,ROUND($R21*EFBPercent+EFBAdd,2)-$Q21))) -> 0 | DA21: =MAX(-CS21,MIN(0,ROUND($R21*EFBPercent+EFBAdd,2)-$Q21),MIN(0,SUM($CM21:CR21)+MIN(0,ROUND($R21*EFBPercent+EFBAdd,2)-$Q21))) -> 0 | DC21: 0 | DD21: 0 | DE21: 0 | DF21: 0 | DG21: 0 | DH21: 0 | DI21: 0
A22: 05-726 | B22: 2519 | C22: 0000001597 | D22: 2023 | E22: Peace Garden Student Support Services | F22: 7 | G22: 05-726 | H22: 0 | I22: 0 | J22: 0 | K22: 0 | L22: 0 | M22: 0 | N22: 0 | O22: 0 | P22: 0 | Q22: 0 | R22: 0 | S22: 0 | T22: 0 | U22: 0 | V22: 0 | W22: 0 | X22: 0 | Y22: 0 | Z22: 0 | AA22: 0 | AB22: 0 | AC22: 0 | AD22: 0 | AE22: 0 | AF22: 0 | AG22: 0 | AH22: 0 | AI22: 0 | AJ22: 0 | AK22: 0 | AL22: 0 | AM22: 0 | AN22: 0 | AO22: 0 | AP22: 0 | AQ22: 0 | AR22: 0 | AS22: 0 | AT22: 0 | AU22: 0 | AV22: 0 | AW22: 0 | AX22: 0 | AY22: =MAX(ROUND(IF(F22<4,IF(H22=0,(SUM(Y22:AD22)*Worksheet!$E$26+Y22*Worksheet!$E$27+AN22*Worksheet!$E$39)*-BaseRate,0)),2),MIN(0,-DC22)) -> 0 | AZ22: =MAX(ROUND(IF(F22=4,0,IF(I22=0,0,ROUND(SUM(Y22:AD22)*Worksheet!$E$28,2)*-BaseRate)),2),MIN(0,-DC22-AY22)) -> 0 | BA22: 0 | BB22: 0 | BD22: 0 | BE22: 0 | BF22: =IFERROR(ROUND(IF(AND(AX22*1.12<N22*60/1000,N22/CF22<STVPP*0.2),(CF22*STVPP*0.2*Worksheet!$F$86/1000-AX22*1.12)*PropTaxAdj,IF(AX22*1.12<N22*60/1000,(N22*60/1000-AX22*1.12)*PropTaxAdj,0)),2),0) -> 0 | BG22: =ROUND(IF($F22=4,0,Y22*Worksheet!$E$16),2) -> 0 | BH22: =ROUND(IF($F22=4,0,Z22*Worksheet!$E$17),2) -> 0 | BI22: =ROUND(IF($F22=4,0,AA22*Worksheet!$E$18),2) -> 0 | BJ22: =ROUND(IF($F22=4,0,AB22*Worksheet!$E$19),2) -> 0 | BK22: =ROUND(IF($F22=4,0,AC22*Worksheet!$E$20),2) -> 0 | BL22: =ROUND(AD22*Worksheet!$E$21,2) -> 0 | BM22: 0 | BN22: =ROUND(AD22*Worksheet!$E$25,2) -> 0 | BO22: =ROUND(SUM(BM22)*Worksheet!$E$26,2) -> 0 | BP22: =ROUND(Y22*Worksheet!$E$27,2) -> 0 | BQ22: =ROUND(AE22*Worksheet!$E$29,2) -> 0 | BR22: =ROUND(AF22*Worksheet!$E$30,2) -> 0 | BS22: =ROUND(IF($I22<>0,$BM22*Worksheet!$E$28,0),2) -> 0 | BT22: =ROUND(AG22*Worksheet!$E$31,2) -> 0 | BU22: =ROUND(AH22*Worksheet!$E$32,2) -> 0 | BV22: =ROUND(AI22*Worksheet!$E$33,2) -> 0 | BW22: =ROUND(ROUND(AJ22*BM22,2)*Worksheet!$E$34,2) -> 0 | BX22: =ROUND(AK22*Worksheet!$E$35,2) -> 0 | BY22: =ROUND(AL22*Worksheet!$E$36,2) -> 0 | BZ22: =ROUND(AM22*Worksheet!$E$38,2) -> 0 | CA22: =ROUND(AN22*Worksheet!$E$39,2) -> 0 | CB22: =IF(AND(L22>275,SUM(Y22:AD22)<100),ROUND(SUM(Y22:AD22)*Worksheet!$E$41,2),0) -> 0 | CC22: =IF(AND(L22>600,SUM(Y22:AD22)<50),ROUND((50-SUM(Y22:AD22))*(Worksheet!$E$41+1),2),0) -> 0 | CD22: 0 | CE22: 0 | CF22: 0 | CG22: 0 | CH22: =MIN(ROUND(BE22*CF22*Worksheet!$D$124,2),CG22)-CG22 -> 0 | CI22: =ROUND(IF(F22=4,0,(MAX(ROUND(MAX((BE22*MIN(CF22,K22)*Worksheet!$D$127)+MAX(CF22-K22,0)*Worksheet!$F$47,SUM(J22)),2),SUM(CG22:CH22))-SUM(CG22:CH22))*MinAdj),2) -> 0 | CJ22: 0 | CK22: =IF(CF22=0,0,-MIN(CJ22,ROUND(AX22*1.12+BF22,2),MIN(CJ22,ROUND(IF(ROUND(IF(CF22=0,0,N22/CF22),2)<STVPP*0.2,STVPP*0.2*CF22*Worksheet!$F$86/1000,N22*Worksheet!$F$86/1000),2)))) -> 0 | CL22: =-MIN(SUM(CJ22,CK22),IF($P22=0,(ROUND(Worksheet!$E$75*S22,2)+ROUND(Worksheet!$E$76*T22,2)+ROUND(Worksheet!$E$77*U22,2)+ROUND(Worksheet!$E$78*V22,2)+ROUND(Worksheet!$E$79*W22,2)+ROUND(Worksheet!$E$80*X22,2)),(ROUND(ROUND(S22*ROUND((1-$O22/$P22),4),2)*Worksheet!$E$75,2)+ROUND(ROUND(T22*ROUND((1-$O22/$P22),4),2)*Worksheet!$E$76,2)+ROUND(ROUND(U22*ROUND((1-$O22/$P22),4),2)*Worksheet!$E$77,2)+ROUND(ROUND(V22*ROUND((1-$O22/$P22),4),2)*Worksheet!$E$78,2)+ROUND(ROUND(W22*ROUND((1-$O22/$P22),4),2)*Worksheet!$E$79,2)+ROUND(ROUND(X22*ROUND((1-$O22/$P22),4),2)*Worksheet!$E$80,2)))) -> 0 | CM22: 0 | CN22: =MIN(AW22,ROUND(AO22*Worksheet!$C$104,2)+ROUND(AR22*Worksheet!$C$107,2)+ROUND(AP22*Worksheet!$C$105,2)+ROUND(AS22*Worksheet!$C$108,2)+ROUND(AQ22*Worksheet!$C$106,2)+ROUND(AT22*Worksheet!$C$109,2)+ROUND(AU22*Worksheet!$C$110,2)+ROUND(AV22*Worksheet!$C$111,2)) -> 0 | CU22: 0 | CV22: =MAX(-CN22,MIN(0,ROUND($R22*EFBPercent+EFBAdd,2)-$Q22),MIN(0,SUM($CM22:CM22)+MIN(0,ROUND($R22*EFBPercent+EFBAdd,2)-$Q22))) -> 0 | CW22: =MAX(-CO22,MIN(0,ROUND($R22*EFBPercent+EFBAdd,2)-$Q22),MIN(0,SUM($CM22:CN22)+MIN(0,ROUND($R22*EFBPercent+EFBAdd,2)-$Q22))) -> 0 | CX22: =MAX(-CP22,MIN(0,ROUND($R22*EFBPercent+EFBAdd,2)-$Q22),MIN(0,SUM($CM22:CO22)+MIN(0,ROUND($R22*EFBPercent+EFBAdd,2)-$Q22))) -> 0 | CY22: =MAX(-CQ22,MIN(0,ROUND($R22*EFBPercent+EFBAdd,2)-$Q22),MIN(0,SUM($CM22:CP22)+MIN(0,ROUND($R22*EFBPercent+EFBAdd,2)-$Q22))) -> 0 | CZ22: =MAX(-CR22,MIN(0,ROUND($R22*EFBPercent+EFBAdd,2)-$Q22),MIN(0,SUM($CM22:CQ22)+MIN(0,ROUND($R22*EFBPercent+EFBAdd,2)-$Q22))) -> 0 | DA22: =MAX(-CS22,MIN(0,ROUND($R22*EFBPercent+EFBAdd,2)-$Q22),MIN(0,SUM($CM22:CR22)+MIN(0,ROUND($R22*EFBPercent+EFBAdd,2)-$Q22))) -> 0 | DC22: 0 | DD22: 0 | DE22: 0 | DF22: 0 | DG22: 0 | DH22: 0 | DI22: 0
A23: 06-001 | B23: 1015 | C23: 0000072298 | D23: 2023 | E23: Bowman Co 1 | F23: 1 | G23: 45-701 | H23: 100 | I23: 45-371 | J23: 6399086.29 | K23: 532.91 | L23: 1415.5 | M23: 0 | N23: 25213294 | O23: 0 | P23: 85 | Q23: 0 | R23: 0 | S23: 47169.99 | T23: 1662162.49 | U23: 496.63 | V23: 134587.7 | W23: 61267.88 | X23: 14909.36 | Y23: 6.13 | Z23: 23 | AA23: 234 | AB23: 82 | AC23: 143 | AD23: 0 | AE23: 0 | AF23: 0 | AG23: 0 | AH23: 1 | AI23: 5 | AJ23: 0.138 | AK23: 0 | AL23: 0 | AM23: 6 | AN23: 0 | AO23: 0 | AP23: 209125 | AQ23: 70000 | AR23: 0 | AS23: 0 | AT23: 0 | AU23: 0 | AV23: 0 | AW23: 488670.44 | AX23: 1551344.1 | AY23: =MAX(ROUND(IF(F23<4,IF(H23=0,(SUM(Y23:AD23)*Worksheet!$E$26+Y23*Worksheet!$E$27+AN23*Worksheet!$E$39)*-BaseRate,0)),2),MIN(0,-DC23)) -> 0 | AZ23: =MAX(ROUND(IF(F23=4,0,IF(I23=0,0,ROUND(SUM(Y23:AD23)*Worksheet!$E$28,2)*-BaseRate)),2),MIN(0,-DC23-AY23)) -> -10032.26 | BA23: 0 | BB23: 1407 | BD23: 46109.79 | BE23: 12007.82 | BF23: =IFERROR(ROUND(IF(AND(AX23*1.12<N23*60/1000,N23/CF23<STVPP*0.2),(CF23*STVPP*0.2*Worksheet!$F$86/1000-AX23*1.12)*PropTaxAdj,IF(AX23*1.12<N23*60/1000,(N23*60/1000-AX23*1.12)*PropTaxAdj,0)),2),0) -> 0 | BG23: =ROUND(IF($F23=4,0,Y23*Worksheet!$E$16),2) -> 6.13 | BH23: =ROUND(IF($F23=4,0,Z23*Worksheet!$E$17),2) -> 23 | BI23: =ROUND(IF($F23=4,0,AA23*Worksheet!$E$18),2) -> 234 | BJ23: =ROUND(IF($F23=4,0,AB23*Worksheet!$E$19),2) -> 82 | BK23: =ROUND(IF($F23=4,0,AC23*Worksheet!$E$20),2) -> 143 | BL23: =ROUND(AD23*Worksheet!$E$21,2) -> 0 | BM23: 488.13 | BN23: =ROUND(AD23*Worksheet!$E$25,2) -> 0 | BO23: =ROUND(SUM(BM23)*Worksheet!$E$26,2) -> 40.03 | BP23: =ROUND(Y23*Worksheet!$E$27,2) -> 1.04 | BQ23: =ROUND(AE23*Worksheet!$E$29,2) -> 0 | BR23: =ROUND(AF23*Worksheet!$E$30,2) -> 0 | BS23: =ROUND(IF($I23<>0,$BM23*Worksheet!$E$28,0),2) -> 0.98 | BT23: =ROUND(AG23*Worksheet!$E$31,2) -> 0 | BU23: =ROUND(AH23*Worksheet!$E$32,2) -> 0.28 | BV23: =ROUND(AI23*Worksheet!$E$33,2) -> 0.35 | BW23: =ROUND(ROUND(AJ23*BM23,2)*Worksheet!$E$34,2) -> 1.68 | BX23: =ROUND(AK23*Worksheet!$E$35,2) -> 0 | BY23: =ROUND(AL23*Worksheet!$E$36,2) -> 0 | BZ23: =ROUND(AM23*Worksheet!$E$38,2) -> 3.6 | CA23: =ROUND(AN23*Worksheet!$E$39,2) -> 0 | CB23: =IF(AND(L23>275,SUM(Y23:AD23)<100),ROUND(SUM(Y23:AD23)*Worksheet!$E$41,2),0) -> 0 | CC23: =IF(AND(L23>600,SUM(Y23:AD23)<50),ROUND((50-SUM(Y23:AD23))*(Worksheet!$E$41+1),2),0) -> 0 | CD23: 536.09 | CE23: 1.02 | CF23: 546.81 | CG23: 5597693.97 | CH23: =MIN(ROUND(BE23*CF23*Worksheet!$D$124,2),CG23)-CG23 -> 0 | CI23: =ROUND(IF(F23=4,0,(MAX(ROUND(MAX((BE23*MIN(CF23,K23)*Worksheet!$D$127)+MAX(CF23-K23,0)*Worksheet!$F$47,SUM(J23)),2),SUM(CG23:CH23))-SUM(CG23:CH23))*MinAdj),2) -> 750168.6 | CJ23: 6347862.57 | CK23: =IF(CF23=0,0,-MIN(CJ23,ROUND(AX23*1.12+BF23,2),MIN(CJ23,ROUND(IF(ROUND(IF(CF23=0,0,N23/CF23),2)<STVPP*0.2,STVPP*0.2*CF23*Worksheet!$F$86/1000,N23*Worksheet!$F$86/1000),2)))) -> -1512797.64 | CL23: =-MIN(SUM(CJ23,CK23),IF($P23=0,(ROUND(Worksheet!$E$75*S23,2)+ROUND(Worksheet!$E$76*T23,2)+ROUND(Worksheet!$E$77*U23,2)+ROUND(Worksheet!$E$78*V23,2)+ROUND(Worksheet!$E$79*W23,2)+ROUND(Worksheet!$E$80*X23,2)),(ROUND(ROUND(S23*ROUND((1-$O23/$P23),4),2)*Worksheet!$E$75,2)+ROUND(ROUND(T23*ROUND((1-$O23/$P23),4),2)*Worksheet!$E$76,2)+ROUND(ROUND(U23*ROUND((1-$O23/$P23),4),2)*Worksheet!$E$77,2)+ROUND(ROUND(V23*ROUND((1-$O23/$P23),4),2)*Worksheet!$E$78,2)+ROUND(ROUND(W23*ROUND((1-$O23/$P23),4),2)*Worksheet!$E$79,2)+ROUND(ROUND(X23*ROUND((1-$O23/$P23),4),2)*Worksheet!$E$80,2)))) -> -1440445.54 | CM23: 3394619.39 | CN23: =MIN(AW23,ROUND(AO23*Worksheet!$C$104,2)+ROUND(AR23*Worksheet!$C$107,2)+ROUND(AP23*Worksheet!$C$105,2)+ROUND(AS23*Worksheet!$C$108,2)+ROUND(AQ23*Worksheet!$C$106,2)+ROUND(AT23*Worksheet!$C$109,2)+ROUND(AU23*Worksheet!$C$110,2)+ROUND(AV23*Worksheet!$C$111,2)) -> 253128.75 | CU23: 0 | CV23: =MAX(-CN23,MIN(0,ROUND($R23*EFBPercent+EFBAdd,2)-$Q23),MIN(0,SUM($CM23:CM23)+MIN(0,ROUND($R23*EFBPercent+EFBAdd,2)-$Q23))) -> 0 | CW23: =MAX(-CO23,MIN(0,ROUND($R23*EFBPercent+EFBAdd,2)-$Q23),MIN(0,SUM($CM23:CN23)+MIN(0,ROUND($R23*EFBPercent+EFBAdd,2)-$Q23))) -> 0 | CX23: =MAX(-CP23,MIN(0,ROUND($R23*EFBPercent+EFBAdd,2)-$Q23),MIN(0,SUM($CM23:CO23)+MIN(0,ROUND($R23*EFBPercent+EFBAdd,2)-$Q23))) -> 0 | CY23: =MAX(-CQ23,MIN(0,ROUND($R23*EFBPercent+EFBAdd,2)-$Q23),MIN(0,SUM($CM23:CP23)+MIN(0,ROUND($R23*EFBPercent+EFBAdd,2)-$Q23))) -> 0 | CZ23: =MAX(-CR23,MIN(0,ROUND($R23*EFBPercent+EFBAdd,2)-$Q23),MIN(0,SUM($CM23:CQ23)+MIN(0,ROUND($R23*EFBPercent+EFBAdd,2)-$Q23))) -> 0 | DA23: =MAX(-CS23,MIN(0,ROUND($R23*EFBPercent+EFBAdd,2)-$Q23),MIN(0,SUM($CM23:CR23)+MIN(0,ROUND($R23*EFBPercent+EFBAdd,2)-$Q23))) -> 0 | DC23: 3394619.39 | DD23: 253128.75 | DE23: 0 | DF23: 0 | DG23: 0 | DH23: 0 | DI23: 0
A24: 06-033 | B24: 1143 | C24: 0000008599 | D24: 2023 | E24: Scranton 33 | F24: 1 | G24: 45-701 | H24: 100 | I24: 45-371 | J24: 1942016.03 | K24: 182.94 | L24: 488.81 | M24: 0 | N24: 9220521 | O24: 0 | P24: 88.2 | Q24: 0 | R24: 0 | S24: 0 | T24: 349570.21 | U24: 34.98 | V24: 24554.62 | W24: 5517.04 | X24: 3766.41 | Y24: 1.89 | Z24: 14 | AA24: 62 | AB24: 15 | AC24: 40 | AD24: 0 | AE24: 0 | AF24: 0 | AG24: 0 | AH24: 0 | AI24: 0 | AJ24: 0.294 | AK24: 0 | AL24: 0 | AM24: 0 | AN24: 0 | AO24: 0 | AP24: 92750 | AQ24: 26250 | AR24: 0 | AS24: 1400 | AT24: 14700 | AU24: 0 | AV24: 0 | AW24: 165540.89 | AX24: 553101 | AY24: =MAX(ROUND(IF(F24<4,IF(H24=0,(SUM(Y24:AD24)*Worksheet!$E$26+Y24*Worksheet!$E$27+AN24*Worksheet!$E$39)*-BaseRate,0)),2),MIN(0,-DC24)) -> 0 | AZ24: =MAX(ROUND(IF(F24=4,0,IF(I24=0,0,ROUND(SUM(Y24:AD24)*Worksheet!$E$28,2)*-BaseRate)),2),MIN(0,-DC24-AY24)) -> -2763.99 | BA24: 0 | BB24: 1407 | BD24: 44986.93 | BE24: 10615.59 | BF24: =IFERROR(ROUND(IF(AND(AX24*1.12<N24*60/1000,N24/CF24<STVPP*0.2),(CF24*STVPP*0.2*Worksheet!$F$86/1000-AX24*1.12)*PropTaxAdj,IF(AX24*1.12<N24*60/1000,(N24*60/1000-AX24*1.12)*PropTaxAdj,0)),2),0) -> 0 | BG24: =ROUND(IF($F24=4,0,Y24*Worksheet!$E$16),2) -> 1.89 | BH24: =ROUND(IF($F24=4,0,Z24*Worksheet!$E$17),2) -> 14 | BI24: =ROUND(IF($F24=4,0,AA24*Worksheet!$E$18),2) -> 62 | BJ24: =ROUND(IF($F24=4,0,AB24*Worksheet!$E$19),2) -> 15 | BK24: =ROUND(IF($F24=4,0,AC24*Worksheet!$E$20),2) -> 40 | BL24: =ROUND(AD24*Worksheet!$E$21,2) -> 0 | BM24: 132.89 | BN24: =ROUND(AD24*Worksheet!$E$25,2) -> 0 | BO24: =ROUND(SUM(BM24)*Worksheet!$E$26,2) -> 10.9 | BP24: =ROUND(Y24*Worksheet!$E$27,2) -> 0.32 | BQ24: =ROUND(AE24*Worksheet!$E$29,2) -> 0 | BR24: =ROUND(AF24*Worksheet!$E$30,2) -> 0 | BS24: =ROUND(IF($I24<>0,$BM24*Worksheet!$E$28,0),2) -> 0.27 | BT24: =ROUND(AG24*Worksheet!$E$31,2) -> 0 | BU24: =ROUND(AH24*Worksheet!$E$32,2) -> 0 | BV24: =ROUND(AI24*Worksheet!$E$33,2) -> 0 | BW24: =ROUND(ROUND(AJ24*BM24,2)*Worksheet!$E$34,2) -> 0.98 | BX24: =ROUND(AK24*Worksheet!$E$35,2) -> 0 | BY24: =ROUND(AL24*Worksheet!$E$36,2) -> 0 | BZ24: =ROUND(AM24*Worksheet!$E$38,2) -> 0 | CA24: =ROUND(AN24*Worksheet!$E$39,2) -> 0 | CB24: =IF(AND(L24>275,SUM(Y24:AD24)<100),ROUND(SUM(Y24:AD24)*Worksheet!$E$41,2),0) -> 0 | CC24: =IF(AND(L24>600,SUM(Y24:AD24)<50),ROUND((50-SUM(Y24:AD24))*(Worksheet!$E$41+1),2),0) -> 0 | CD24: 145.36 | CE24: 1.41 | CF24: 204.96 | CG24: 2098175.52 | CH24: =MIN(ROUND(BE24*CF24*Worksheet!$D$124,2),CG24)-CG24 -> 0 | CI24: =ROUND(IF(F24=4,0,(MAX(ROUND(MAX((BE24*MIN(CF24,K24)*Worksheet!$D$127)+MAX(CF24-K24,0)*Worksheet!$F$47,SUM(J24)),2),SUM(CG24:CH24))-SUM(CG24:CH24))*MinAdj),2) -> 75669.71 | CJ24: 2173845.23 | CK24: =IF(CF24=0,0,-MIN(CJ24,ROUND(AX24*1.12+BF24,2),MIN(CJ24,ROUND(IF(ROUND(IF(CF24=0,0,N24/CF24),2)<STVPP*0.2,STVPP*0.2*CF24*Worksheet!$F$86/1000,N24*Worksheet!$F$86/1000),2)))) -> -553231.26 | CL24: =-MIN(SUM(CJ24,CK24),IF($P24=0,(ROUND(Worksheet!$E$75*S24,2)+ROUND(Worksheet!$E$76*T24,2)+ROUND(Worksheet!$E$77*U24,2)+ROUND(Worksheet!$E$78*V24,2)+ROUND(Worksheet!$E$79*W24,2)+ROUND(Worksheet!$E$80*X24,2)),(ROUND(ROUND(S24*ROUND((1-$O24/$P24),4),2)*Worksheet!$E$75,2)+ROUND(ROUND(T24*ROUND((1-$O24/$P24),4),2)*Worksheet!$E$76,2)+ROUND(ROUND(U24*ROUND((1-$O24/$P24),4),2)*Worksheet!$E$77,2)+ROUND(ROUND(V24*ROUND((1-$O24/$P24),4),2)*Worksheet!$E$78,2)+ROUND(ROUND(W24*ROUND((1-$O24/$P24),4),2)*Worksheet!$E$79,2)+ROUND(ROUND(X24*ROUND((1-$O24/$P24),4),2)*Worksheet!$E$80,2)))) -> -287582.46 | CM24: 1333031.51 | CN24: =MIN(AW24,ROUND(AO24*Worksheet!$C$104,2)+ROUND(AR24*Worksheet!$C$107,2)+ROUND(AP24*Worksheet!$C$105,2)+ROUND(AS24*Worksheet!$C$108,2)+ROUND(AQ24*Worksheet!$C$106,2)+ROUND(AT24*Worksheet!$C$109,2)+ROUND(AU24*Worksheet!$C$110,2)+ROUND(AV24*Worksheet!$C$111,2)) -> 116791.5 | CU24: 0 | CV24: =MAX(-CN24,MIN(0,ROUND($R24*EFBPercent+EFBAdd,2)-$Q24),MIN(0,SUM($CM24:CM24)+MIN(0,ROUND($R24*EFBPercent+EFBAdd,2)-$Q24))) -> 0 | CW24: =MAX(-CO24,MIN(0,ROUND($R24*EFBPercent+EFBAdd,2)-$Q24),MIN(0,SUM($CM24:CN24)+MIN(0,ROUND($R24*EFBPercent+EFBAdd,2)-$Q24))) -> 0 | CX24: =MAX(-CP24,MIN(0,ROUND($R24*EFBPercent+EFBAdd,2)-$Q24),MIN(0,SUM($CM24:CO24)+MIN(0,ROUND($R24*EFBPercent+EFBAdd,2)-$Q24))) -> 0 | CY24: =MAX(-CQ24,MIN(0,ROUND($R24*EFBPercent+EFBAdd,2)-$Q24),MIN(0,SUM($CM24:CP24)+MIN(0,ROUND($R24*EFBPercent+EFBAdd,2)-$Q24))) -> 0 | CZ24: =MAX(-CR24,MIN(0,ROUND($R24*EFBPercent+EFBAdd,2)-$Q24),MIN(0,SUM($CM24:CQ24)+MIN(0,ROUND($R24*EFBPercent+EFBAdd,2)-$Q24))) -> 0 | DA24: =MAX(-CS24,MIN(0,ROUND($R24*EFBPercent+EFBAdd,2)-$Q24),MIN(0,SUM($CM24:CR24)+MIN(0,ROUND($R24*EFBPercent+EFBAdd,2)-$Q24))) -> 0 | DC24: 1333031.51 | DD24: 116791.5 | DE24: 0 | DF24: 0 | DG24: 0 | DH24: 0 | DI24: 0
A25: 07-014 | B25: 1014 | C25: 0000008419 | D25: 2023 | E25: Bowbells 14 | F25: 1 | G25: 31-706 | H25: 100 | I25: 08-378 | J25: 1701209.71 | K25: 118.61 | L25: 342 | M25: 0 | N25: 8256246 | O25: 0 | P25: 60.57 | Q25: 0 | R25: 0 | S25: 123423.66 | T25: 314928.21 | U25: 0 | V25: 5072.25 | W25: 3053.01 | X25: 5913.45 | Y25: 0.15 | Z25: 4 | AA25: 37 | AB25: 9 | AC25: 18 | AD25: 0 | AE25: 1.82 | AF25: 0 | AG25: 0 | AH25: 0 | AI25: 0 | AJ25: 0.39 | AK25: 0 | AL25: 0 | AM25: 0 | AN25: 0 | AO25: 0 | AP25: 32550 | AQ25: 11200 | AR25: 0 | AS25: 0 | AT25: 0 | AU25: 0 | AV25: 0 | AW25: 103335.97 | AX25: 493434.3 | AY25: =MAX(ROUND(IF(F25<4,IF(H25=0,(SUM(Y25:AD25)*Worksheet!$E$26+Y25*Worksheet!$E$27+AN25*Worksheet!$E$39)*-BaseRate,0)),2),MIN(0,-DC25)) -> 0 | AZ25: =MAX(ROUND(IF(F25=4,0,IF(I25=0,0,ROUND(SUM(Y25:AD25)*Worksheet!$E$28,2)*-BaseRate)),2),MIN(0,-DC25-AY25)) -> -1433.18 | BA25: 0 | BB25: 1403 | BD25: 68414.37 | BE25: 14342.89 | BF25: =IFERROR(ROUND(IF(AND(AX25*1.12<N25*60/1000,N25/CF25<STVPP*0.2),(CF25*STVPP*0.2*Worksheet!$F$86/1000-AX25*1.12)*PropTaxAdj,IF(AX25*1.12<N25*60/1000,(N25*60/1000-AX25*1.12)*PropTaxAdj,0)),2),0) -> 0 | BG25: =ROUND(IF($F25=4,0,Y25*Worksheet!$E$16),2) -> 0.15 | BH25: =ROUND(IF($F25=4,0,Z25*Worksheet!$E$17),2) -> 4 | BI25: =ROUND(IF($F25=4,0,AA25*Worksheet!$E$18),2) -> 37 | BJ25: =ROUND(IF($F25=4,0,AB25*Worksheet!$E$19),2) -> 9 | BK25: =ROUND(IF($F25=4,0,AC25*Worksheet!$E$20),2) -> 18 | BL25: =ROUND(AD25*Worksheet!$E$21,2) -> 0 | BM25: 68.15 | BN25: =ROUND(AD25*Worksheet!$E$25,2) -> 0 | BO25: =ROUND(SUM(BM25)*Worksheet!$E$26,2) -> 5.59 | BP25: =ROUND(Y25*Worksheet!$E$27,2) -> 0.03 | BQ25: =ROUND(AE25*Worksheet!$E$29,2) -> 1.27 | BR25: =ROUND(AF25*Worksheet!$E$30,2) -> 0 | BS25: =ROUND(IF($I25<>0,$BM25*Worksheet!$E$28,0),2) -> 0.14 | BT25: =ROUND(AG25*Worksheet!$E$31,2) -> 0 | BU25: =ROUND(AH25*Worksheet!$E$32,2) -> 0 | BV25: =ROUND(AI25*Worksheet!$E$33,2) -> 0 | BW25: =ROUND(ROUND(AJ25*BM25,2)*Worksheet!$E$34,2) -> 0.66 | BX25: =ROUND(AK25*Worksheet!$E$35,2) -> 0 | BY25: =ROUND(AL25*Worksheet!$E$36,2) -> 0 | BZ25: =ROUND(AM25*Worksheet!$E$38,2) -> 0 | CA25: =ROUND(AN25*Worksheet!$E$39,2) -> 0 | CB25: =IF(AND(L25>275,SUM(Y25:AD25)<100),ROUND(SUM(Y25:AD25)*Worksheet!$E$41,2),0) -> 6.82 | CC25: =IF(AND(L25>600,SUM(Y25:AD25)<50),ROUND((50-SUM(Y25:AD25))*(Worksheet!$E$41+1),2),0) -> 0 | CD25: 82.66 | CE25: 1.46 | CF25: 120.68 | CG25: 1235401.16 | CH25: =MIN(ROUND(BE25*CF25*Worksheet!$D$124,2),CG25)-CG25 -> 0 | CI25: =ROUND(IF(F25=4,0,(MAX(ROUND(MAX((BE25*MIN(CF25,K25)*Worksheet!$D$127)+MAX(CF25-K25,0)*Worksheet!$F$47,SUM(J25)),2),SUM(CG25:CH25))-SUM(CG25:CH25))*MinAdj),2) -> 364716.67 | CJ25: 1600117.83 | CK25: =IF(CF25=0,0,-MIN(CJ25,ROUND(AX25*1.12+BF25,2),MIN(CJ25,ROUND(IF(ROUND(IF(CF25=0,0,N25/CF25),2)<STVPP*0.2,STVPP*0.2*CF25*Worksheet!$F$86/1000,N25*Worksheet!$F$86/1000),2)))) -> -495374.76 | CL25: =-MIN(SUM(CJ25,CK25),IF($P25=0,(ROUND(Worksheet!$E$75*S25,2)+ROUND(Worksheet!$E$76*T25,2)+ROUND(Worksheet!$E$77*U25,2)+ROUND(Worksheet!$E$78*V25,2)+ROUND(Worksheet!$E$79*W25,2)+ROUND(Worksheet!$E$80*X25,2)),(ROUND(ROUND(S25*ROUND((1-$O25/$P25),4),2)*Worksheet!$E$75,2)+ROUND(ROUND(T25*ROUND((1-$O25/$P25),4),2)*Worksheet!$E$76,2)+ROUND(ROUND(U25*ROUND((1-$O25/$P25),4),2)*Worksheet!$E$77,2)+ROUND(ROUND(V25*ROUND((1-$O25/$P25),4),2)*Worksheet!$E$78,2)+ROUND(ROUND(W25*ROUND((1-$O25/$P25),4),2)*Worksheet!$E$79,2)+ROUND(ROUND(X25*ROUND((1-$O25/$P25),4),2)*Worksheet!$E$80,2)))) -> -339292.95 | CM25: 765450.12 | CN25: =MIN(AW25,ROUND(AO25*Worksheet!$C$104,2)+ROUND(AR25*Worksheet!$C$107,2)+ROUND(AP25*Worksheet!$C$105,2)+ROUND(AS25*Worksheet!$C$108,2)+ROUND(AQ25*Worksheet!$C$106,2)+ROUND(AT25*Worksheet!$C$109,2)+ROUND(AU25*Worksheet!$C$110,2)+ROUND(AV25*Worksheet!$C$111,2)) -> 39490.5 | CU25: 0 | CV25: =MAX(-CN25,MIN(0,ROUND($R25*EFBPercent+EFBAdd,2)-$Q25),MIN(0,SUM($CM25:CM25)+MIN(0,ROUND($R25*EFBPercent+EFBAdd,2)-$Q25))) -> 0 | CW25: =MAX(-CO25,MIN(0,ROUND($R25*EFBPercent+EFBAdd,2)-$Q25),MIN(0,SUM($CM25:CN25)+MIN(0,ROUND($R25*EFBPercent+EFBAdd,2)-$Q25))) -> 0 | CX25: =MAX(-CP25,MIN(0,ROUND($R25*EFBPercent+EFBAdd,2)-$Q25),MIN(0,SUM($CM25:CO25)+MIN(0,ROUND($R25*EFBPercent+EFBAdd,2)-$Q25))) -> 0 | CY25: =MAX(-CQ25,MIN(0,ROUND($R25*EFBPercent+EFBAdd,2)-$Q25),MIN(0,SUM($CM25:CP25)+MIN(0,ROUND($R25*EFBPercent+EFBAdd,2)-$Q25))) -> 0 | CZ25: =MAX(-CR25,MIN(0,ROUND($R25*EFBPercent+EFBAdd,2)-$Q25),MIN(0,SUM($CM25:CQ25)+MIN(0,ROUND($R25*EFBPercent+EFBAdd,2)-$Q25))) -> 0 | DA25: =MAX(-CS25,MIN(0,ROUND($R25*EFBPercent+EFBAdd,2)-$Q25),MIN(0,SUM($CM25:CR25)+MIN(0,ROUND($R25*EFBPercent+EFBAdd,2)-$Q25))) -> 0 | DC25: 765450.12 | DD25: 39490.5 | DE25: 0 | DF25: 0 | DG25: 0 | DH25: 0 | DI25: 0
A26: 07-027 | B26: 1134 | C26: 0000008588 | D26: 2023 | E26: Powers Lake 27 | F26: 1 | G26: 31-706 | H26: 100 | I26: 53-350 | J26: 2826610.35 | K26: 252.23 | L26: 350 | M26: 0 | N26: 8821156 | O26: 22.86 | P26: 111.34 | Q26: 0 | R26: 0 | S26: 0 | T26: 941881.21 | U26: 0 | V26: 34096.75 | W26: 5835.2 | X26: 4706.25 | Y26: 0.07 | Z26: 18 | AA26: 94 | AB26: 32 | AC26: 65 | AD26: 0 | AE26: 5.32 | AF26: 0 | AG26: 0 | AH26: 0 | AI26: 0 | AJ26: 0.133 | AK26: 0 | AL26: 0 | AM26: 0 | AN26: 0 | AO26: 32250 | AP26: 91000 | AQ26: 36400 | AR26: 0 | AS26: 0 | AT26: 0 | AU26: 0 | AV26: 0 | AW26: 301327.78 | AX26: 517672.2 | AY26: =MAX(ROUND(IF(F26<4,IF(H26=0,(SUM(Y26:AD26)*Worksheet!$E$26+Y26*Worksheet!$E$27+AN26*Worksheet!$E$39)*-BaseRate,0)),2),MIN(0,-DC26)) -> 0 | AZ26: =MAX(ROUND(IF(F26=4,0,IF(I26=0,0,ROUND(SUM(Y26:AD26)*Worksheet!$E$28,2)*-BaseRate)),2),MIN(0,-DC26-AY26)) -> -4299.54 | BA26: 0 | BB26: 1401 | BD26: 30788.3 | BE26: 11206.48 | BF26: =IFERROR(ROUND(IF(AND(AX26*1.12<N26*60/1000,N26/CF26<STVPP*0.2),(CF26*STVPP*0.2*Worksheet!$F$86/1000-AX26*1.12)*PropTaxAdj,IF(AX26*1.12<N26*60/1000,(N26*60/1000-AX26*1.12)*PropTaxAdj,0)),2),0) -> 0 | BG26: =ROUND(IF($F26=4,0,Y26*Worksheet!$E$16),2) -> 0.07 | BH26: =ROUND(IF($F26=4,0,Z26*Worksheet!$E$17),2) -> 18 | BI26: =ROUND(IF($F26=4,0,AA26*Worksheet!$E$18),2) -> 94 | BJ26: =ROUND(IF($F26=4,0,AB26*Worksheet!$E$19),2) -> 32 | BK26: =ROUND(IF($F26=4,0,AC26*Worksheet!$E$20),2) -> 65 | BL26: =ROUND(AD26*Worksheet!$E$21,2) -> 0 | BM26: 209.07 | BN26: =ROUND(AD26*Worksheet!$E$25,2) -> 0 | BO26: =ROUND(SUM(BM26)*Worksheet!$E$26,2) -> 17.14 | BP26: =ROUND(Y26*Worksheet!$E$27,2) -> 0.01 | BQ26: =ROUND(AE26*Worksheet!$E$29,2) -> 3.72 | BR26: =ROUND(AF26*Worksheet!$E$30,2) -> 0 | BS26: =ROUND(IF($I26<>0,$BM26*Worksheet!$E$28,0),2) -> 0.42 | BT26: =ROUND(AG26*Worksheet!$E$31,2) -> 0 | BU26: =ROUND(AH26*Worksheet!$E$32,2) -> 0 | BV26: =ROUND(AI26*Worksheet!$E$33,2) -> 0 | BW26: =ROUND(ROUND(AJ26*BM26,2)*Worksheet!$E$34,2) -> 0.7 | BX26: =ROUND(AK26*Worksheet!$E$35,2) -> 0 | BY26: =ROUND(AL26*Worksheet!$E$36,2) -> 0 | BZ26: =ROUND(AM26*Worksheet!$E$38,2) -> 0 | CA26: =ROUND(AN26*Worksheet!$E$39,2) -> 0 | CB26: =IF(AND(L26>275,SUM(Y26:AD26)<100),ROUND(SUM(Y26:AD26)*Worksheet!$E$41,2),0) -> 0 | CC26: =IF(AND(L26>600,SUM(Y26:AD26)<50),ROUND((50-SUM(Y26:AD26))*(Worksheet!$E$41+1),2),0) -> 0 | CD26: 231.06 | CE26: 1.24 | CF26: 286.51 | CG26: 2933002.87 | CH26: =MIN(ROUND(BE26*CF26*Worksheet!$D$124,2),CG26)-CG26 -> 0 | CI26: =ROUND(IF(F26=4,0,(MAX(ROUND(MAX((BE26*MIN(CF26,K26)*Worksheet!$D$127)+MAX(CF26-K26,0)*Worksheet!$F$47,SUM(J26)),2),SUM(CG26:CH26))-SUM(CG26:CH26))*MinAdj),2) -> 210744.91 | CJ26: 3143747.78 | CK26: =IF(CF26=0,0,-MIN(CJ26,ROUND(AX26*1.12+BF26,2),MIN(CJ26,ROUND(IF(ROUND(IF(CF26=0,0,N26/CF26),2)<STVPP*0.2,STVPP*0.2*CF26*Worksheet!$F$86/1000,N26*Worksheet!$F$86/1000),2)))) -> -529269.36 | CL26: =-MIN(SUM(CJ26,CK26),IF($P26=0,(ROUND(Worksheet!$E$75*S26,2)+ROUND(Worksheet!$E$76*T26,2)+ROUND(Worksheet!$E$77*U26,2)+ROUND(Worksheet!$E$78*V26,2)+ROUND(Worksheet!$E$79*W26,2)+ROUND(Worksheet!$E$80*X26,2)),(ROUND(ROUND(S26*ROUND((1-$O26/$P26),4),2)*Worksheet!$E$75,2)+ROUND(ROUND(T26*ROUND((1-$O26/$P26),4),2)*Worksheet!$E$76,2)+ROUND(ROUND(U26*ROUND((1-$O26/$P26),4),2)*Worksheet!$E$77,2)+ROUND(ROUND(V26*ROUND((1-$O26/$P26),4),2)*Worksheet!$E$78,2)+ROUND(ROUND(W26*ROUND((1-$O26/$P26),4),2)*Worksheet!$E$79,2)+ROUND(ROUND(X26*ROUND((1-$O26/$P26),4),2)*Worksheet!$E$80,2)))) -> -587990.24 | CM26: 2026488.18 | CN26: =MIN(AW26,ROUND(AO26*Worksheet!$C$104,2)+ROUND(AR26*Worksheet!$C$107,2)+ROUND(AP26*Worksheet!$C$105,2)+ROUND(AS26*Worksheet!$C$108,2)+ROUND(AQ26*Worksheet!$C$106,2)+ROUND(AT26*Worksheet!$C$109,2)+ROUND(AU26*Worksheet!$C$110,2)+ROUND(AV26*Worksheet!$C$111,2)) -> 128700 | CU26: 0 | CV26: =MAX(-CN26,MIN(0,ROUND($R26*EFBPercent+EFBAdd,2)-$Q26),MIN(0,SUM($CM26:CM26)+MIN(0,ROUND($R26*EFBPercent+EFBAdd,2)-$Q26))) -> 0 | CW26: =MAX(-CO26,MIN(0,ROUND($R26*EFBPercent+EFBAdd,2)-$Q26),MIN(0,SUM($CM26:CN26)+MIN(0,ROUND($R26*EFBPercent+EFBAdd,2)-$Q26))) -> 0 | CX26: =MAX(-CP26,MIN(0,ROUND($R26*EFBPercent+EFBAdd,2)-$Q26),MIN(0,SUM($CM26:CO26)+MIN(0,ROUND($R26*EFBPercent+EFBAdd,2)-$Q26))) -> 0 | CY26: =MAX(-CQ26,MIN(0,ROUND($R26*EFBPercent+EFBAdd,2)-$Q26),MIN(0,SUM($CM26:CP26)+MIN(0,ROUND($R26*EFBPercent+EFBAdd,2)-$Q26))) -> 0 | CZ26: =MAX(-CR26,MIN(0,ROUND($R26*EFBPercent+EFBAdd,2)-$Q26),MIN(0,SUM($CM26:CQ26)+MIN(0,ROUND($R26*EFBPercent+EFBAdd,2)-$Q26))) -> 0 | DA26: =MAX(-CS26,MIN(0,ROUND($R26*EFBPercent+EFBAdd,2)-$Q26),MIN(0,SUM($CM26:CR26)+MIN(0,ROUND($R26*EFBPercent+EFBAdd,2)-$Q26))) -> 0 | DC26: 2026488.18 | DD26: 128700 | DE26: 0 | DF26: 0 | DG26: 0 | DH26: 0 | DI26: 0
A27: 07-036 | B27: 1017 | C27: 0000008422 | D27: 2023 | E27: Burke Central 36 | F27: 1 | G27: 31-706 | H27: 100 | I27: 53-350 | J27: 1771084.4 | K27: 157.37 | L27: 398.5 | M27: 0 | N27: 11098977 | O27: 0 | P27: 79.23 | Q27: 0 | R27: 0 | S27: 66278.81 | T27: 443124.47 | U27: 0 | V27: 8483.08 | W27: 4369.69 | X27: 11274.85 | Y27: 0.67 | Z27: 11 | AA27: 45 | AB27: 15 | AC27: 24 | AD27: 0 | AE27: 1.86 | AF27: 0 | AG27: 0 | AH27: 0 | AI27: 0 | AJ27: 0.358 | AK27: 0 | AL27: 0 | AM27: 0 | AN27: 0 | AO27: 0 | AP27: 47670 | AQ27: 11550 | AR27: 0 | AS27: 0 | AT27: 0 | AU27: 0 | AV27: 0 | AW27: 159241.36 | AX27: 683750.76 | AY27: =MAX(ROUND(IF(F27<4,IF(H27=0,(SUM(Y27:AD27)*Worksheet!$E$26+Y27*Worksheet!$E$27+AN27*Worksheet!$E$39)*-BaseRate,0)),2),MIN(0,-DC27)) -> 0 | AZ27: =MAX(ROUND(IF(F27=4,0,IF(I27=0,0,ROUND(SUM(Y27:AD27)*Worksheet!$E$28,2)*-BaseRate)),2),MIN(0,-DC27-AY27)) -> -1945.03 | BA27: 0 | BB27: 1401 | BD27: 65795.11 | BE27: 11254.27 | BF27: =IFERROR(ROUND(IF(AND(AX27*1.12<N27*60/1000,N27/CF27<STVPP*0.2),(CF27*STVPP*0.2*Worksheet!$F$86/1000-AX27*1.12)*PropTaxAdj,IF(AX27*1.12<N27*60/1000,(N27*60/1000-AX27*1.12)*PropTaxAdj,0)),2),0) -> 0 | BG27: =ROUND(IF($F27=4,0,Y27*Worksheet!$E$16),2) -> 0.67 | BH27: =ROUND(IF($F27=4,0,Z27*Worksheet!$E$17),2) -> 11 | BI27: =ROUND(IF($F27=4,0,AA27*Worksheet!$E$18),2) -> 45 | BJ27: =ROUND(IF($F27=4,0,AB27*Worksheet!$E$19),2) -> 15 | BK27: =ROUND(IF($F27=4,0,AC27*Worksheet!$E$20),2) -> 24 | BL27: =ROUND(AD27*Worksheet!$E$21,2) -> 0 | BM27: 95.67 | BN27: =ROUND(AD27*Worksheet!$E$25,2) -> 0 | BO27: =ROUND(SUM(BM27)*Worksheet!$E$26,2) -> 7.84 | BP27: =ROUND(Y27*Worksheet!$E$27,2) -> 0.11 | BQ27: =ROUND(AE27*Worksheet!$E$29,2) -> 1.3 | BR27: =ROUND(AF27*Worksheet!$E$30,2) -> 0 | BS27: =ROUND(IF($I27<>0,$BM27*Worksheet!$E$28,0),2) -> 0.19 | BT27: =ROUND(AG27*Worksheet!$E$31,2) -> 0 | BU27: =ROUND(AH27*Worksheet!$E$32,2) -> 0 | BV27: =ROUND(AI27*Worksheet!$E$33,2) -> 0 | BW27: =ROUND(ROUND(AJ27*BM27,2)*Worksheet!$E$34,2) -> 0.86 | BX27: =ROUND(AK27*Worksheet!$E$35,2) -> 0 | BY27: =ROUND(AL27*Worksheet!$E$36,2) -> 0 | BZ27: =ROUND(AM27*Worksheet!$E$38,2) -> 0 | CA27: =ROUND(AN27*Worksheet!$E$39,2) -> 0 | CB27: =IF(AND(L27>275,SUM(Y27:AD27)<100),ROUND(SUM(Y27:AD27)*Worksheet!$E$41,2),0) -> 9.57 | CC27: =IF(AND(L27>600,SUM(Y27:AD27)<50),ROUND((50-SUM(Y27:AD27))*(Worksheet!$E$41+1),2),0) -> 0 | CD27: 115.54 | CE27: 1.46 | CF27: 168.69 | CG27: 1726879.53 | CH27: =MIN(ROUND(BE27*CF27*Worksheet!$D$124,2),CG27)-CG27 -> 0 | CI27: =ROUND(IF(F27=4,0,(MAX(ROUND(MAX((BE27*MIN(CF27,K27)*Worksheet!$D$127)+MAX(CF27-K27,0)*Worksheet!$F$47,SUM(J27)),2),SUM(CG27:CH27))-SUM(CG27:CH27))*MinAdj),2) -> 136856.63 | CJ27: 1863736.16 | CK27: =IF(CF27=0,0,-MIN(CJ27,ROUND(AX27*1.12+BF27,2),MIN(CJ27,ROUND(IF(ROUND(IF(CF27=0,0,N27/CF27),2)<STVPP*0.2,STVPP*0.2*CF27*Worksheet!$F$86/1000,N27*Worksheet!$F$86/1000),2)))) -> -665938.62 | CL27: =-MIN(SUM(CJ27,CK27),IF($P27=0,(ROUND(Worksheet!$E$75*S27,2)+ROUND(Worksheet!$E$76*T27,2)+ROUND(Worksheet!$E$77*U27,2)+ROUND(Worksheet!$E$78*V27,2)+ROUND(Worksheet!$E$79*W27,2)+ROUND(Worksheet!$E$80*X27,2)),(ROUND(ROUND(S27*ROUND((1-$O27/$P27),4),2)*Worksheet!$E$75,2)+ROUND(ROUND(T27*ROUND((1-$O27/$P27),4),2)*Worksheet!$E$76,2)+ROUND(ROUND(U27*ROUND((1-$O27/$P27),4),2)*Worksheet!$E$77,2)+ROUND(ROUND(V27*ROUND((1-$O27/$P27),4),2)*Worksheet!$E$78,2)+ROUND(ROUND(W27*ROUND((1-$O27/$P27),4),2)*Worksheet!$E$79,2)+ROUND(ROUND(X27*ROUND((1-$O27/$P27),4),2)*Worksheet!$E$80,2)))) -> -400148.18 | CM27: 797649.36 | CN27: =MIN(AW27,ROUND(AO27*Worksheet!$C$104,2)+ROUND(AR27*Worksheet!$C$107,2)+ROUND(AP27*Worksheet!$C$105,2)+ROUND(AS27*Worksheet!$C$108,2)+ROUND(AQ27*Worksheet!$C$106,2)+ROUND(AT27*Worksheet!$C$109,2)+ROUND(AU27*Worksheet!$C$110,2)+ROUND(AV27*Worksheet!$C$111,2)) -> 56378.7 | CU27: 0 | CV27: =MAX(-CN27,MIN(0,ROUND($R27*EFBPercent+EFBAdd,2)-$Q27),MIN(0,SUM($CM27:CM27)+MIN(0,ROUND($R27*EFBPercent+EFBAdd,2)-$Q27))) -> 0 | CW27: =MAX(-CO27,MIN(0,ROUND($R27*EFBPercent+EFBAdd,2)-$Q27),MIN(0,SUM($CM27:CN27)+MIN(0,ROUND($R27*EFBPercent+EFBAdd,2)-$Q27))) -> 0 | CX27: =MAX(-CP27,MIN(0,ROUND($R27*EFBPercent+EFBAdd,2)-$Q27),MIN(0,SUM($CM27:CO27)+MIN(0,ROUND($R27*EFBPercent+EFBAdd,2)-$Q27))) -> 0 | CY27: =MAX(-CQ27,MIN(0,ROUND($R27*EFBPercent+EFBAdd,2)-$Q27),MIN(0,SUM($CM27:CP27)+MIN(0,ROUND($R27*EFBPercent+EFBAdd,2)-$Q27))) -> 0 | CZ27: =MAX(-CR27,MIN(0,ROUND($R27*EFBPercent+EFBAdd,2)-$Q27),MIN(0,SUM($CM27:CQ27)+MIN(0,ROUND($R27*EFBPercent+EFBAdd,2)-$Q27))) -> 0 | DA27: =MAX(-CS27,MIN(0,ROUND($R27*EFBPercent+EFBAdd,2)-$Q27),MIN(0,SUM($CM27:CR27)+MIN(0,ROUND($R27*EFBPercent+EFBAdd,2)-$Q27))) -> 0 | DC27: 797649.36 | DD27: 56378.7 | DE27: 0 | DF27: 0 | DG27: 0 | DH27: 0 | DI27: 0
A28: 08-001 | B28: 1012 | C28: 0000008416 | D28: 2023 | E28: Bismarck 1 | F28: 1 | G28: 08-711 | H28: 100 | I28: 08-378 | J28: 139523120.1 | K28: 14464.35 | L28: 221 | M28: 0 | N28: 520577090 | O28: 21 | P28: 107.66 | Q28: 0 | R28: 0 | S28: 858979.9 | T28: 0 | U28: 0 | V28: 95879.71 | W28: 1203722.65 | X28: 382971.37 | Y28: 143.43 | Z28: 1096 | AA28: 6126 | AB28: 2162 | AC28: 3949.69 | AD28: 109.31 | AE28: 302.32 | AF28: 0 | AG28: 31.1 | AH28: 48.07 | AI28: 116.69 | AJ28: 0.236 | AK28: 1.78 | AL28: 0 | AM28: 717.65 | AN28: 0.42 | AO28: 10708.6 | AP28: 434169.14 | AQ28: 772967 | AR28: 1587.47 | AS28: 267128.46 | AT28: 917942 | AU28: 2836.4 | AV28: 0 | AW28: 4240213.69 | AX28: 30270993.42 | AY28: =MAX(ROUND(IF(F28<4,IF(H28=0,(SUM(Y28:AD28)*Worksheet!$E$26+Y28*Worksheet!$E$27+AN28*Worksheet!$E$39)*-BaseRate,0)),2),MIN(0,-DC28)) -> 0 | AZ28: =MAX(ROUND(IF(F28=4,0,IF(I28=0,0,ROUND(SUM(Y28:AD28)*Worksheet!$E$28,2)*-BaseRate)),2),MIN(0,-DC28-AY28)) -> -278139.29 | BA28: 0 | BB28: 1403 | BD28: 33506.46 | BE28: 9646 | BF28: =IFERROR(ROUND(IF(AND(AX28*1.12<N28*60/1000,N28/CF28<STVPP*0.2),(CF28*STVPP*0.2*Worksheet!$F$86/1000-AX28*1.12)*PropTaxAdj,IF(AX28*1.12<N28*60/1000,(N28*60/1000-AX28*1.12)*PropTaxAdj,0)),2),0) -> 0 | BG28: =ROUND(IF($F28=4,0,Y28*Worksheet!$E$16),2) -> 143.43 | BH28: =ROUND(IF($F28=4,0,Z28*Worksheet!$E$17),2) -> 1096 | BI28: =ROUND(IF($F28=4,0,AA28*Worksheet!$E$18),2) -> 6126 | BJ28: =ROUND(IF($F28=4,0,AB28*Worksheet!$E$19),2) -> 2162 | BK28: =ROUND(IF($F28=4,0,AC28*Worksheet!$E$20),2) -> 3949.69 | BL28: =ROUND(AD28*Worksheet!$E$21,2) -> 109.31 | BM28: 13586.43 | BN28: =ROUND(AD28*Worksheet!$E$25,2) -> 27.33 | BO28: =ROUND(SUM(BM28)*Worksheet!$E$26,2) -> 1114.09 | BP28: =ROUND(Y28*Worksheet!$E$27,2) -> 24.38 | BQ28: =ROUND(AE28*Worksheet!$E$29,2) -> 211.62 | BR28: =ROUND(AF28*Worksheet!$E$30,2) -> 0 | BS28: =ROUND(IF($I28<>0,$BM28*Worksheet!$E$28,0),2) -> 27.17 | BT28: =ROUND(AG28*Worksheet!$E$31,2) -> 12.44 | BU28: =ROUND(AH28*Worksheet!$E$32,2) -> 13.46 | BV28: =ROUND(AI28*Worksheet!$E$33,2) -> 8.17 | BW28: =ROUND(ROUND(AJ28*BM28,2)*Worksheet!$E$34,2) -> 80.16 | BX28: =ROUND(AK28*Worksheet!$E$35,2) -> 0.36 | BY28: =ROUND(AL28*Worksheet!$E$36,2) -> 0 | BZ28: =ROUND(AM28*Worksheet!$E$38,2) -> 430.59 | CA28: =ROUND(AN28*Worksheet!$E$39,2) -> 0.42 | CB28: =IF(AND(L28>275,SUM(Y28:AD28)<100),ROUND(SUM(Y28:AD28)*Worksheet!$E$41,2),0) -> 0 | CC28: =IF(AND(L28>600,SUM(Y28:AD28)<50),ROUND((50-SUM(Y28:AD28))*(Worksheet!$E$41+1),2),0) -> 0 | CD28: 15536.62 | CE28: 1 | CF28: 15536.62 | CG28: 159048378.9 | CH28: =MIN(ROUND(BE28*CF28*Worksheet!$D$124,2),CG28)-CG28 -> 0 | CI28: =ROUND(IF(F28=4,0,(MAX(ROUND(MAX((BE28*MIN(CF28,K28)*Worksheet!$D$127)+MAX(CF28-K28,0)*Worksheet!$F$47,SUM(J28)),2),SUM(CG28:CH28))-SUM(CG28:CH28))*MinAdj),2) -> 0 | CJ28: 159048378.9 | CK28: =IF(CF28=0,0,-MIN(CJ28,ROUND(AX28*1.12+BF28,2),MIN(CJ28,ROUND(IF(ROUND(IF(CF28=0,0,N28/CF28),2)<STVPP*0.2,STVPP*0.2*CF28*Worksheet!$F$86/1000,N28*Worksheet!$F$86/1000),2)))) -> -31234625.4 | CL28: =-MIN(SUM(CJ28,CK28),IF($P28=0,(ROUND(Worksheet!$E$75*S28,2)+ROUND(Worksheet!$E$76*T28,2)+ROUND(Worksheet!$E$77*U28,2)+ROUND(Worksheet!$E$78*V28,2)+ROUND(Worksheet!$E$79*W28,2)+ROUND(Worksheet!$E$80*X28,2)),(ROUND(ROUND(S28*ROUND((1-$O28/$P28),4),2)*Worksheet!$E$75,2)+ROUND(ROUND(T28*ROUND((1-$O28/$P28),4),2)*Worksheet!$E$76,2)+ROUND(ROUND(U28*ROUND((1-$O28/$P28),4),2)*Worksheet!$E$77,2)+ROUND(ROUND(V28*ROUND((1-$O28/$P28),4),2)*Worksheet!$E$78,2)+ROUND(ROUND(W28*ROUND((1-$O28/$P28),4),2)*Worksheet!$E$79,2)+ROUND(ROUND(X28*ROUND((1-$O28/$P28),4),2)*Worksheet!$E$80,2)))) -> -1534272.4 | CM28: 126279481.1 | CN28: =MIN(AW28,ROUND(AO28*Worksheet!$C$104,2)+ROUND(AR28*Worksheet!$C$107,2)+ROUND(AP28*Worksheet!$C$105,2)+ROUND(AS28*Worksheet!$C$108,2)+ROUND(AQ28*Worksheet!$C$106,2)+ROUND(AT28*Worksheet!$C$109,2)+ROUND(AU28*Worksheet!$C$110,2)+ROUND(AV28*Worksheet!$C$111,2)) -> 1292816.09 | CU28: 0 | CV28: =MAX(-CN28,MIN(0,ROUND($R28*EFBPercent+EFBAdd,2)-$Q28),MIN(0,SUM($CM28:CM28)+MIN(0,ROUND($R28*EFBPercent+EFBAdd,2)-$Q28))) -> 0 | CW28: =MAX(-CO28,MIN(0,ROUND($R28*EFBPercent+EFBAdd,2)-$Q28),MIN(0,SUM($CM28:CN28)+MIN(0,ROUND($R28*EFBPercent+EFBAdd,2)-$Q28))) -> 0 | CX28: =MAX(-CP28,MIN(0,ROUND($R28*EFBPercent+EFBAdd,2)-$Q28),MIN(0,SUM($CM28:CO28)+MIN(0,ROUND($R28*EFBPercent+EFBAdd,2)-$Q28))) -> 0 | CY28: =MAX(-CQ28,MIN(0,ROUND($R28*EFBPercent+EFBAdd,2)-$Q28),MIN(0,SUM($CM28:CP28)+MIN(0,ROUND($R28*EFBPercent+EFBAdd,2)-$Q28))) -> 0 | CZ28: =MAX(-CR28,MIN(0,ROUND($R28*EFBPercent+EFBAdd,2)-$Q28),MIN(0,SUM($CM28:CQ28)+MIN(0,ROUND($R28*EFBPercent+EFBAdd,2)-$Q28))) -> 0 | DA28: =MAX(-CS28,MIN(0,ROUND($R28*EFBPercent+EFBAdd,2)-$Q28),MIN(0,SUM($CM28:CR28)+MIN(0,ROUND($R28*EFBPercent+EFBAdd,2)-$Q28))) -> 0 | DC28: 126279481.1 | DD28: 1292816.09 | DE28: 0 | DF28: 0 | DG28: 0 | DH28: 0 | DI28: 0
A29: 08-025 | B29: 1114 | C29: 0000008555 | D29: 2023 | E29: Naughton 25 | F29: 3 | G29: 08-702 | H29: 0 | I29: 08-378 | J29: 222371.97 | K29: 12.08 | L29: 32 | M29: 0 | N29: 724808 | O29: 0 | P29: 72.24 | Q29: 0 | R29: 0 | S29: 3110.59 | T29: 0 | U29: 0 | V29: 1498.63 | W29: 1222.59 | X29: 311.25 | Y29: 0 | Z29: 3 | AA29: 12 | AB29: 3 | AC29: 0 | AD29: 0 | AE29: 0.23 | AF29: 0 | AG29: 0 | AH29: 0 | AI29: 0 | AJ29: 0 | AK29: 0 | AL29: 0 | AM29: 0 | AN29: 0 | AO29: 0 | AP29: 0 | AQ29: 0 | AR29: 0 | AS29: 0 | AT29: 0 | AU29: 0 | AV29: 0 | AW29: 0 | AX29: 41826.42 | AY29: =MAX(ROUND(IF(F29<4,IF(H29=0,(SUM(Y29:AD29)*Worksheet!$E$26+Y29*Worksheet!$E$27+AN29*Worksheet!$E$39)*-BaseRate,0)),2),MIN(0,-DC29)) -> -15109.81 | AZ29: =MAX(ROUND(IF(F29=4,0,IF(I29=0,0,ROUND(SUM(Y29:AD29)*Worksheet!$E$28,2)*-BaseRate)),2),MIN(0,-DC29-AY29)) -> -409.48 | BA29: 2502 | BB29: 1403 | BD29: 25228.26 | BE29: 18408.28 | BF29: =IFERROR(ROUND(IF(AND(AX29*1.12<N29*60/1000,N29/CF29<STVPP*0.2),(CF29*STVPP*0.2*Worksheet!$F$86/1000-AX29*1.12)*PropTaxAdj,IF(AX29*1.12<N29*60/1000,(N29*60/1000-AX29*1.12)*PropTaxAdj,0)),2),0) -> 0 | BG29: =ROUND(IF($F29=4,0,Y29*Worksheet!$E$16),2) -> 0 | BH29: =ROUND(IF($F29=4,0,Z29*Worksheet!$E$17),2) -> 3 | BI29: =ROUND(IF($F29=4,0,AA29*Worksheet!$E$18),2) -> 12 | BJ29: =ROUND(IF($F29=4,0,AB29*Worksheet!$E$19),2) -> 3 | BK29: =ROUND(IF($F29=4,0,AC29*Worksheet!$E$20),2) -> 0 | BL29: =ROUND(AD29*Worksheet!$E$21,2) -> 0 | BM29: 18 | BN29: =ROUND(AD29*Worksheet!$E$25,2) -> 0 | BO29: =ROUND(SUM(BM29)*Worksheet!$E$26,2) -> 1.48 | BP29: =ROUND(Y29*Worksheet!$E$27,2) -> 0 | BQ29: =ROUND(AE29*Worksheet!$E$29,2) -> 0.16 | BR29: =ROUND(AF29*Worksheet!$E$30,2) -> 0 | BS29: =ROUND(IF($I29<>0,$BM29*Worksheet!$E$28,0),2) -> 0.04 | BT29: =ROUND(AG29*Worksheet!$E$31,2) -> 0 | BU29: =ROUND(AH29*Worksheet!$E$32,2) -> 0 | BV29: =ROUND(AI29*Worksheet!$E$33,2) -> 0 | BW29: =ROUND(ROUND(AJ29*BM29,2)*Worksheet!$E$34,2) -> 0 | BX29: =ROUND(AK29*Worksheet!$E$35,2) -> 0 | BY29: =ROUND(AL29*Worksheet!$E$36,2) -> 0 | BZ29: =ROUND(AM29*Worksheet!$E$38,2) -> 0 | CA29: =ROUND(AN29*Worksheet!$E$39,2) -> 0 | CB29: =IF(AND(L29>275,SUM(Y29:AD29)<100),ROUND(SUM(Y29:AD29)*Worksheet!$E$41,2),0) -> 0 | CC29: =IF(AND(L29>600,SUM(Y29:AD29)<50),ROUND((50-SUM(Y29:AD29))*(Worksheet!$E$41+1),2),0) -> 0 | CD29: 19.68 | CE29: 1.46 | CF29: 28.73 | CG29: 294109.01 | CH29: =MIN(ROUND(BE29*CF29*Worksheet!$D$124,2),CG29)-CG29 -> 0 | CI29: =ROUND(IF(F29=4,0,(MAX(ROUND(MAX((BE29*MIN(CF29,K29)*Worksheet!$D$127)+MAX(CF29-K29,0)*Worksheet!$F$47,SUM(J29)),2),SUM(CG29:CH29))-SUM(CG29:CH29))*MinAdj),2) -> 72209.55 | CJ29: 366318.56 | CK29: =IF(CF29=0,0,-MIN(CJ29,ROUND(AX29*1.12+BF29,2),MIN(CJ29,ROUND(IF(ROUND(IF(CF29=0,0,N29/CF29),2)<STVPP*0.2,STVPP*0.2*CF29*Worksheet!$F$86/1000,N29*Worksheet!$F$86/1000),2)))) -> -43488.48 | CL29: =-MIN(SUM(CJ29,CK29),IF($P29=0,(ROUND(Worksheet!$E$75*S29,2)+ROUND(Worksheet!$E$76*T29,2)+ROUND(Worksheet!$E$77*U29,2)+ROUND(Worksheet!$E$78*V29,2)+ROUND(Worksheet!$E$79*W29,2)+ROUND(Worksheet!$E$80*X29,2)),(ROUND(ROUND(S29*ROUND((1-$O29/$P29),4),2)*Worksheet!$E$75,2)+ROUND(ROUND(T29*ROUND((1-$O29/$P29),4),2)*Worksheet!$E$76,2)+ROUND(ROUND(U29*ROUND((1-$O29/$P29),4),2)*Worksheet!$E$77,2)+ROUND(ROUND(V29*ROUND((1-$O29/$P29),4),2)*Worksheet!$E$78,2)+ROUND(ROUND(W29*ROUND((1-$O29/$P29),4),2)*Worksheet!$E$79,2)+ROUND(ROUND(X29*ROUND((1-$O29/$P29),4),2)*Worksheet!$E$80,2)))) -> -4607.29 | CM29: 318222.79 | CN29: =MIN(AW29,ROUND(AO29*Worksheet!$C$104,2)+ROUND(AR29*Worksheet!$C$107,2)+ROUND(AP29*Worksheet!$C$105,2)+ROUND(AS29*Worksheet!$C$108,2)+ROUND(AQ29*Worksheet!$C$106,2)+ROUND(AT29*Worksheet!$C$109,2)+ROUND(AU29*Worksheet!$C$110,2)+ROUND(AV29*Worksheet!$C$111,2)) -> 0 | CU29: 0 | CV29: =MAX(-CN29,MIN(0,ROUND($R29*EFBPercent+EFBAdd,2)-$Q29),MIN(0,SUM($CM29:CM29)+MIN(0,ROUND($R29*EFBPercent+EFBAdd,2)-$Q29))) -> 0 | CW29: =MAX(-CO29,MIN(0,ROUND($R29*EFBPercent+EFBAdd,2)-$Q29),MIN(0,SUM($CM29:CN29)+MIN(0,ROUND($R29*EFBPercent+EFBAdd,2)-$Q29))) -> 0 | CX29: =MAX(-CP29,MIN(0,ROUND($R29*EFBPercent+EFBAdd,2)-$Q29),MIN(0,SUM($CM29:CO29)+MIN(0,ROUND($R29*EFBPercent+EFBAdd,2)-$Q29))) -> 0 | CY29: =MAX(-CQ29,MIN(0,ROUND($R29*EFBPercent+EFBAdd,2)-$Q29),MIN(0,SUM($CM29:CP29)+MIN(0,ROUND($R29*EFBPercent+EFBAdd,2)-$Q29))) -> 0 | CZ29: =MAX(-CR29,MIN(0,ROUND($R29*EFBPercent+EFBAdd,2)-$Q29),MIN(0,SUM($CM29:CQ29)+MIN(0,ROUND($R29*EFBPercent+EFBAdd,2)-$Q29))) -> 0 | DA29: =MAX(-CS29,MIN(0,ROUND($R29*EFBPercent+EFBAdd,2)-$Q29),MIN(0,SUM($CM29:CR29)+MIN(0,ROUND($R29*EFBPercent+EFBAdd,2)-$Q29))) -> 0 | DC29: 318222.79 | DD29: 0 | DE29: 0 | DF29: 0 | DG29: 0 | DH29: 0 | DI29: 0
A30: 08-028 | B30: 1175 | C30: 0000008660 | D30: 2023 | E30: Wing 28 | F30: 1 | G30: 24-718 | H30: 100 | I30: 08-378 | J30: 1373879.78 | K30: 142.43 | L30: 407.75 | M30: 0 | N30: 5552630 | O30: 0 | P30: 73.99 | Q30: 0 | R30: 0 | S30: 24280.71 | T30: 0 | U30: 0 | V30: 20866.94 | W30: 4377.68 | X30: 1789.22 | Y30: 0.74 | Z30: 5 | AA30: 23 | AB30: 13 | AC30: 26 | AD30: 0 | AE30: 1.45 | AF30: 0 | AG30: 0 | AH30: 0 | AI30: 0 | AJ30: 0.316 | AK30: 0 | AL30: 0 | AM30: 0 | AN30: 0 | AO30: 0 | AP30: 128304 | AQ30: 19894 | AR30: 0 | AS30: 0 | AT30: 0 | AU30: 0 | AV30: 0 | AW30: 181654.79 | AX30: 319469.4 | AY30: =MAX(ROUND(IF(F30<4,IF(H30=0,(SUM(Y30:AD30)*Worksheet!$E$26+Y30*Worksheet!$E$27+AN30*Worksheet!$E$39)*-BaseRate,0)),2),MIN(0,-DC30)) -> 0 | AZ30: =MAX(ROUND(IF(F30=4,0,IF(I30=0,0,ROUND(SUM(Y30:AD30)*Worksheet!$E$28,2)*-BaseRate)),2),MIN(0,-DC30-AY30)) -> -1433.18 | BA30: 0 | BB30: 1403 | BD30: 46449.97 | BE30: 9646 | BF30: =IFERROR(ROUND(IF(AND(AX30*1.12<N30*60/1000,N30/CF30<STVPP*0.2),(CF30*STVPP*0.2*Worksheet!$F$86/1000-AX30*1.12)*PropTaxAdj,IF(AX30*1.12<N30*60/1000,(N30*60/1000-AX30*1.12)*PropTaxAdj,0)),2),0) -> 0 | BG30: =ROUND(IF($F30=4,0,Y30*Worksheet!$E$16),2) -> 0.74 | BH30: =ROUND(IF($F30=4,0,Z30*Worksheet!$E$17),2) -> 5 | BI30: =ROUND(IF($F30=4,0,AA30*Worksheet!$E$18),2) -> 23 | BJ30: =ROUND(IF($F30=4,0,AB30*Worksheet!$E$19),2) -> 13 | BK30: =ROUND(IF($F30=4,0,AC30*Worksheet!$E$20),2) -> 26 | BL30: =ROUND(AD30*Worksheet!$E$21,2) -> 0 | BM30: 67.74 | BN30: =ROUND(AD30*Worksheet!$E$25,2) -> 0 | BO30: =ROUND(SUM(BM30)*Worksheet!$E$26,2) -> 5.55 | BP30: =ROUND(Y30*Worksheet!$E$27,2) -> 0.13 | BQ30: =ROUND(AE30*Worksheet!$E$29,2) -> 1.01 | BR30: =ROUND(AF30*Worksheet!$E$30,2) -> 0 | BS30: =ROUND(IF($I30<>0,$BM30*Worksheet!$E$28,0),2) -> 0.14 | BT30: =ROUND(AG30*Worksheet!$E$31,2) -> 0 | BU30: =ROUND(AH30*Worksheet!$E$32,2) -> 0 | BV30: =ROUND(AI30*Worksheet!$E$33,2) -> 0 | BW30: =ROUND(ROUND(AJ30*BM30,2)*Worksheet!$E$34,2) -> 0.54 | BX30: =ROUND(AK30*Worksheet!$E$35,2) -> 0 | BY30: =ROUND(AL30*Worksheet!$E$36,2) -> 0 | BZ30: =ROUND(AM30*Worksheet!$E$38,2) -> 0 | CA30: =ROUND(AN30*Worksheet!$E$39,2) -> 0 | CB30: =IF(AND(L30>275,SUM(Y30:AD30)<100),ROUND(SUM(Y30:AD30)*Worksheet!$E$41,2),0) -> 6.77 | CC30: =IF(AND(L30>600,SUM(Y30:AD30)<50),ROUND((50-SUM(Y30:AD30))*(Worksheet!$E$41+1),2),0) -> 0 | CD30: 81.88 | CE30: 1.46 | CF30: 119.54 | CG30: 1223730.98 | CH30: =MIN(ROUND(BE30*CF30*Worksheet!$D$124,2),CG30)-CG30 -> 0 | CI30: =ROUND(IF(F30=4,0,(MAX(ROUND(MAX((BE30*MIN(CF30,K30)*Worksheet!$D$127)+MAX(CF30-K30,0)*Worksheet!$F$47,SUM(J30)),2),SUM(CG30:CH30))-SUM(CG30:CH30))*MinAdj),2) -> 105104.16 | CJ30: 1328835.14 | CK30: =IF(CF30=0,0,-MIN(CJ30,ROUND(AX30*1.12+BF30,2),MIN(CJ30,ROUND(IF(ROUND(IF(CF30=0,0,N30/CF30),2)<STVPP*0.2,STVPP*0.2*CF30*Worksheet!$F$86/1000,N30*Worksheet!$F$86/1000),2)))) -> -333157.8 | CL30: =-MIN(SUM(CJ30,CK30),IF($P30=0,(ROUND(Worksheet!$E$75*S30,2)+ROUND(Worksheet!$E$76*T30,2)+ROUND(Worksheet!$E$77*U30,2)+ROUND(Worksheet!$E$78*V30,2)+ROUND(Worksheet!$E$79*W30,2)+ROUND(Worksheet!$E$80*X30,2)),(ROUND(ROUND(S30*ROUND((1-$O30/$P30),4),2)*Worksheet!$E$75,2)+ROUND(ROUND(T30*ROUND((1-$O30/$P30),4),2)*Worksheet!$E$76,2)+ROUND(ROUND(U30*ROUND((1-$O30/$P30),4),2)*Worksheet!$E$77,2)+ROUND(ROUND(V30*ROUND((1-$O30/$P30),4),2)*Worksheet!$E$78,2)+ROUND(ROUND(W30*ROUND((1-$O30/$P30),4),2)*Worksheet!$E$79,2)+ROUND(ROUND(X30*ROUND((1-$O30/$P30),4),2)*Worksheet!$E$80,2)))) -> -38485.92 | CM30: 957191.42 | CN30: =MIN(AW30,ROUND(AO30*Worksheet!$C$104,2)+ROUND(AR30*Worksheet!$C$107,2)+ROUND(AP30*Worksheet!$C$105,2)+ROUND(AS30*Worksheet!$C$108,2)+ROUND(AQ30*Worksheet!$C$106,2)+ROUND(AT30*Worksheet!$C$109,2)+ROUND(AU30*Worksheet!$C$110,2)+ROUND(AV30*Worksheet!$C$111,2)) -> 148385.64 | CU30: 0 | CV30: =MAX(-CN30,MIN(0,ROUND($R30*EFBPercent+EFBAdd,2)-$Q30),MIN(0,SUM($CM30:CM30)+MIN(0,ROUND($R30*EFBPercent+EFBAdd,2)-$Q30))) -> 0 | CW30: =MAX(-CO30,MIN(0,ROUND($R30*EFBPercent+EFBAdd,2)-$Q30),MIN(0,SUM($CM30:CN30)+MIN(0,ROUND($R30*EFBPercent+EFBAdd,2)-$Q30))) -> 0 | CX30: =MAX(-CP30,MIN(0,ROUND($R30*EFBPercent+EFBAdd,2)-$Q30),MIN(0,SUM($CM30:CO30)+MIN(0,ROUND($R30*EFBPercent+EFBAdd,2)-$Q30))) -> 0 | CY30: =MAX(-CQ30,MIN(0,ROUND($R30*EFBPercent+EFBAdd,2)-$Q30),MIN(0,SUM($CM30:CP30)+MIN(0,ROUND($R30*EFBPercent+EFBAdd,2)-$Q30))) -> 0 | CZ30: =MAX(-CR30,MIN(0,ROUND($R30*EFBPercent+EFBAdd,2)-$Q30),MIN(0,SUM($CM30:CQ30)+MIN(0,ROUND($R30*EFBPercent+EFBAdd,2)-$Q30))) -> 0 | DA30: =MAX(-CS30,MIN(0,ROUND($R30*EFBPercent+EFBAdd,2)-$Q30),MIN(0,SUM($CM30:CR30)+MIN(0,ROUND($R30*EFBPercent+EFBAdd,2)-$Q30))) -> 0 | DC30: 957191.42 | DD30: 148385.64 | DE30: 0 | DF30: 0 | DG30: 0 | DH30: 0 | DI30: 0
A31: 08-033 | B31: 1101 | C31: 0000008536 | D31: 2023 | E31: Menoken 33 | F31: 2 | G31: 08-702 | H31: 0 | I31: 08-378 | J31: 616041.59 | K31: 52.58 | L31: 143.75 | M31: 0 | N31: 3887266 | O31: 0 | P31: 78.93 | Q31: 0 | R31: 0 | S31: 0 | T31: 0 | U31: 0 | V31: 6036.27 | W31: 3069.36 | X31: 4011.28 | Y31: 0 | Z31: 9 | AA31: 44 | AB31: 2 | AC31: 0 | AD31: 0 | AE31: 1.26 | AF31: 0 | AG31: 0 | AH31: 0 | AI31: 0 | AJ31: 0.26 | AK31: 0 | AL31: 0 | AM31: 0 | AN31: 0 | AO31: 0 | AP31: 63000 | AQ31: 9263 | AR31: 0 | AS31: 0 | AT31: 0 | AU31: 0 | AV31: 0 | AW31: 106050.15 | AX31: 212975.94 | AY31: =MAX(ROUND(IF(F31<4,IF(H31=0,(SUM(Y31:AD31)*Worksheet!$E$26+Y31*Worksheet!$E$27+AN31*Worksheet!$E$39)*-BaseRate,0)),2),MIN(0,-DC31)) -> -46168.87 | AZ31: =MAX(ROUND(IF(F31=4,0,IF(I31=0,0,ROUND(SUM(Y31:AD31)*Worksheet!$E$28,2)*-BaseRate)),2),MIN(0,-DC31-AY31)) -> -1126.07 | BA31: 2502 | BB31: 1403 | BD31: 43745.96 | BE31: 11716.27 | BF31: =IFERROR(ROUND(IF(AND(AX31*1.12<N31*60/1000,N31/CF31<STVPP*0.2),(CF31*STVPP*0.2*Worksheet!$F$86/1000-AX31*1.12)*PropTaxAdj,IF(AX31*1.12<N31*60/1000,(N31*60/1000-AX31*1.12)*PropTaxAdj,0)),2),0) -> 0 | BG31: =ROUND(IF($F31=4,0,Y31*Worksheet!$E$16),2) -> 0 | BH31: =ROUND(IF($F31=4,0,Z31*Worksheet!$E$17),2) -> 9 | BI31: =ROUND(IF($F31=4,0,AA31*Worksheet!$E$18),2) -> 44 | BJ31: =ROUND(IF($F31=4,0,AB31*Worksheet!$E$19),2) -> 2 | BK31: =ROUND(IF($F31=4,0,AC31*Worksheet!$E$20),2) -> 0 | BL31: =ROUND(AD31*Worksheet!$E$21,2) -> 0 | BM31: 55 | BN31: =ROUND(AD31*Worksheet!$E$25,2) -> 0 | BO31: =ROUND(SUM(BM31)*Worksheet!$E$26,2) -> 4.51 | BP31: =ROUND(Y31*Worksheet!$E$27,2) -> 0 | BQ31: =ROUND(AE31*Worksheet!$E$29,2) -> 0.88 | BR31: =ROUND(AF31*Worksheet!$E$30,2) -> 0 | BS31: =ROUND(IF($I31<>0,$BM31*Worksheet!$E$28,0),2) -> 0.11 | BT31: =ROUND(AG31*Worksheet!$E$31,2) -> 0 | BU31: =ROUND(AH31*Worksheet!$E$32,2) -> 0 | BV31: =ROUND(AI31*Worksheet!$E$33,2) -> 0 | BW31: =ROUND(ROUND(AJ31*BM31,2)*Worksheet!$E$34,2) -> 0.36 | BX31: =ROUND(AK31*Worksheet!$E$35,2) -> 0 | BY31: =ROUND(AL31*Worksheet!$E$36,2) -> 0 | BZ31: =ROUND(AM31*Worksheet!$E$38,2) -> 0 | CA31: =ROUND(AN31*Worksheet!$E$39,2) -> 0 | CB31: =IF(AND(L31>275,SUM(Y31:AD31)<100),ROUND(SUM(Y31:AD31)*Worksheet!$E$41,2),0) -> 0 | CC31: =IF(AND(L31>600,SUM(Y31:AD31)<50),ROUND((50-SUM(Y31:AD31))*(Worksheet!$E$41+1),2),0) -> 0 | CD31: 60.86 | CE31: 1.46 | CF31: 88.86 | CG31: 909659.82 | CH31: =MIN(ROUND(BE31*CF31*Worksheet!$D$124,2),CG31)-CG31 -> 0 | CI31: =ROUND(IF(F31=4,0,(MAX(ROUND(MAX((BE31*MIN(CF31,K31)*Worksheet!$D$127)+MAX(CF31-K31,0)*Worksheet!$F$47,SUM(J31)),2),SUM(CG31:CH31))-SUM(CG31:CH31))*MinAdj),2) -> 63070.6 | CJ31: 972730.42 | CK31: =IF(CF31=0,0,-MIN(CJ31,ROUND(AX31*1.12+BF31,2),MIN(CJ31,ROUND(IF(ROUND(IF(CF31=0,0,N31/CF31),2)<STVPP*0.2,STVPP*0.2*CF31*Worksheet!$F$86/1000,N31*Worksheet!$F$86/1000),2)))) -> -233235.96 | CL31: =-MIN(SUM(CJ31,CK31),IF($P31=0,(ROUND(Worksheet!$E$75*S31,2)+ROUND(Worksheet!$E$76*T31,2)+ROUND(Worksheet!$E$77*U31,2)+ROUND(Worksheet!$E$78*V31,2)+ROUND(Worksheet!$E$79*W31,2)+ROUND(Worksheet!$E$80*X31,2)),(ROUND(ROUND(S31*ROUND((1-$O31/$P31),4),2)*Worksheet!$E$75,2)+ROUND(ROUND(T31*ROUND((1-$O31/$P31),4),2)*Worksheet!$E$76,2)+ROUND(ROUND(U31*ROUND((1-$O31/$P31),4),2)*Worksheet!$E$77,2)+ROUND(ROUND(V31*ROUND((1-$O31/$P31),4),2)*Worksheet!$E$78,2)+ROUND(ROUND(W31*ROUND((1-$O31/$P31),4),2)*Worksheet!$E$79,2)+ROUND(ROUND(X31*ROUND((1-$O31/$P31),4),2)*Worksheet!$E$80,2)))) -> -9837.68 | CM31: 729656.78 | CN31: =MIN(AW31,ROUND(AO31*Worksheet!$C$104,2)+ROUND(AR31*Worksheet!$C$107,2)+ROUND(AP31*Worksheet!$C$105,2)+ROUND(AS31*Worksheet!$C$108,2)+ROUND(AQ31*Worksheet!$C$106,2)+ROUND(AT31*Worksheet!$C$109,2)+ROUND(AU31*Worksheet!$C$110,2)+ROUND(AV31*Worksheet!$C$111,2)) -> 72708.9 | CU31: 0 | CV31: =MAX(-CN31,MIN(0,ROUND($R31*EFBPercent+EFBAdd,2)-$Q31),MIN(0,SUM($CM31:CM31)+MIN(0,ROUND($R31*EFBPercent+EFBAdd,2)-$Q31))) -> 0 | CW31: =MAX(-CO31,MIN(0,ROUND($R31*EFBPercent+EFBAdd,2)-$Q31),MIN(0,SUM($CM31:CN31)+MIN(0,ROUND($R31*EFBPercent+EFBAdd,2)-$Q31))) -> 0 | CX31: =MAX(-CP31,MIN(0,ROUND($R31*EFBPercent+EFBAdd,2)-$Q31),MIN(0,SUM($CM31:CO31)+MIN(0,ROUND($R31*EFBPercent+EFBAdd,2)-$Q31))) -> 0 | CY31: =MAX(-CQ31,MIN(0,ROUND($R31*EFBPercent+EFBAdd,2)-$Q31),MIN(0,SUM($CM31:CP31)+MIN(0,ROUND($R31*EFBPercent+EFBAdd,2)-$Q31))) -> 0 | CZ31: =MAX(-CR31,MIN(0,ROUND($R31*EFBPercent+EFBAdd,2)-$Q31),MIN(0,SUM($CM31:CQ31)+MIN(0,ROUND($R31*EFBPercent+EFBAdd,2)-$Q31))) -> 0 | DA31: =MAX(-CS31,MIN(0,ROUND($R31*EFBPercent+EFBAdd,2)-$Q31),MIN(0,SUM($CM31:CR31)+MIN(0,ROUND($R31*EFBPercent+EFBAdd,2)-$Q31))) -> 0 | DC31: 729656.78 | DD31: 72708.9 | DE31: 0 | DF31: 0 | DG31: 0 | DH31: 0 | DI31: 0
A32: 08-035 | B32: 1152 | C32: 0000008630 | D32: 2023 | E32: Sterling 35 | F32: 2 | G32: 08-702 | H32: 0 | I32: 08-378 | J32: 532683.86 | K32: 28.45 | L32: 181.5 | M32: 0 | N32: 6340747 | O32: 0 | P32: 58.45 | Q32: 0 | R32: 0 | S32: 0 | T32: 0 | U32: 0 | V32: 9580.22 | W32: 2733.43 | X32: 12180.93 | Y32: 0.11 | Z32: 1 | AA32: 8 | AB32: 0 | AC32: 0 | AD32: 0 | AE32: 0.25 | AF32: 0 | AG32: 0 | AH32: 0 | AI32: 0 | AJ32: 0.717 | AK32: 0 | AL32: 0 | AM32: 0 | AN32: 0 | AO32: 0 | AP32: 64544 | AQ32: 1293 | AR32: 0 | AS32: 0 | AT32: 0 | AU32: 0 | AV32: 0 | AW32: 51955.09 | AX32: 364125.78 | AY32: =MAX(ROUND(IF(F32<4,IF(H32=0,(SUM(Y32:AD32)*Worksheet!$E$26+Y32*Worksheet!$E$27+AN32*Worksheet!$E$39)*-BaseRate,0)),2),MIN(0,-DC32)) -> -7838.68 | AZ32: =MAX(ROUND(IF(F32=4,0,IF(I32=0,0,ROUND(SUM(Y32:AD32)*Worksheet!$E$28,2)*-BaseRate)),2),MIN(0,-DC32-AY32)) -> -204.74 | BA32: 2502 | BB32: 1403 | BD32: 424130.23 | BE32: 18723.51 | BF32: =IFERROR(ROUND(IF(AND(AX32*1.12<N32*60/1000,N32/CF32<STVPP*0.2),(CF32*STVPP*0.2*Worksheet!$F$86/1000-AX32*1.12)*PropTaxAdj,IF(AX32*1.12<N32*60/1000,(N32*60/1000-AX32*1.12)*PropTaxAdj,0)),2),0) -> 0 | BG32: =ROUND(IF($F32=4,0,Y32*Worksheet!$E$16),2) -> 0.11 | BH32: =ROUND(IF($F32=4,0,Z32*Worksheet!$E$17),2) -> 1 | BI32: =ROUND(IF($F32=4,0,AA32*Worksheet!$E$18),2) -> 8 | BJ32: =ROUND(IF($F32=4,0,AB32*Worksheet!$E$19),2) -> 0 | BK32: =ROUND(IF($F32=4,0,AC32*Worksheet!$E$20),2) -> 0 | BL32: =ROUND(AD32*Worksheet!$E$21,2) -> 0 | BM32: 9.11 | BN32: =ROUND(AD32*Worksheet!$E$25,2) -> 0 | BO32: =ROUND(SUM(BM32)*Worksheet!$E$26,2) -> 0.75 | BP32: =ROUND(Y32*Worksheet!$E$27,2) -> 0.02 | BQ32: =ROUND(AE32*Worksheet!$E$29,2) -> 0.18 | BR32: =ROUND(AF32*Worksheet!$E$30,2) -> 0 | BS32: =ROUND(IF($I32<>0,$BM32*Worksheet!$E$28,0),2) -> 0.02 | BT32: =ROUND(AG32*Worksheet!$E$31,2) -> 0 | BU32: =ROUND(AH32*Worksheet!$E$32,2) -> 0 | BV32: =ROUND(AI32*Worksheet!$E$33,2) -> 0 | BW32: =ROUND(ROUND(AJ32*BM32,2)*Worksheet!$E$34,2) -> 0.16 | BX32: =ROUND(AK32*Worksheet!$E$35,2) -> 0 | BY32: =ROUND(AL32*Worksheet!$E$36,2) -> 0 | BZ32: =ROUND(AM32*Worksheet!$E$38,2) -> 0 | CA32: =ROUND(AN32*Worksheet!$E$39,2) -> 0 | CB32: =IF(AND(L32>275,SUM(Y32:AD32)<100),ROUND(SUM(Y32:AD32)*Worksheet!$E$41,2),0) -> 0 | CC32: =IF(AND(L32>600,SUM(Y32:AD32)<50),ROUND((50-SUM(Y32:AD32))*(Worksheet!$E$41+1),2),0) -> 0 | CD32: 10.24 | CE32: 1.46 | CF32: 14.95 | CG32: 153043.15 | CH32: =MIN(ROUND(BE32*CF32*Worksheet!$D$124,2),CG32)-CG32 -> 0 | CI32: =ROUND(IF(F32=4,0,(MAX(ROUND(MAX((BE32*MIN(CF32,K32)*Worksheet!$D$127)+MAX(CF32-K32,0)*Worksheet!$F$47,SUM(J32)),2),SUM(CG32:CH32))-SUM(CG32:CH32))*MinAdj),2) -> 265748.5 | CJ32: 418791.65 | CK32: =IF(CF32=0,0,-MIN(CJ32,ROUND(AX32*1.12+BF32,2),MIN(CJ32,ROUND(IF(ROUND(IF(CF32=0,0,N32/CF32),2)<STVPP*0.2,STVPP*0.2*CF32*Worksheet!$F$86/1000,N32*Worksheet!$F$86/1000),2)))) -> -380444.82 | CL32: =-MIN(SUM(CJ32,CK32),IF($P32=0,(ROUND(Worksheet!$E$75*S32,2)+ROUND(Worksheet!$E$76*T32,2)+ROUND(Worksheet!$E$77*U32,2)+ROUND(Worksheet!$E$78*V32,2)+ROUND(Worksheet!$E$79*W32,2)+ROUND(Worksheet!$E$80*X32,2)),(ROUND(ROUND(S32*ROUND((1-$O32/$P32),4),2)*Worksheet!$E$75,2)+ROUND(ROUND(T32*ROUND((1-$O32/$P32),4),2)*Worksheet!$E$76,2)+ROUND(ROUND(U32*ROUND((1-$O32/$P32),4),2)*Worksheet!$E$77,2)+ROUND(ROUND(V32*ROUND((1-$O32/$P32),4),2)*Worksheet!$E$78,2)+ROUND(ROUND(W32*ROUND((1-$O32/$P32),4),2)*Worksheet!$E$79,2)+ROUND(ROUND(X32*ROUND((1-$O32/$P32),4),2)*Worksheet!$E$80,2)))) -> -18370.94 | CM32: 19975.89 | CN32: =MIN(AW32,ROUND(AO32*Worksheet!$C$104,2)+ROUND(AR32*Worksheet!$C$107,2)+ROUND(AP32*Worksheet!$C$105,2)+ROUND(AS32*Worksheet!$C$108,2)+ROUND(AQ32*Worksheet!$C$106,2)+ROUND(AT32*Worksheet!$C$109,2)+ROUND(AU32*Worksheet!$C$110,2)+ROUND(AV32*Worksheet!$C$111,2)) -> 51955.09 | CU32: 0 | CV32: =MAX(-CN32,MIN(0,ROUND($R32*EFBPercent+EFBAdd,2)-$Q32),MIN(0,SUM($CM32:CM32)+MIN(0,ROUND($R32*EFBPercent+EFBAdd,2)-$Q32))) -> 0 | CW32: =MAX(-CO32,MIN(0,ROUND($R32*EFBPercent+EFBAdd,2)-$Q32),MIN(0,SUM($CM32:CN32)+MIN(0,ROUND($R32*EFBPercent+EFBAdd,2)-$Q32))) -> 0 | CX32: =MAX(-CP32,MIN(0,ROUND($R32*EFBPercent+EFBAdd,2)-$Q32),MIN(0,SUM($CM32:CO32)+MIN(0,ROUND($R32*EFBPercent+EFBAdd,2)-$Q32))) -> 0 | CY32: =MAX(-CQ32,MIN(0,ROUND($R32*EFBPercent+EFBAdd,2)-$Q32),MIN(0,SUM($CM32:CP32)+MIN(0,ROUND($R32*EFBPercent+EFBAdd,2)-$Q32))) -> 0 | CZ32: =MAX(-CR32,MIN(0,ROUND($R32*EFBPercent+EFBAdd,2)-$Q32),MIN(0,SUM($CM32:CQ32)+MIN(0,ROUND($R32*EFBPercent+EFBAdd,2)-$Q32))) -> 0 | DA32: =MAX(-CS32,MIN(0,ROUND($R32*EFBPercent+EFBAdd,2)-$Q32),MIN(0,SUM($CM32:CR32)+MIN(0,ROUND($R32*EFBPercent+EFBAdd,2)-$Q32))) -> 0 | DC32: 19975.89 | DD32: 51955.09 | DE32: 0 | DF32: 0 | DG32: 0 | DH32: 0 | DI32: 0
A33: 08-039 | B33: 1003 | C33: 0000008405 | D33: 2023 | E33: Apple Creek 39 | F33: 2 | G33: 08-702 | H33: 0 | I33: 08-378 | J33: 732131.4 | K33: 75.9 | L33: 23.92 | M33: 0 | N33: 5637192 | O33: 0 | P33: 109.29 | Q33: 0 | R33: 0 | S33: 6367.9 | T33: 0 | U33: 0 | V33: 7143.6 | W33: 10751.63 | X33: 3263.94 | Y33: 0.04 | Z33: 14 | AA33: 68 | AB33: 0 | AC33: 0 | AD33: 0 | AE33: 2.08 | AF33: 0 | AG33: 0 | AH33: 0 | AI33: 0 | AJ33: 0.012 | AK33: 0 | AL33: 0 | AM33: 0 | AN33: 0 | AO33: 0 | AP33: 0 | AQ33: 0 | AR33: 0 | AS33: 0 | AT33: 0 | AU33: 0 | AV33: 0 | AW33: 232.96 | AX33: 320732.16 | AY33: =MAX(ROUND(IF(F33<4,IF(H33=0,(SUM(Y33:AD33)*Worksheet!$E$26+Y33*Worksheet!$E$27+AN33*Worksheet!$E$39)*-BaseRate,0)),2),MIN(0,-DC33)) -> -68936.78 | AZ33: =MAX(ROUND(IF(F33=4,0,IF(I33=0,0,ROUND(SUM(Y33:AD33)*Worksheet!$E$28,2)*-BaseRate)),2),MIN(0,-DC33-AY33)) -> -1637.92 | BA33: 2502 | BB33: 1403 | BD33: 44785.83 | BE33: 9646 | BF33: =IFERROR(ROUND(IF(AND(AX33*1.12<N33*60/1000,N33/CF33<STVPP*0.2),(CF33*STVPP*0.2*Worksheet!$F$86/1000-AX33*1.12)*PropTaxAdj,IF(AX33*1.12<N33*60/1000,(N33*60/1000-AX33*1.12)*PropTaxAdj,0)),2),0) -> 0 | BG33: =ROUND(IF($F33=4,0,Y33*Worksheet!$E$16),2) -> 0.04 | BH33: =ROUND(IF($F33=4,0,Z33*Worksheet!$E$17),2) -> 14 | BI33: =ROUND(IF($F33=4,0,AA33*Worksheet!$E$18),2) -> 68 | BJ33: =ROUND(IF($F33=4,0,AB33*Worksheet!$E$19),2) -> 0 | BK33: =ROUND(IF($F33=4,0,AC33*Worksheet!$E$20),2) -> 0 | BL33: =ROUND(AD33*Worksheet!$E$21,2) -> 0 | BM33: 82.04 | BN33: =ROUND(AD33*Worksheet!$E$25,2) -> 0 | BO33: =ROUND(SUM(BM33)*Worksheet!$E$26,2) -> 6.73 | BP33: =ROUND(Y33*Worksheet!$E$27,2) -> 0.01 | BQ33: =ROUND(AE33*Worksheet!$E$29,2) -> 1.46 | BR33: =ROUND(AF33*Worksheet!$E$30,2) -> 0 | BS33: =ROUND(IF($I33<>0,$BM33*Worksheet!$E$28,0),2) -> 0.16 | BT33: =ROUND(AG33*Worksheet!$E$31,2) -> 0 | BU33: =ROUND(AH33*Worksheet!$E$32,2) -> 0 | BV33: =ROUND(AI33*Worksheet!$E$33,2) -> 0 | BW33: =ROUND(ROUND(AJ33*BM33,2)*Worksheet!$E$34,2) -> 0.02 | BX33: =ROUND(AK33*Worksheet!$E$35,2) -> 0 | BY33: =ROUND(AL33*Worksheet!$E$36,2) -> 0 | BZ33: =ROUND(AM33*Worksheet!$E$38,2) -> 0 | CA33: =ROUND(AN33*Worksheet!$E$39,2) -> 0 | CB33: =IF(AND(L33>275,SUM(Y33:AD33)<100),ROUND(SUM(Y33:AD33)*Worksheet!$E$41,2),0) -> 0 | CC33: =IF(AND(L33>600,SUM(Y33:AD33)<50),ROUND((50-SUM(Y33:AD33))*(Worksheet!$E$41+1),2),0) -> 0 | CD33: 90.42 | CE33: 1.3921 | CF33: 125.87 | CG33: 1288531.19 | CH33: =MIN(ROUND(BE33*CF33*Worksheet!$D$124,2),CG33)-CG33 -> 0 | CI33: =ROUND(IF(F33=4,0,(MAX(ROUND(MAX((BE33*MIN(CF33,K33)*Worksheet!$D$127)+MAX(CF33-K33,0)*Worksheet!$F$47,SUM(J33)),2),SUM(CG33:CH33))-SUM(CG33:CH33))*MinAdj),2) -> 0 | CJ33: 1288531.19 | CK33: =IF(CF33=0,0,-MIN(CJ33,ROUND(AX33*1.12+BF33,2),MIN(CJ33,ROUND(IF(ROUND(IF(CF33=0,0,N33/CF33),2)<STVPP*0.2,STVPP*0.2*CF33*Worksheet!$F$86/1000,N33*Worksheet!$F$86/1000),2)))) -> -338231.52 | CL33: =-MIN(SUM(CJ33,CK33),IF($P33=0,(ROUND(Worksheet!$E$75*S33,2)+ROUND(Worksheet!$E$76*T33,2)+ROUND(Worksheet!$E$77*U33,2)+ROUND(Worksheet!$E$78*V33,2)+ROUND(Worksheet!$E$79*W33,2)+ROUND(Worksheet!$E$80*X33,2)),(ROUND(ROUND(S33*ROUND((1-$O33/$P33),4),2)*Worksheet!$E$75,2)+ROUND(ROUND(T33*ROUND((1-$O33/$P33),4),2)*Worksheet!$E$76,2)+ROUND(ROUND(U33*ROUND((1-$O33/$P33),4),2)*Worksheet!$E$77,2)+ROUND(ROUND(V33*ROUND((1-$O33/$P33),4),2)*Worksheet!$E$78,2)+ROUND(ROUND(W33*ROUND((1-$O33/$P33),4),2)*Worksheet!$E$79,2)+ROUND(ROUND(X33*ROUND((1-$O33/$P33),4),2)*Worksheet!$E$80,2)))) -> -20645.31 | CM33: 929654.36 | CN33: =MIN(AW33,ROUND(AO33*Worksheet!$C$104,2)+ROUND(AR33*Worksheet!$C$107,2)+ROUND(AP33*Worksheet!$C$105,2)+ROUND(AS33*Worksheet!$C$108,2)+ROUND(AQ33*Worksheet!$C$106,2)+ROUND(AT33*Worksheet!$C$109,2)+ROUND(AU33*Worksheet!$C$110,2)+ROUND(AV33*Worksheet!$C$111,2)) -> 0 | CU33: 0 | CV33: =MAX(-CN33,MIN(0,ROUND($R33*EFBPercent+EFBAdd,2)-$Q33),MIN(0,SUM($CM33:CM33)+MIN(0,ROUND($R33*EFBPercent+EFBAdd,2)-$Q33))) -> 0 | CW33: =MAX(-CO33,MIN(0,ROUND($R33*EFBPercent+EFBAdd,2)-$Q33),MIN(0,SUM($CM33:CN33)+MIN(0,ROUND($R33*EFBPercent+EFBAdd,2)-$Q33))) -> 0 | CX33: =MAX(-CP33,MIN(0,ROUND($R33*EFBPercent+EFBAdd,2)-$Q33),MIN(0,SUM($CM33:CO33)+MIN(0,ROUND($R33*EFBPercent+EFBAdd,2)-$Q33))) -> 0 | CY33: =MAX(-CQ33,MIN(0,ROUND($R33*EFBPercent+EFBAdd,2)-$Q33),MIN(0,SUM($CM33:CP33)+MIN(0,ROUND($R33*EFBPercent+EFBAdd,2)-$Q33))) -> 0 | CZ33: =MAX(-CR33,MIN(0,ROUND($R33*EFBPercent+EFBAdd,2)-$Q33),MIN(0,SUM($CM33:CQ33)+MIN(0,ROUND($R33*EFBPercent+EFBAdd,2)-$Q33))) -> 0 | DA33: =MAX(-CS33,MIN(0,ROUND($R33*EFBPercent+EFBAdd,2)-$Q33),MIN(0,SUM($CM33:CR33)+MIN(0,ROUND($R33*EFBPercent+EFBAdd,2)-$Q33))) -> 0 | DC33: 929654.36 | DD33: 0 | DE33: 0 | DF33: 0 | DG33: 0 | DH33: 0 | DI33: 0
A34: 08-045 | B34: 1091 | C34: 0000008523 | D34: 2023 | E34: Manning 45 | F34: 3 | G34: 08-702 | H34: 0 | I34: 08-378 | J34: 180187.29 | K34: 18.68 | L34: 27.5 | M34: 0 | N34: 481332 | O34: 0 | P34: 120.08 | Q34: 0 | R34: 0 | S34: 0 | T34: 0 | U34: 0 | V34: 1332.24 | W34: 11607.8 | X34: 970.63 | Y34: 0 | Z34: 2 | AA34: 15 | AB34: 2 | AC34: 0 | AD34: 0 | AE34: 0.4 | AF34: 0 | AG34: 0 | AH34: 0 | AI34: 0 | AJ34: 0 | AK34: 0 | AL34: 0 | AM34: 0 | AN34: 0 | AO34: 0 | AP34: 0 | AQ34: 0 | AR34: 0 | AS34: 0 | AT34: 0 | AU34: 0 | AV34: 0 | AW34: 0 | AX34: 28121.28 | AY34: =MAX(ROUND(IF(F34<4,IF(H34=0,(SUM(Y34:AD34)*Worksheet!$E$26+Y34*Worksheet!$E$27+AN34*Worksheet!$E$39)*-BaseRate,0)),2),MIN(0,-DC34)) -> -15949.25 | AZ34: =MAX(ROUND(IF(F34=4,0,IF(I34=0,0,ROUND(SUM(Y34:AD34)*Worksheet!$E$28,2)*-BaseRate)),2),MIN(0,-DC34-AY34)) -> -409.48 | BA34: 2502 | BB34: 1403 | BD34: 15791.73 | BE34: 9646 | BF34: =IFERROR(ROUND(IF(AND(AX34*1.12<N34*60/1000,N34/CF34<STVPP*0.2),(CF34*STVPP*0.2*Worksheet!$F$86/1000-AX34*1.12)*PropTaxAdj,IF(AX34*1.12<N34*60/1000,(N34*60/1000-AX34*1.12)*PropTaxAdj,0)),2),0) -> 0 | BG34: =ROUND(IF($F34=4,0,Y34*Worksheet!$E$16),2) -> 0 | BH34: =ROUND(IF($F34=4,0,Z34*Worksheet!$E$17),2) -> 2 | BI34: =ROUND(IF($F34=4,0,AA34*Worksheet!$E$18),2) -> 15 | BJ34: =ROUND(IF($F34=4,0,AB34*Worksheet!$E$19),2) -> 2 | BK34: =ROUND(IF($F34=4,0,AC34*Worksheet!$E$20),2) -> 0 | BL34: =ROUND(AD34*Worksheet!$E$21,2) -> 0 | BM34: 19 | BN34: =ROUND(AD34*Worksheet!$E$25,2) -> 0 | BO34: =ROUND(SUM(BM34)*Worksheet!$E$26,2) -> 1.56 | BP34: =ROUND(Y34*Worksheet!$E$27,2) -> 0 | BQ34: =ROUND(AE34*Worksheet!$E$29,2) -> 0.28 | BR34: =ROUND(AF34*Worksheet!$E$30,2) -> 0 | BS34: =ROUND(IF($I34<>0,$BM34*Worksheet!$E$28,0),2) -> 0.04 | BT34: =ROUND(AG34*Worksheet!$E$31,2) -> 0 | BU34: =ROUND(AH34*Worksheet!$E$32,2) -> 0 | BV34: =ROUND(AI34*Worksheet!$E$33,2) -> 0 | BW34: =ROUND(ROUND(AJ34*BM34,2)*Worksheet!$E$34,2) -> 0 | BX34: =ROUND(AK34*Worksheet!$E$35,2) -> 0 | BY34: =ROUND(AL34*Worksheet!$E$36,2) -> 0 | BZ34: =ROUND(AM34*Worksheet!$E$38,2) -> 0 | CA34: =ROUND(AN34*Worksheet!$E$39,2) -> 0 | CB34: =IF(AND(L34>275,SUM(Y34:AD34)<100),ROUND(SUM(Y34:AD34)*Worksheet!$E$41,2),0) -> 0 | CC34: =IF(AND(L34>600,SUM(Y34:AD34)<50),ROUND((50-SUM(Y34:AD34))*(Worksheet!$E$41+1),2),0) -> 0 | CD34: 20.88 | CE34: 1.46 | CF34: 30.48 | CG34: 312023.76 | CH34: =MIN(ROUND(BE34*CF34*Worksheet!$D$124,2),CG34)-CG34 -> 0 | CI34: =ROUND(IF(F34=4,0,(MAX(ROUND(MAX((BE34*MIN(CF34,K34)*Worksheet!$D$127)+MAX(CF34-K34,0)*Worksheet!$F$47,SUM(J34)),2),SUM(CG34:CH34))-SUM(CG34:CH34))*MinAdj),2) -> 0 | CJ34: 312023.76 | CK34: =IF(CF34=0,0,-MIN(CJ34,ROUND(AX34*1.12+BF34,2),MIN(CJ34,ROUND(IF(ROUND(IF(CF34=0,0,N34/CF34),2)<STVPP*0.2,STVPP*0.2*CF34*Worksheet!$F$86/1000,N34*Worksheet!$F$86/1000),2)))) -> -28879.92 | CL34: =-MIN(SUM(CJ34,CK34),IF($P34=0,(ROUND(Worksheet!$E$75*S34,2)+ROUND(Worksheet!$E$76*T34,2)+ROUND(Worksheet!$E$77*U34,2)+ROUND(Worksheet!$E$78*V34,2)+ROUND(Worksheet!$E$79*W34,2)+ROUND(Worksheet!$E$80*X34,2)),(ROUND(ROUND(S34*ROUND((1-$O34/$P34),4),2)*Worksheet!$E$75,2)+ROUND(ROUND(T34*ROUND((1-$O34/$P34),4),2)*Worksheet!$E$76,2)+ROUND(ROUND(U34*ROUND((1-$O34/$P34),4),2)*Worksheet!$E$77,2)+ROUND(ROUND(V34*ROUND((1-$O34/$P34),4),2)*Worksheet!$E$78,2)+ROUND(ROUND(W34*ROUND((1-$O34/$P34),4),2)*Worksheet!$E$79,2)+ROUND(ROUND(X34*ROUND((1-$O34/$P34),4),2)*Worksheet!$E$80,2)))) -> -10433 | CM34: 272710.84 | CN34: =MIN(AW34,ROUND(AO34*Worksheet!$C$104,2)+ROUND(AR34*Worksheet!$C$107,2)+ROUND(AP34*Worksheet!$C$105,2)+ROUND(AS34*Worksheet!$C$108,2)+ROUND(AQ34*Worksheet!$C$106,2)+ROUND(AT34*Worksheet!$C$109,2)+ROUND(AU34*Worksheet!$C$110,2)+ROUND(AV34*Worksheet!$C$111,2)) -> 0 | CU34: 0 | CV34: =MAX(-CN34,MIN(0,ROUND($R34*EFBPercent+EFBAdd,2)-$Q34),MIN(0,SUM($CM34:CM34)+MIN(0,ROUND($R34*EFBPercent+EFBAdd,2)-$Q34))) -> 0 | CW34: =MAX(-CO34,MIN(0,ROUND($R34*EFBPercent+EFBAdd,2)-$Q34),MIN(0,SUM($CM34:CN34)+MIN(0,ROUND($R34*EFBPercent+EFBAdd,2)-$Q34))) -> 0 | CX34: =MAX(-CP34,MIN(0,ROUND($R34*EFBPercent+EFBAdd,2)-$Q34),MIN(0,SUM($CM34:CO34)+MIN(0,ROUND($R34*EFBPercent+EFBAdd,2)-$Q34))) -> 0 | CY34: =MAX(-CQ34,MIN(0,ROUND($R34*EFBPercent+EFBAdd,2)-$Q34),MIN(0,SUM($CM34:CP34)+MIN(0,ROUND($R34*EFBPercent+EFBAdd,2)-$Q34))) -> 0 | CZ34: =MAX(-CR34,MIN(0,ROUND($R34*EFBPercent+EFBAdd,2)-$Q34),MIN(0,SUM($CM34:CQ34)+MIN(0,ROUND($R34*EFBPercent+EFBAdd,2)-$Q34))) -> 0 | DA34: =MAX(-CS34,MIN(0,ROUND($R34*EFBPercent+EFBAdd,2)-$Q34),MIN(0,SUM($CM34:CR34)+MIN(0,ROUND($R34*EFBPercent+EFBAdd,2)-$Q34))) -> 0 | DC34: 272710.84 | DD34: 0 | DE34: 0 | DF34: 0 | DG34: 0 | DH34: 0 | DI34: 0
A35: 08-378 | B35: 1403 | C35: 0000179922 | D35: 2023 | E35: Central Regional Ed Association | F35: 0 | G35: 0 | H35: 0 | I35: 0 | J35: 0 | K35: 0 | L35: 0 | M35: 0 | N35: 0 | O35: 0 | P35: 0 | Q35: 0 | R35: 0 | S35: 0 | T35: 0 | U35: 0 | V35: 0 | W35: 0 | X35: 0 | Y35: 0 | Z35: 0 | AA35: 0 | AB35: 0 | AC35: 0 | AD35: 0 | AE35: 0 | AF35: 0 | AG35: 0 | AH35: 0 | AI35: 0 | AJ35: 0 | AK35: 0 | AL35: 0 | AM35: 0 | AN35: 0 | AO35: 0 | AP35: 0 | AQ35: 0 | AR35: 0 | AS35: 0 | AT35: 0 | AU35: 0 | AV35: 0 | AW35: 0 | AX35: 0 | AY35: =MAX(ROUND(IF(F35<4,IF(H35=0,(SUM(Y35:AD35)*Worksheet!$E$26+Y35*Worksheet!$E$27+AN35*Worksheet!$E$39)*-BaseRate,0)),2),MIN(0,-DC35)) -> 0 | AZ35: =MAX(ROUND(IF(F35=4,0,IF(I35=0,0,ROUND(SUM(Y35:AD35)*Worksheet!$E$28,2)*-BaseRate)),2),MIN(0,-DC35-AY35)) -> 0 | BA35: 0 | BB35: 0 | BD35: 0 | BE35: 0 | BF35: =IFERROR(ROUND(IF(AND(AX35*1.12<N35*60/1000,N35/CF35<STVPP*0.2),(CF35*STVPP*0.2*Worksheet!$F$86/1000-AX35*1.12)*PropTaxAdj,IF(AX35*1.12<N35*60/1000,(N35*60/1000-AX35*1.12)*PropTaxAdj,0)),2),0) -> 0 | BG35: =ROUND(IF($F35=4,0,Y35*Worksheet!$E$16),2) -> 0 | BH35: =ROUND(IF($F35=4,0,Z35*Worksheet!$E$17),2) -> 0 | BI35: =ROUND(IF($F35=4,0,AA35*Worksheet!$E$18),2) -> 0 | BJ35: =ROUND(IF($F35=4,0,AB35*Worksheet!$E$19),2) -> 0 | BK35: =ROUND(IF($F35=4,0,AC35*Worksheet!$E$20),2) -> 0 | BL35: =ROUND(AD35*Worksheet!$E$21,2) -> 0 | BM35: 0 | BN35: =ROUND(AD35*Worksheet!$E$25,2) -> 0 | BO35: =ROUND(SUM(BM35)*Worksheet!$E$26,2) -> 0 | BP35: =ROUND(Y35*Worksheet!$E$27,2) -> 0 | BQ35: =ROUND(AE35*Worksheet!$E$29,2) -> 0 | BR35: =ROUND(AF35*Worksheet!$E$30,2) -> 0 | BS35: =ROUND(IF($I35<>0,$BM35*Worksheet!$E$28,0),2) -> 0 | BT35: =ROUND(AG35*Worksheet!$E$31,2) -> 0 | BU35: =ROUND(AH35*Worksheet!$E$32,2) -> 0 | BV35: =ROUND(AI35*Worksheet!$E$33,2) -> 0 | BW35: =ROUND(ROUND(AJ35*BM35,2)*Worksheet!$E$34,2) -> 0 | BX35: =ROUND(AK35*Worksheet!$E$35,2) -> 0 | BY35: =ROUND(AL35*Worksheet!$E$36,2) -> 0 | BZ35: =ROUND(AM35*Worksheet!$E$38,2) -> 0 | CA35: =ROUND(AN35*Worksheet!$E$39,2) -> 0 | CB35: =IF(AND(L35>275,SUM(Y35:AD35)<100),ROUND(SUM(Y35:AD35)*Worksheet!$E$41,2),0) -> 0 | CC35: =IF(AND(L35>600,SUM(Y35:AD35)<50),ROUND((50-SUM(Y35:AD35))*(Worksheet!$E$41+1),2),0) -> 0 | CD35: 0 | CE35: 0 | CF35: 0 | CG35: 0 | CH35: =MIN(ROUND(BE35*CF35*Worksheet!$D$124,2),CG35)-CG35 -> 0 | CI35: =ROUND(IF(F35=4,0,(MAX(ROUND(MAX((BE35*MIN(CF35,K35)*Worksheet!$D$127)+MAX(CF35-K35,0)*Worksheet!$F$47,SUM(J35)),2),SUM(CG35:CH35))-SUM(CG35:CH35))*MinAdj),2) -> 0 | CJ35: 0 | CK35: =IF(CF35=0,0,-MIN(CJ35,ROUND(AX35*1.12+BF35,2),MIN(CJ35,ROUND(IF(ROUND(IF(CF35=0,0,N35/CF35),2)<STVPP*0.2,STVPP*0.2*CF35*Worksheet!$F$86/1000,N35*Worksheet!$F$86/1000),2)))) -> 0 | CL35: =-MIN(SUM(CJ35,CK35),IF($P35=0,(ROUND(Worksheet!$E$75*S35,2)+ROUND(Worksheet!$E$76*T35,2)+ROUND(Worksheet!$E$77*U35,2)+ROUND(Worksheet!$E$78*V35,2)+ROUND(Worksheet!$E$79*W35,2)+ROUND(Worksheet!$E$80*X35,2)),(ROUND(ROUND(S35*ROUND((1-$O35/$P35),4),2)*Worksheet!$E$75,2)+ROUND(ROUND(T35*ROUND((1-$O35/$P35),4),2)*Worksheet!$E$76,2)+ROUND(ROUND(U35*ROUND((1-$O35/$P35),4),2)*Worksheet!$E$77,2)+ROUND(ROUND(V35*ROUND((1-$O35/$P35),4),2)*Worksheet!$E$78,2)+ROUND(ROUND(W35*ROUND((1-$O35/$P35),4),2)*Worksheet!$E$79,2)+ROUND(ROUND(X35*ROUND((1-$O35/$P35),4),2)*Worksheet!$E$80,2)))) -> 0 | CM35: 0 | CN35: =MIN(AW35,ROUND(AO35*Worksheet!$C$104,2)+ROUND(AR35*Worksheet!$C$107,2)+ROUND(AP35*Worksheet!$C$105,2)+ROUND(AS35*Worksheet!$C$108,2)+ROUND(AQ35*Worksheet!$C$106,2)+ROUND(AT35*Worksheet!$C$109,2)+ROUND(AU35*Worksheet!$C$110,2)+ROUND(AV35*Worksheet!$C$111,2)) -> 0 | CU35: 0 | CV35: =MAX(-CN35,MIN(0,ROUND($R35*EFBPercent+EFBAdd,2)-$Q35),MIN(0,SUM($CM35:CM35)+MIN(0,ROUND($R35*EFBPercent+EFBAdd,2)-$Q35))) -> 0 | CW35: =MAX(-CO35,MIN(0,ROUND($R35*EFBPercent+EFBAdd,2)-$Q35),MIN(0,SUM($CM35:CN35)+MIN(0,ROUND($R35*EFBPercent+EFBAdd,2)-$Q35))) -> 0 | CX35: =MAX(-CP35,MIN(0,ROUND($R35*EFBPercent+EFBAdd,2)-$Q35),MIN(0,SUM($CM35:CO35)+MIN(0,ROUND($R35*EFBPercent+EFBAdd,2)-$Q35))) -> 0 | CY35: =MAX(-CQ35,MIN(0,ROUND($R35*EFBPercent+EFBAdd,2)-$Q35),MIN(0,SUM($CM35:CP35)+MIN(0,ROUND($R35*EFBPercent+EFBAdd,2)-$Q35))) -> 0 | CZ35: =MAX(-CR35,MIN(0,ROUND($R35*EFBPercent+EFBAdd,2)-$Q35),MIN(0,SUM($CM35:CQ35)+MIN(0,ROUND($R35*EFBPercent+EFBAdd,2)-$Q35))) -> 0 | DA35: =MAX(-CS35,MIN(0,ROUND($R35*EFBPercent+EFBAdd,2)-$Q35),MIN(0,SUM($CM35:CR35)+MIN(0,ROUND($R35*EFBPercent+EFBAdd,2)-$Q35))) -> 0 | DC35: 0 | DD35: 0 | DE35: 0 | DF35: 0 | DG35: 0 | DH35: 0 | DI35: 0
A36: 08-702 | B36: 2502 | C36: 0000008910 | D36: 2023 | E36: Burleigh Co Special Ed Unit | F36: 7 | G36: 08-702 | H36: 100 | I36: 0 | J36: 0 | K36: 0 | L36: 0 | M36: 0 | N36: 0 | O36: 0 | P36: 0 | Q36: 0 | R36: 0 | S36: 0 | T36: 0 | U36: 0 | V36: 0 | W36: 0 | X36: 0 | Y36: 0 | Z36: 0 | AA36: 0 | AB36: 0 | AC36: 0 | AD36: 0 | AE36: 0 | AF36: 0 | AG36: 0 | AH36: 0 | AI36: 0 | AJ36: 0 | AK36: 0 | AL36: 0 | AM36: 0 | AN36: 0 | AO36: 0 | AP36: 0 | AQ36: 0 | AR36: 0 | AS36: 0 | AT36: 0 | AU36: 0 | AV36: 0 | AW36: 0 | AX36: 0 | AY36: =MAX(ROUND(IF(F36<4,IF(H36=0,(SUM(Y36:AD36)*Worksheet!$E$26+Y36*Worksheet!$E$27+AN36*Worksheet!$E$39)*-BaseRate,0)),2),MIN(0,-DC36)) -> 0 | AZ36: =MAX(ROUND(IF(F36=4,0,IF(I36=0,0,ROUND(SUM(Y36:AD36)*Worksheet!$E$28,2)*-BaseRate)),2),MIN(0,-DC36-AY36)) -> 0 | BA36: 0 | BB36: 0 | BD36: 0 | BE36: 0 | BF36: =IFERROR(ROUND(IF(AND(AX36*1.12<N36*60/1000,N36/CF36<STVPP*0.2),(CF36*STVPP*0.2*Worksheet!$F$86/1000-AX36*1.12)*PropTaxAdj,IF(AX36*1.12<N36*60/1000,(N36*60/1000-AX36*1.12)*PropTaxAdj,0)),2),0) -> 0 | BG36: =ROUND(IF($F36=4,0,Y36*Worksheet!$E$16),2) -> 0 | BH36: =ROUND(IF($F36=4,0,Z36*Worksheet!$E$17),2) -> 0 | BI36: =ROUND(IF($F36=4,0,AA36*Worksheet!$E$18),2) -> 0 | BJ36: =ROUND(IF($F36=4,0,AB36*Worksheet!$E$19),2) -> 0 | BK36: =ROUND(IF($F36=4,0,AC36*Worksheet!$E$20),2) -> 0 | BL36: =ROUND(AD36*Worksheet!$E$21,2) -> 0 | BM36: 0 | BN36: =ROUND(AD36*Worksheet!$E$25,2) -> 0 | BO36: =ROUND(SUM(BM36)*Worksheet!$E$26,2) -> 0 | BP36: =ROUND(Y36*Worksheet!$E$27,2) -> 0 | BQ36: =ROUND(AE36*Worksheet!$E$29,2) -> 0 | BR36: =ROUND(AF36*Worksheet!$E$30,2) -> 0 | BS36: =ROUND(IF($I36<>0,$BM36*Worksheet!$E$28,0),2) -> 0 | BT36: =ROUND(AG36*Worksheet!$E$31,2) -> 0 | BU36: =ROUND(AH36*Worksheet!$E$32,2) -> 0 | BV36: =ROUND(AI36*Worksheet!$E$33,2) -> 0 | BW36: =ROUND(ROUND(AJ36*BM36,2)*Worksheet!$E$34,2) -> 0 | BX36: =ROUND(AK36*Worksheet!$E$35,2) -> 0 | BY36: =ROUND(AL36*Worksheet!$E$36,2) -> 0 | BZ36: =ROUND(AM36*Worksheet!$E$38,2) -> 0 | CA36: =ROUND(AN36*Worksheet!$E$39,2) -> 0 | CB36: =IF(AND(L36>275,SUM(Y36:AD36)<100),ROUND(SUM(Y36:AD36)*Worksheet!$E$41,2),0) -> 0 | CC36: =IF(AND(L36>600,SUM(Y36:AD36)<50),ROUND((50-SUM(Y36:AD36))*(Worksheet!$E$41+1),2),0) -> 0 | CD36: 0 | CE36: 0 | CF36: 0 | CG36: 0 | CH36: =MIN(ROUND(BE36*CF36*Worksheet!$D$124,2),CG36)-CG36 -> 0 | CI36: =ROUND(IF(F36=4,0,(MAX(ROUND(MAX((BE36*MIN(CF36,K36)*Worksheet!$D$127)+MAX(CF36-K36,0)*Worksheet!$F$47,SUM(J36)),2),SUM(CG36:CH36))-SUM(CG36:CH36))*MinAdj),2) -> 0 | CJ36: 0 | CK36: =IF(CF36=0,0,-MIN(CJ36,ROUND(AX36*1.12+BF36,2),MIN(CJ36,ROUND(IF(ROUND(IF(CF36=0,0,N36/CF36),2)<STVPP*0.2,STVPP*0.2*CF36*Worksheet!$F$86/1000,N36*Worksheet!$F$86/1000),2)))) -> 0 | CL36: =-MIN(SUM(CJ36,CK36),IF($P36=0,(ROUND(Worksheet!$E$75*S36,2)+ROUND(Worksheet!$E$76*T36,2)+ROUND(Worksheet!$E$77*U36,2)+ROUND(Worksheet!$E$78*V36,2)+ROUND(Worksheet!$E$79*W36,2)+ROUND(Worksheet!$E$80*X36,2)),(ROUND(ROUND(S36*ROUND((1-$O36/$P36),4),2)*Worksheet!$E$75,2)+ROUND(ROUND(T36*ROUND((1-$O36/$P36),4),2)*Worksheet!$E$76,2)+ROUND(ROUND(U36*ROUND((1-$O36/$P36),4),2)*Worksheet!$E$77,2)+ROUND(ROUND(V36*ROUND((1-$O36/$P36),4),2)*Worksheet!$E$78,2)+ROUND(ROUND(W36*ROUND((1-$O36/$P36),4),2)*Worksheet!$E$79,2)+ROUND(ROUND(X36*ROUND((1-$O36/$P36),4),2)*Worksheet!$E$80,2)))) -> 0 | CM36: 0 | CN36: =MIN(AW36,ROUND(AO36*Worksheet!$C$104,2)+ROUND(AR36*Worksheet!$C$107,2)+ROUND(AP36*Worksheet!$C$105,2)+ROUND(AS36*Worksheet!$C$108,2)+ROUND(AQ36*Worksheet!$C$106,2)+ROUND(AT36*Worksheet!$C$109,2)+ROUND(AU36*Worksheet!$C$110,2)+ROUND(AV36*Worksheet!$C$111,2)) -> 0 | CU36: 0 | CV36: =MAX(-CN36,MIN(0,ROUND($R36*EFBPercent+EFBAdd,2)-$Q36),MIN(0,SUM($CM36:CM36)+MIN(0,ROUND($R36*EFBPercent+EFBAdd,2)-$Q36))) -> 0 | CW36: =MAX(-CO36,MIN(0,ROUND($R36*EFBPercent+EFBAdd,2)-$Q36),MIN(0,SUM($CM36:CN36)+MIN(0,ROUND($R36*EFBPercent+EFBAdd,2)-$Q36))) -> 0 | CX36: =MAX(-CP36,MIN(0,ROUND($R36*EFBPercent+EFBAdd,2)-$Q36),MIN(0,SUM($CM36:CO36)+MIN(0,ROUND($R36*EFBPercent+EFBAdd,2)-$Q36))) -> 0 | CY36: =MAX(-CQ36,MIN(0,ROUND($R36*EFBPercent+EFBAdd,2)-$Q36),MIN(0,SUM($CM36:CP36)+MIN(0,ROUND($R36*EFBPercent+EFBAdd,2)-$Q36))) -> 0 | CZ36: =MAX(-CR36,MIN(0,ROUND($R36*EFBPercent+EFBAdd,2)-$Q36),MIN(0,SUM($CM36:CQ36)+MIN(0,ROUND($R36*EFBPercent+EFBAdd,2)-$Q36))) -> 0 | DA36: =MAX(-CS36,MIN(0,ROUND($R36*EFBPercent+EFBAdd,2)-$Q36),MIN(0,SUM($CM36:CR36)+MIN(0,ROUND($R36*EFBPercent+EFBAdd,2)-$Q36))) -> 0 | DC36: 0 | DD36: 0 | DE36: 0 | DF36: 0 | DG36: 0 | DH36: 0 | DI36: 0
A37: 08-711 | B37: 2501 | C37: 0000008908 | D37: 2023 | E37: Bismarck Special Ed Unit | F37: 7 | G37: 08-711 | H37: 0 | I37: 0 | J37: 0 | K37: 0 | L37: 0 | M37: 0 | N37: 0 | O37: 0 | P37: 0 | Q37: 0 | R37: 0 | S37: 0 | T37: 0 | U37: 0 | V37: 0 | W37: 0 | X37: 0 | Y37: 0 | Z37: 0 | AA37: 0 | AB37: 0 | AC37: 0 | AD37: 0 | AE37: 0 | AF37: 0 | AG37: 0 | AH37: 0 | AI37: 0 | AJ37: 0 | AK37: 0 | AL37: 0 | AM37: 0 | AN37: 0 | AO37: 0 | AP37: 0 | AQ37: 0 | AR37: 0 | AS37: 0 | AT37: 0 | AU37: 0 | AV37: 0 | AW37: 0 | AX37: 0 | AY37: =MAX(ROUND(IF(F37<4,IF(H37=0,(SUM(Y37:AD37)*Worksheet!$E$26+Y37*Worksheet!$E$27+AN37*Worksheet!$E$39)*-BaseRate,0)),2),MIN(0,-DC37)) -> 0 | AZ37: =MAX(ROUND(IF(F37=4,0,IF(I37=0,0,ROUND(SUM(Y37:AD37)*Worksheet!$E$28,2)*-BaseRate)),2),MIN(0,-DC37-AY37)) -> 0 | BA37: 0 | BB37: 0 | BD37: 0 | BE37: 0 | BF37: =IFERROR(ROUND(IF(AND(AX37*1.12<N37*60/1000,N37/CF37<STVPP*0.2),(CF37*STVPP*0.2*Worksheet!$F$86/1000-AX37*1.12)*PropTaxAdj,IF(AX37*1.12<N37*60/1000,(N37*60/1000-AX37*1.12)*PropTaxAdj,0)),2),0) -> 0 | BG37: =ROUND(IF($F37=4,0,Y37*Worksheet!$E$16),2) -> 0 | BH37: =ROUND(IF($F37=4,0,Z37*Worksheet!$E$17),2) -> 0 | BI37: =ROUND(IF($F37=4,0,AA37*Worksheet!$E$18),2) -> 0 | BJ37: =ROUND(IF($F37=4,0,AB37*Worksheet!$E$19),2) -> 0 | BK37: =ROUND(IF($F37=4,0,AC37*Worksheet!$E$20),2) -> 0 | BL37: =ROUND(AD37*Worksheet!$E$21,2) -> 0 | BM37: 0 | BN37: =ROUND(AD37*Worksheet!$E$25,2) -> 0 | BO37: =ROUND(SUM(BM37)*Worksheet!$E$26,2) -> 0 | BP37: =ROUND(Y37*Worksheet!$E$27,2) -> 0 | BQ37: =ROUND(AE37*Worksheet!$E$29,2) -> 0 | BR37: =ROUND(AF37*Worksheet!$E$30,2) -> 0 | BS37: =ROUND(IF($I37<>0,$BM37*Worksheet!$E$28,0),2) -> 0 | BT37: =ROUND(AG37*Worksheet!$E$31,2) -> 0 | BU37: =ROUND(AH37*Worksheet!$E$32,2) -> 0 | BV37: =ROUND(AI37*Worksheet!$E$33,2) -> 0 | BW37: =ROUND(ROUND(AJ37*BM37,2)*Worksheet!$E$34,2) -> 0 | BX37: =ROUND(AK37*Worksheet!$E$35,2) -> 0 | BY37: =ROUND(AL37*Worksheet!$E$36,2) -> 0 | BZ37: =ROUND(AM37*Worksheet!$E$38,2) -> 0 | CA37: =ROUND(AN37*Worksheet!$E$39,2) -> 0 | CB37: =IF(AND(L37>275,SUM(Y37:AD37)<100),ROUND(SUM(Y37:AD37)*Worksheet!$E$41,2),0) -> 0 | CC37: =IF(AND(L37>600,SUM(Y37:AD37)<50),ROUND((50-SUM(Y37:AD37))*(Worksheet!$E$41+1),2),0) -> 0 | CD37: 0 | CE37: 0 | CF37: 0 | CG37: 0 | CH37: =MIN(ROUND(BE37*CF37*Worksheet!$D$124,2),CG37)-CG37 -> 0 | CI37: =ROUND(IF(F37=4,0,(MAX(ROUND(MAX((BE37*MIN(CF37,K37)*Worksheet!$D$127)+MAX(CF37-K37,0)*Worksheet!$F$47,SUM(J37)),2),SUM(CG37:CH37))-SUM(CG37:CH37))*MinAdj),2) -> 0 | CJ37: 0 | CK37: =IF(CF37=0,0,-MIN(CJ37,ROUND(AX37*1.12+BF37,2),MIN(CJ37,ROUND(IF(ROUND(IF(CF37=0,0,N37/CF37),2)<STVPP*0.2,STVPP*0.2*CF37*Worksheet!$F$86/1000,N37*Worksheet!$F$86/1000),2)))) -> 0 | CL37: =-MIN(SUM(CJ37,CK37),IF($P37=0,(ROUND(Worksheet!$E$75*S37,2)+ROUND(Worksheet!$E$76*T37,2)+ROUND(Worksheet!$E$77*U37,2)+ROUND(Worksheet!$E$78*V37,2)+ROUND(Worksheet!$E$79*W37,2)+ROUND(Worksheet!$E$80*X37,2)),(ROUND(ROUND(S37*ROUND((1-$O37/$P37),4),2)*Worksheet!$E$75,2)+ROUND(ROUND(T37*ROUND((1-$O37/$P37),4),2)*Worksheet!$E$76,2)+ROUND(ROUND(U37*ROUND((1-$O37/$P37),4),2)*Worksheet!$E$77,2)+ROUND(ROUND(V37*ROUND((1-$O37/$P37),4),2)*Worksheet!$E$78,2)+ROUND(ROUND(W37*ROUND((1-$O37/$P37),4),2)*Worksheet!$E$79,2)+ROUND(ROUND(X37*ROUND((1-$O37/$P37),4),2)*Worksheet!$E$80,2)))) -> 0 | CM37: 0 | CN37: =MIN(AW37,ROUND(AO37*Worksheet!$C$104,2)+ROUND(AR37*Worksheet!$C$107,2)+ROUND(AP37*Worksheet!$C$105,2)+ROUND(AS37*Worksheet!$C$108,2)+ROUND(AQ37*Worksheet!$C$106,2)+ROUND(AT37*Worksheet!$C$109,2)+ROUND(AU37*Worksheet!$C$110,2)+ROUND(AV37*Worksheet!$C$111,2)) -> 0 | CU37: 0 | CV37: =MAX(-CN37,MIN(0,ROUND($R37*EFBPercent+EFBAdd,2)-$Q37),MIN(0,SUM($CM37:CM37)+MIN(0,ROUND($R37*EFBPercent+EFBAdd,2)-$Q37))) -> 0 | CW37: =MAX(-CO37,MIN(0,ROUND($R37*EFBPercent+EFBAdd,2)-$Q37),MIN(0,SUM($CM37:CN37)+MIN(0,ROUND($R37*EFBPercent+EFBAdd,2)-$Q37))) -> 0 | CX37: =MAX(-CP37,MIN(0,ROUND($R37*EFBPercent+EFBAdd,2)-$Q37),MIN(0,SUM($CM37:CO37)+MIN(0,ROUND($R37*EFBPercent+EFBAdd,2)-$Q37))) -> 0 | CY37: =MAX(-CQ37,MIN(0,ROUND($R37*EFBPercent+EFBAdd,2)-$Q37),MIN(0,SUM($CM37:CP37)+MIN(0,ROUND($R37*EFBPercent+EFBAdd,2)-$Q37))) -> 0 | CZ37: =MAX(-CR37,MIN(0,ROUND($R37*EFBPercent+EFBAdd,2)-$Q37),MIN(0,SUM($CM37:CQ37)+MIN(0,ROUND($R37*EFBPercent+EFBAdd,2)-$Q37))) -> 0 | DA37: =MAX(-CS37,MIN(0,ROUND($R37*EFBPercent+EFBAdd,2)-$Q37),MIN(0,SUM($CM37:CR37)+MIN(0,ROUND($R37*EFBPercent+EFBAdd,2)-$Q37))) -> 0 | DC37: 0 | DD37: 0 | DE37: 0 | DF37: 0 | DG37: 0 | DH37: 0 | DI37: 0
A38: 09-001 | B38: 1039 | C38: 0000008453 | D38: 2023 | E38: Fargo 1 | F38: 1 | G38: 09-730 | H38: 100 | I38: 09-375 | J38: 123439765.5 | K38: 12796.99 | L38: 56.96 | M38: 0 | N38: 459680762 | O38: 0 | P38: 154.38 | Q38: 0 | R38: 0 | S38: 437027.72 | T38: 0 | U38: 0 | V38: 82985.16 | W38: 878466.27 | X38: 658294.45 | Y38: 146.4 | Z38: 934 | AA38: 5121 | AB38: 1698 | AC38: 3332.27 | AD38: 109.73 | AE38: 269.37 | AF38: 0 | AG38: 60.56 | AH38: 163.44 | AI38: 275.39 | AJ38: 0.34 | AK38: 0 | AL38: 0 | AM38: 217.57 | AN38: 13.8 | AO38: 0 | AP38: 369853.5 | AQ38: 191116 | AR38: 0 | AS38: 303607.5 | AT38: 1025150 | AU38: 0 | AV38: 0 | AW38: 5299767.17 | AX38: 26127402.48 | AY38: =MAX(ROUND(IF(F38<4,IF(H38=0,(SUM(Y38:AD38)*Worksheet!$E$26+Y38*Worksheet!$E$27+AN38*Worksheet!$E$39)*-BaseRate,0)),2),MIN(0,-DC38)) -> 0 | AZ38: =MAX(ROUND(IF(F38=4,0,IF(I38=0,0,ROUND(SUM(Y38:AD38)*Worksheet!$E$28,2)*-BaseRate)),2),MIN(0,-DC38-AY38)) -> -232175.16 | BA38: 0 | BB38: 1408 | BD38: 35731.25 | BE38: 9646 | BF38: =IFERROR(ROUND(IF(AND(AX38*1.12<N38*60/1000,N38/CF38<STVPP*0.2),(CF38*STVPP*0.2*Worksheet!$F$86/1000-AX38*1.12)*PropTaxAdj,IF(AX38*1.12<N38*60/1000,(N38*60/1000-AX38*1.12)*PropTaxAdj,0)),2),0) -> 0 | BG38: =ROUND(IF($F38=4,0,Y38*Worksheet!$E$16),2) -> 146.4 | BH38: =ROUND(IF($F38=4,0,Z38*Worksheet!$E$17),2) -> 934 | BI38: =ROUND(IF($F38=4,0,AA38*Worksheet!$E$18),2) -> 5121 | BJ38: =ROUND(IF($F38=4,0,AB38*Worksheet!$E$19),2) -> 1698 | BK38: =ROUND(IF($F38=4,0,AC38*Worksheet!$E$20),2) -> 3332.27 | BL38: =ROUND(AD38*Worksheet!$E$21,2) -> 109.73 | BM38: 11341.4 | BN38: =ROUND(AD38*Worksheet!$E$25,2) -> 27.43 | BO38: =ROUND(SUM(BM38)*Worksheet!$E$26,2) -> 929.99 | BP38: =ROUND(Y38*Worksheet!$E$27,2) -> 24.89 | BQ38: =ROUND(AE38*Worksheet!$E$29,2) -> 188.56 | BR38: =ROUND(AF38*Worksheet!$E$30,2) -> 0 | BS38: =ROUND(IF($I38<>0,$BM38*Worksheet!$E$28,0),2) -> 22.68 | BT38: =ROUND(AG38*Worksheet!$E$31,2) -> 24.22 | BU38: =ROUND(AH38*Worksheet!$E$32,2) -> 45.76 | BV38: =ROUND(AI38*Worksheet!$E$33,2) -> 19.28 | BW38: =ROUND(ROUND(AJ38*BM38,2)*Worksheet!$E$34,2) -> 96.4 | BX38: =ROUND(AK38*Worksheet!$E$35,2) -> 0 | BY38: =ROUND(AL38*Worksheet!$E$36,2) -> 0 | BZ38: =ROUND(AM38*Worksheet!$E$38,2) -> 130.54 | CA38: =ROUND(AN38*Worksheet!$E$39,2) -> 13.8 | CB38: =IF(AND(L38>275,SUM(Y38:AD38)<100),ROUND(SUM(Y38:AD38)*Worksheet!$E$41,2),0) -> 0 | CC38: =IF(AND(L38>600,SUM(Y38:AD38)<50),ROUND((50-SUM(Y38:AD38))*(Worksheet!$E$41+1),2),0) -> 0 | CD38: 12864.95 | CE38: 1 | CF38: 12864.95 | CG38: 131698493.2 | CH38: =MIN(ROUND(BE38*CF38*Worksheet!$D$124,2),CG38)-CG38 -> 0 | CI38: =ROUND(IF(F38=4,0,(MAX(ROUND(MAX((BE38*MIN(CF38,K38)*Worksheet!$D$127)+MAX(CF38-K38,0)*Worksheet!$F$47,SUM(J38)),2),SUM(CG38:CH38))-SUM(CG38:CH38))*MinAdj),2) -> 0 | CJ38: 131698493.2 | CK38: =IF(CF38=0,0,-MIN(CJ38,ROUND(AX38*1.12+BF38,2),MIN(CJ38,ROUND(IF(ROUND(IF(CF38=0,0,N38/CF38),2)<STVPP*0.2,STVPP*0.2*CF38*Worksheet!$F$86/1000,N38*Worksheet!$F$86/1000),2)))) -> -27580845.72 | CL38: =-MIN(SUM(CJ38,CK38),IF($P38=0,(ROUND(Worksheet!$E$75*S38,2)+ROUND(Worksheet!$E$76*T38,2)+ROUND(Worksheet!$E$77*U38,2)+ROUND(Worksheet!$E$78*V38,2)+ROUND(Worksheet!$E$79*W38,2)+ROUND(Worksheet!$E$80*X38,2)),(ROUND(ROUND(S38*ROUND((1-$O38/$P38),4),2)*Worksheet!$E$75,2)+ROUND(ROUND(T38*ROUND((1-$O38/$P38),4),2)*Worksheet!$E$76,2)+ROUND(ROUND(U38*ROUND((1-$O38/$P38),4),2)*Worksheet!$E$77,2)+ROUND(ROUND(V38*ROUND((1-$O38/$P38),4),2)*Worksheet!$E$78,2)+ROUND(ROUND(W38*ROUND((1-$O38/$P38),4),2)*Worksheet!$E$79,2)+ROUND(ROUND(X38*ROUND((1-$O38/$P38),4),2)*Worksheet!$E$80,2)))) -> -1542580.2 | CM38: 102575067.2 | CN38: =MIN(AW38,ROUND(AO38*Worksheet!$C$104,2)+ROUND(AR38*Worksheet!$C$107,2)+ROUND(AP38*Worksheet!$C$105,2)+ROUND(AS38*Worksheet!$C$108,2)+ROUND(AQ38*Worksheet!$C$106,2)+ROUND(AT38*Worksheet!$C$109,2)+ROUND(AU38*Worksheet!$C$110,2)+ROUND(AV38*Worksheet!$C$111,2)) -> 1112421.52 | CU38: 0 | CV38: =MAX(-CN38,MIN(0,ROUND($R38*EFBPercent+EFBAdd,2)-$Q38),MIN(0,SUM($CM38:CM38)+MIN(0,ROUND($R38*EFBPercent+EFBAdd,2)-$Q38))) -> 0 | CW38: =MAX(-CO38,MIN(0,ROUND($R38*EFBPercent+EFBAdd,2)-$Q38),MIN(0,SUM($CM38:CN38)+MIN(0,ROUND($R38*EFBPercent+EFBAdd,2)-$Q38))) -> 0 | CX38: =MAX(-CP38,MIN(0,ROUND($R38*EFBPercent+EFBAdd,2)-$Q38),MIN(0,SUM($CM38:CO38)+MIN(0,ROUND($R38*EFBPercent+EFBAdd,2)-$Q38))) -> 0 | CY38: =MAX(-CQ38,MIN(0,ROUND($R38*EFBPercent+EFBAdd,2)-$Q38),MIN(0,SUM($CM38:CP38)+MIN(0,ROUND($R38*EFBPercent+EFBAdd,2)-$Q38))) -> 0 | CZ38: =MAX(-CR38,MIN(0,ROUND($R38*EFBPercent+EFBAdd,2)-$Q38),MIN(0,SUM($CM38:CQ38)+MIN(0,ROUND($R38*EFBPercent+EFBAdd,2)-$Q38))) -> 0 | DA38: =MAX(-CS38,MIN(0,ROUND($R38*EFBPercent+EFBAdd,2)-$Q38),MIN(0,SUM($CM38:CR38)+MIN(0,ROUND($R38*EFBPercent+EFBAdd,2)-$Q38))) -> 0 | DC38: 102575067.2 | DD38: 1112421.52 | DE38: 0 | DF38: 0 | DG38: 0 | DH38: 0 | DI38: 0
A39: 09-002 | B39: 1074 | C39: 0000008501 | D39: 2023 | E39: Kindred 2 | F39: 1 | G39: 09-717 | H39: 100 | I39: 09-375 | J39: 8176817.74 | K39: 847.69 | L39: 398.54 | M39: 0 | N39: 32104409 | O39: 22.85 | P39: 101.53 | Q39: 0 | R39: 0 | S39: 6680 | T39: 0 | U39: 0 | V39: 28912.3 | W39: 25068.56 | X39: 46032.96 | Y39: 14.95 | Z39: 60 | AA39: 409 | AB39: 129 | AC39: 232 | AD39: 0 | AE39: 19.78 | AF39: 0 | AG39: 0 | AH39: 0 | AI39: 0 | AJ39: 0.122 | AK39: 0 | AL39: 0 | AM39: 4.66 | AN39: 0.28 | AO39: 16569 | AP39: 128100 | AQ39: 183444 | AR39: 0 | AS39: 10850 | AT39: 113631 | AU39: 0 | AV39: 0 | AW39: 401063.77 | AX39: 1811807.7 | AY39: =MAX(ROUND(IF(F39<4,IF(H39=0,(SUM(Y39:AD39)*Worksheet!$E$26+Y39*Worksheet!$E$27+AN39*Worksheet!$E$39)*-BaseRate,0)),2),MIN(0,-DC39)) -> 0 | AZ39: =MAX(ROUND(IF(F39=4,0,IF(I39=0,0,ROUND(SUM(Y39:AD39)*Worksheet!$E$28,2)*-BaseRate)),2),MIN(0,-DC39-AY39)) -> -17300.53 | BA39: 0 | BB39: 1408 | BD39: 33888.29 | BE39: 9646 | BF39: =IFERROR(ROUND(IF(AND(AX39*1.12<N39*60/1000,N39/CF39<STVPP*0.2),(CF39*STVPP*0.2*Worksheet!$F$86/1000-AX39*1.12)*PropTaxAdj,IF(AX39*1.12<N39*60/1000,(N39*60/1000-AX39*1.12)*PropTaxAdj,0)),2),0) -> 0 | BG39: =ROUND(IF($F39=4,0,Y39*Worksheet!$E$16),2) -> 14.95 | BH39: =ROUND(IF($F39=4,0,Z39*Worksheet!$E$17),2) -> 60 | BI39: =ROUND(IF($F39=4,0,AA39*Worksheet!$E$18),2) -> 409 | BJ39: =ROUND(IF($F39=4,0,AB39*Worksheet!$E$19),2) -> 129 | BK39: =ROUND(IF($F39=4,0,AC39*Worksheet!$E$20),2) -> 232 | BL39: =ROUND(AD39*Worksheet!$E$21,2) -> 0 | BM39: 844.95 | BN39: =ROUND(AD39*Worksheet!$E$25,2) -> 0 | BO39: =ROUND(SUM(BM39)*Worksheet!$E$26,2) -> 69.29 | BP39: =ROUND(Y39*Worksheet!$E$27,2) -> 2.54 | BQ39: =ROUND(AE39*Worksheet!$E$29,2) -> 13.85 | BR39: =ROUND(AF39*Worksheet!$E$30,2) -> 0 | BS39: =ROUND(IF($I39<>0,$BM39*Worksheet!$E$28,0),2) -> 1.69 | BT39: =ROUND(AG39*Worksheet!$E$31,2) -> 0 | BU39: =ROUND(AH39*Worksheet!$E$32,2) -> 0 | BV39: =ROUND(AI39*Worksheet!$E$33,2) -> 0 | BW39: =ROUND(ROUND(AJ39*BM39,2)*Worksheet!$E$34,2) -> 2.58 | BX39: =ROUND(AK39*Worksheet!$E$35,2) -> 0 | BY39: =ROUND(AL39*Worksheet!$E$36,2) -> 0 | BZ39: =ROUND(AM39*Worksheet!$E$38,2) -> 2.8 | CA39: =ROUND(AN39*Worksheet!$E$39,2) -> 0.28 | CB39: =IF(AND(L39>275,SUM(Y39:AD39)<100),ROUND(SUM(Y39:AD39)*Worksheet!$E$41,2),0) -> 0 | CC39: =IF(AND(L39>600,SUM(Y39:AD39)<50),ROUND((50-SUM(Y39:AD39))*(Worksheet!$E$41+1),2),0) -> 0 | CD39: 937.98 | CE39: 1.01 | CF39: 947.36 | CG39: 9698124.32 | CH39: =MIN(ROUND(BE39*CF39*Worksheet!$D$124,2),CG39)-CG39 -> 0 | CI39: =ROUND(IF(F39=4,0,(MAX(ROUND(MAX((BE39*MIN(CF39,K39)*Worksheet!$D$127)+MAX(CF39-K39,0)*Worksheet!$F$47,SUM(J39)),2),SUM(CG39:CH39))-SUM(CG39:CH39))*MinAdj),2) -> 0 | CJ39: 9698124.32 | CK39: =IF(CF39=0,0,-MIN(CJ39,ROUND(AX39*1.12+BF39,2),MIN(CJ39,ROUND(IF(ROUND(IF(CF39=0,0,N39/CF39),2)<STVPP*0.2,STVPP*0.2*CF39*Worksheet!$F$86/1000,N39*Worksheet!$F$86/1000),2)))) -> -1926264.54 | CL39: =-MIN(SUM(CJ39,CK39),IF($P39=0,(ROUND(Worksheet!$E$75*S39,2)+ROUND(Worksheet!$E$76*T39,2)+ROUND(Worksheet!$E$77*U39,2)+ROUND(Worksheet!$E$78*V39,2)+ROUND(Worksheet!$E$79*W39,2)+ROUND(Worksheet!$E$80*X39,2)),(ROUND(ROUND(S39*ROUND((1-$O39/$P39),4),2)*Worksheet!$E$75,2)+ROUND(ROUND(T39*ROUND((1-$O39/$P39),4),2)*Worksheet!$E$76,2)+ROUND(ROUND(U39*ROUND((1-$O39/$P39),4),2)*Worksheet!$E$77,2)+ROUND(ROUND(V39*ROUND((1-$O39/$P39),4),2)*Worksheet!$E$78,2)+ROUND(ROUND(W39*ROUND((1-$O39/$P39),4),2)*Worksheet!$E$79,2)+ROUND(ROUND(X39*ROUND((1-$O39/$P39),4),2)*Worksheet!$E$80,2)))) -> -62007.79 | CM39: 7709851.99 | CN39: =MIN(AW39,ROUND(AO39*Worksheet!$C$104,2)+ROUND(AR39*Worksheet!$C$107,2)+ROUND(AP39*Worksheet!$C$105,2)+ROUND(AS39*Worksheet!$C$108,2)+ROUND(AQ39*Worksheet!$C$106,2)+ROUND(AT39*Worksheet!$C$109,2)+ROUND(AU39*Worksheet!$C$110,2)+ROUND(AV39*Worksheet!$C$111,2)) -> 251972.88 | CU39: 0 | CV39: =MAX(-CN39,MIN(0,ROUND($R39*EFBPercent+EFBAdd,2)-$Q39),MIN(0,SUM($CM39:CM39)+MIN(0,ROUND($R39*EFBPercent+EFBAdd,2)-$Q39))) -> 0 | CW39: =MAX(-CO39,MIN(0,ROUND($R39*EFBPercent+EFBAdd,2)-$Q39),MIN(0,SUM($CM39:CN39)+MIN(0,ROUND($R39*EFBPercent+EFBAdd,2)-$Q39))) -> 0 | CX39: =MAX(-CP39,MIN(0,ROUND($R39*EFBPercent+EFBAdd,2)-$Q39),MIN(0,SUM($CM39:CO39)+MIN(0,ROUND($R39*EFBPercent+EFBAdd,2)-$Q39))) -> 0 | CY39: =MAX(-CQ39,MIN(0,ROUND($R39*EFBPercent+EFBAdd,2)-$Q39),MIN(0,SUM($CM39:CP39)+MIN(0,ROUND($R39*EFBPercent+EFBAdd,2)-$Q39))) -> 0 | CZ39: =MAX(-CR39,MIN(0,ROUND($R39*EFBPercent+EFBAdd,2)-$Q39),MIN(0,SUM($CM39:CQ39)+MIN(0,ROUND($R39*EFBPercent+EFBAdd,2)-$Q39))) -> 0 | DA39: =MAX(-CS39,MIN(0,ROUND($R39*EFBPercent+EFBAdd,2)-$Q39),MIN(0,SUM($CM39:CR39)+MIN(0,ROUND($R39*EFBPercent+EFBAdd,2)-$Q39))) -> 0 | DC39: 7709851.99 | DD39: 251972.88 | DE39: 0 | DF39: 0 | DG39: 0 | DH39: 0 | DI39: 0
A40: 09-004 | B40: 1093 | C40: 0000002758 | D40: 2023 | E40: Maple Valley 4 | F40: 1 | G40: 02-727 | H40: 0 | I40: 09-375 | J40: 3566370.95 | K40: 274.87 | L40: 503.8 | M40: 0 | N40: 22701686 | O40: 0 | P40: 85 | Q40: 0 | R40: 0 | S40: 0 | T40: 0 | U40: 0 | V40: 24446.44 | W40: 12565.19 | X40: 43648.42 | Y40: 0.08 | Z40: 15 | AA40: 109 | AB40: 45 | AC40: 55 | AD40: 0 | AE40: 4.88 | AF40: 0 | AG40: 0 | AH40: 1 | AI40: 0 | AJ40: 0.284 | AK40: 0 | AL40: 0 | AM40: 0 | AN40: 0.04 | AO40: 0 | AP40: 131250 | AQ40: 59000 | AR40: 0 | AS40: 0 | AT40: 0 | AU40: 0 | AV40: 0 | AW40: 220839.21 | AX40: 1341440.16 | AY40: =MAX(ROUND(IF(F40<4,IF(H40=0,(SUM(Y40:AD40)*Worksheet!$E$26+Y40*Worksheet!$E$27+AN40*Worksheet!$E$39)*-BaseRate,0)),2),MIN(0,-DC40)) -> -188649.07 | AZ40: =MAX(ROUND(IF(F40=4,0,IF(I40=0,0,ROUND(SUM(Y40:AD40)*Worksheet!$E$28,2)*-BaseRate)),2),MIN(0,-DC40-AY40)) -> -4606.65 | BA40: 2522 | BB40: 1408 | BD40: 74348.88 | BE40: 12974.76 | BF40: =IFERROR(ROUND(IF(AND(AX40*1.12<N40*60/1000,N40/CF40<STVPP*0.2),(CF40*STVPP*0.2*Worksheet!$F$86/1000-AX40*1.12)*PropTaxAdj,IF(AX40*1.12<N40*60/1000,(N40*60/1000-AX40*1.12)*PropTaxAdj,0)),2),0) -> 0 | BG40: =ROUND(IF($F40=4,0,Y40*Worksheet!$E$16),2) -> 0.08 | BH40: =ROUND(IF($F40=4,0,Z40*Worksheet!$E$17),2) -> 15 | BI40: =ROUND(IF($F40=4,0,AA40*Worksheet!$E$18),2) -> 109 | BJ40: =ROUND(IF($F40=4,0,AB40*Worksheet!$E$19),2) -> 45 | BK40: =ROUND(IF($F40=4,0,AC40*Worksheet!$E$20),2) -> 55 | BL40: =ROUND(AD40*Worksheet!$E$21,2) -> 0 | BM40: 224.08 | BN40: =ROUND(AD40*Worksheet!$E$25,2) -> 0 | BO40: =ROUND(SUM(BM40)*Worksheet!$E$26,2) -> 18.37 | BP40: =ROUND(Y40*Worksheet!$E$27,2) -> 0.01 | BQ40: =ROUND(AE40*Worksheet!$E$29,2) -> 3.42 | BR40: =ROUND(AF40*Worksheet!$E$30,2) -> 0 | BS40: =ROUND(IF($I40<>0,$BM40*Worksheet!$E$28,0),2) -> 0.45 | BT40: =ROUND(AG40*Worksheet!$E$31,2) -> 0 | BU40: =ROUND(AH40*Worksheet!$E$32,2) -> 0.28 | BV40: =ROUND(AI40*Worksheet!$E$33,2) -> 0 | BW40: =ROUND(ROUND(AJ40*BM40,2)*Worksheet!$E$34,2) -> 1.59 | BX40: =ROUND(AK40*Worksheet!$E$35,2) -> 0 | BY40: =ROUND(AL40*Worksheet!$E$36,2) -> 0 | BZ40: =ROUND(AM40*Worksheet!$E$38,2) -> 0 | CA40: =ROUND(AN40*Worksheet!$E$39,2) -> 0.04 | CB40: =IF(AND(L40>275,SUM(Y40:AD40)<100),ROUND(SUM(Y40:AD40)*Worksheet!$E$41,2),0) -> 0 | CC40: =IF(AND(L40>600,SUM(Y40:AD40)<50),ROUND((50-SUM(Y40:AD40))*(Worksheet!$E$41+1),2),0) -> 0 | CD40: 248.24 | CE40: 1.23 | CF40: 305.34 | CG40: 3125765.58 | CH40: =MIN(ROUND(BE40*CF40*Worksheet!$D$124,2),CG40)-CG40 -> 0 | CI40: =ROUND(IF(F40=4,0,(MAX(ROUND(MAX((BE40*MIN(CF40,K40)*Worksheet!$D$127)+MAX(CF40-K40,0)*Worksheet!$F$47,SUM(J40)),2),SUM(CG40:CH40))-SUM(CG40:CH40))*MinAdj),2) -> 576698.88 | CJ40: 3702464.46 | CK40: =IF(CF40=0,0,-MIN(CJ40,ROUND(AX40*1.12+BF40,2),MIN(CJ40,ROUND(IF(ROUND(IF(CF40=0,0,N40/CF40),2)<STVPP*0.2,STVPP*0.2*CF40*Worksheet!$F$86/1000,N40*Worksheet!$F$86/1000),2)))) -> -1362101.16 | CL40: =-MIN(SUM(CJ40,CK40),IF($P40=0,(ROUND(Worksheet!$E$75*S40,2)+ROUND(Worksheet!$E$76*T40,2)+ROUND(Worksheet!$E$77*U40,2)+ROUND(Worksheet!$E$78*V40,2)+ROUND(Worksheet!$E$79*W40,2)+ROUND(Worksheet!$E$80*X40,2)),(ROUND(ROUND(S40*ROUND((1-$O40/$P40),4),2)*Worksheet!$E$75,2)+ROUND(ROUND(T40*ROUND((1-$O40/$P40),4),2)*Worksheet!$E$76,2)+ROUND(ROUND(U40*ROUND((1-$O40/$P40),4),2)*Worksheet!$E$77,2)+ROUND(ROUND(V40*ROUND((1-$O40/$P40),4),2)*Worksheet!$E$78,2)+ROUND(ROUND(W40*ROUND((1-$O40/$P40),4),2)*Worksheet!$E$79,2)+ROUND(ROUND(X40*ROUND((1-$O40/$P40),4),2)*Worksheet!$E$80,2)))) -> -60495.04 | CM40: 2279868.26 | CN40: =MIN(AW40,ROUND(AO40*Worksheet!$C$104,2)+ROUND(AR40*Worksheet!$C$107,2)+ROUND(AP40*Worksheet!$C$105,2)+ROUND(AS40*Worksheet!$C$108,2)+ROUND(AQ40*Worksheet!$C$106,2)+ROUND(AT40*Worksheet!$C$109,2)+ROUND(AU40*Worksheet!$C$110,2)+ROUND(AV40*Worksheet!$C$111,2)) -> 163387.5 | CU40: 0 | CV40: =MAX(-CN40,MIN(0,ROUND($R40*EFBPercent+EFBAdd,2)-$Q40),MIN(0,SUM($CM40:CM40)+MIN(0,ROUND($R40*EFBPercent+EFBAdd,2)-$Q40))) -> 0 | CW40: =MAX(-CO40,MIN(0,ROUND($R40*EFBPercent+EFBAdd,2)-$Q40),MIN(0,SUM($CM40:CN40)+MIN(0,ROUND($R40*EFBPercent+EFBAdd,2)-$Q40))) -> 0 | CX40: =MAX(-CP40,MIN(0,ROUND($R40*EFBPercent+EFBAdd,2)-$Q40),MIN(0,SUM($CM40:CO40)+MIN(0,ROUND($R40*EFBPercent+EFBAdd,2)-$Q40))) -> 0 | CY40: =MAX(-CQ40,MIN(0,ROUND($R40*EFBPercent+EFBAdd,2)-$Q40),MIN(0,SUM($CM40:CP40)+MIN(0,ROUND($R40*EFBPercent+EFBAdd,2)-$Q40))) -> 0 | CZ40: =MAX(-CR40,MIN(0,ROUND($R40*EFBPercent+EFBAdd,2)-$Q40),MIN(0,SUM($CM40:CQ40)+MIN(0,ROUND($R40*EFBPercent+EFBAdd,2)-$Q40))) -> 0 | DA40: =MAX(-CS40,MIN(0,ROUND($R40*EFBPercent+EFBAdd,2)-$Q40),MIN(0,SUM($CM40:CR40)+MIN(0,ROUND($R40*EFBPercent+EFBAdd,2)-$Q40))) -> 0 | DC40: 2279868.26 | DD40: 163387.5 | DE40: 0 | DF40: 0 | DG40: 0 | DH40: 0 | DI40: 0
A41: 09-006 | B41: 1170 | C41: 0000008654 | D41: 2023 | E41: West Fargo 6 | F41: 1 | G41: 09-734 | H41: 100 | I41: 09-375 | J41: 114104077.4 | K41: 11829.16 | L41: 126.75 | M41: 0 | N41: 456308586 | O41: 43.2 | P41: 139.45 | Q41: 0 | R41: 0 | S41: 694345.1 | T41: 0 | U41: 0 | V41: 175795.15 | W41: 453998.95 | X41: 116722.28 | Y41: 148.47 | Z41: 1082 | AA41: 5866 | AB41: 1844 | AC41: 3229.56 | AD41: 55.44 | AE41: 288.08 | AF41: 0 | AG41: 72.5 | AH41: 147.06 | AI41: 278.44 | AJ41: 0.306 | AK41: 4.57 | AL41: 5.91 | AM41: 218.35 | AN41: 17.28 | AO41: 0 | AP41: 540628.44 | AQ41: 771969 | AR41: 0 | AS41: 137373 | AT41: 401870 | AU41: 0 | AV41: 0 | AW41: 4312993.81 | AX41: 25643738.16 | AY41: =MAX(ROUND(IF(F41<4,IF(H41=0,(SUM(Y41:AD41)*Worksheet!$E$26+Y41*Worksheet!$E$27+AN41*Worksheet!$E$39)*-BaseRate,0)),2),MIN(0,-DC41)) -> 0 | AZ41: =MAX(ROUND(IF(F41=4,0,IF(I41=0,0,ROUND(SUM(Y41:AD41)*Worksheet!$E$28,2)*-BaseRate)),2),MIN(0,-DC41-AY41)) -> -250294.65 | BA41: 0 | BB41: 1408 | BD41: 33002.58 | BE41: 9646 | BF41: =IFERROR(ROUND(IF(AND(AX41*1.12<N41*60/1000,N41/CF41<STVPP*0.2),(CF41*STVPP*0.2*Worksheet!$F$86/1000-AX41*1.12)*PropTaxAdj,IF(AX41*1.12<N41*60/1000,(N41*60/1000-AX41*1.12)*PropTaxAdj,0)),2),0) -> 0 | BG41: =ROUND(IF($F41=4,0,Y41*Worksheet!$E$16),2) -> 148.47 | BH41: =ROUND(IF($F41=4,0,Z41*Worksheet!$E$17),2) -> 1082 | BI41: =ROUND(IF($F41=4,0,AA41*Worksheet!$E$18),2) -> 5866 | BJ41: =ROUND(IF($F41=4,0,AB41*Worksheet!$E$19),2) -> 1844 | BK41: =ROUND(IF($F41=4,0,AC41*Worksheet!$E$20),2) -> 3229.56 | BL41: =ROUND(AD41*Worksheet!$E$21,2) -> 55.44 | BM41: 12225.47 | BN41: =ROUND(AD41*Worksheet!$E$25,2) -> 13.86 | BO41: =ROUND(SUM(BM41)*Worksheet!$E$26,2) -> 1002.49 | BP41: =ROUND(Y41*Worksheet!$E$27,2) -> 25.24 | BQ41: =ROUND(AE41*Worksheet!$E$29,2) -> 201.66 | BR41: =ROUND(AF41*Worksheet!$E$30,2) -> 0 | BS41: =ROUND(IF($I41<>0,$BM41*Worksheet!$E$28,0),2) -> 24.45 | BT41: =ROUND(AG41*Worksheet!$E$31,2) -> 29 | BU41: =ROUND(AH41*Worksheet!$E$32,2) -> 41.18 | BV41: =ROUND(AI41*Worksheet!$E$33,2) -> 19.49 | BW41: =ROUND(ROUND(AJ41*BM41,2)*Worksheet!$E$34,2) -> 93.52 | BX41: =ROUND(AK41*Worksheet!$E$35,2) -> 0.91 | BY41: =ROUND(AL41*Worksheet!$E$36,2) -> 0.89 | BZ41: =ROUND(AM41*Worksheet!$E$38,2) -> 131.01 | CA41: =ROUND(AN41*Worksheet!$E$39,2) -> 17.28 | CB41: =IF(AND(L41>275,SUM(Y41:AD41)<100),ROUND(SUM(Y41:AD41)*Worksheet!$E$41,2),0) -> 0 | CC41: =IF(AND(L41>600,SUM(Y41:AD41)<50),ROUND((50-SUM(Y41:AD41))*(Worksheet!$E$41+1),2),0) -> 0 | CD41: 13826.45 | CE41: 1 | CF41: 13826.45 | CG41: 141541368.7 | CH41: =MIN(ROUND(BE41*CF41*Worksheet!$D$124,2),CG41)-CG41 -> 0 | CI41: =ROUND(IF(F41=4,0,(MAX(ROUND(MAX((BE41*MIN(CF41,K41)*Worksheet!$D$127)+MAX(CF41-K41,0)*Worksheet!$F$47,SUM(J41)),2),SUM(CG41:CH41))-SUM(CG41:CH41))*MinAdj),2) -> 0 | CJ41: 141541368.7 | CK41: =IF(CF41=0,0,-MIN(CJ41,ROUND(AX41*1.12+BF41,2),MIN(CJ41,ROUND(IF(ROUND(IF(CF41=0,0,N41/CF41),2)<STVPP*0.2,STVPP*0.2*CF41*Worksheet!$F$86/1000,N41*Worksheet!$F$86/1000),2)))) -> -27378515.16 | CL41: =-MIN(SUM(CJ41,CK41),IF($P41=0,(ROUND(Worksheet!$E$75*S41,2)+ROUND(Worksheet!$E$76*T41,2)+ROUND(Worksheet!$E$77*U41,2)+ROUND(Worksheet!$E$78*V41,2)+ROUND(Worksheet!$E$79*W41,2)+ROUND(Worksheet!$E$80*X41,2)),(ROUND(ROUND(S41*ROUND((1-$O41/$P41),4),2)*Worksheet!$E$75,2)+ROUND(ROUND(T41*ROUND((1-$O41/$P41),4),2)*Worksheet!$E$76,2)+ROUND(ROUND(U41*ROUND((1-$O41/$P41),4),2)*Worksheet!$E$77,2)+ROUND(ROUND(V41*ROUND((1-$O41/$P41),4),2)*Worksheet!$E$78,2)+ROUND(ROUND(W41*ROUND((1-$O41/$P41),4),2)*Worksheet!$E$79,2)+ROUND(ROUND(X41*ROUND((1-$O41/$P41),4),2)*Worksheet!$E$80,2)))) -> -745861.95 | CM41: 113416991.5 | CN41: =MIN(AW41,ROUND(AO41*Worksheet!$C$104,2)+ROUND(AR41*Worksheet!$C$107,2)+ROUND(AP41*Worksheet!$C$105,2)+ROUND(AS41*Worksheet!$C$108,2)+ROUND(AQ41*Worksheet!$C$106,2)+ROUND(AT41*Worksheet!$C$109,2)+ROUND(AU41*Worksheet!$C$110,2)+ROUND(AV41*Worksheet!$C$111,2)) -> 1104733.3 | CU41: 0 | CV41: =MAX(-CN41,MIN(0,ROUND($R41*EFBPercent+EFBAdd,2)-$Q41),MIN(0,SUM($CM41:CM41)+MIN(0,ROUND($R41*EFBPercent+EFBAdd,2)-$Q41))) -> 0 | CW41: =MAX(-CO41,MIN(0,ROUND($R41*EFBPercent+EFBAdd,2)-$Q41),MIN(0,SUM($CM41:CN41)+MIN(0,ROUND($R41*EFBPercent+EFBAdd,2)-$Q41))) -> 0 | CX41: =MAX(-CP41,MIN(0,ROUND($R41*EFBPercent+EFBAdd,2)-$Q41),MIN(0,SUM($CM41:CO41)+MIN(0,ROUND($R41*EFBPercent+EFBAdd,2)-$Q41))) -> 0 | CY41: =MAX(-CQ41,MIN(0,ROUND($R41*EFBPercent+EFBAdd,2)-$Q41),MIN(0,SUM($CM41:CP41)+MIN(0,ROUND($R41*EFBPercent+EFBAdd,2)-$Q41))) -> 0 | CZ41: =MAX(-CR41,MIN(0,ROUND($R41*EFBPercent+EFBAdd,2)-$Q41),MIN(0,SUM($CM41:CQ41)+MIN(0,ROUND($R41*EFBPercent+EFBAdd,2)-$Q41))) -> 0 | DA41: =MAX(-CS41,MIN(0,ROUND($R41*EFBPercent+EFBAdd,2)-$Q41),MIN(0,SUM($CM41:CR41)+MIN(0,ROUND($R41*EFBPercent+EFBAdd,2)-$Q41))) -> 0 | DC41: 113416991.5 | DD41: 1104733.3 | DE41: 0 | DF41: 0 | DG41: 0 | DH41: 0 | DI41: 0
A42: 09-007 | B42: 1094 | C42: 0000008527 | D42: 2023 | E42: Mapleton 7 | F42: 2 | G42: 09-717 | H42: 100 | I42: 09-375 | J42: 1758103.55 | K42: 147.24 | L42: 69.75 | M42: 0 | N42: 12457693 | O42: 44.42 | P42: 119.44 | Q42: 0 | R42: 0 | S42: 7539 | T42: 0 | U42: 0 | V42: 8026.01 | W42: 10513.36 | X42: 13422.63 | Y42: 3 | Z42: 31 | AA42: 149 | AB42: 0 | AC42: 0 | AD42: 0 | AE42: 5.19 | AF42: 0 | AG42: 0 | AH42: 2 | AI42: 2.96 | AJ42: 0.158 | AK42: 0 | AL42: 0 | AM42: 0 | AN42: 0 | AO42: 0 | AP42: 8352 | AQ42: 4528 | AR42: 0 | AS42: 704 | AT42: 8272 | AU42: 0 | AV42: 0 | AW42: 25076.66 | AX42: 702443.46 | AY42: =MAX(ROUND(IF(F42<4,IF(H42=0,(SUM(Y42:AD42)*Worksheet!$E$26+Y42*Worksheet!$E$27+AN42*Worksheet!$E$39)*-BaseRate,0)),2),MIN(0,-DC42)) -> 0 | AZ42: =MAX(ROUND(IF(F42=4,0,IF(I42=0,0,ROUND(SUM(Y42:AD42)*Worksheet!$E$28,2)*-BaseRate)),2),MIN(0,-DC42-AY42)) -> -3787.69 | BA42: 0 | BB42: 1408 | BD42: 54521.83 | BE42: 11940.39 | BF42: =IFERROR(ROUND(IF(AND(AX42*1.12<N42*60/1000,N42/CF42<STVPP*0.2),(CF42*STVPP*0.2*Worksheet!$F$86/1000-AX42*1.12)*PropTaxAdj,IF(AX42*1.12<N42*60/1000,(N42*60/1000-AX42*1.12)*PropTaxAdj,0)),2),0) -> 0 | BG42: =ROUND(IF($F42=4,0,Y42*Worksheet!$E$16),2) -> 3 | BH42: =ROUND(IF($F42=4,0,Z42*Worksheet!$E$17),2) -> 31 | BI42: =ROUND(IF($F42=4,0,AA42*Worksheet!$E$18),2) -> 149 | BJ42: =ROUND(IF($F42=4,0,AB42*Worksheet!$E$19),2) -> 0 | BK42: =ROUND(IF($F42=4,0,AC42*Worksheet!$E$20),2) -> 0 | BL42: =ROUND(AD42*Worksheet!$E$21,2) -> 0 | BM42: 183 | BN42: =ROUND(AD42*Worksheet!$E$25,2) -> 0 | BO42: =ROUND(SUM(BM42)*Worksheet!$E$26,2) -> 15.01 | BP42: =ROUND(Y42*Worksheet!$E$27,2) -> 0.51 | BQ42: =ROUND(AE42*Worksheet!$E$29,2) -> 3.63 | BR42: =ROUND(AF42*Worksheet!$E$30,2) -> 0 | BS42: =ROUND(IF($I42<>0,$BM42*Worksheet!$E$28,0),2) -> 0.37 | BT42: =ROUND(AG42*Worksheet!$E$31,2) -> 0 | BU42: =ROUND(AH42*Worksheet!$E$32,2) -> 0.56 | BV42: =ROUND(AI42*Worksheet!$E$33,2) -> 0.21 | BW42: =ROUND(ROUND(AJ42*BM42,2)*Worksheet!$E$34,2) -> 0.72 | BX42: =ROUND(AK42*Worksheet!$E$35,2) -> 0 | BY42: =ROUND(AL42*Worksheet!$E$36,2) -> 0 | BZ42: =ROUND(AM42*Worksheet!$E$38,2) -> 0 | CA42: =ROUND(AN42*Worksheet!$E$39,2) -> 0 | CB42: =IF(AND(L42>275,SUM(Y42:AD42)<100),ROUND(SUM(Y42:AD42)*Worksheet!$E$41,2),0) -> 0 | CC42: =IF(AND(L42>600,SUM(Y42:AD42)<50),ROUND((50-SUM(Y42:AD42))*(Worksheet!$E$41+1),2),0) -> 0 | CD42: 204.01 | CE42: 1.12 | CF42: 228.49 | CG42: 2339052.13 | CH42: =MIN(ROUND(BE42*CF42*Worksheet!$D$124,2),CG42)-CG42 -> 0 | CI42: =ROUND(IF(F42=4,0,(MAX(ROUND(MAX((BE42*MIN(CF42,K42)*Worksheet!$D$127)+MAX(CF42-K42,0)*Worksheet!$F$47,SUM(J42)),2),SUM(CG42:CH42))-SUM(CG42:CH42))*MinAdj),2) -> 200178.44 | CJ42: 2539230.57 | CK42: =IF(CF42=0,0,-MIN(CJ42,ROUND(AX42*1.12+BF42,2),MIN(CJ42,ROUND(IF(ROUND(IF(CF42=0,0,N42/CF42),2)<STVPP*0.2,STVPP*0.2*CF42*Worksheet!$F$86/1000,N42*Worksheet!$F$86/1000),2)))) -> -747461.58 | CL42: =-MIN(SUM(CJ42,CK42),IF($P42=0,(ROUND(Worksheet!$E$75*S42,2)+ROUND(Worksheet!$E$76*T42,2)+ROUND(Worksheet!$E$77*U42,2)+ROUND(Worksheet!$E$78*V42,2)+ROUND(Worksheet!$E$79*W42,2)+ROUND(Worksheet!$E$80*X42,2)),(ROUND(ROUND(S42*ROUND((1-$O42/$P42),4),2)*Worksheet!$E$75,2)+ROUND(ROUND(T42*ROUND((1-$O42/$P42),4),2)*Worksheet!$E$76,2)+ROUND(ROUND(U42*ROUND((1-$O42/$P42),4),2)*Worksheet!$E$77,2)+ROUND(ROUND(V42*ROUND((1-$O42/$P42),4),2)*Worksheet!$E$78,2)+ROUND(ROUND(W42*ROUND((1-$O42/$P42),4),2)*Worksheet!$E$79,2)+ROUND(ROUND(X42*ROUND((1-$O42/$P42),4),2)*Worksheet!$E$80,2)))) -> -18607.94 | CM42: 1773161.05 | CN42: =MIN(AW42,ROUND(AO42*Worksheet!$C$104,2)+ROUND(AR42*Worksheet!$C$107,2)+ROUND(AP42*Worksheet!$C$105,2)+ROUND(AS42*Worksheet!$C$108,2)+ROUND(AQ42*Worksheet!$C$106,2)+ROUND(AT42*Worksheet!$C$109,2)+ROUND(AU42*Worksheet!$C$110,2)+ROUND(AV42*Worksheet!$C$111,2)) -> 13892.16 | CU42: 0 | CV42: =MAX(-CN42,MIN(0,ROUND($R42*EFBPercent+EFBAdd,2)-$Q42),MIN(0,SUM($CM42:CM42)+MIN(0,ROUND($R42*EFBPercent+EFBAdd,2)-$Q42))) -> 0 | CW42: =MAX(-CO42,MIN(0,ROUND($R42*EFBPercent+EFBAdd,2)-$Q42),MIN(0,SUM($CM42:CN42)+MIN(0,ROUND($R42*EFBPercent+EFBAdd,2)-$Q42))) -> 0 | CX42: =MAX(-CP42,MIN(0,ROUND($R42*EFBPercent+EFBAdd,2)-$Q42),MIN(0,SUM($CM42:CO42)+MIN(0,ROUND($R42*EFBPercent+EFBAdd,2)-$Q42))) -> 0 | CY42: =MAX(-CQ42,MIN(0,ROUND($R42*EFBPercent+EFBAdd,2)-$Q42),MIN(0,SUM($CM42:CP42)+MIN(0,ROUND($R42*EFBPercent+EFBAdd,2)-$Q42))) -> 0 | CZ42: =MAX(-CR42,MIN(0,ROUND($R42*EFBPercent+EFBAdd,2)-$Q42),MIN(0,SUM($CM42:CQ42)+MIN(0,ROUND($R42*EFBPercent+EFBAdd,2)-$Q42))) -> 0 | DA42: =MAX(-CS42,MIN(0,ROUND($R42*EFBPercent+EFBAdd,2)-$Q42),MIN(0,SUM($CM42:CR42)+MIN(0,ROUND($R42*EFBPercent+EFBAdd,2)-$Q42))) -> 0 | DC42: 1773161.05 | DD42: 13892.16 | DE42: 0 | DF42: 0 | DG42: 0 | DH42: 0 | DI42: 0
A43: 09-017 | B43: 1021 | C43: 0000008426 | D43: 2023 | E43: Central Cass 17 | F43: 1 | G43: 09-717 | H43: 100 | I43: 09-375 | J43: 9568156.77 | K43: 991.93 | L43: 392 | M43: 0 | N43: 36502630 | O43: 29.17 | P43: 115.39 | Q43: 0 | R43: 0 | S43: 125543.67 | T43: 0 | U43: 0 | V43: 29984.75 | W43: 25395.64 | X43: 99751.67 | Y43: 12.18 | Z43: 69 | AA43: 456 | AB43: 160 | AC43: 293 | AD43: 0 | AE43: 23.05 | AF43: 0 | AG43: 0 | AH43: 0 | AI43: 0 | AJ43: 0.172 | AK43: 0 | AL43: 0 | AM43: 13.88 | AN43: 0.34 | AO43: 11900 | AP43: 127050 | AQ43: 146300 | AR43: 0 | AS43: 7000 | AT43: 82950 | AU43: 0 | AV43: 0 | AW43: 469463.75 | AX43: 2128910.7 | AY43: =MAX(ROUND(IF(F43<4,IF(H43=0,(SUM(Y43:AD43)*Worksheet!$E$26+Y43*Worksheet!$E$27+AN43*Worksheet!$E$39)*-BaseRate,0)),2),MIN(0,-DC43)) -> 0 | AZ43: =MAX(ROUND(IF(F43=4,0,IF(I43=0,0,ROUND(SUM(Y43:AD43)*Worksheet!$E$28,2)*-BaseRate)),2),MIN(0,-DC43-AY43)) -> -20269.26 | BA43: 0 | BB43: 1408 | BD43: 33049.31 | BE43: 9646 | BF43: =IFERROR(ROUND(IF(AND(AX43*1.12<N43*60/1000,N43/CF43<STVPP*0.2),(CF43*STVPP*0.2*Worksheet!$F$86/1000-AX43*1.12)*PropTaxAdj,IF(AX43*1.12<N43*60/1000,(N43*60/1000-AX43*1.12)*PropTaxAdj,0)),2),0) -> 0 | BG43: =ROUND(IF($F43=4,0,Y43*Worksheet!$E$16),2) -> 12.18 | BH43: =ROUND(IF($F43=4,0,Z43*Worksheet!$E$17),2) -> 69 | BI43: =ROUND(IF($F43=4,0,AA43*Worksheet!$E$18),2) -> 456 | BJ43: =ROUND(IF($F43=4,0,AB43*Worksheet!$E$19),2) -> 160 | BK43: =ROUND(IF($F43=4,0,AC43*Worksheet!$E$20),2) -> 293 | BL43: =ROUND(AD43*Worksheet!$E$21,2) -> 0 | BM43: 990.18 | BN43: =ROUND(AD43*Worksheet!$E$25,2) -> 0 | BO43: =ROUND(SUM(BM43)*Worksheet!$E$26,2) -> 81.19 | BP43: =ROUND(Y43*Worksheet!$E$27,2) -> 2.07 | BQ43: =ROUND(AE43*Worksheet!$E$29,2) -> 16.14 | BR43: =ROUND(AF43*Worksheet!$E$30,2) -> 0 | BS43: =ROUND(IF($I43<>0,$BM43*Worksheet!$E$28,0),2) -> 1.98 | BT43: =ROUND(AG43*Worksheet!$E$31,2) -> 0 | BU43: =ROUND(AH43*Worksheet!$E$32,2) -> 0 | BV43: =ROUND(AI43*Worksheet!$E$33,2) -> 0 | BW43: =ROUND(ROUND(AJ43*BM43,2)*Worksheet!$E$34,2) -> 4.26 | BX43: =ROUND(AK43*Worksheet!$E$35,2) -> 0 | BY43: =ROUND(AL43*Worksheet!$E$36,2) -> 0 | BZ43: =ROUND(AM43*Worksheet!$E$38,2) -> 8.33 | CA43: =ROUND(AN43*Worksheet!$E$39,2) -> 0.34 | CB43: =IF(AND(L43>275,SUM(Y43:AD43)<100),ROUND(SUM(Y43:AD43)*Worksheet!$E$41,2),0) -> 0 | CC43: =IF(AND(L43>600,SUM(Y43:AD43)<50),ROUND((50-SUM(Y43:AD43))*(Worksheet!$E$41+1),2),0) -> 0 | CD43: 1104.49 | CE43: 1 | CF43: 1104.49 | CG43: 11306664.13 | CH43: =MIN(ROUND(BE43*CF43*Worksheet!$D$124,2),CG43)-CG43 -> 0 | CI43: =ROUND(IF(F43=4,0,(MAX(ROUND(MAX((BE43*MIN(CF43,K43)*Worksheet!$D$127)+MAX(CF43-K43,0)*Worksheet!$F$47,SUM(J43)),2),SUM(CG43:CH43))-SUM(CG43:CH43))*MinAdj),2) -> 0 | CJ43: 11306664.13 | CK43: =IF(CF43=0,0,-MIN(CJ43,ROUND(AX43*1.12+BF43,2),MIN(CJ43,ROUND(IF(ROUND(IF(CF43=0,0,N43/CF43),2)<STVPP*0.2,STVPP*0.2*CF43*Worksheet!$F$86/1000,N43*Worksheet!$F$86/1000),2)))) -> -2190157.8 | CL43: =-MIN(SUM(CJ43,CK43),IF($P43=0,(ROUND(Worksheet!$E$75*S43,2)+ROUND(Worksheet!$E$76*T43,2)+ROUND(Worksheet!$E$77*U43,2)+ROUND(Worksheet!$E$78*V43,2)+ROUND(Worksheet!$E$79*W43,2)+ROUND(Worksheet!$E$80*X43,2)),(ROUND(ROUND(S43*ROUND((1-$O43/$P43),4),2)*Worksheet!$E$75,2)+ROUND(ROUND(T43*ROUND((1-$O43/$P43),4),2)*Worksheet!$E$76,2)+ROUND(ROUND(U43*ROUND((1-$O43/$P43),4),2)*Worksheet!$E$77,2)+ROUND(ROUND(V43*ROUND((1-$O43/$P43),4),2)*Worksheet!$E$78,2)+ROUND(ROUND(W43*ROUND((1-$O43/$P43),4),2)*Worksheet!$E$79,2)+ROUND(ROUND(X43*ROUND((1-$O43/$P43),4),2)*Worksheet!$E$80,2)))) -> -157290.69 | CM43: 8959215.64 | CN43: =MIN(AW43,ROUND(AO43*Worksheet!$C$104,2)+ROUND(AR43*Worksheet!$C$107,2)+ROUND(AP43*Worksheet!$C$105,2)+ROUND(AS43*Worksheet!$C$108,2)+ROUND(AQ43*Worksheet!$C$106,2)+ROUND(AT43*Worksheet!$C$109,2)+ROUND(AU43*Worksheet!$C$110,2)+ROUND(AV43*Worksheet!$C$111,2)) -> 223758.5 | CU43: 0 | CV43: =MAX(-CN43,MIN(0,ROUND($R43*EFBPercent+EFBAdd,2)-$Q43),MIN(0,SUM($CM43:CM43)+MIN(0,ROUND($R43*EFBPercent+EFBAdd,2)-$Q43))) -> 0 | CW43: =MAX(-CO43,MIN(0,ROUND($R43*EFBPercent+EFBAdd,2)-$Q43),MIN(0,SUM($CM43:CN43)+MIN(0,ROUND($R43*EFBPercent+EFBAdd,2)-$Q43))) -> 0 | CX43: =MAX(-CP43,MIN(0,ROUND($R43*EFBPercent+EFBAdd,2)-$Q43),MIN(0,SUM($CM43:CO43)+MIN(0,ROUND($R43*EFBPercent+EFBAdd,2)-$Q43))) -> 0 | CY43: =MAX(-CQ43,MIN(0,ROUND($R43*EFBPercent+EFBAdd,2)-$Q43),MIN(0,SUM($CM43:CP43)+MIN(0,ROUND($R43*EFBPercent+EFBAdd,2)-$Q43))) -> 0 | CZ43: =MAX(-CR43,MIN(0,ROUND($R43*EFBPercent+EFBAdd,2)-$Q43),MIN(0,SUM($CM43:CQ43)+MIN(0,ROUND($R43*EFBPercent+EFBAdd,2)-$Q43))) -> 0 | DA43: =MAX(-CS43,MIN(0,ROUND($R43*EFBPercent+EFBAdd,2)-$Q43),MIN(0,SUM($CM43:CR43)+MIN(0,ROUND($R43*EFBPercent+EFBAdd,2)-$Q43))) -> 0 | DC43: 8959215.64 | DD43: 223758.5 | DE43: 0 | DF43: 0 | DG43: 0 | DH43: 0 | DI43: 0
A44: 09-085 | B44: 1183 | C44: 0000185337 | D44: 2023 | E44: Hope Page 85 | F44: 1 | G44: 02-727 | H44: 0 | I44: 18-376 | J44: 3651792.02 | K44: 225.81 | L44: 465.37 | M44: 3 | N44: 21942478 | O44: 0 | P44: 70 | Q44: 0 | R44: 0 | S44: 0 | T44: 0 | U44: 0 | V44: 42040.82 | W44: 9777.41 | X44: 24660.37 | Y44: 0.13 | Z44: 15 | AA44: 78 | AB44: 20 | AC44: 42 | AD44: 0 | AE44: 3.85 | AF44: 0 | AG44: 0 | AH44: 0 | AI44: 0 | AJ44: 0.173 | AK44: 0 | AL44: 0 | AM44: 0 | AN44: 0.04 | AO44: 10608 | AP44: 123868 | AQ44: 44881 | AR44: 0 | AS44: 0 | AT44: 0 | AU44: 0 | AV44: 0 | AW44: 206454.93 | AX44: 1306573.62 | AY44: =MAX(ROUND(IF(F44<4,IF(H44=0,(SUM(Y44:AD44)*Worksheet!$E$26+Y44*Worksheet!$E$27+AN44*Worksheet!$E$39)*-BaseRate,0)),2),MIN(0,-DC44)) -> -130857.11 | AZ44: =MAX(ROUND(IF(F44=4,0,IF(I44=0,0,ROUND(SUM(Y44:AD44)*Worksheet!$E$28,2)*-BaseRate)),2),MIN(0,-DC44-AY44)) -> -3173.47 | BA44: 2522 | BB44: 1406 | BD44: 91805.69 | BE44: 16171.97 | BF44: =IFERROR(ROUND(IF(AND(AX44*1.12<N44*60/1000,N44/CF44<STVPP*0.2),(CF44*STVPP*0.2*Worksheet!$F$86/1000-AX44*1.12)*PropTaxAdj,IF(AX44*1.12<N44*60/1000,(N44*60/1000-AX44*1.12)*PropTaxAdj,0)),2),0) -> 0 | BG44: =ROUND(IF($F44=4,0,Y44*Worksheet!$E$16),2) -> 0.13 | BH44: =ROUND(IF($F44=4,0,Z44*Worksheet!$E$17),2) -> 15 | BI44: =ROUND(IF($F44=4,0,AA44*Worksheet!$E$18),2) -> 78 | BJ44: =ROUND(IF($F44=4,0,AB44*Worksheet!$E$19),2) -> 20 | BK44: =ROUND(IF($F44=4,0,AC44*Worksheet!$E$20),2) -> 42 | BL44: =ROUND(AD44*Worksheet!$E$21,2) -> 0 | BM44: =SUM(BG44:BL44) -> 155.13 | BN44: =ROUND(AD44*Worksheet!$E$25,2) -> 0 | BO44: =ROUND(SUM(BM44)*Worksheet!$E$26,2) -> 12.72 | BP44: =ROUND(Y44*Worksheet!$E$27,2) -> 0.02 | BQ44: =ROUND(AE44*Worksheet!$E$29,2) -> 2.7 | BR44: =ROUND(AF44*Worksheet!$E$30,2) -> 0 | BS44: =ROUND(IF($I44<>0,$BM44*Worksheet!$E$28,0),2) -> 0.31 | BT44: =ROUND(AG44*Worksheet!$E$31,2) -> 0 | BU44: =ROUND(AH44*Worksheet!$E$32,2) -> 0 | BV44: =ROUND(AI44*Worksheet!$E$33,2) -> 0 | BW44: =ROUND(ROUND(AJ44*BM44,2)*Worksheet!$E$34,2) -> 0.67 | BX44: =ROUND(AK44*Worksheet!$E$35,2) -> 0 | BY44: =ROUND(AL44*Worksheet!$E$36,2) -> 0 | BZ44: =ROUND(AM44*Worksheet!$E$38,2) -> 0 | CA44: =ROUND(AN44*Worksheet!$E$39,2) -> 0.04 | CB44: =IF(AND(L44>275,SUM(Y44:AD44)<100),ROUND(SUM(Y44:AD44)*Worksheet!$E$41,2),0) -> 0 | CC44: =IF(AND(L44>600,SUM(Y44:AD44)<50),ROUND((50-SUM(Y44:AD44))*(Worksheet!$E$41+1),2),0) -> 0 | CD44: =SUM(BM44:CC44) -> 171.59 | CE44: 1.3929 | CF44: =ROUND(+CE44*CD44,2) -> 239.01 | CG44: =ROUND(+CF44*BaseRate,2) -> 2446745.37 | CH44: =MIN(ROUND(BE44*CF44*Worksheet!$D$124,2),CG44)-CG44 -> 0 | CI44: =ROUND(IF(F44=4,0,(MAX(ROUND(MAX((BE44*MIN(CF44,K44)*Worksheet!$D$127)+MAX(CF44-K44,0)*Worksheet!$F$47,SUM(J44)),2),SUM(CG44:CH44))-SUM(CG44:CH44))*MinAdj),2) -> 989248 | CJ44: =SUM(CG44:CI44) -> 3435993.37 | CK44: =IF(CF44=0,0,-MIN(CJ44,ROUND(AX44*1.12+BF44,2),MIN(CJ44,ROUND(IF(ROUND(IF(CF44=0,0,N44/CF44),2)<STVPP*0.2,STVPP*0.2*CF44*Worksheet!$F$86/1000,N44*Worksheet!$F$86/1000),2)))) -> -1316548.68 | CL44: =-MIN(SUM(CJ44,CK44),IF($P44=0,(ROUND(Worksheet!$E$75*S44,2)+ROUND(Worksheet!$E$76*T44,2)+ROUND(Worksheet!$E$77*U44,2)+ROUND(Worksheet!$E$78*V44,2)+ROUND(Worksheet!$E$79*W44,2)+ROUND(Worksheet!$E$80*X44,2)),(ROUND(ROUND(S44*ROUND((1-$O44/$P44),4),2)*Worksheet!$E$75,2)+ROUND(ROUND(T44*ROUND((1-$O44/$P44),4),2)*Worksheet!$E$76,2)+ROUND(ROUND(U44*ROUND((1-$O44/$P44),4),2)*Worksheet!$E$77,2)+ROUND(ROUND(V44*ROUND((1-$O44/$P44),4),2)*Worksheet!$E$78,2)+ROUND(ROUND(W44*ROUND((1-$O44/$P44),4),2)*Worksheet!$E$79,2)+ROUND(ROUND(X44*ROUND((1-$O44/$P44),4),2)*Worksheet!$E$80,2)))) -> -57358.96 | CM44: =SUM(CJ44:CL44) -> 2062085.73 | CN44: =MIN(AW44,ROUND(AO44*Worksheet!$C$104,2)+ROUND(AR44*Worksheet!$C$107,2)+ROUND(AP44*Worksheet!$C$105,2)+ROUND(AS44*Worksheet!$C$108,2)+ROUND(AQ44*Worksheet!$C$106,2)+ROUND(AT44*Worksheet!$C$109,2)+ROUND(AU44*Worksheet!$C$110,2)+ROUND(AV44*Worksheet!$C$111,2)) -> 156473.94 | CU44: =MAX(-CM44,MIN(0,ROUND($R44*EFBPercent+EFBAdd,2)-$Q44)) -> 0 | CV44: =MAX(-CN44,MIN(0,ROUND($R44*EFBPercent+EFBAdd,2)-$Q44),MIN(0,SUM($CM44:CM44)+MIN(0,ROUND($R44*EFBPercent+EFBAdd,2)-$Q44))) -> 0 | CW44: =MAX(-CO44,MIN(0,ROUND($R44*EFBPercent+EFBAdd,2)-$Q44),MIN(0,SUM($CM44:CN44)+MIN(0,ROUND($R44*EFBPercent+EFBAdd,2)-$Q44))) -> 0 | CX44: =MAX(-CP44,MIN(0,ROUND($R44*EFBPercent+EFBAdd,2)-$Q44),MIN(0,SUM($CM44:CO44)+MIN(0,ROUND($R44*EFBPercent+EFBAdd,2)-$Q44))) -> 0 | CY44: =MAX(-CQ44,MIN(0,ROUND($R44*EFBPercent+EFBAdd,2)-$Q44),MIN(0,SUM($CM44:CP44)+MIN(0,ROUND($R44*EFBPercent+EFBAdd,2)-$Q44))) -> 0 | CZ44: =MAX(-CR44,MIN(0,ROUND($R44*EFBPercent+EFBAdd,2)-$Q44),MIN(0,SUM($CM44:CQ44)+MIN(0,ROUND($R44*EFBPercent+EFBAdd,2)-$Q44))) -> 0 | DA44: =MAX(-CS44,MIN(0,ROUND($R44*EFBPercent+EFBAdd,2)-$Q44),MIN(0,SUM($CM44:CR44)+MIN(0,ROUND($R44*EFBPercent+EFBAdd,2)-$Q44))) -> 0 | DC44: =+CM44+CU44 -> 2062085.73 | DD44: =+CN44+CV44 -> 156473.94 | DE44: =+CO44+CW44 -> 0 | DF44: =+CP44+CX44 -> 0 | DG44: =+CQ44+CY44 -> 0 | DH44: =+CR44+CZ44 -> 0 | DI44: =+CS44+DA44 -> 0
A45: 09-097 | B45: 1126 | C45: 0000008573 | D45: 2023 | E45: Northern Cass 97 | F45: 1 | G45: 09-717 | H45: 100 | I45: 09-375 | J45: 6644743.56 | K45: 688.86 | L45: 420.5 | M45: 0 | N45: 26281936 | O45: 7.6 | P45: 103 | Q45: 0 | R45: 0 | S45: 9344.39 | T45: 0 | U45: 0 | V45: 35053.61 | W45: 14110.08 | X45: 38842.83 | Y45: 0.15 | Z45: 57 | AA45: 301 | AB45: 100 | AC45: 200 | AD45: 0 | AE45: 15.8 | AF45: 0 | AG45: 0 | AH45: 0 | AI45: 0 | AJ45: 0.152 | AK45: 0 | AL45: 0 | AM45: 11.79 | AN45: 0.27 | AO45: 260 | AP45: 241850 | AQ45: 209917 | AR45: 0 | AS45: 0 | AT45: 0 | AU45: 1575 | AV45: 0 | AW45: 467433.24 | AX45: 1488017.04 | AY45: =MAX(ROUND(IF(F45<4,IF(H45=0,(SUM(Y45:AD45)*Worksheet!$E$26+Y45*Worksheet!$E$27+AN45*Worksheet!$E$39)*-BaseRate,0)),2),MIN(0,-DC45)) -> 0 | AZ45: =MAX(ROUND(IF(F45=4,0,IF(I45=0,0,ROUND(SUM(Y45:AD45)*Worksheet!$E$28,2)*-BaseRate)),2),MIN(0,-DC45-AY45)) -> -13512.84 | BA45: 0 | BB45: 1408 | BD45: 35434.25 | BE45: 9646 | BF45: =IFERROR(ROUND(IF(AND(AX45*1.12<N45*60/1000,N45/CF45<STVPP*0.2),(CF45*STVPP*0.2*Worksheet!$F$86/1000-AX45*1.12)*PropTaxAdj,IF(AX45*1.12<N45*60/1000,(N45*60/1000-AX45*1.12)*PropTaxAdj,0)),2),0) -> 0 | BG45: =ROUND(IF($F45=4,0,Y45*Worksheet!$E$16),2) -> 0.15 | BH45: =ROUND(IF($F45=4,0,Z45*Worksheet!$E$17),2) -> 57 | BI45: =ROUND(IF($F45=4,0,AA45*Worksheet!$E$18),2) -> 301 | BJ45: =ROUND(IF($F45=4,0,AB45*Worksheet!$E$19),2) -> 100 | BK45: =ROUND(IF($F45=4,0,AC45*Worksheet!$E$20),2) -> 200 | BL45: =ROUND(AD45*Worksheet!$E$21,2) -> 0 | BM45: 658.15 | BN45: =ROUND(AD45*Worksheet!$E$25,2) -> 0 | BO45: =ROUND(SUM(BM45)*Worksheet!$E$26,2) -> 53.97 | BP45: =ROUND(Y45*Worksheet!$E$27,2) -> 0.03 | BQ45: =ROUND(AE45*Worksheet!$E$29,2) -> 11.06 | BR45: =ROUND(AF45*Worksheet!$E$30,2) -> 0 | BS45: =ROUND(IF($I45<>0,$BM45*Worksheet!$E$28,0),2) -> 1.32 | BT45: =ROUND(AG45*Worksheet!$E$31,2) -> 0 | BU45: =ROUND(AH45*Worksheet!$E$32,2) -> 0 | BV45: =ROUND(AI45*Worksheet!$E$33,2) -> 0 | BW45: =ROUND(ROUND(AJ45*BM45,2)*Worksheet!$E$34,2) -> 2.5 | BX45: =ROUND(AK45*Worksheet!$E$35,2) -> 0 | BY45: =ROUND(AL45*Worksheet!$E$36,2) -> 0 | BZ45: =ROUND(AM45*Worksheet!$E$38,2) -> 7.07 | CA45: =ROUND(AN45*Worksheet!$E$39,2) -> 0.27 | CB45: =IF(AND(L45>275,SUM(Y45:AD45)<100),ROUND(SUM(Y45:AD45)*Worksheet!$E$41,2),0) -> 0 | CC45: =IF(AND(L45>600,SUM(Y45:AD45)<50),ROUND((50-SUM(Y45:AD45))*(Worksheet!$E$41+1),2),0) -> 0 | CD45: 734.37 | CE45: 1.01 | CF45: 741.71 | CG45: 7592885.27 | CH45: =MIN(ROUND(BE45*CF45*Worksheet!$D$124,2),CG45)-CG45 -> 0 | CI45: =ROUND(IF(F45=4,0,(MAX(ROUND(MAX((BE45*MIN(CF45,K45)*Worksheet!$D$127)+MAX(CF45-K45,0)*Worksheet!$F$47,SUM(J45)),2),SUM(CG45:CH45))-SUM(CG45:CH45))*MinAdj),2) -> 0 | CJ45: 7592885.27 | CK45: =IF(CF45=0,0,-MIN(CJ45,ROUND(AX45*1.12+BF45,2),MIN(CJ45,ROUND(IF(ROUND(IF(CF45=0,0,N45/CF45),2)<STVPP*0.2,STVPP*0.2*CF45*Worksheet!$F$86/1000,N45*Worksheet!$F$86/1000),2)))) -> -1576916.16 | CL45: =-MIN(SUM(CJ45,CK45),IF($P45=0,(ROUND(Worksheet!$E$75*S45,2)+ROUND(Worksheet!$E$76*T45,2)+ROUND(Worksheet!$E$77*U45,2)+ROUND(Worksheet!$E$78*V45,2)+ROUND(Worksheet!$E$79*W45,2)+ROUND(Worksheet!$E$80*X45,2)),(ROUND(ROUND(S45*ROUND((1-$O45/$P45),4),2)*Worksheet!$E$75,2)+ROUND(ROUND(T45*ROUND((1-$O45/$P45),4),2)*Worksheet!$E$76,2)+ROUND(ROUND(U45*ROUND((1-$O45/$P45),4),2)*Worksheet!$E$77,2)+ROUND(ROUND(V45*ROUND((1-$O45/$P45),4),2)*Worksheet!$E$78,2)+ROUND(ROUND(W45*ROUND((1-$O45/$P45),4),2)*Worksheet!$E$79,2)+ROUND(ROUND(X45*ROUND((1-$O45/$P45),4),2)*Worksheet!$E$80,2)))) -> -67624.81 | CM45: 5948344.3 | CN45: =MIN(AW45,ROUND(AO45*Worksheet!$C$104,2)+ROUND(AR45*Worksheet!$C$107,2)+ROUND(AP45*Worksheet!$C$105,2)+ROUND(AS45*Worksheet!$C$108,2)+ROUND(AQ45*Worksheet!$C$106,2)+ROUND(AT45*Worksheet!$C$109,2)+ROUND(AU45*Worksheet!$C$110,2)+ROUND(AV45*Worksheet!$C$111,2)) -> 331957.55 | CU45: 0 | CV45: =MAX(-CN45,MIN(0,ROUND($R45*EFBPercent+EFBAdd,2)-$Q45),MIN(0,SUM($CM45:CM45)+MIN(0,ROUND($R45*EFBPercent+EFBAdd,2)-$Q45))) -> 0 | CW45: =MAX(-CO45,MIN(0,ROUND($R45*EFBPercent+EFBAdd,2)-$Q45),MIN(0,SUM($CM45:CN45)+MIN(0,ROUND($R45*EFBPercent+EFBAdd,2)-$Q45))) -> 0 | CX45: =MAX(-CP45,MIN(0,ROUND($R45*EFBPercent+EFBAdd,2)-$Q45),MIN(0,SUM($CM45:CO45)+MIN(0,ROUND($R45*EFBPercent+EFBAdd,2)-$Q45))) -> 0 | CY45: =MAX(-CQ45,MIN(0,ROUND($R45*EFBPercent+EFBAdd,2)-$Q45),MIN(0,SUM($CM45:CP45)+MIN(0,ROUND($R45*EFBPercent+EFBAdd,2)-$Q45))) -> 0 | CZ45: =MAX(-CR45,MIN(0,ROUND($R45*EFBPercent+EFBAdd,2)-$Q45),MIN(0,SUM($CM45:CQ45)+MIN(0,ROUND($R45*EFBPercent+EFBAdd,2)-$Q45))) -> 0 | DA45: =MAX(-CS45,MIN(0,ROUND($R45*EFBPercent+EFBAdd,2)-$Q45),MIN(0,SUM($CM45:CR45)+MIN(0,ROUND($R45*EFBPercent+EFBAdd,2)-$Q45))) -> 0 | DC45: 5948344.3 | DD45: 331957.55 | DE45: 0 | DF45: 0 | DG45: 0 | DH45: 0 | DI45: 0
A46: 09-375 | B46: 1408 | C46: 0000090832 | D46: 2023 | E46: South East Ed Cooperative | F46: 0 | G46: 0 | H46: 0 | I46: 0 | J46: 0 | K46: 0 | L46: 0 | M46: 0 | N46: 0 | O46: 0 | P46: 0 | Q46: 0 | R46: 0 | S46: 0 | T46: 0 | U46: 0 | V46: 0 | W46: 0 | X46: 0 | Y46: 0 | Z46: 0 | AA46: 0 | AB46: 0 | AC46: 0 | AD46: 0 | AE46: 0 | AF46: 0 | AG46: 0 | AH46: 0 | AI46: 0 | AJ46: 0 | AK46: 0 | AL46: 0 | AM46: 0 | AN46: 0 | AO46: 0 | AP46: 0 | AQ46: 0 | AR46: 0 | AS46: 0 | AT46: 0 | AU46: 0 | AV46: 0 | AW46: 0 | AX46: 0 | AY46: =MAX(ROUND(IF(F46<4,IF(H46=0,(SUM(Y46:AD46)*Worksheet!$E$26+Y46*Worksheet!$E$27+AN46*Worksheet!$E$39)*-BaseRate,0)),2),MIN(0,-DC46)) -> 0 | AZ46: =MAX(ROUND(IF(F46=4,0,IF(I46=0,0,ROUND(SUM(Y46:AD46)*Worksheet!$E$28,2)*-BaseRate)),2),MIN(0,-DC46-AY46)) -> 0 | BA46: 0 | BB46: 0 | BD46: 0 | BE46: 0 | BF46: =IFERROR(ROUND(IF(AND(AX46*1.12<N46*60/1000,N46/CF46<STVPP*0.2),(CF46*STVPP*0.2*Worksheet!$F$86/1000-AX46*1.12)*PropTaxAdj,IF(AX46*1.12<N46*60/1000,(N46*60/1000-AX46*1.12)*PropTaxAdj,0)),2),0) -> 0 | BG46: =ROUND(IF($F46=4,0,Y46*Worksheet!$E$16),2) -> 0 | BH46: =ROUND(IF($F46=4,0,Z46*Worksheet!$E$17),2) -> 0 | BI46: =ROUND(IF($F46=4,0,AA46*Worksheet!$E$18),2) -> 0 | BJ46: =ROUND(IF($F46=4,0,AB46*Worksheet!$E$19),2) -> 0 | BK46: =ROUND(IF($F46=4,0,AC46*Worksheet!$E$20),2) -> 0 | BL46: =ROUND(AD46*Worksheet!$E$21,2) -> 0 | BM46: 0 | BN46: =ROUND(AD46*Worksheet!$E$25,2) -> 0 | BO46: =ROUND(SUM(BM46)*Worksheet!$E$26,2) -> 0 | BP46: =ROUND(Y46*Worksheet!$E$27,2) -> 0 | BQ46: =ROUND(AE46*Worksheet!$E$29,2) -> 0 | BR46: =ROUND(AF46*Worksheet!$E$30,2) -> 0 | BS46: =ROUND(IF($I46<>0,$BM46*Worksheet!$E$28,0),2) -> 0 | BT46: =ROUND(AG46*Worksheet!$E$31,2) -> 0 | BU46: =ROUND(AH46*Worksheet!$E$32,2) -> 0 | BV46: =ROUND(AI46*Worksheet!$E$33,2) -> 0 | BW46: =ROUND(ROUND(AJ46*BM46,2)*Worksheet!$E$34,2) -> 0 | BX46: =ROUND(AK46*Worksheet!$E$35,2) -> 0 | BY46: =ROUND(AL46*Worksheet!$E$36,2) -> 0 | BZ46: =ROUND(AM46*Worksheet!$E$38,2) -> 0 | CA46: =ROUND(AN46*Worksheet!$E$39,2) -> 0 | CB46: =IF(AND(L46>275,SUM(Y46:AD46)<100),ROUND(SUM(Y46:AD46)*Worksheet!$E$41,2),0) -> 0 | CC46: =IF(AND(L46>600,SUM(Y46:AD46)<50),ROUND((50-SUM(Y46:AD46))*(Worksheet!$E$41+1),2),0) -> 0 | CD46: 0 | CE46: 0 | CF46: 0 | CG46: 0 | CH46: =MIN(ROUND(BE46*CF46*Worksheet!$D$124,2),CG46)-CG46 -> 0 | CI46: =ROUND(IF(F46=4,0,(MAX(ROUND(MAX((BE46*MIN(CF46,K46)*Worksheet!$D$127)+MAX(CF46-K46,0)*Worksheet!$F$47,SUM(J46)),2),SUM(CG46:CH46))-SUM(CG46:CH46))*MinAdj),2) -> 0 | CJ46: 0 | CK46: =IF(CF46=0,0,-MIN(CJ46,ROUND(AX46*1.12+BF46,2),MIN(CJ46,ROUND(IF(ROUND(IF(CF46=0,0,N46/CF46),2)<STVPP*0.2,STVPP*0.2*CF46*Worksheet!$F$86/1000,N46*Worksheet!$F$86/1000),2)))) -> 0 | CL46: =-MIN(SUM(CJ46,CK46),IF($P46=0,(ROUND(Worksheet!$E$75*S46,2)+ROUND(Worksheet!$E$76*T46,2)+ROUND(Worksheet!$E$77*U46,2)+ROUND(Worksheet!$E$78*V46,2)+ROUND(Worksheet!$E$79*W46,2)+ROUND(Worksheet!$E$80*X46,2)),(ROUND(ROUND(S46*ROUND((1-$O46/$P46),4),2)*Worksheet!$E$75,2)+ROUND(ROUND(T46*ROUND((1-$O46/$P46),4),2)*Worksheet!$E$76,2)+ROUND(ROUND(U46*ROUND((1-$O46/$P46),4),2)*Worksheet!$E$77,2)+ROUND(ROUND(V46*ROUND((1-$O46/$P46),4),2)*Worksheet!$E$78,2)+ROUND(ROUND(W46*ROUND((1-$O46/$P46),4),2)*Worksheet!$E$79,2)+ROUND(ROUND(X46*ROUND((1-$O46/$P46),4),2)*Worksheet!$E$80,2)))) -> 0 | CM46: 0 | CN46: =MIN(AW46,ROUND(AO46*Worksheet!$C$104,2)+ROUND(AR46*Worksheet!$C$107,2)+ROUND(AP46*Worksheet!$C$105,2)+ROUND(AS46*Worksheet!$C$108,2)+ROUND(AQ46*Worksheet!$C$106,2)+ROUND(AT46*Worksheet!$C$109,2)+ROUND(AU46*Worksheet!$C$110,2)+ROUND(AV46*Worksheet!$C$111,2)) -> 0 | CU46: 0 | CV46: =MAX(-CN46,MIN(0,ROUND($R46*EFBPercent+EFBAdd,2)-$Q46),MIN(0,SUM($CM46:CM46)+MIN(0,ROUND($R46*EFBPercent+EFBAdd,2)-$Q46))) -> 0 | CW46: =MAX(-CO46,MIN(0,ROUND($R46*EFBPercent+EFBAdd,2)-$Q46),MIN(0,SUM($CM46:CN46)+MIN(0,ROUND($R46*EFBPercent+EFBAdd,2)-$Q46))) -> 0 | CX46: =MAX(-CP46,MIN(0,ROUND($R46*EFBPercent+EFBAdd,2)-$Q46),MIN(0,SUM($CM46:CO46)+MIN(0,ROUND($R46*EFBPercent+EFBAdd,2)-$Q46))) -> 0 | CY46: =MAX(-CQ46,MIN(0,ROUND($R46*EFBPercent+EFBAdd,2)-$Q46),MIN(0,SUM($CM46:CP46)+MIN(0,ROUND($R46*EFBPercent+EFBAdd,2)-$Q46))) -> 0 | CZ46: =MAX(-CR46,MIN(0,ROUND($R46*EFBPercent+EFBAdd,2)-$Q46),MIN(0,SUM($CM46:CQ46)+MIN(0,ROUND($R46*EFBPercent+EFBAdd,2)-$Q46))) -> 0 | DA46: =MAX(-CS46,MIN(0,ROUND($R46*EFBPercent+EFBAdd,2)-$Q46),MIN(0,SUM($CM46:CR46)+MIN(0,ROUND($R46*EFBPercent+EFBAdd,2)-$Q46))) -> 0 | DC46: 0 | DD46: 0 | DE46: 0 | DF46: 0 | DG46: 0 | DH46: 0 | DI46: 0
A47: 09-717 | B47: 2521 | C47: 0000008928 | D47: 2023 | E47: Rural Cass Special Ed Unit | F47: 7 | G47: 09-717 | H47: 0 | I47: 0 | J47: 0 | K47: 0 | L47: 0 | M47: 0 | N47: 0 | O47: 0 | P47: 0 | Q47: 0 | R47: 0 | S47: 0 | T47: 0 | U47: 0 | V47: 0 | W47: 0 | X47: 0 | Y47: 0 | Z47: 0 | AA47: 0 | AB47: 0 | AC47: 0 | AD47: 0 | AE47: 0 | AF47: 0 | AG47: 0 | AH47: 0 | AI47: 0 | AJ47: 0 | AK47: 0 | AL47: 0 | AM47: 0 | AN47: 0 | AO47: 0 | AP47: 0 | AQ47: 0 | AR47: 0 | AS47: 0 | AT47: 0 | AU47: 3480 | AV47: 0 | AW47: 0 | AX47: 0 | AY47: =MAX(ROUND(IF(F47<4,IF(H47=0,(SUM(Y47:AD47)*Worksheet!$E$26+Y47*Worksheet!$E$27+AN47*Worksheet!$E$39)*-BaseRate,0)),2),MIN(0,-DC47)) -> 0 | AZ47: =MAX(ROUND(IF(F47=4,0,IF(I47=0,0,ROUND(SUM(Y47:AD47)*Worksheet!$E$28,2)*-BaseRate)),2),MIN(0,-DC47-AY47)) -> 0 | BA47: 0 | BB47: 0 | BD47: 0 | BE47: 0 | BF47: =IFERROR(ROUND(IF(AND(AX47*1.12<N47*60/1000,N47/CF47<STVPP*0.2),(CF47*STVPP*0.2*Worksheet!$F$86/1000-AX47*1.12)*PropTaxAdj,IF(AX47*1.12<N47*60/1000,(N47*60/1000-AX47*1.12)*PropTaxAdj,0)),2),0) -> 0 | BG47: =ROUND(IF($F47=4,0,Y47*Worksheet!$E$16),2) -> 0 | BH47: =ROUND(IF($F47=4,0,Z47*Worksheet!$E$17),2) -> 0 | BI47: =ROUND(IF($F47=4,0,AA47*Worksheet!$E$18),2) -> 0 | BJ47: =ROUND(IF($F47=4,0,AB47*Worksheet!$E$19),2) -> 0 | BK47: =ROUND(IF($F47=4,0,AC47*Worksheet!$E$20),2) -> 0 | BL47: =ROUND(AD47*Worksheet!$E$21,2) -> 0 | BM47: 0 | BN47: =ROUND(AD47*Worksheet!$E$25,2) -> 0 | BO47: =ROUND(SUM(BM47)*Worksheet!$E$26,2) -> 0 | BP47: =ROUND(Y47*Worksheet!$E$27,2) -> 0 | BQ47: =ROUND(AE47*Worksheet!$E$29,2) -> 0 | BR47: =ROUND(AF47*Worksheet!$E$30,2) -> 0 | BS47: =ROUND(IF($I47<>0,$BM47*Worksheet!$E$28,0),2) -> 0 | BT47: =ROUND(AG47*Worksheet!$E$31,2) -> 0 | BU47: =ROUND(AH47*Worksheet!$E$32,2) -> 0 | BV47: =ROUND(AI47*Worksheet!$E$33,2) -> 0 | BW47: =ROUND(ROUND(AJ47*BM47,2)*Worksheet!$E$34,2) -> 0 | BX47: =ROUND(AK47*Worksheet!$E$35,2) -> 0 | BY47: =ROUND(AL47*Worksheet!$E$36,2) -> 0 | BZ47: =ROUND(AM47*Worksheet!$E$38,2) -> 0 | CA47: =ROUND(AN47*Worksheet!$E$39,2) -> 0 | CB47: =IF(AND(L47>275,SUM(Y47:AD47)<100),ROUND(SUM(Y47:AD47)*Worksheet!$E$41,2),0) -> 0 | CC47: =IF(AND(L47>600,SUM(Y47:AD47)<50),ROUND((50-SUM(Y47:AD47))*(Worksheet!$E$41+1),2),0) -> 0 | CD47: 0 | CE47: 0 | CF47: 0 | CG47: 0 | CH47: =MIN(ROUND(BE47*CF47*Worksheet!$D$124,2),CG47)-CG47 -> 0 | CI47: =ROUND(IF(F47=4,0,(MAX(ROUND(MAX((BE47*MIN(CF47,K47)*Worksheet!$D$127)+MAX(CF47-K47,0)*Worksheet!$F$47,SUM(J47)),2),SUM(CG47:CH47))-SUM(CG47:CH47))*MinAdj),2) -> 0 | CJ47: 0 | CK47: =IF(CF47=0,0,-MIN(CJ47,ROUND(AX47*1.12+BF47,2),MIN(CJ47,ROUND(IF(ROUND(IF(CF47=0,0,N47/CF47),2)<STVPP*0.2,STVPP*0.2*CF47*Worksheet!$F$86/1000,N47*Worksheet!$F$86/1000),2)))) -> 0 | CL47: =-MIN(SUM(CJ47,CK47),IF($P47=0,(ROUND(Worksheet!$E$75*S47,2)+ROUND(Worksheet!$E$76*T47,2)+ROUND(Worksheet!$E$77*U47,2)+ROUND(Worksheet!$E$78*V47,2)+ROUND(Worksheet!$E$79*W47,2)+ROUND(Worksheet!$E$80*X47,2)),(ROUND(ROUND(S47*ROUND((1-$O47/$P47),4),2)*Worksheet!$E$75,2)+ROUND(ROUND(T47*ROUND((1-$O47/$P47),4),2)*Worksheet!$E$76,2)+ROUND(ROUND(U47*ROUND((1-$O47/$P47),4),2)*Worksheet!$E$77,2)+ROUND(ROUND(V47*ROUND((1-$O47/$P47),4),2)*Worksheet!$E$78,2)+ROUND(ROUND(W47*ROUND((1-$O47/$P47),4),2)*Worksheet!$E$79,2)+ROUND(ROUND(X47*ROUND((1-$O47/$P47),4),2)*Worksheet!$E$80,2)))) -> 0 | CM47: 0 | CN47: =MIN(AW47,ROUND(AO47*Worksheet!$C$104,2)+ROUND(AR47*Worksheet!$C$107,2)+ROUND(AP47*Worksheet!$C$105,2)+ROUND(AS47*Worksheet!$C$108,2)+ROUND(AQ47*Worksheet!$C$106,2)+ROUND(AT47*Worksheet!$C$109,2)+ROUND(AU47*Worksheet!$C$110,2)+ROUND(AV47*Worksheet!$C$111,2)) -> 0 | CU47: 0 | CV47: =MAX(-CN47,MIN(0,ROUND($R47*EFBPercent+EFBAdd,2)-$Q47),MIN(0,SUM($CM47:CM47)+MIN(0,ROUND($R47*EFBPercent+EFBAdd,2)-$Q47))) -> 0 | CW47: =MAX(-CO47,MIN(0,ROUND($R47*EFBPercent+EFBAdd,2)-$Q47),MIN(0,SUM($CM47:CN47)+MIN(0,ROUND($R47*EFBPercent+EFBAdd,2)-$Q47))) -> 0 | CX47: =MAX(-CP47,MIN(0,ROUND($R47*EFBPercent+EFBAdd,2)-$Q47),MIN(0,SUM($CM47:CO47)+MIN(0,ROUND($R47*EFBPercent+EFBAdd,2)-$Q47))) -> 0 | CY47: =MAX(-CQ47,MIN(0,ROUND($R47*EFBPercent+EFBAdd,2)-$Q47),MIN(0,SUM($CM47:CP47)+MIN(0,ROUND($R47*EFBPercent+EFBAdd,2)-$Q47))) -> 0 | CZ47: =MAX(-CR47,MIN(0,ROUND($R47*EFBPercent+EFBAdd,2)-$Q47),MIN(0,SUM($CM47:CQ47)+MIN(0,ROUND($R47*EFBPercent+EFBAdd,2)-$Q47))) -> 0 | DA47: =MAX(-CS47,MIN(0,ROUND($R47*EFBPercent+EFBAdd,2)-$Q47),MIN(0,SUM($CM47:CR47)+MIN(0,ROUND($R47*EFBPercent+EFBAdd,2)-$Q47))) -> 0 | DC47: 0 | DD47: 0 | DE47: 0 | DF47: 0 | DG47: 0 | DH47: 0 | DI47: 0
A48: 09-730 | B48: 2506 | C48: 0000008915 | D48: 2023 | E48: Fargo Special Ed Unit | F48: 7 | G48: 09-730 | H48: 0 | I48: 0 | J48: 0 | K48: 0 | L48: 0 | M48: 0 | N48: 0 | O48: 0 | P48: 0 | Q48: 0 | R48: 0 | S48: 0 | T48: 0 | U48: 0 | V48: 0 | W48: 0 | X48: 0 | Y48: 0 | Z48: 0 | AA48: 0 | AB48: 0 | AC48: 0 | AD48: 0 | AE48: 0 | AF48: 0 | AG48: 0 | AH48: 0 | AI48: 0 | AJ48: 0 | AK48: 0 | AL48: 0 | AM48: 0 | AN48: 0 | AO48: 0 | AP48: 0 | AQ48: 0 | AR48: 0 | AS48: 0 | AT48: 0 | AU48: 0 | AV48: 0 | AW48: 0 | AX48: 0 | AY48: =MAX(ROUND(IF(F48<4,IF(H48=0,(SUM(Y48:AD48)*Worksheet!$E$26+Y48*Worksheet!$E$27+AN48*Worksheet!$E$39)*-BaseRate,0)),2),MIN(0,-DC48)) -> 0 | AZ48: =MAX(ROUND(IF(F48=4,0,IF(I48=0,0,ROUND(SUM(Y48:AD48)*Worksheet!$E$28,2)*-BaseRate)),2),MIN(0,-DC48-AY48)) -> 0 | BA48: 0 | BB48: 0 | BD48: 0 | BE48: 0 | BF48: =IFERROR(ROUND(IF(AND(AX48*1.12<N48*60/1000,N48/CF48<STVPP*0.2),(CF48*STVPP*0.2*Worksheet!$F$86/1000-AX48*1.12)*PropTaxAdj,IF(AX48*1.12<N48*60/1000,(N48*60/1000-AX48*1.12)*PropTaxAdj,0)),2),0) -> 0 | BG48: =ROUND(IF($F48=4,0,Y48*Worksheet!$E$16),2) -> 0 | BH48: =ROUND(IF($F48=4,0,Z48*Worksheet!$E$17),2) -> 0 | BI48: =ROUND(IF($F48=4,0,AA48*Worksheet!$E$18),2) -> 0 | BJ48: =ROUND(IF($F48=4,0,AB48*Worksheet!$E$19),2) -> 0 | BK48: =ROUND(IF($F48=4,0,AC48*Worksheet!$E$20),2) -> 0 | BL48: =ROUND(AD48*Worksheet!$E$21,2) -> 0 | BM48: 0 | BN48: =ROUND(AD48*Worksheet!$E$25,2) -> 0 | BO48: =ROUND(SUM(BM48)*Worksheet!$E$26,2) -> 0 | BP48: =ROUND(Y48*Worksheet!$E$27,2) -> 0 | BQ48: =ROUND(AE48*Worksheet!$E$29,2) -> 0 | BR48: =ROUND(AF48*Worksheet!$E$30,2) -> 0 | BS48: =ROUND(IF($I48<>0,$BM48*Worksheet!$E$28,0),2) -> 0 | BT48: =ROUND(AG48*Worksheet!$E$31,2) -> 0 | BU48: =ROUND(AH48*Worksheet!$E$32,2) -> 0 | BV48: =ROUND(AI48*Worksheet!$E$33,2) -> 0 | BW48: =ROUND(ROUND(AJ48*BM48,2)*Worksheet!$E$34,2) -> 0 | BX48: =ROUND(AK48*Worksheet!$E$35,2) -> 0 | BY48: =ROUND(AL48*Worksheet!$E$36,2) -> 0 | BZ48: =ROUND(AM48*Worksheet!$E$38,2) -> 0 | CA48: =ROUND(AN48*Worksheet!$E$39,2) -> 0 | CB48: =IF(AND(L48>275,SUM(Y48:AD48)<100),ROUND(SUM(Y48:AD48)*Worksheet!$E$41,2),0) -> 0 | CC48: =IF(AND(L48>600,SUM(Y48:AD48)<50),ROUND((50-SUM(Y48:AD48))*(Worksheet!$E$41+1),2),0) -> 0 | CD48: 0 | CE48: 0 | CF48: 0 | CG48: 0 | CH48: =MIN(ROUND(BE48*CF48*Worksheet!$D$124,2),CG48)-CG48 -> 0 | CI48: =ROUND(IF(F48=4,0,(MAX(ROUND(MAX((BE48*MIN(CF48,K48)*Worksheet!$D$127)+MAX(CF48-K48,0)*Worksheet!$F$47,SUM(J48)),2),SUM(CG48:CH48))-SUM(CG48:CH48))*MinAdj),2) -> 0 | CJ48: 0 | CK48: =IF(CF48=0,0,-MIN(CJ48,ROUND(AX48*1.12+BF48,2),MIN(CJ48,ROUND(IF(ROUND(IF(CF48=0,0,N48/CF48),2)<STVPP*0.2,STVPP*0.2*CF48*Worksheet!$F$86/1000,N48*Worksheet!$F$86/1000),2)))) -> 0 | CL48: =-MIN(SUM(CJ48,CK48),IF($P48=0,(ROUND(Worksheet!$E$75*S48,2)+ROUND(Worksheet!$E$76*T48,2)+ROUND(Worksheet!$E$77*U48,2)+ROUND(Worksheet!$E$78*V48,2)+ROUND(Worksheet!$E$79*W48,2)+ROUND(Worksheet!$E$80*X48,2)),(ROUND(ROUND(S48*ROUND((1-$O48/$P48),4),2)*Worksheet!$E$75,2)+ROUND(ROUND(T48*ROUND((1-$O48/$P48),4),2)*Worksheet!$E$76,2)+ROUND(ROUND(U48*ROUND((1-$O48/$P48),4),2)*Worksheet!$E$77,2)+ROUND(ROUND(V48*ROUND((1-$O48/$P48),4),2)*Worksheet!$E$78,2)+ROUND(ROUND(W48*ROUND((1-$O48/$P48),4),2)*Worksheet!$E$79,2)+ROUND(ROUND(X48*ROUND((1-$O48/$P48),4),2)*Worksheet!$E$80,2)))) -> 0 | CM48: 0 | CN48: =MIN(AW48,ROUND(AO48*Worksheet!$C$104,2)+ROUND(AR48*Worksheet!$C$107,2)+ROUND(AP48*Worksheet!$C$105,2)+ROUND(AS48*Worksheet!$C$108,2)+ROUND(AQ48*Worksheet!$C$106,2)+ROUND(AT48*Worksheet!$C$109,2)+ROUND(AU48*Worksheet!$C$110,2)+ROUND(AV48*Worksheet!$C$111,2)) -> 0 | CU48: 0 | CV48: =MAX(-CN48,MIN(0,ROUND($R48*EFBPercent+EFBAdd,2)-$Q48),MIN(0,SUM($CM48:CM48)+MIN(0,ROUND($R48*EFBPercent+EFBAdd,2)-$Q48))) -> 0 | CW48: =MAX(-CO48,MIN(0,ROUND($R48*EFBPercent+EFBAdd,2)-$Q48),MIN(0,SUM($CM48:CN48)+MIN(0,ROUND($R48*EFBPercent+EFBAdd,2)-$Q48))) -> 0 | CX48: =MAX(-CP48,MIN(0,ROUND($R48*EFBPercent+EFBAdd,2)-$Q48),MIN(0,SUM($CM48:CO48)+MIN(0,ROUND($R48*EFBPercent+EFBAdd,2)-$Q48))) -> 0 | CY48: =MAX(-CQ48,MIN(0,ROUND($R48*EFBPercent+EFBAdd,2)-$Q48),MIN(0,SUM($CM48:CP48)+MIN(0,ROUND($R48*EFBPercent+EFBAdd,2)-$Q48))) -> 0 | CZ48: =MAX(-CR48,MIN(0,ROUND($R48*EFBPercent+EFBAdd,2)-$Q48),MIN(0,SUM($CM48:CQ48)+MIN(0,ROUND($R48*EFBPercent+EFBAdd,2)-$Q48))) -> 0 | DA48: =MAX(-CS48,MIN(0,ROUND($R48*EFBPercent+EFBAdd,2)-$Q48),MIN(0,SUM($CM48:CR48)+MIN(0,ROUND($R48*EFBPercent+EFBAdd,2)-$Q48))) -> 0 | DC48: 0 | DD48: 0 | DE48: 0 | DF48: 0 | DG48: 0 | DH48: 0 | DI48: 0
A49: 09-734 | B49: 2531 | C49: 0000003657 | D49: 2023 | E49: West Fargo Special Ed Unit | F49: 7 | G49: 09-734 | H49: 0 | I49: 0 | J49: 0 | K49: 0 | L49: 0 | M49: 0 | N49: 0 | O49: 0 | P49: 0 | Q49: 0 | R49: 0 | S49: 0 | T49: 0 | U49: 0 | V49: 0 | W49: 0 | X49: 0 | Y49: 0 | Z49: 0 | AA49: 0 | AB49: 0 | AC49: 0 | AD49: 0 | AE49: 0 | AF49: 0 | AG49: 0 | AH49: 0 | AI49: 0 | AJ49: 0 | AK49: 0 | AL49: 0 | AM49: 0 | AN49: 0 | AO49: 0 | AP49: 0 | AQ49: 0 | AR49: 0 | AS49: 0 | AT49: 0 | AU49: 0 | AV49: 0 | AW49: 0 | AX49: 0 | AY49: =MAX(ROUND(IF(F49<4,IF(H49=0,(SUM(Y49:AD49)*Worksheet!$E$26+Y49*Worksheet!$E$27+AN49*Worksheet!$E$39)*-BaseRate,0)),2),MIN(0,-DC49)) -> 0 | AZ49: =MAX(ROUND(IF(F49=4,0,IF(I49=0,0,ROUND(SUM(Y49:AD49)*Worksheet!$E$28,2)*-BaseRate)),2),MIN(0,-DC49-AY49)) -> 0 | BA49: 0 | BB49: 0 | BD49: 0 | BE49: 0 | BF49: =IFERROR(ROUND(IF(AND(AX49*1.12<N49*60/1000,N49/CF49<STVPP*0.2),(CF49*STVPP*0.2*Worksheet!$F$86/1000-AX49*1.12)*PropTaxAdj,IF(AX49*1.12<N49*60/1000,(N49*60/1000-AX49*1.12)*PropTaxAdj,0)),2),0) -> 0 | BG49: =ROUND(IF($F49=4,0,Y49*Worksheet!$E$16),2) -> 0 | BH49: =ROUND(IF($F49=4,0,Z49*Worksheet!$E$17),2) -> 0 | BI49: =ROUND(IF($F49=4,0,AA49*Worksheet!$E$18),2) -> 0 | BJ49: =ROUND(IF($F49=4,0,AB49*Worksheet!$E$19),2) -> 0 | BK49: =ROUND(IF($F49=4,0,AC49*Worksheet!$E$20),2) -> 0 | BL49: =ROUND(AD49*Worksheet!$E$21,2) -> 0 | BM49: 0 | BN49: =ROUND(AD49*Worksheet!$E$25,2) -> 0 | BO49: =ROUND(SUM(BM49)*Worksheet!$E$26,2) -> 0 | BP49: =ROUND(Y49*Worksheet!$E$27,2) -> 0 | BQ49: =ROUND(AE49*Worksheet!$E$29,2) -> 0 | BR49: =ROUND(AF49*Worksheet!$E$30,2) -> 0 | BS49: =ROUND(IF($I49<>0,$BM49*Worksheet!$E$28,0),2) -> 0 | BT49: =ROUND(AG49*Worksheet!$E$31,2) -> 0 | BU49: =ROUND(AH49*Worksheet!$E$32,2) -> 0 | BV49: =ROUND(AI49*Worksheet!$E$33,2) -> 0 | BW49: =ROUND(ROUND(AJ49*BM49,2)*Worksheet!$E$34,2) -> 0 | BX49: =ROUND(AK49*Worksheet!$E$35,2) -> 0 | BY49: =ROUND(AL49*Worksheet!$E$36,2) -> 0 | BZ49: =ROUND(AM49*Worksheet!$E$38,2) -> 0 | CA49: =ROUND(AN49*Worksheet!$E$39,2) -> 0 | CB49: =IF(AND(L49>275,SUM(Y49:AD49)<100),ROUND(SUM(Y49:AD49)*Worksheet!$E$41,2),0) -> 0 | CC49: =IF(AND(L49>600,SUM(Y49:AD49)<50),ROUND((50-SUM(Y49:AD49))*(Worksheet!$E$41+1),2),0) -> 0 | CD49: 0 | CE49: 0 | CF49: 0 | CG49: 0 | CH49: =MIN(ROUND(BE49*CF49*Worksheet!$D$124,2),CG49)-CG49 -> 0 | CI49: =ROUND(IF(F49=4,0,(MAX(ROUND(MAX((BE49*MIN(CF49,K49)*Worksheet!$D$127)+MAX(CF49-K49,0)*Worksheet!$F$47,SUM(J49)),2),SUM(CG49:CH49))-SUM(CG49:CH49))*MinAdj),2) -> 0 | CJ49: 0 | CK49: =IF(CF49=0,0,-MIN(CJ49,ROUND(AX49*1.12+BF49,2),MIN(CJ49,ROUND(IF(ROUND(IF(CF49=0,0,N49/CF49),2)<STVPP*0.2,STVPP*0.2*CF49*Worksheet!$F$86/1000,N49*Worksheet!$F$86/1000),2)))) -> 0 | CL49: =-MIN(SUM(CJ49,CK49),IF($P49=0,(ROUND(Worksheet!$E$75*S49,2)+ROUND(Worksheet!$E$76*T49,2)+ROUND(Worksheet!$E$77*U49,2)+ROUND(Worksheet!$E$78*V49,2)+ROUND(Worksheet!$E$79*W49,2)+ROUND(Worksheet!$E$80*X49,2)),(ROUND(ROUND(S49*ROUND((1-$O49/$P49),4),2)*Worksheet!$E$75,2)+ROUND(ROUND(T49*ROUND((1-$O49/$P49),4),2)*Worksheet!$E$76,2)+ROUND(ROUND(U49*ROUND((1-$O49/$P49),4),2)*Worksheet!$E$77,2)+ROUND(ROUND(V49*ROUND((1-$O49/$P49),4),2)*Worksheet!$E$78,2)+ROUND(ROUND(W49*ROUND((1-$O49/$P49),4),2)*Worksheet!$E$79,2)+ROUND(ROUND(X49*ROUND((1-$O49/$P49),4),2)*Worksheet!$E$80,2)))) -> 0 | CM49: 0 | CN49: =MIN(AW49,ROUND(AO49*Worksheet!$C$104,2)+ROUND(AR49*Worksheet!$C$107,2)+ROUND(AP49*Worksheet!$C$105,2)+ROUND(AS49*Worksheet!$C$108,2)+ROUND(AQ49*Worksheet!$C$106,2)+ROUND(AT49*Worksheet!$C$109,2)+ROUND(AU49*Worksheet!$C$110,2)+ROUND(AV49*Worksheet!$C$111,2)) -> 0 | CU49: 0 | CV49: =MAX(-CN49,MIN(0,ROUND($R49*EFBPercent+EFBAdd,2)-$Q49),MIN(0,SUM($CM49:CM49)+MIN(0,ROUND($R49*EFBPercent+EFBAdd,2)-$Q49))) -> 0 | CW49: =MAX(-CO49,MIN(0,ROUND($R49*EFBPercent+EFBAdd,2)-$Q49),MIN(0,SUM($CM49:CN49)+MIN(0,ROUND($R49*EFBPercent+EFBAdd,2)-$Q49))) -> 0 | CX49: =MAX(-CP49,MIN(0,ROUND($R49*EFBPercent+EFBAdd,2)-$Q49),MIN(0,SUM($CM49:CO49)+MIN(0,ROUND($R49*EFBPercent+EFBAdd,2)-$Q49))) -> 0 | CY49: =MAX(-CQ49,MIN(0,ROUND($R49*EFBPercent+EFBAdd,2)-$Q49),MIN(0,SUM($CM49:CP49)+MIN(0,ROUND($R49*EFBPercent+EFBAdd,2)-$Q49))) -> 0 | CZ49: =MAX(-CR49,MIN(0,ROUND($R49*EFBPercent+EFBAdd,2)-$Q49),MIN(0,SUM($CM49:CQ49)+MIN(0,ROUND($R49*EFBPercent+EFBAdd,2)-$Q49))) -> 0 | DA49: =MAX(-CS49,MIN(0,ROUND($R49*EFBPercent+EFBAdd,2)-$Q49),MIN(0,SUM($CM49:CR49)+MIN(0,ROUND($R49*EFBPercent+EFBAdd,2)-$Q49))) -> 0 | DC49: 0 | DD49: 0 | DE49: 0 | DF49: 0 | DG49: 0 | DH49: 0 | DI49: 0
A50: 10-019 | B50: 1112 | C50: 0000008549 | D50: 2023 | E50: Munich 19 | F50: 1 | G50: 36-714 | H50: 0 | I50: 36-370 | J50: 2239547.11 | K50: 156.9 | L50: 492.97 | M50: 0 | N50: 13115412 | O50: 0 | P50: 73.47 | Q50: 0 | R50: 0 | S50: 400 | T50: 0 | U50: 0 | V50: 2366.49 | W50: 3338.94 | X50: 7354.94 | Y50: 0.06 | Z50: 4 | AA50: 45 | AB50: 11 | AC50: 19 | AD50: 0 | AE50: 3.31 | AF50: 0 | AG50: 0 | AH50: 0 | AI50: 0 | AJ50: 0.176 | AK50: 0 | AL50: 0 | AM50: 0.35 | AN50: 0 | AO50: 0 | AP50: 86800 | AQ50: 20300 | AR50: 0 | AS50: 2800 | AT50: 11900 | AU50: 0 | AV50: 0 | AW50: 141275.3 | AX50: 792685.8 | AY50: =MAX(ROUND(IF(F50<4,IF(H50=0,(SUM(Y50:AD50)*Worksheet!$E$26+Y50*Worksheet!$E$27+AN50*Worksheet!$E$39)*-BaseRate,0)),2),MIN(0,-DC50)) -> -66470.07 | AZ50: =MAX(ROUND(IF(F50=4,0,IF(I50=0,0,ROUND(SUM(Y50:AD50)*Worksheet!$E$28,2)*-BaseRate)),2),MIN(0,-DC50-AY50)) -> -1637.92 | BA50: 2514 | BB50: 1405 | BD50: 93089.73 | BE50: 14273.72 | BF50: =IFERROR(ROUND(IF(AND(AX50*1.12<N50*60/1000,N50/CF50<STVPP*0.2),(CF50*STVPP*0.2*Worksheet!$F$86/1000-AX50*1.12)*PropTaxAdj,IF(AX50*1.12<N50*60/1000,(N50*60/1000-AX50*1.12)*PropTaxAdj,0)),2),0) -> 0 | BG50: =ROUND(IF($F50=4,0,Y50*Worksheet!$E$16),2) -> 0.06 | BH50: =ROUND(IF($F50=4,0,Z50*Worksheet!$E$17),2) -> 4 | BI50: =ROUND(IF($F50=4,0,AA50*Worksheet!$E$18),2) -> 45 | BJ50: =ROUND(IF($F50=4,0,AB50*Worksheet!$E$19),2) -> 11 | BK50: =ROUND(IF($F50=4,0,AC50*Worksheet!$E$20),2) -> 19 | BL50: =ROUND(AD50*Worksheet!$E$21,2) -> 0 | BM50: 79.06 | BN50: =ROUND(AD50*Worksheet!$E$25,2) -> 0 | BO50: =ROUND(SUM(BM50)*Worksheet!$E$26,2) -> 6.48 | BP50: =ROUND(Y50*Worksheet!$E$27,2) -> 0.01 | BQ50: =ROUND(AE50*Worksheet!$E$29,2) -> 2.32 | BR50: =ROUND(AF50*Worksheet!$E$30,2) -> 0 | BS50: =ROUND(IF($I50<>0,$BM50*Worksheet!$E$28,0),2) -> 0.16 | BT50: =ROUND(AG50*Worksheet!$E$31,2) -> 0 | BU50: =ROUND(AH50*Worksheet!$E$32,2) -> 0 | BV50: =ROUND(AI50*Worksheet!$E$33,2) -> 0 | BW50: =ROUND(ROUND(AJ50*BM50,2)*Worksheet!$E$34,2) -> 0.35 | BX50: =ROUND(AK50*Worksheet!$E$35,2) -> 0 | BY50: =ROUND(AL50*Worksheet!$E$36,2) -> 0 | BZ50: =ROUND(AM50*Worksheet!$E$38,2) -> 0.21 | CA50: =ROUND(AN50*Worksheet!$E$39,2) -> 0 | CB50: =IF(AND(L50>275,SUM(Y50:AD50)<100),ROUND(SUM(Y50:AD50)*Worksheet!$E$41,2),0) -> 7.91 | CC50: =IF(AND(L50>600,SUM(Y50:AD50)<50),ROUND((50-SUM(Y50:AD50))*(Worksheet!$E$41+1),2),0) -> 0 | CD50: 96.5 | CE50: 1.46 | CF50: 140.89 | CG50: 1442290.93 | CH50: =MIN(ROUND(BE50*CF50*Worksheet!$D$124,2),CG50)-CG50 -> 0 | CI50: =ROUND(IF(F50=4,0,(MAX(ROUND(MAX((BE50*MIN(CF50,K50)*Worksheet!$D$127)+MAX(CF50-K50,0)*Worksheet!$F$47,SUM(J50)),2),SUM(CG50:CH50))-SUM(CG50:CH50))*MinAdj),2) -> 558079.33 | CJ50: 2000370.26 | CK50: =IF(CF50=0,0,-MIN(CJ50,ROUND(AX50*1.12+BF50,2),MIN(CJ50,ROUND(IF(ROUND(IF(CF50=0,0,N50/CF50),2)<STVPP*0.2,STVPP*0.2*CF50*Worksheet!$F$86/1000,N50*Worksheet!$F$86/1000),2)))) -> -786924.72 | CL50: =-MIN(SUM(CJ50,CK50),IF($P50=0,(ROUND(Worksheet!$E$75*S50,2)+ROUND(Worksheet!$E$76*T50,2)+ROUND(Worksheet!$E$77*U50,2)+ROUND(Worksheet!$E$78*V50,2)+ROUND(Worksheet!$E$79*W50,2)+ROUND(Worksheet!$E$80*X50,2)),(ROUND(ROUND(S50*ROUND((1-$O50/$P50),4),2)*Worksheet!$E$75,2)+ROUND(ROUND(T50*ROUND((1-$O50/$P50),4),2)*Worksheet!$E$76,2)+ROUND(ROUND(U50*ROUND((1-$O50/$P50),4),2)*Worksheet!$E$77,2)+ROUND(ROUND(V50*ROUND((1-$O50/$P50),4),2)*Worksheet!$E$78,2)+ROUND(ROUND(W50*ROUND((1-$O50/$P50),4),2)*Worksheet!$E$79,2)+ROUND(ROUND(X50*ROUND((1-$O50/$P50),4),2)*Worksheet!$E$80,2)))) -> -10095.29 | CM50: 1203350.25 | CN50: =MIN(AW50,ROUND(AO50*Worksheet!$C$104,2)+ROUND(AR50*Worksheet!$C$107,2)+ROUND(AP50*Worksheet!$C$105,2)+ROUND(AS50*Worksheet!$C$108,2)+ROUND(AQ50*Worksheet!$C$106,2)+ROUND(AT50*Worksheet!$C$109,2)+ROUND(AU50*Worksheet!$C$110,2)+ROUND(AV50*Worksheet!$C$111,2)) -> 109116 | CU50: 0 | CV50: =MAX(-CN50,MIN(0,ROUND($R50*EFBPercent+EFBAdd,2)-$Q50),MIN(0,SUM($CM50:CM50)+MIN(0,ROUND($R50*EFBPercent+EFBAdd,2)-$Q50))) -> 0 | CW50: =MAX(-CO50,MIN(0,ROUND($R50*EFBPercent+EFBAdd,2)-$Q50),MIN(0,SUM($CM50:CN50)+MIN(0,ROUND($R50*EFBPercent+EFBAdd,2)-$Q50))) -> 0 | CX50: =MAX(-CP50,MIN(0,ROUND($R50*EFBPercent+EFBAdd,2)-$Q50),MIN(0,SUM($CM50:CO50)+MIN(0,ROUND($R50*EFBPercent+EFBAdd,2)-$Q50))) -> 0 | CY50: =MAX(-CQ50,MIN(0,ROUND($R50*EFBPercent+EFBAdd,2)-$Q50),MIN(0,SUM($CM50:CP50)+MIN(0,ROUND($R50*EFBPercent+EFBAdd,2)-$Q50))) -> 0 | CZ50: =MAX(-CR50,MIN(0,ROUND($R50*EFBPercent+EFBAdd,2)-$Q50),MIN(0,SUM($CM50:CQ50)+MIN(0,ROUND($R50*EFBPercent+EFBAdd,2)-$Q50))) -> 0 | DA50: =MAX(-CS50,MIN(0,ROUND($R50*EFBPercent+EFBAdd,2)-$Q50),MIN(0,SUM($CM50:CR50)+MIN(0,ROUND($R50*EFBPercent+EFBAdd,2)-$Q50))) -> 0 | DC50: 1203350.25 | DD50: 109116 | DE50: 0 | DF50: 0 | DG50: 0 | DH50: 0 | DI50: 0
A51: 10-023 | B51: 1078 | C51: 0000008505 | D51: 2023 | E51: Langdon Area 23 | F51: 1 | G51: 36-714 | H51: 0 | I51: 36-370 | J51: 4495561.92 | K51: 436.18 | L51: 919.75 | M51: 0 | N51: 38864337 | O51: 0 | P51: 88 | Q51: 0 | R51: 0 | S51: 0 | T51: 0 | U51: 0 | V51: 10792.52 | W51: 18578.18 | X51: 31922.8 | Y51: 2.4 | Z51: 29 | AA51: 178 | AB51: 60 | AC51: 114 | AD51: 0 | AE51: 24.69 | AF51: 0 | AG51: 0 | AH51: 0 | AI51: 0 | AJ51: 0.261 | AK51: 0 | AL51: 0 | AM51: 1.05 | AN51: 0 | AO51: 0 | AP51: 111758 | AQ51: 47056 | AR51: 0 | AS51: 0 | AT51: 0 | AU51: 3550 | AV51: 0 | AW51: 232586.32 | AX51: 2344066.62 | AY51: =MAX(ROUND(IF(F51<4,IF(H51=0,(SUM(Y51:AD51)*Worksheet!$E$26+Y51*Worksheet!$E$27+AN51*Worksheet!$E$39)*-BaseRate,0)),2),MIN(0,-DC51)) -> -326015.69 | AZ51: =MAX(ROUND(IF(F51=4,0,IF(I51=0,0,ROUND(SUM(Y51:AD51)*Worksheet!$E$28,2)*-BaseRate)),2),MIN(0,-DC51-AY51)) -> -7882.49 | BA51: 2514 | BB51: 1405 | BD51: 85568.46 | BE51: 10306.67 | BF51: =IFERROR(ROUND(IF(AND(AX51*1.12<N51*60/1000,N51/CF51<STVPP*0.2),(CF51*STVPP*0.2*Worksheet!$F$86/1000-AX51*1.12)*PropTaxAdj,IF(AX51*1.12<N51*60/1000,(N51*60/1000-AX51*1.12)*PropTaxAdj,0)),2),0) -> 0 | BG51: =ROUND(IF($F51=4,0,Y51*Worksheet!$E$16),2) -> 2.4 | BH51: =ROUND(IF($F51=4,0,Z51*Worksheet!$E$17),2) -> 29 | BI51: =ROUND(IF($F51=4,0,AA51*Worksheet!$E$18),2) -> 178 | BJ51: =ROUND(IF($F51=4,0,AB51*Worksheet!$E$19),2) -> 60 | BK51: =ROUND(IF($F51=4,0,AC51*Worksheet!$E$20),2) -> 114 | BL51: =ROUND(AD51*Worksheet!$E$21,2) -> 0 | BM51: 383.4 | BN51: =ROUND(AD51*Worksheet!$E$25,2) -> 0 | BO51: =ROUND(SUM(BM51)*Worksheet!$E$26,2) -> 31.44 | BP51: =ROUND(Y51*Worksheet!$E$27,2) -> 0.41 | BQ51: =ROUND(AE51*Worksheet!$E$29,2) -> 17.28 | BR51: =ROUND(AF51*Worksheet!$E$30,2) -> 0 | BS51: =ROUND(IF($I51<>0,$BM51*Worksheet!$E$28,0),2) -> 0.77 | BT51: =ROUND(AG51*Worksheet!$E$31,2) -> 0 | BU51: =ROUND(AH51*Worksheet!$E$32,2) -> 0 | BV51: =ROUND(AI51*Worksheet!$E$33,2) -> 0 | BW51: =ROUND(ROUND(AJ51*BM51,2)*Worksheet!$E$34,2) -> 2.5 | BX51: =ROUND(AK51*Worksheet!$E$35,2) -> 0 | BY51: =ROUND(AL51*Worksheet!$E$36,2) -> 0 | BZ51: =ROUND(AM51*Worksheet!$E$38,2) -> 0.63 | CA51: =ROUND(AN51*Worksheet!$E$39,2) -> 0 | CB51: =IF(AND(L51>275,SUM(Y51:AD51)<100),ROUND(SUM(Y51:AD51)*Worksheet!$E$41,2),0) -> 0 | CC51: =IF(AND(L51>600,SUM(Y51:AD51)<50),ROUND((50-SUM(Y51:AD51))*(Worksheet!$E$41+1),2),0) -> 0 | CD51: 436.43 | CE51: 1.0407 | CF51: 454.19 | CG51: 4649543.03 | CH51: =MIN(ROUND(BE51*CF51*Worksheet!$D$124,2),CG51)-CG51 -> 0 | CI51: =ROUND(IF(F51=4,0,(MAX(ROUND(MAX((BE51*MIN(CF51,K51)*Worksheet!$D$127)+MAX(CF51-K51,0)*Worksheet!$F$47,SUM(J51)),2),SUM(CG51:CH51))-SUM(CG51:CH51))*MinAdj),2) -> 84209.95 | CJ51: 4733752.98 | CK51: =IF(CF51=0,0,-MIN(CJ51,ROUND(AX51*1.12+BF51,2),MIN(CJ51,ROUND(IF(ROUND(IF(CF51=0,0,N51/CF51),2)<STVPP*0.2,STVPP*0.2*CF51*Worksheet!$F$86/1000,N51*Worksheet!$F$86/1000),2)))) -> -2331860.22 | CL51: =-MIN(SUM(CJ51,CK51),IF($P51=0,(ROUND(Worksheet!$E$75*S51,2)+ROUND(Worksheet!$E$76*T51,2)+ROUND(Worksheet!$E$77*U51,2)+ROUND(Worksheet!$E$78*V51,2)+ROUND(Worksheet!$E$79*W51,2)+ROUND(Worksheet!$E$80*X51,2)),(ROUND(ROUND(S51*ROUND((1-$O51/$P51),4),2)*Worksheet!$E$75,2)+ROUND(ROUND(T51*ROUND((1-$O51/$P51),4),2)*Worksheet!$E$76,2)+ROUND(ROUND(U51*ROUND((1-$O51/$P51),4),2)*Worksheet!$E$77,2)+ROUND(ROUND(V51*ROUND((1-$O51/$P51),4),2)*Worksheet!$E$78,2)+ROUND(ROUND(W51*ROUND((1-$O51/$P51),4),2)*Worksheet!$E$79,2)+ROUND(ROUND(X51*ROUND((1-$O51/$P51),4),2)*Worksheet!$E$80,2)))) -> -45970.13 | CM51: 2355922.63 | CN51: =MIN(AW51,ROUND(AO51*Worksheet!$C$104,2)+ROUND(AR51*Worksheet!$C$107,2)+ROUND(AP51*Worksheet!$C$105,2)+ROUND(AS51*Worksheet!$C$108,2)+ROUND(AQ51*Worksheet!$C$106,2)+ROUND(AT51*Worksheet!$C$109,2)+ROUND(AU51*Worksheet!$C$110,2)+ROUND(AV51*Worksheet!$C$111,2)) -> 139055.68 | CU51: 0 | CV51: =MAX(-CN51,MIN(0,ROUND($R51*EFBPercent+EFBAdd,2)-$Q51),MIN(0,SUM($CM51:CM51)+MIN(0,ROUND($R51*EFBPercent+EFBAdd,2)-$Q51))) -> 0 | CW51: =MAX(-CO51,MIN(0,ROUND($R51*EFBPercent+EFBAdd,2)-$Q51),MIN(0,SUM($CM51:CN51)+MIN(0,ROUND($R51*EFBPercent+EFBAdd,2)-$Q51))) -> 0 | CX51: =MAX(-CP51,MIN(0,ROUND($R51*EFBPercent+EFBAdd,2)-$Q51),MIN(0,SUM($CM51:CO51)+MIN(0,ROUND($R51*EFBPercent+EFBAdd,2)-$Q51))) -> 0 | CY51: =MAX(-CQ51,MIN(0,ROUND($R51*EFBPercent+EFBAdd,2)-$Q51),MIN(0,SUM($CM51:CP51)+MIN(0,ROUND($R51*EFBPercent+EFBAdd,2)-$Q51))) -> 0 | CZ51: =MAX(-CR51,MIN(0,ROUND($R51*EFBPercent+EFBAdd,2)-$Q51),MIN(0,SUM($CM51:CQ51)+MIN(0,ROUND($R51*EFBPercent+EFBAdd,2)-$Q51))) -> 0 | DA51: =MAX(-CS51,MIN(0,ROUND($R51*EFBPercent+EFBAdd,2)-$Q51),MIN(0,SUM($CM51:CR51)+MIN(0,ROUND($R51*EFBPercent+EFBAdd,2)-$Q51))) -> 0 | DC51: 2355922.63 | DD51: 139055.68 | DE51: 0 | DF51: 0 | DG51: 0 | DH51: 0 | DI51: 0
A52: 11-040 | B52: 1035 | C52: 0000009031 | D52: 2023 | E52: Ellendale 40 | F52: 1 | G52: 47-702 | H52: 0 | I52: 09-375 | J52: 3943445.39 | K52: 403.91 | L52: 504.49 | M52: 0 | N52: 19229600 | O52: 17.08 | P52: 92.56 | Q52: 0 | R52: 0 | S52: 1760 | T52: 0 | U52: 0 | V52: 15949.53 | W52: 22454.66 | X52: 14195.2 | Y52: 0.87 | Z52: 23 | AA52: 149 | AB52: 44 | AC52: 81 | AD52: 0 | AE52: 0 | AF52: 0 | AG52: 2.11 | AH52: 6 | AI52: 7 | AJ52: 0.259 | AK52: 0 | AL52: 0 | AM52: 14.19 | AN52: 0 | AO52: 0 | AP52: 92400 | AQ52: 48300 | AR52: 0 | AS52: 0 | AT52: 0 | AU52: 0 | AV52: 0 | AW52: 260215.95 | AX52: 1151988.24 | AY52: =MAX(ROUND(IF(F52<4,IF(H52=0,(SUM(Y52:AD52)*Worksheet!$E$26+Y52*Worksheet!$E$27+AN52*Worksheet!$E$39)*-BaseRate,0)),2),MIN(0,-DC52)) -> -251556.26 | AZ52: =MAX(ROUND(IF(F52=4,0,IF(I52=0,0,ROUND(SUM(Y52:AD52)*Worksheet!$E$28,2)*-BaseRate)),2),MIN(0,-DC52-AY52)) -> -6142.2 | BA52: 2512 | BB52: 1408 | BD52: 50570.94 | BE52: 9763.18 | BF52: =IFERROR(ROUND(IF(AND(AX52*1.12<N52*60/1000,N52/CF52<STVPP*0.2),(CF52*STVPP*0.2*Worksheet!$F$86/1000-AX52*1.12)*PropTaxAdj,IF(AX52*1.12<N52*60/1000,(N52*60/1000-AX52*1.12)*PropTaxAdj,0)),2),0) -> 0 | BG52: =ROUND(IF($F52=4,0,Y52*Worksheet!$E$16),2) -> 0.87 | BH52: =ROUND(IF($F52=4,0,Z52*Worksheet!$E$17),2) -> 23 | BI52: =ROUND(IF($F52=4,0,AA52*Worksheet!$E$18),2) -> 149 | BJ52: =ROUND(IF($F52=4,0,AB52*Worksheet!$E$19),2) -> 44 | BK52: =ROUND(IF($F52=4,0,AC52*Worksheet!$E$20),2) -> 81 | BL52: =ROUND(AD52*Worksheet!$E$21,2) -> 0 | BM52: 297.87 | BN52: =ROUND(AD52*Worksheet!$E$25,2) -> 0 | BO52: =ROUND(SUM(BM52)*Worksheet!$E$26,2) -> 24.43 | BP52: =ROUND(Y52*Worksheet!$E$27,2) -> 0.15 | BQ52: =ROUND(AE52*Worksheet!$E$29,2) -> 0 | BR52: =ROUND(AF52*Worksheet!$E$30,2) -> 0 | BS52: =ROUND(IF($I52<>0,$BM52*Worksheet!$E$28,0),2) -> 0.6 | BT52: =ROUND(AG52*Worksheet!$E$31,2) -> 0.84 | BU52: =ROUND(AH52*Worksheet!$E$32,2) -> 1.68 | BV52: =ROUND(AI52*Worksheet!$E$33,2) -> 0.49 | BW52: =ROUND(ROUND(AJ52*BM52,2)*Worksheet!$E$34,2) -> 1.93 | BX52: =ROUND(AK52*Worksheet!$E$35,2) -> 0 | BY52: =ROUND(AL52*Worksheet!$E$36,2) -> 0 | BZ52: =ROUND(AM52*Worksheet!$E$38,2) -> 8.51 | CA52: =ROUND(AN52*Worksheet!$E$39,2) -> 0 | CB52: =IF(AND(L52>275,SUM(Y52:AD52)<100),ROUND(SUM(Y52:AD52)*Worksheet!$E$41,2),0) -> 0 | CC52: =IF(AND(L52>600,SUM(Y52:AD52)<50),ROUND((50-SUM(Y52:AD52))*(Worksheet!$E$41+1),2),0) -> 0 | CD52: 336.5 | CE52: 1.13 | CF52: 380.25 | CG52: 3892619.25 | CH52: =MIN(ROUND(BE52*CF52*Worksheet!$D$124,2),CG52)-CG52 -> 0 | CI52: =ROUND(IF(F52=4,0,(MAX(ROUND(MAX((BE52*MIN(CF52,K52)*Worksheet!$D$127)+MAX(CF52-K52,0)*Worksheet!$F$47,SUM(J52)),2),SUM(CG52:CH52))-SUM(CG52:CH52))*MinAdj),2) -> 35578.3 | CJ52: 3928197.55 | CK52: =IF(CF52=0,0,-MIN(CJ52,ROUND(AX52*1.12+BF52,2),MIN(CJ52,ROUND(IF(ROUND(IF(CF52=0,0,N52/CF52),2)<STVPP*0.2,STVPP*0.2*CF52*Worksheet!$F$86/1000,N52*Worksheet!$F$86/1000),2)))) -> -1153776 | CL52: =-MIN(SUM(CJ52,CK52),IF($P52=0,(ROUND(Worksheet!$E$75*S52,2)+ROUND(Worksheet!$E$76*T52,2)+ROUND(Worksheet!$E$77*U52,2)+ROUND(Worksheet!$E$78*V52,2)+ROUND(Worksheet!$E$79*W52,2)+ROUND(Worksheet!$E$80*X52,2)),(ROUND(ROUND(S52*ROUND((1-$O52/$P52),4),2)*Worksheet!$E$75,2)+ROUND(ROUND(T52*ROUND((1-$O52/$P52),4),2)*Worksheet!$E$76,2)+ROUND(ROUND(U52*ROUND((1-$O52/$P52),4),2)*Worksheet!$E$77,2)+ROUND(ROUND(V52*ROUND((1-$O52/$P52),4),2)*Worksheet!$E$78,2)+ROUND(ROUND(W52*ROUND((1-$O52/$P52),4),2)*Worksheet!$E$79,2)+ROUND(ROUND(X52*ROUND((1-$O52/$P52),4),2)*Worksheet!$E$80,2)))) -> -33247.57 | CM52: 2741173.98 | CN52: =MIN(AW52,ROUND(AO52*Worksheet!$C$104,2)+ROUND(AR52*Worksheet!$C$107,2)+ROUND(AP52*Worksheet!$C$105,2)+ROUND(AS52*Worksheet!$C$108,2)+ROUND(AQ52*Worksheet!$C$106,2)+ROUND(AT52*Worksheet!$C$109,2)+ROUND(AU52*Worksheet!$C$110,2)+ROUND(AV52*Worksheet!$C$111,2)) -> 117054 | CU52: 0 | CV52: =MAX(-CN52,MIN(0,ROUND($R52*EFBPercent+EFBAdd,2)-$Q52),MIN(0,SUM($CM52:CM52)+MIN(0,ROUND($R52*EFBPercent+EFBAdd,2)-$Q52))) -> 0 | CW52: =MAX(-CO52,MIN(0,ROUND($R52*EFBPercent+EFBAdd,2)-$Q52),MIN(0,SUM($CM52:CN52)+MIN(0,ROUND($R52*EFBPercent+EFBAdd,2)-$Q52))) -> 0 | CX52: =MAX(-CP52,MIN(0,ROUND($R52*EFBPercent+EFBAdd,2)-$Q52),MIN(0,SUM($CM52:CO52)+MIN(0,ROUND($R52*EFBPercent+EFBAdd,2)-$Q52))) -> 0 | CY52: =MAX(-CQ52,MIN(0,ROUND($R52*EFBPercent+EFBAdd,2)-$Q52),MIN(0,SUM($CM52:CP52)+MIN(0,ROUND($R52*EFBPercent+EFBAdd,2)-$Q52))) -> 0 | CZ52: =MAX(-CR52,MIN(0,ROUND($R52*EFBPercent+EFBAdd,2)-$Q52),MIN(0,SUM($CM52:CQ52)+MIN(0,ROUND($R52*EFBPercent+EFBAdd,2)-$Q52))) -> 0 | DA52: =MAX(-CS52,MIN(0,ROUND($R52*EFBPercent+EFBAdd,2)-$Q52),MIN(0,SUM($CM52:CR52)+MIN(0,ROUND($R52*EFBPercent+EFBAdd,2)-$Q52))) -> 0 | DC52: 2741173.98 | DD52: 117054 | DE52: 0 | DF52: 0 | DG52: 0 | DH52: 0 | DI52: 0
A53: 11-041 | B53: 1128 | C53: 0000008575 | D53: 2023 | E53: Oakes 41 | F53: 1 | G53: 02-727 | H53: 0 | I53: 09-375 | J53: 5288515.96 | K53: 548.26 | L53: 497.5 | M53: 0 | N53: 22274121 | O53: 0 | P53: 79.27 | Q53: 0 | R53: 0 | S53: 0 | T53: 0 | U53: 0 | V53: 14473.94 | W53: 31734.36 | X53: 15813.83 | Y53: 4.71 | Z53: 34 | AA53: 235 | AB53: 79 | AC53: 154 | AD53: 0 | AE53: 0 | AF53: 0 | AG53: 1 | AH53: 0 | AI53: 0 | AJ53: 0.253 | AK53: 0 | AL53: 0 | AM53: 30.9 | AN53: 0.06 | AO53: 0 | AP53: 164624 | AQ53: 107294 | AR53: 0 | AS53: 0 | AT53: 0 | AU53: 0 | AV53: 0 | AW53: 324200.3 | AX53: 1337995.44 | AY53: =MAX(ROUND(IF(F53<4,IF(H53=0,(SUM(Y53:AD53)*Worksheet!$E$26+Y53*Worksheet!$E$27+AN53*Worksheet!$E$39)*-BaseRate,0)),2),MIN(0,-DC53)) -> -434160.59 | AZ53: =MAX(ROUND(IF(F53=4,0,IF(I53=0,0,ROUND(SUM(Y53:AD53)*Worksheet!$E$28,2)*-BaseRate)),2),MIN(0,-DC53-AY53)) -> -10339.37 | BA53: 2522 | BB53: 1408 | BD53: 38158.26 | BE53: 9646 | BF53: =IFERROR(ROUND(IF(AND(AX53*1.12<N53*60/1000,N53/CF53<STVPP*0.2),(CF53*STVPP*0.2*Worksheet!$F$86/1000-AX53*1.12)*PropTaxAdj,IF(AX53*1.12<N53*60/1000,(N53*60/1000-AX53*1.12)*PropTaxAdj,0)),2),0) -> 0 | BG53: =ROUND(IF($F53=4,0,Y53*Worksheet!$E$16),2) -> 4.71 | BH53: =ROUND(IF($F53=4,0,Z53*Worksheet!$E$17),2) -> 34 | BI53: =ROUND(IF($F53=4,0,AA53*Worksheet!$E$18),2) -> 235 | BJ53: =ROUND(IF($F53=4,0,AB53*Worksheet!$E$19),2) -> 79 | BK53: =ROUND(IF($F53=4,0,AC53*Worksheet!$E$20),2) -> 154 | BL53: =ROUND(AD53*Worksheet!$E$21,2) -> 0 | BM53: 506.71 | BN53: =ROUND(AD53*Worksheet!$E$25,2) -> 0 | BO53: =ROUND(SUM(BM53)*Worksheet!$E$26,2) -> 41.55 | BP53: =ROUND(Y53*Worksheet!$E$27,2) -> 0.8 | BQ53: =ROUND(AE53*Worksheet!$E$29,2) -> 0 | BR53: =ROUND(AF53*Worksheet!$E$30,2) -> 0 | BS53: =ROUND(IF($I53<>0,$BM53*Worksheet!$E$28,0),2) -> 1.01 | BT53: =ROUND(AG53*Worksheet!$E$31,2) -> 0.4 | BU53: =ROUND(AH53*Worksheet!$E$32,2) -> 0 | BV53: =ROUND(AI53*Worksheet!$E$33,2) -> 0 | BW53: =ROUND(ROUND(AJ53*BM53,2)*Worksheet!$E$34,2) -> 3.21 | BX53: =ROUND(AK53*Worksheet!$E$35,2) -> 0 | BY53: =ROUND(AL53*Worksheet!$E$36,2) -> 0 | BZ53: =ROUND(AM53*Worksheet!$E$38,2) -> 18.54 | CA53: =ROUND(AN53*Worksheet!$E$39,2) -> 0.06 | CB53: =IF(AND(L53>275,SUM(Y53:AD53)<100),ROUND(SUM(Y53:AD53)*Worksheet!$E$41,2),0) -> 0 | CC53: =IF(AND(L53>600,SUM(Y53:AD53)<50),ROUND((50-SUM(Y53:AD53))*(Worksheet!$E$41+1),2),0) -> 0 | CD53: 572.28 | CE53: 1.02 | CF53: 583.73 | CG53: 5975644.01 | CH53: =MIN(ROUND(BE53*CF53*Worksheet!$D$124,2),CG53)-CG53 -> 0 | CI53: =ROUND(IF(F53=4,0,(MAX(ROUND(MAX((BE53*MIN(CF53,K53)*Worksheet!$D$127)+MAX(CF53-K53,0)*Worksheet!$F$47,SUM(J53)),2),SUM(CG53:CH53))-SUM(CG53:CH53))*MinAdj),2) -> 0 | CJ53: 5975644.01 | CK53: =IF(CF53=0,0,-MIN(CJ53,ROUND(AX53*1.12+BF53,2),MIN(CJ53,ROUND(IF(ROUND(IF(CF53=0,0,N53/CF53),2)<STVPP*0.2,STVPP*0.2*CF53*Worksheet!$F$86/1000,N53*Worksheet!$F$86/1000),2)))) -> -1336447.26 | CL53: =-MIN(SUM(CJ53,CK53),IF($P53=0,(ROUND(Worksheet!$E$75*S53,2)+ROUND(Worksheet!$E$76*T53,2)+ROUND(Worksheet!$E$77*U53,2)+ROUND(Worksheet!$E$78*V53,2)+ROUND(Worksheet!$E$79*W53,2)+ROUND(Worksheet!$E$80*X53,2)),(ROUND(ROUND(S53*ROUND((1-$O53/$P53),4),2)*Worksheet!$E$75,2)+ROUND(ROUND(T53*ROUND((1-$O53/$P53),4),2)*Worksheet!$E$76,2)+ROUND(ROUND(U53*ROUND((1-$O53/$P53),4),2)*Worksheet!$E$77,2)+ROUND(ROUND(V53*ROUND((1-$O53/$P53),4),2)*Worksheet!$E$78,2)+ROUND(ROUND(W53*ROUND((1-$O53/$P53),4),2)*Worksheet!$E$79,2)+ROUND(ROUND(X53*ROUND((1-$O53/$P53),4),2)*Worksheet!$E$80,2)))) -> -46516.6 | CM53: 4592680.15 | CN53: =MIN(AW53,ROUND(AO53*Worksheet!$C$104,2)+ROUND(AR53*Worksheet!$C$107,2)+ROUND(AP53*Worksheet!$C$105,2)+ROUND(AS53*Worksheet!$C$108,2)+ROUND(AQ53*Worksheet!$C$106,2)+ROUND(AT53*Worksheet!$C$109,2)+ROUND(AU53*Worksheet!$C$110,2)+ROUND(AV53*Worksheet!$C$111,2)) -> 214920.84 | CU53: 0 | CV53: =MAX(-CN53,MIN(0,ROUND($R53*EFBPercent+EFBAdd,2)-$Q53),MIN(0,SUM($CM53:CM53)+MIN(0,ROUND($R53*EFBPercent+EFBAdd,2)-$Q53))) -> 0 | CW53: =MAX(-CO53,MIN(0,ROUND($R53*EFBPercent+EFBAdd,2)-$Q53),MIN(0,SUM($CM53:CN53)+MIN(0,ROUND($R53*EFBPercent+EFBAdd,2)-$Q53))) -> 0 | CX53: =MAX(-CP53,MIN(0,ROUND($R53*EFBPercent+EFBAdd,2)-$Q53),MIN(0,SUM($CM53:CO53)+MIN(0,ROUND($R53*EFBPercent+EFBAdd,2)-$Q53))) -> 0 | CY53: =MAX(-CQ53,MIN(0,ROUND($R53*EFBPercent+EFBAdd,2)-$Q53),MIN(0,SUM($CM53:CP53)+MIN(0,ROUND($R53*EFBPercent+EFBAdd,2)-$Q53))) -> 0 | CZ53: =MAX(-CR53,MIN(0,ROUND($R53*EFBPercent+EFBAdd,2)-$Q53),MIN(0,SUM($CM53:CQ53)+MIN(0,ROUND($R53*EFBPercent+EFBAdd,2)-$Q53))) -> 0 | DA53: =MAX(-CS53,MIN(0,ROUND($R53*EFBPercent+EFBAdd,2)-$Q53),MIN(0,SUM($CM53:CR53)+MIN(0,ROUND($R53*EFBPercent+EFBAdd,2)-$Q53))) -> 0 | DC53: 4592680.15 | DD53: 214920.84 | DE53: 0 | DF53: 0 | DG53: 0 | DH53: 0 | DI53: 0
A54: 12-001 | B54: 1027 | C54: 0000008434 | D54: 2023 | E54: Divide County 1 | F54: 1 | G54: 31-706 | H54: 100 | I54: 53-350 | J54: 4239300.82 | K54: 428.92 | L54: 1031.5 | M54: 0 | N54: 31998012 | O54: 21.9 | P54: 117.87 | Q54: 0 | R54: 0 | S54: 2900 | T54: 2034357.21 | U54: 0 | V54: 66222.25 | W54: 21245.08 | X54: 19460.64 | Y54: 0.61 | Z54: 36 | AA54: 166 | AB54: 69 | AC54: 113 | AD54: 0 | AE54: 0 | AF54: 0 | AG54: 0 | AH54: 0 | AI54: 0 | AJ54: 0.361 | AK54: 0 | AL54: 0 | AM54: 0.75 | AN54: 0 | AO54: 2160 | AP54: 163212 | AQ54: 49416 | AR54: 0 | AS54: 0 | AT54: 0 | AU54: 1449 | AV54: 0 | AW54: 396048.19 | AX54: 1890199.08 | AY54: =MAX(ROUND(IF(F54<4,IF(H54=0,(SUM(Y54:AD54)*Worksheet!$E$26+Y54*Worksheet!$E$27+AN54*Worksheet!$E$39)*-BaseRate,0)),2),MIN(0,-DC54)) -> 0 | AZ54: =MAX(ROUND(IF(F54=4,0,IF(I54=0,0,ROUND(SUM(Y54:AD54)*Worksheet!$E$28,2)*-BaseRate)),2),MIN(0,-DC54-AY54)) -> -7882.49 | BA54: 0 | BB54: 1401 | BD54: 73091.53 | BE54: 9883.66 | BF54: =IFERROR(ROUND(IF(AND(AX54*1.12<N54*60/1000,N54/CF54<STVPP*0.2),(CF54*STVPP*0.2*Worksheet!$F$86/1000-AX54*1.12)*PropTaxAdj,IF(AX54*1.12<N54*60/1000,(N54*60/1000-AX54*1.12)*PropTaxAdj,0)),2),0) -> 0 | BG54: =ROUND(IF($F54=4,0,Y54*Worksheet!$E$16),2) -> 0.61 | BH54: =ROUND(IF($F54=4,0,Z54*Worksheet!$E$17),2) -> 36 | BI54: =ROUND(IF($F54=4,0,AA54*Worksheet!$E$18),2) -> 166 | BJ54: =ROUND(IF($F54=4,0,AB54*Worksheet!$E$19),2) -> 69 | BK54: =ROUND(IF($F54=4,0,AC54*Worksheet!$E$20),2) -> 113 | BL54: =ROUND(AD54*Worksheet!$E$21,2) -> 0 | BM54: 384.61 | BN54: =ROUND(AD54*Worksheet!$E$25,2) -> 0 | BO54: =ROUND(SUM(BM54)*Worksheet!$E$26,2) -> 31.54 | BP54: =ROUND(Y54*Worksheet!$E$27,2) -> 0.1 | BQ54: =ROUND(AE54*Worksheet!$E$29,2) -> 0 | BR54: =ROUND(AF54*Worksheet!$E$30,2) -> 0 | BS54: =ROUND(IF($I54<>0,$BM54*Worksheet!$E$28,0),2) -> 0.77 | BT54: =ROUND(AG54*Worksheet!$E$31,2) -> 0 | BU54: =ROUND(AH54*Worksheet!$E$32,2) -> 0 | BV54: =ROUND(AI54*Worksheet!$E$33,2) -> 0 | BW54: =ROUND(ROUND(AJ54*BM54,2)*Worksheet!$E$34,2) -> 3.47 | BX54: =ROUND(AK54*Worksheet!$E$35,2) -> 0 | BY54: =ROUND(AL54*Worksheet!$E$36,2) -> 0 | BZ54: =ROUND(AM54*Worksheet!$E$38,2) -> 0.45 | CA54: =ROUND(AN54*Worksheet!$E$39,2) -> 0 | CB54: =IF(AND(L54>275,SUM(Y54:AD54)<100),ROUND(SUM(Y54:AD54)*Worksheet!$E$41,2),0) -> 0 | CC54: =IF(AND(L54>600,SUM(Y54:AD54)<50),ROUND((50-SUM(Y54:AD54))*(Worksheet!$E$41+1),2),0) -> 0 | CD54: 420.94 | CE54: 1.04 | CF54: 437.78 | CG54: 4481553.86 | CH54: =MIN(ROUND(BE54*CF54*Worksheet!$D$124,2),CG54)-CG54 -> 0 | CI54: =ROUND(IF(F54=4,0,(MAX(ROUND(MAX((BE54*MIN(CF54,K54)*Worksheet!$D$127)+MAX(CF54-K54,0)*Worksheet!$F$47,SUM(J54)),2),SUM(CG54:CH54))-SUM(CG54:CH54))*MinAdj),2) -> 0 | CJ54: 4481553.86 | CK54: =IF(CF54=0,0,-MIN(CJ54,ROUND(AX54*1.12+BF54,2),MIN(CJ54,ROUND(IF(ROUND(IF(CF54=0,0,N54/CF54),2)<STVPP*0.2,STVPP*0.2*CF54*Worksheet!$F$86/1000,N54*Worksheet!$F$86/1000),2)))) -> -1919880.72 | CL54: =-MIN(SUM(CJ54,CK54),IF($P54=0,(ROUND(Worksheet!$E$75*S54,2)+ROUND(Worksheet!$E$76*T54,2)+ROUND(Worksheet!$E$77*U54,2)+ROUND(Worksheet!$E$78*V54,2)+ROUND(Worksheet!$E$79*W54,2)+ROUND(Worksheet!$E$80*X54,2)),(ROUND(ROUND(S54*ROUND((1-$O54/$P54),4),2)*Worksheet!$E$75,2)+ROUND(ROUND(T54*ROUND((1-$O54/$P54),4),2)*Worksheet!$E$76,2)+ROUND(ROUND(U54*ROUND((1-$O54/$P54),4),2)*Worksheet!$E$77,2)+ROUND(ROUND(V54*ROUND((1-$O54/$P54),4),2)*Worksheet!$E$78,2)+ROUND(ROUND(W54*ROUND((1-$O54/$P54),4),2)*Worksheet!$E$79,2)+ROUND(ROUND(X54*ROUND((1-$O54/$P54),4),2)*Worksheet!$E$80,2)))) -> -1309346.69 | CM54: 1252326.45 | CN54: =MIN(AW54,ROUND(AO54*Worksheet!$C$104,2)+ROUND(AR54*Worksheet!$C$107,2)+ROUND(AP54*Worksheet!$C$105,2)+ROUND(AS54*Worksheet!$C$108,2)+ROUND(AQ54*Worksheet!$C$106,2)+ROUND(AT54*Worksheet!$C$109,2)+ROUND(AU54*Worksheet!$C$110,2)+ROUND(AV54*Worksheet!$C$111,2)) -> 197475.57 | CU54: 0 | CV54: =MAX(-CN54,MIN(0,ROUND($R54*EFBPercent+EFBAdd,2)-$Q54),MIN(0,SUM($CM54:CM54)+MIN(0,ROUND($R54*EFBPercent+EFBAdd,2)-$Q54))) -> 0 | CW54: =MAX(-CO54,MIN(0,ROUND($R54*EFBPercent+EFBAdd,2)-$Q54),MIN(0,SUM($CM54:CN54)+MIN(0,ROUND($R54*EFBPercent+EFBAdd,2)-$Q54))) -> 0 | CX54: =MAX(-CP54,MIN(0,ROUND($R54*EFBPercent+EFBAdd,2)-$Q54),MIN(0,SUM($CM54:CO54)+MIN(0,ROUND($R54*EFBPercent+EFBAdd,2)-$Q54))) -> 0 | CY54: =MAX(-CQ54,MIN(0,ROUND($R54*EFBPercent+EFBAdd,2)-$Q54),MIN(0,SUM($CM54:CP54)+MIN(0,ROUND($R54*EFBPercent+EFBAdd,2)-$Q54))) -> 0 | CZ54: =MAX(-CR54,MIN(0,ROUND($R54*EFBPercent+EFBAdd,2)-$Q54),MIN(0,SUM($CM54:CQ54)+MIN(0,ROUND($R54*EFBPercent+EFBAdd,2)-$Q54))) -> 0 | DA54: =MAX(-CS54,MIN(0,ROUND($R54*EFBPercent+EFBAdd,2)-$Q54),MIN(0,SUM($CM54:CR54)+MIN(0,ROUND($R54*EFBPercent+EFBAdd,2)-$Q54))) -> 0 | DC54: 1252326.45 | DD54: 197475.57 | DE54: 0 | DF54: 0 | DG54: 0 | DH54: 0 | DI54: 0
A55: 13-016 | B55: 1073 | C55: 0000008500 | D55: 2023 | E55: Killdeer 16 | F55: 1 | G55: 45-701 | H55: 100 | I55: 45-371 | J55: 6093040.41 | K55: 551.49 | L55: 856 | M55: 0 | N55: 48713606 | O55: 0 | P55: 62 | Q55: 0 | R55: 0 | S55: 141316.96 | T55: 1945051.69 | U55: 254619.15 | V55: 0 | W55: 36102.08 | X55: 12389.62 | Y55: 5.89 | Z55: 50 | AA55: 256 | AB55: 91 | AC55: 173 | AD55: 0 | AE55: 32.56 | AF55: 0 | AG55: 1 | AH55: 0 | AI55: 1 | AJ55: 0.243 | AK55: 0 | AL55: 0 | AM55: 2.13 | AN55: 0 | AO55: 0 | AP55: 138250 | AQ55: 129850 | AR55: 0 | AS55: 0 | AT55: 0 | AU55: 0 | AV55: 0 | AW55: 533497.72 | AX55: 2364390.61 | AY55: =MAX(ROUND(IF(F55<4,IF(H55=0,(SUM(Y55:AD55)*Worksheet!$E$26+Y55*Worksheet!$E$27+AN55*Worksheet!$E$39)*-BaseRate,0)),2),MIN(0,-DC55)) -> 0 | AZ55: =MAX(ROUND(IF(F55=4,0,IF(I55=0,0,ROUND(SUM(Y55:AD55)*Worksheet!$E$28,2)*-BaseRate)),2),MIN(0,-DC55-AY55)) -> -11772.55 | BA55: 0 | BB55: 1407 | BD55: 73102.94 | BE55: 11048.32 | BF55: =IFERROR(ROUND(IF(AND(AX55*1.12<N55*60/1000,N55/CF55<STVPP*0.2),(CF55*STVPP*0.2*Worksheet!$F$86/1000-AX55*1.12)*PropTaxAdj,IF(AX55*1.12<N55*60/1000,(N55*60/1000-AX55*1.12)*PropTaxAdj,0)),2),0) -> 109879.55 | BG55: =ROUND(IF($F55=4,0,Y55*Worksheet!$E$16),2) -> 5.89 | BH55: =ROUND(IF($F55=4,0,Z55*Worksheet!$E$17),2) -> 50 | BI55: =ROUND(IF($F55=4,0,AA55*Worksheet!$E$18),2) -> 256 | BJ55: =ROUND(IF($F55=4,0,AB55*Worksheet!$E$19),2) -> 91 | BK55: =ROUND(IF($F55=4,0,AC55*Worksheet!$E$20),2) -> 173 | BL55: =ROUND(AD55*Worksheet!$E$21,2) -> 0 | BM55: 575.89 | BN55: =ROUND(AD55*Worksheet!$E$25,2) -> 0 | BO55: =ROUND(SUM(BM55)*Worksheet!$E$26,2) -> 47.22 | BP55: =ROUND(Y55*Worksheet!$E$27,2) -> 1 | BQ55: =ROUND(AE55*Worksheet!$E$29,2) -> 22.79 | BR55: =ROUND(AF55*Worksheet!$E$30,2) -> 0 | BS55: =ROUND(IF($I55<>0,$BM55*Worksheet!$E$28,0),2) -> 1.15 | BT55: =ROUND(AG55*Worksheet!$E$31,2) -> 0.4 | BU55: =ROUND(AH55*Worksheet!$E$32,2) -> 0 | BV55: =ROUND(AI55*Worksheet!$E$33,2) -> 0.07 | BW55: =ROUND(ROUND(AJ55*BM55,2)*Worksheet!$E$34,2) -> 3.5 | BX55: =ROUND(AK55*Worksheet!$E$35,2) -> 0 | BY55: =ROUND(AL55*Worksheet!$E$36,2) -> 0 | BZ55: =ROUND(AM55*Worksheet!$E$38,2) -> 1.28 | CA55: =ROUND(AN55*Worksheet!$E$39,2) -> 0 | CB55: =IF(AND(L55>275,SUM(Y55:AD55)<100),ROUND(SUM(Y55:AD55)*Worksheet!$E$41,2),0) -> 0 | CC55: =IF(AND(L55>600,SUM(Y55:AD55)<50),ROUND((50-SUM(Y55:AD55))*(Worksheet!$E$41+1),2),0) -> 0 | CD55: 653.3 | CE55: 1.02 | CF55: 666.37 | CG55: 6821629.69 | CH55: =MIN(ROUND(BE55*CF55*Worksheet!$D$124,2),CG55)-CG55 -> 0 | CI55: =ROUND(IF(F55=4,0,(MAX(ROUND(MAX((BE55*MIN(CF55,K55)*Worksheet!$D$127)+MAX(CF55-K55,0)*Worksheet!$F$47,SUM(J55)),2),SUM(CG55:CH55))-SUM(CG55:CH55))*MinAdj),2) -> 398506.94 | CJ55: 7220136.63 | CK55: =IF(CF55=0,0,-MIN(CJ55,ROUND(AX55*1.12+BF55,2),MIN(CJ55,ROUND(IF(ROUND(IF(CF55=0,0,N55/CF55),2)<STVPP*0.2,STVPP*0.2*CF55*Worksheet!$F$86/1000,N55*Worksheet!$F$86/1000),2)))) -> -2757997.03 | CL55: =-MIN(SUM(CJ55,CK55),IF($P55=0,(ROUND(Worksheet!$E$75*S55,2)+ROUND(Worksheet!$E$76*T55,2)+ROUND(Worksheet!$E$77*U55,2)+ROUND(Worksheet!$E$78*V55,2)+ROUND(Worksheet!$E$79*W55,2)+ROUND(Worksheet!$E$80*X55,2)),(ROUND(ROUND(S55*ROUND((1-$O55/$P55),4),2)*Worksheet!$E$75,2)+ROUND(ROUND(T55*ROUND((1-$O55/$P55),4),2)*Worksheet!$E$76,2)+ROUND(ROUND(U55*ROUND((1-$O55/$P55),4),2)*Worksheet!$E$77,2)+ROUND(ROUND(V55*ROUND((1-$O55/$P55),4),2)*Worksheet!$E$78,2)+ROUND(ROUND(W55*ROUND((1-$O55/$P55),4),2)*Worksheet!$E$79,2)+ROUND(ROUND(X55*ROUND((1-$O55/$P55),4),2)*Worksheet!$E$80,2)))) -> -1792109.63 | CM55: 2670029.97 | CN55: =MIN(AW55,ROUND(AO55*Worksheet!$C$104,2)+ROUND(AR55*Worksheet!$C$107,2)+ROUND(AP55*Worksheet!$C$105,2)+ROUND(AS55*Worksheet!$C$108,2)+ROUND(AQ55*Worksheet!$C$106,2)+ROUND(AT55*Worksheet!$C$109,2)+ROUND(AU55*Worksheet!$C$110,2)+ROUND(AV55*Worksheet!$C$111,2)) -> 192412.5 | CU55: 0 | CV55: =MAX(-CN55,MIN(0,ROUND($R55*EFBPercent+EFBAdd,2)-$Q55),MIN(0,SUM($CM55:CM55)+MIN(0,ROUND($R55*EFBPercent+EFBAdd,2)-$Q55))) -> 0 | CW55: =MAX(-CO55,MIN(0,ROUND($R55*EFBPercent+EFBAdd,2)-$Q55),MIN(0,SUM($CM55:CN55)+MIN(0,ROUND($R55*EFBPercent+EFBAdd,2)-$Q55))) -> 0 | CX55: =MAX(-CP55,MIN(0,ROUND($R55*EFBPercent+EFBAdd,2)-$Q55),MIN(0,SUM($CM55:CO55)+MIN(0,ROUND($R55*EFBPercent+EFBAdd,2)-$Q55))) -> 0 | CY55: =MAX(-CQ55,MIN(0,ROUND($R55*EFBPercent+EFBAdd,2)-$Q55),MIN(0,SUM($CM55:CP55)+MIN(0,ROUND($R55*EFBPercent+EFBAdd,2)-$Q55))) -> 0 | CZ55: =MAX(-CR55,MIN(0,ROUND($R55*EFBPercent+EFBAdd,2)-$Q55),MIN(0,SUM($CM55:CQ55)+MIN(0,ROUND($R55*EFBPercent+EFBAdd,2)-$Q55))) -> 0 | DA55: =MAX(-CS55,MIN(0,ROUND($R55*EFBPercent+EFBAdd,2)-$Q55),MIN(0,SUM($CM55:CR55)+MIN(0,ROUND($R55*EFBPercent+EFBAdd,2)-$Q55))) -> 0 | DC55: 2670029.97 | DD55: 192412.5 | DE55: 0 | DF55: 0 | DG55: 0 | DH55: 0 | DI55: 0
A56: 13-019 | B56: 1058 | C56: 0000008476 | D56: 2023 | E56: Halliday 19 | F56: 2 | G56: 45-701 | H56: 100 | I56: 45-371 | J56: 665513.96 | K56: 43.51 | L56: 315 | M56: 0 | N56: 6741904 | O56: 0 | P56: 67.98 | Q56: 0 | R56: 0 | S56: 0 | T56: 98372.69 | U56: 0 | V56: 25.55 | W56: 4659.29 | X56: 2335.69 | Y56: 0 | Z56: 3 | AA56: 18 | AB56: 0 | AC56: 0 | AD56: 0 | AE56: 1.16 | AF56: 0 | AG56: 0 | AH56: 0 | AI56: 0 | AJ56: 0.414 | AK56: 2.64 | AL56: 0 | AM56: 0 | AN56: 0 | AO56: 0 | AP56: 10500 | AQ56: 4200 | AR56: 0 | AS56: 700 | AT56: 2100 | AU56: 0 | AV56: 0 | AW56: 39265.34 | AX56: 414819.42 | AY56: =MAX(ROUND(IF(F56<4,IF(H56=0,(SUM(Y56:AD56)*Worksheet!$E$26+Y56*Worksheet!$E$27+AN56*Worksheet!$E$39)*-BaseRate,0)),2),MIN(0,-DC56)) -> 0 | AZ56: =MAX(ROUND(IF(F56=4,0,IF(I56=0,0,ROUND(SUM(Y56:AD56)*Worksheet!$E$28,2)*-BaseRate)),2),MIN(0,-DC56-AY56)) -> -409.48 | BA56: 0 | BB56: 1407 | BD56: 174796.58 | BE56: 15295.66 | BF56: =IFERROR(ROUND(IF(AND(AX56*1.12<N56*60/1000,N56/CF56<STVPP*0.2),(CF56*STVPP*0.2*Worksheet!$F$86/1000-AX56*1.12)*PropTaxAdj,IF(AX56*1.12<N56*60/1000,(N56*60/1000-AX56*1.12)*PropTaxAdj,0)),2),0) -> 0 | BG56: =ROUND(IF($F56=4,0,Y56*Worksheet!$E$16),2) -> 0 | BH56: =ROUND(IF($F56=4,0,Z56*Worksheet!$E$17),2) -> 3 | BI56: =ROUND(IF($F56=4,0,AA56*Worksheet!$E$18),2) -> 18 | BJ56: =ROUND(IF($F56=4,0,AB56*Worksheet!$E$19),2) -> 0 | BK56: =ROUND(IF($F56=4,0,AC56*Worksheet!$E$20),2) -> 0 | BL56: =ROUND(AD56*Worksheet!$E$21,2) -> 0 | BM56: 21 | BN56: =ROUND(AD56*Worksheet!$E$25,2) -> 0 | BO56: =ROUND(SUM(BM56)*Worksheet!$E$26,2) -> 1.72 | BP56: =ROUND(Y56*Worksheet!$E$27,2) -> 0 | BQ56: =ROUND(AE56*Worksheet!$E$29,2) -> 0.81 | BR56: =ROUND(AF56*Worksheet!$E$30,2) -> 0 | BS56: =ROUND(IF($I56<>0,$BM56*Worksheet!$E$28,0),2) -> 0.04 | BT56: =ROUND(AG56*Worksheet!$E$31,2) -> 0 | BU56: =ROUND(AH56*Worksheet!$E$32,2) -> 0 | BV56: =ROUND(AI56*Worksheet!$E$33,2) -> 0 | BW56: =ROUND(ROUND(AJ56*BM56,2)*Worksheet!$E$34,2) -> 0.22 | BX56: =ROUND(AK56*Worksheet!$E$35,2) -> 0.53 | BY56: =ROUND(AL56*Worksheet!$E$36,2) -> 0 | BZ56: =ROUND(AM56*Worksheet!$E$38,2) -> 0 | CA56: =ROUND(AN56*Worksheet!$E$39,2) -> 0 | CB56: =IF(AND(L56>275,SUM(Y56:AD56)<100),ROUND(SUM(Y56:AD56)*Worksheet!$E$41,2),0) -> 2.1 | CC56: =IF(AND(L56>600,SUM(Y56:AD56)<50),ROUND((50-SUM(Y56:AD56))*(Worksheet!$E$41+1),2),0) -> 0 | CD56: 26.42 | CE56: 1.46 | CF56: 38.57 | CG56: 394841.09 | CH56: =MIN(ROUND(BE56*CF56*Worksheet!$D$124,2),CG56)-CG56 -> 0 | CI56: =ROUND(IF(F56=4,0,(MAX(ROUND(MAX((BE56*MIN(CF56,K56)*Worksheet!$D$127)+MAX(CF56-K56,0)*Worksheet!$F$47,SUM(J56)),2),SUM(CG56:CH56))-SUM(CG56:CH56))*MinAdj),2) -> 189471.01 | CJ56: 584312.1 | CK56: =IF(CF56=0,0,-MIN(CJ56,ROUND(AX56*1.12+BF56,2),MIN(CJ56,ROUND(IF(ROUND(IF(CF56=0,0,N56/CF56),2)<STVPP*0.2,STVPP*0.2*CF56*Worksheet!$F$86/1000,N56*Worksheet!$F$86/1000),2)))) -> -404514.24 | CL56: =-MIN(SUM(CJ56,CK56),IF($P56=0,(ROUND(Worksheet!$E$75*S56,2)+ROUND(Worksheet!$E$76*T56,2)+ROUND(Worksheet!$E$77*U56,2)+ROUND(Worksheet!$E$78*V56,2)+ROUND(Worksheet!$E$79*W56,2)+ROUND(Worksheet!$E$80*X56,2)),(ROUND(ROUND(S56*ROUND((1-$O56/$P56),4),2)*Worksheet!$E$75,2)+ROUND(ROUND(T56*ROUND((1-$O56/$P56),4),2)*Worksheet!$E$76,2)+ROUND(ROUND(U56*ROUND((1-$O56/$P56),4),2)*Worksheet!$E$77,2)+ROUND(ROUND(V56*ROUND((1-$O56/$P56),4),2)*Worksheet!$E$78,2)+ROUND(ROUND(W56*ROUND((1-$O56/$P56),4),2)*Worksheet!$E$79,2)+ROUND(ROUND(X56*ROUND((1-$O56/$P56),4),2)*Worksheet!$E$80,2)))) -> -79044.92 | CM56: 100752.94 | CN56: =MIN(AW56,ROUND(AO56*Worksheet!$C$104,2)+ROUND(AR56*Worksheet!$C$107,2)+ROUND(AP56*Worksheet!$C$105,2)+ROUND(AS56*Worksheet!$C$108,2)+ROUND(AQ56*Worksheet!$C$106,2)+ROUND(AT56*Worksheet!$C$109,2)+ROUND(AU56*Worksheet!$C$110,2)+ROUND(AV56*Worksheet!$C$111,2)) -> 14322 | CU56: 0 | CV56: =MAX(-CN56,MIN(0,ROUND($R56*EFBPercent+EFBAdd,2)-$Q56),MIN(0,SUM($CM56:CM56)+MIN(0,ROUND($R56*EFBPercent+EFBAdd,2)-$Q56))) -> 0 | CW56: =MAX(-CO56,MIN(0,ROUND($R56*EFBPercent+EFBAdd,2)-$Q56),MIN(0,SUM($CM56:CN56)+MIN(0,ROUND($R56*EFBPercent+EFBAdd,2)-$Q56))) -> 0 | CX56: =MAX(-CP56,MIN(0,ROUND($R56*EFBPercent+EFBAdd,2)-$Q56),MIN(0,SUM($CM56:CO56)+MIN(0,ROUND($R56*EFBPercent+EFBAdd,2)-$Q56))) -> 0 | CY56: =MAX(-CQ56,MIN(0,ROUND($R56*EFBPercent+EFBAdd,2)-$Q56),MIN(0,SUM($CM56:CP56)+MIN(0,ROUND($R56*EFBPercent+EFBAdd,2)-$Q56))) -> 0 | CZ56: =MAX(-CR56,MIN(0,ROUND($R56*EFBPercent+EFBAdd,2)-$Q56),MIN(0,SUM($CM56:CQ56)+MIN(0,ROUND($R56*EFBPercent+EFBAdd,2)-$Q56))) -> 0 | DA56: =MAX(-CS56,MIN(0,ROUND($R56*EFBPercent+EFBAdd,2)-$Q56),MIN(0,SUM($CM56:CR56)+MIN(0,ROUND($R56*EFBPercent+EFBAdd,2)-$Q56))) -> 0 | DC56: 100752.94 | DD56: 14322 | DE56: 0 | DF56: 0 | DG56: 0 | DH56: 0 | DI56: 0
A57: 13-037 | B57: 1160 | C57: 0000008642 | D57: 2023 | E57: Twin Buttes 37 | F57: 2 | G57: 45-701 | H57: 100 | I57: 45-371 | J57: 488983.92 | K57: 65.91 | L57: 102 | M57: 0 | N57: 572988 | O57: 0 | P57: 0 | Q57: 0 | R57: 0 | S57: 0 | T57: 142231.36 | U57: 4173.28 | V57: 0 | W57: 35.34 | X57: 536.94 | Y57: 0 | Z57: 3 | AA57: 39 | AB57: 9 | AC57: 0 | AD57: 0 | AE57: 2.27 | AF57: 0 | AG57: 0 | AH57: 0 | AI57: 0 | AJ57: 0.734 | AK57: 0 | AL57: 0 | AM57: 0 | AN57: 0 | AO57: 4500 | AP57: 45450 | AQ57: 14030 | AR57: 0 | AS57: 0 | AT57: 0 | AU57: 0 | AV57: 0 | AW57: 133720.4 | AX57: 29771.82 | AY57: =MAX(ROUND(IF(F57<4,IF(H57=0,(SUM(Y57:AD57)*Worksheet!$E$26+Y57*Worksheet!$E$27+AN57*Worksheet!$E$39)*-BaseRate,0)),2),MIN(0,-DC57)) -> 0 | AZ57: =MAX(ROUND(IF(F57=4,0,IF(I57=0,0,ROUND(SUM(Y57:AD57)*Worksheet!$E$28,2)*-BaseRate)),2),MIN(0,-DC57-AY57)) -> -1023.7 | BA57: 0 | BB57: 1407 | BD57: 7800.76 | BE57: 7418.96 | BF57: =IFERROR(ROUND(IF(AND(AX57*1.12<N57*60/1000,N57/CF57<STVPP*0.2),(CF57*STVPP*0.2*Worksheet!$F$86/1000-AX57*1.12)*PropTaxAdj,IF(AX57*1.12<N57*60/1000,(N57*60/1000-AX57*1.12)*PropTaxAdj,0)),2),0) -> 2463.44 | BG57: =ROUND(IF($F57=4,0,Y57*Worksheet!$E$16),2) -> 0 | BH57: =ROUND(IF($F57=4,0,Z57*Worksheet!$E$17),2) -> 3 | BI57: =ROUND(IF($F57=4,0,AA57*Worksheet!$E$18),2) -> 39 | BJ57: =ROUND(IF($F57=4,0,AB57*Worksheet!$E$19),2) -> 9 | BK57: =ROUND(IF($F57=4,0,AC57*Worksheet!$E$20),2) -> 0 | BL57: =ROUND(AD57*Worksheet!$E$21,2) -> 0 | BM57: 51 | BN57: =ROUND(AD57*Worksheet!$E$25,2) -> 0 | BO57: =ROUND(SUM(BM57)*Worksheet!$E$26,2) -> 4.18 | BP57: =ROUND(Y57*Worksheet!$E$27,2) -> 0 | BQ57: =ROUND(AE57*Worksheet!$E$29,2) -> 1.59 | BR57: =ROUND(AF57*Worksheet!$E$30,2) -> 0 | BS57: =ROUND(IF($I57<>0,$BM57*Worksheet!$E$28,0),2) -> 0.1 | BT57: =ROUND(AG57*Worksheet!$E$31,2) -> 0 | BU57: =ROUND(AH57*Worksheet!$E$32,2) -> 0 | BV57: =ROUND(AI57*Worksheet!$E$33,2) -> 0 | BW57: =ROUND(ROUND(AJ57*BM57,2)*Worksheet!$E$34,2) -> 0.94 | BX57: =ROUND(AK57*Worksheet!$E$35,2) -> 0 | BY57: =ROUND(AL57*Worksheet!$E$36,2) -> 0 | BZ57: =ROUND(AM57*Worksheet!$E$38,2) -> 0 | CA57: =ROUND(AN57*Worksheet!$E$39,2) -> 0 | CB57: =IF(AND(L57>275,SUM(Y57:AD57)<100),ROUND(SUM(Y57:AD57)*Worksheet!$E$41,2),0) -> 0 | CC57: =IF(AND(L57>600,SUM(Y57:AD57)<50),ROUND((50-SUM(Y57:AD57))*(Worksheet!$E$41+1),2),0) -> 0 | CD57: 57.81 | CE57: 1.46 | CF57: 84.4 | CG57: 864002.8 | CH57: =MIN(ROUND(BE57*CF57*Worksheet!$D$124,2),CG57)-CG57 -> -175226.55 | CI57: =ROUND(IF(F57=4,0,(MAX(ROUND(MAX((BE57*MIN(CF57,K57)*Worksheet!$D$127)+MAX(CF57-K57,0)*Worksheet!$F$47,SUM(J57)),2),SUM(CG57:CH57))-SUM(CG57:CH57))*MinAdj),2) -> 0 | CJ57: 688776.25 | CK57: =IF(CF57=0,0,-MIN(CJ57,ROUND(AX57*1.12+BF57,2),MIN(CJ57,ROUND(IF(ROUND(IF(CF57=0,0,N57/CF57),2)<STVPP*0.2,STVPP*0.2*CF57*Worksheet!$F$86/1000,N57*Worksheet!$F$86/1000),2)))) -> -35807.88 | CL57: =-MIN(SUM(CJ57,CK57),IF($P57=0,(ROUND(Worksheet!$E$75*S57,2)+ROUND(Worksheet!$E$76*T57,2)+ROUND(Worksheet!$E$77*U57,2)+ROUND(Worksheet!$E$78*V57,2)+ROUND(Worksheet!$E$79*W57,2)+ROUND(Worksheet!$E$80*X57,2)),(ROUND(ROUND(S57*ROUND((1-$O57/$P57),4),2)*Worksheet!$E$75,2)+ROUND(ROUND(T57*ROUND((1-$O57/$P57),4),2)*Worksheet!$E$76,2)+ROUND(ROUND(U57*ROUND((1-$O57/$P57),4),2)*Worksheet!$E$77,2)+ROUND(ROUND(V57*ROUND((1-$O57/$P57),4),2)*Worksheet!$E$78,2)+ROUND(ROUND(W57*ROUND((1-$O57/$P57),4),2)*Worksheet!$E$79,2)+ROUND(ROUND(X57*ROUND((1-$O57/$P57),4),2)*Worksheet!$E$80,2)))) -> -110232.7 | CM57: 542735.67 | CN57: =MIN(AW57,ROUND(AO57*Worksheet!$C$104,2)+ROUND(AR57*Worksheet!$C$107,2)+ROUND(AP57*Worksheet!$C$105,2)+ROUND(AS57*Worksheet!$C$108,2)+ROUND(AQ57*Worksheet!$C$106,2)+ROUND(AT57*Worksheet!$C$109,2)+ROUND(AU57*Worksheet!$C$110,2)+ROUND(AV57*Worksheet!$C$111,2)) -> 56998.5 | CU57: 0 | CV57: =MAX(-CN57,MIN(0,ROUND($R57*EFBPercent+EFBAdd,2)-$Q57),MIN(0,SUM($CM57:CM57)+MIN(0,ROUND($R57*EFBPercent+EFBAdd,2)-$Q57))) -> 0 | CW57: =MAX(-CO57,MIN(0,ROUND($R57*EFBPercent+EFBAdd,2)-$Q57),MIN(0,SUM($CM57:CN57)+MIN(0,ROUND($R57*EFBPercent+EFBAdd,2)-$Q57))) -> 0 | CX57: =MAX(-CP57,MIN(0,ROUND($R57*EFBPercent+EFBAdd,2)-$Q57),MIN(0,SUM($CM57:CO57)+MIN(0,ROUND($R57*EFBPercent+EFBAdd,2)-$Q57))) -> 0 | CY57: =MAX(-CQ57,MIN(0,ROUND($R57*EFBPercent+EFBAdd,2)-$Q57),MIN(0,SUM($CM57:CP57)+MIN(0,ROUND($R57*EFBPercent+EFBAdd,2)-$Q57))) -> 0 | CZ57: =MAX(-CR57,MIN(0,ROUND($R57*EFBPercent+EFBAdd,2)-$Q57),MIN(0,SUM($CM57:CQ57)+MIN(0,ROUND($R57*EFBPercent+EFBAdd,2)-$Q57))) -> 0 | DA57: =MAX(-CS57,MIN(0,ROUND($R57*EFBPercent+EFBAdd,2)-$Q57),MIN(0,SUM($CM57:CR57)+MIN(0,ROUND($R57*EFBPercent+EFBAdd,2)-$Q57))) -> 0 | DC57: 542735.67 | DD57: 56998.5 | DE57: 0 | DF57: 0 | DG57: 0 | DH57: 0 | DI57: 0
A58: 14-002 | B58: 1119 | C58: 0000072243 | D58: 2023 | E58: New Rockford-Sheyenne 2 | F58: 1 | G58: 14-712 | H58: 100 | I58: 36-370 | J58: 3537265.24 | K58: 366.19 | L58: 352.79 | M58: 0 | N58: 16412541 | O58: 13.64 | P58: 100.07 | Q58: 0 | R58: 0 | S58: 48633.39 | T58: 0 | U58: 0 | V58: 5753.86 | W58: 19322.91 | X58: 25113.76 | Y58: 1.09 | Z58: 35 | AA58: 146 | AB58: 48 | AC58: 96 | AD58: 0 | AE58: 18 | AF58: 0 | AG58: 0 | AH58: 0 | AI58: 0.95 | AJ58: 0.317 | AK58: 0 | AL58: 0 | AM58: 0 | AN58: 0 | AO58: 0 | AP58: 134459.5 | AQ58: 25358 | AR58: 0 | AS58: 0 | AT58: 0 | AU58: 0 | AV58: 0 | AW58: 235062.1 | AX58: 961727.34 | AY58: =MAX(ROUND(IF(F58<4,IF(H58=0,(SUM(Y58:AD58)*Worksheet!$E$26+Y58*Worksheet!$E$27+AN58*Worksheet!$E$39)*-BaseRate,0)),2),MIN(0,-DC58)) -> 0 | AZ58: =MAX(ROUND(IF(F58=4,0,IF(I58=0,0,ROUND(SUM(Y58:AD58)*Worksheet!$E$28,2)*-BaseRate)),2),MIN(0,-DC58-AY58)) -> -6654.05 | BA58: 0 | BB58: 1405 | BD58: 40815.03 | BE58: 9659.64 | BF58: =IFERROR(ROUND(IF(AND(AX58*1.12<N58*60/1000,N58/CF58<STVPP*0.2),(CF58*STVPP*0.2*Worksheet!$F$86/1000-AX58*1.12)*PropTaxAdj,IF(AX58*1.12<N58*60/1000,(N58*60/1000-AX58*1.12)*PropTaxAdj,0)),2),0) -> 0 | BG58: =ROUND(IF($F58=4,0,Y58*Worksheet!$E$16),2) -> 1.09 | BH58: =ROUND(IF($F58=4,0,Z58*Worksheet!$E$17),2) -> 35 | BI58: =ROUND(IF($F58=4,0,AA58*Worksheet!$E$18),2) -> 146 | BJ58: =ROUND(IF($F58=4,0,AB58*Worksheet!$E$19),2) -> 48 | BK58: =ROUND(IF($F58=4,0,AC58*Worksheet!$E$20),2) -> 96 | BL58: =ROUND(AD58*Worksheet!$E$21,2) -> 0 | BM58: 326.09 | BN58: =ROUND(AD58*Worksheet!$E$25,2) -> 0 | BO58: =ROUND(SUM(BM58)*Worksheet!$E$26,2) -> 26.74 | BP58: =ROUND(Y58*Worksheet!$E$27,2) -> 0.19 | BQ58: =ROUND(AE58*Worksheet!$E$29,2) -> 12.6 | BR58: =ROUND(AF58*Worksheet!$E$30,2) -> 0 | BS58: =ROUND(IF($I58<>0,$BM58*Worksheet!$E$28,0),2) -> 0.65 | BT58: =ROUND(AG58*Worksheet!$E$31,2) -> 0 | BU58: =ROUND(AH58*Worksheet!$E$32,2) -> 0 | BV58: =ROUND(AI58*Worksheet!$E$33,2) -> 0.07 | BW58: =ROUND(ROUND(AJ58*BM58,2)*Worksheet!$E$34,2) -> 2.58 | BX58: =ROUND(AK58*Worksheet!$E$35,2) -> 0 | BY58: =ROUND(AL58*Worksheet!$E$36,2) -> 0 | BZ58: =ROUND(AM58*Worksheet!$E$38,2) -> 0 | CA58: =ROUND(AN58*Worksheet!$E$39,2) -> 0 | CB58: =IF(AND(L58>275,SUM(Y58:AD58)<100),ROUND(SUM(Y58:AD58)*Worksheet!$E$41,2),0) -> 0 | CC58: =IF(AND(L58>600,SUM(Y58:AD58)<50),ROUND((50-SUM(Y58:AD58))*(Worksheet!$E$41+1),2),0) -> 0 | CD58: 368.92 | CE58: 1.09 | CF58: 402.12 | CG58: 4116502.44 | CH58: =MIN(ROUND(BE58*CF58*Worksheet!$D$124,2),CG58)-CG58 -> 0 | CI58: =ROUND(IF(F58=4,0,(MAX(ROUND(MAX((BE58*MIN(CF58,K58)*Worksheet!$D$127)+MAX(CF58-K58,0)*Worksheet!$F$47,SUM(J58)),2),SUM(CG58:CH58))-SUM(CG58:CH58))*MinAdj),2) -> 0 | CJ58: 4116502.44 | CK58: =IF(CF58=0,0,-MIN(CJ58,ROUND(AX58*1.12+BF58,2),MIN(CJ58,ROUND(IF(ROUND(IF(CF58=0,0,N58/CF58),2)<STVPP*0.2,STVPP*0.2*CF58*Worksheet!$F$86/1000,N58*Worksheet!$F$86/1000),2)))) -> -984752.46 | CL58: =-MIN(SUM(CJ58,CK58),IF($P58=0,(ROUND(Worksheet!$E$75*S58,2)+ROUND(Worksheet!$E$76*T58,2)+ROUND(Worksheet!$E$77*U58,2)+ROUND(Worksheet!$E$78*V58,2)+ROUND(Worksheet!$E$79*W58,2)+ROUND(Worksheet!$E$80*X58,2)),(ROUND(ROUND(S58*ROUND((1-$O58/$P58),4),2)*Worksheet!$E$75,2)+ROUND(ROUND(T58*ROUND((1-$O58/$P58),4),2)*Worksheet!$E$76,2)+ROUND(ROUND(U58*ROUND((1-$O58/$P58),4),2)*Worksheet!$E$77,2)+ROUND(ROUND(V58*ROUND((1-$O58/$P58),4),2)*Worksheet!$E$78,2)+ROUND(ROUND(W58*ROUND((1-$O58/$P58),4),2)*Worksheet!$E$79,2)+ROUND(ROUND(X58*ROUND((1-$O58/$P58),4),2)*Worksheet!$E$80,2)))) -> -64015.67 | CM58: 3067734.31 | CN58: =MIN(AW58,ROUND(AO58*Worksheet!$C$104,2)+ROUND(AR58*Worksheet!$C$107,2)+ROUND(AP58*Worksheet!$C$105,2)+ROUND(AS58*Worksheet!$C$108,2)+ROUND(AQ58*Worksheet!$C$106,2)+ROUND(AT58*Worksheet!$C$109,2)+ROUND(AU58*Worksheet!$C$110,2)+ROUND(AV58*Worksheet!$C$111,2)) -> 156857.45 | CU58: 0 | CV58: =MAX(-CN58,MIN(0,ROUND($R58*EFBPercent+EFBAdd,2)-$Q58),MIN(0,SUM($CM58:CM58)+MIN(0,ROUND($R58*EFBPercent+EFBAdd,2)-$Q58))) -> 0 | CW58: =MAX(-CO58,MIN(0,ROUND($R58*EFBPercent+EFBAdd,2)-$Q58),MIN(0,SUM($CM58:CN58)+MIN(0,ROUND($R58*EFBPercent+EFBAdd,2)-$Q58))) -> 0 | CX58: =MAX(-CP58,MIN(0,ROUND($R58*EFBPercent+EFBAdd,2)-$Q58),MIN(0,SUM($CM58:CO58)+MIN(0,ROUND($R58*EFBPercent+EFBAdd,2)-$Q58))) -> 0 | CY58: =MAX(-CQ58,MIN(0,ROUND($R58*EFBPercent+EFBAdd,2)-$Q58),MIN(0,SUM($CM58:CP58)+MIN(0,ROUND($R58*EFBPercent+EFBAdd,2)-$Q58))) -> 0 | CZ58: =MAX(-CR58,MIN(0,ROUND($R58*EFBPercent+EFBAdd,2)-$Q58),MIN(0,SUM($CM58:CQ58)+MIN(0,ROUND($R58*EFBPercent+EFBAdd,2)-$Q58))) -> 0 | DA58: =MAX(-CS58,MIN(0,ROUND($R58*EFBPercent+EFBAdd,2)-$Q58),MIN(0,SUM($CM58:CR58)+MIN(0,ROUND($R58*EFBPercent+EFBAdd,2)-$Q58))) -> 0 | DC58: 3067734.31 | DD58: 156857.45 | DE58: 0 | DF58: 0 | DG58: 0 | DH58: 0 | DI58: 0
A59: 14-712 | B59: 2504 | C59: 0000005540 | D59: 2023 | E59: East Central Special Ed Unit | F59: 7 | G59: 14-712 | H59: 0 | I59: 0 | J59: 0 | K59: 0 | L59: 0 | M59: 0 | N59: 0 | O59: 0 | P59: 0 | Q59: 0 | R59: 0 | S59: 0 | T59: 0 | U59: 0 | V59: 0 | W59: 0 | X59: 0 | Y59: 0 | Z59: 0 | AA59: 0 | AB59: 0 | AC59: 0 | AD59: 0 | AE59: 0 | AF59: 0 | AG59: 0 | AH59: 0 | AI59: 0 | AJ59: 0 | AK59: 0 | AL59: 0 | AM59: 0 | AN59: 0 | AO59: 0 | AP59: 0 | AQ59: 0 | AR59: 0 | AS59: 0 | AT59: 0 | AU59: 0 | AV59: 0 | AW59: 0 | AX59: 0 | AY59: =MAX(ROUND(IF(F59<4,IF(H59=0,(SUM(Y59:AD59)*Worksheet!$E$26+Y59*Worksheet!$E$27+AN59*Worksheet!$E$39)*-BaseRate,0)),2),MIN(0,-DC59)) -> 0 | AZ59: =MAX(ROUND(IF(F59=4,0,IF(I59=0,0,ROUND(SUM(Y59:AD59)*Worksheet!$E$28,2)*-BaseRate)),2),MIN(0,-DC59-AY59)) -> 0 | BA59: 0 | BB59: 0 | BD59: 0 | BE59: 0 | BF59: =IFERROR(ROUND(IF(AND(AX59*1.12<N59*60/1000,N59/CF59<STVPP*0.2),(CF59*STVPP*0.2*Worksheet!$F$86/1000-AX59*1.12)*PropTaxAdj,IF(AX59*1.12<N59*60/1000,(N59*60/1000-AX59*1.12)*PropTaxAdj,0)),2),0) -> 0 | BG59: =ROUND(IF($F59=4,0,Y59*Worksheet!$E$16),2) -> 0 | BH59: =ROUND(IF($F59=4,0,Z59*Worksheet!$E$17),2) -> 0 | BI59: =ROUND(IF($F59=4,0,AA59*Worksheet!$E$18),2) -> 0 | BJ59: =ROUND(IF($F59=4,0,AB59*Worksheet!$E$19),2) -> 0 | BK59: =ROUND(IF($F59=4,0,AC59*Worksheet!$E$20),2) -> 0 | BL59: =ROUND(AD59*Worksheet!$E$21,2) -> 0 | BM59: 0 | BN59: =ROUND(AD59*Worksheet!$E$25,2) -> 0 | BO59: =ROUND(SUM(BM59)*Worksheet!$E$26,2) -> 0 | BP59: =ROUND(Y59*Worksheet!$E$27,2) -> 0 | BQ59: =ROUND(AE59*Worksheet!$E$29,2) -> 0 | BR59: =ROUND(AF59*Worksheet!$E$30,2) -> 0 | BS59: =ROUND(IF($I59<>0,$BM59*Worksheet!$E$28,0),2) -> 0 | BT59: =ROUND(AG59*Worksheet!$E$31,2) -> 0 | BU59: =ROUND(AH59*Worksheet!$E$32,2) -> 0 | BV59: =ROUND(AI59*Worksheet!$E$33,2) -> 0 | BW59: =ROUND(ROUND(AJ59*BM59,2)*Worksheet!$E$34,2) -> 0 | BX59: =ROUND(AK59*Worksheet!$E$35,2) -> 0 | BY59: =ROUND(AL59*Worksheet!$E$36,2) -> 0 | BZ59: =ROUND(AM59*Worksheet!$E$38,2) -> 0 | CA59: =ROUND(AN59*Worksheet!$E$39,2) -> 0 | CB59: =IF(AND(L59>275,SUM(Y59:AD59)<100),ROUND(SUM(Y59:AD59)*Worksheet!$E$41,2),0) -> 0 | CC59: =IF(AND(L59>600,SUM(Y59:AD59)<50),ROUND((50-SUM(Y59:AD59))*(Worksheet!$E$41+1),2),0) -> 0 | CD59: 0 | CE59: 0 | CF59: 0 | CG59: 0 | CH59: =MIN(ROUND(BE59*CF59*Worksheet!$D$124,2),CG59)-CG59 -> 0 | CI59: =ROUND(IF(F59=4,0,(MAX(ROUND(MAX((BE59*MIN(CF59,K59)*Worksheet!$D$127)+MAX(CF59-K59,0)*Worksheet!$F$47,SUM(J59)),2),SUM(CG59:CH59))-SUM(CG59:CH59))*MinAdj),2) -> 0 | CJ59: 0 | CK59: =IF(CF59=0,0,-MIN(CJ59,ROUND(AX59*1.12+BF59,2),MIN(CJ59,ROUND(IF(ROUND(IF(CF59=0,0,N59/CF59),2)<STVPP*0.2,STVPP*0.2*CF59*Worksheet!$F$86/1000,N59*Worksheet!$F$86/1000),2)))) -> 0 | CL59: =-MIN(SUM(CJ59,CK59),IF($P59=0,(ROUND(Worksheet!$E$75*S59,2)+ROUND(Worksheet!$E$76*T59,2)+ROUND(Worksheet!$E$77*U59,2)+ROUND(Worksheet!$E$78*V59,2)+ROUND(Worksheet!$E$79*W59,2)+ROUND(Worksheet!$E$80*X59,2)),(ROUND(ROUND(S59*ROUND((1-$O59/$P59),4),2)*Worksheet!$E$75,2)+ROUND(ROUND(T59*ROUND((1-$O59/$P59),4),2)*Worksheet!$E$76,2)+ROUND(ROUND(U59*ROUND((1-$O59/$P59),4),2)*Worksheet!$E$77,2)+ROUND(ROUND(V59*ROUND((1-$O59/$P59),4),2)*Worksheet!$E$78,2)+ROUND(ROUND(W59*ROUND((1-$O59/$P59),4),2)*Worksheet!$E$79,2)+ROUND(ROUND(X59*ROUND((1-$O59/$P59),4),2)*Worksheet!$E$80,2)))) -> 0 | CM59: 0 | CN59: =MIN(AW59,ROUND(AO59*Worksheet!$C$104,2)+ROUND(AR59*Worksheet!$C$107,2)+ROUND(AP59*Worksheet!$C$105,2)+ROUND(AS59*Worksheet!$C$108,2)+ROUND(AQ59*Worksheet!$C$106,2)+ROUND(AT59*Worksheet!$C$109,2)+ROUND(AU59*Worksheet!$C$110,2)+ROUND(AV59*Worksheet!$C$111,2)) -> 0 | CU59: 0 | CV59: =MAX(-CN59,MIN(0,ROUND($R59*EFBPercent+EFBAdd,2)-$Q59),MIN(0,SUM($CM59:CM59)+MIN(0,ROUND($R59*EFBPercent+EFBAdd,2)-$Q59))) -> 0 | CW59: =MAX(-CO59,MIN(0,ROUND($R59*EFBPercent+EFBAdd,2)-$Q59),MIN(0,SUM($CM59:CN59)+MIN(0,ROUND($R59*EFBPercent+EFBAdd,2)-$Q59))) -> 0 | CX59: =MAX(-CP59,MIN(0,ROUND($R59*EFBPercent+EFBAdd,2)-$Q59),MIN(0,SUM($CM59:CO59)+MIN(0,ROUND($R59*EFBPercent+EFBAdd,2)-$Q59))) -> 0 | CY59: =MAX(-CQ59,MIN(0,ROUND($R59*EFBPercent+EFBAdd,2)-$Q59),MIN(0,SUM($CM59:CP59)+MIN(0,ROUND($R59*EFBPercent+EFBAdd,2)-$Q59))) -> 0 | CZ59: =MAX(-CR59,MIN(0,ROUND($R59*EFBPercent+EFBAdd,2)-$Q59),MIN(0,SUM($CM59:CQ59)+MIN(0,ROUND($R59*EFBPercent+EFBAdd,2)-$Q59))) -> 0 | DA59: =MAX(-CS59,MIN(0,ROUND($R59*EFBPercent+EFBAdd,2)-$Q59),MIN(0,SUM($CM59:CR59)+MIN(0,ROUND($R59*EFBPercent+EFBAdd,2)-$Q59))) -> 0 | DC59: 0 | DD59: 0 | DE59: 0 | DF59: 0 | DG59: 0 | DH59: 0 | DI59: 0
A60: 15-006 | B60: 1062 | C60: 0000008480 | D60: 2023 | E60: Hazelton-Moffit-Braddock 6 | F60: 1 | G60: 24-718 | H60: 100 | I60: 08-378 | J60: 1900103.9 | K60: 176.82 | L60: 539.26 | M60: 0 | N60: 11829524 | O60: 0 | P60: 64.94 | Q60: 0 | R60: 0 | S60: 4500 | T60: 0 | U60: 4658.07 | V60: 7331.25 | W60: 7828.34 | X60: 3688.09 | Y60: 0.16 | Z60: 9 | AA60: 62 | AB60: 21 | AC60: 48 | AD60: 0 | AE60: 4 | AF60: 0 | AG60: 0 | AH60: 0 | AI60: 0 | AJ60: 0.394 | AK60: 0 | AL60: 0 | AM60: 0 | AN60: 0 | AO60: 0 | AP60: 101850 | AQ60: 24150 | AR60: 0 | AS60: 0 | AT60: 0 | AU60: 0 | AV60: 0 | AW60: 180190.85 | AX60: 684323.7 | AY60: =MAX(ROUND(IF(F60<4,IF(H60=0,(SUM(Y60:AD60)*Worksheet!$E$26+Y60*Worksheet!$E$27+AN60*Worksheet!$E$39)*-BaseRate,0)),2),MIN(0,-DC60)) -> 0 | AZ60: =MAX(ROUND(IF(F60=4,0,IF(I60=0,0,ROUND(SUM(Y60:AD60)*Worksheet!$E$28,2)*-BaseRate)),2),MIN(0,-DC60-AY60)) -> -2866.36 | BA60: 0 | BB60: 1403 | BD60: 54571.78 | BE60: 10745.98 | BF60: =IFERROR(ROUND(IF(AND(AX60*1.12<N60*60/1000,N60/CF60<STVPP*0.2),(CF60*STVPP*0.2*Worksheet!$F$86/1000-AX60*1.12)*PropTaxAdj,IF(AX60*1.12<N60*60/1000,(N60*60/1000-AX60*1.12)*PropTaxAdj,0)),2),0) -> 0 | BG60: =ROUND(IF($F60=4,0,Y60*Worksheet!$E$16),2) -> 0.16 | BH60: =ROUND(IF($F60=4,0,Z60*Worksheet!$E$17),2) -> 9 | BI60: =ROUND(IF($F60=4,0,AA60*Worksheet!$E$18),2) -> 62 | BJ60: =ROUND(IF($F60=4,0,AB60*Worksheet!$E$19),2) -> 21 | BK60: =ROUND(IF($F60=4,0,AC60*Worksheet!$E$20),2) -> 48 | BL60: =ROUND(AD60*Worksheet!$E$21,2) -> 0 | BM60: 140.16 | BN60: =ROUND(AD60*Worksheet!$E$25,2) -> 0 | BO60: =ROUND(SUM(BM60)*Worksheet!$E$26,2) -> 11.49 | BP60: =ROUND(Y60*Worksheet!$E$27,2) -> 0.03 | BQ60: =ROUND(AE60*Worksheet!$E$29,2) -> 2.8 | BR60: =ROUND(AF60*Worksheet!$E$30,2) -> 0 | BS60: =ROUND(IF($I60<>0,$BM60*Worksheet!$E$28,0),2) -> 0.28 | BT60: =ROUND(AG60*Worksheet!$E$31,2) -> 0 | BU60: =ROUND(AH60*Worksheet!$E$32,2) -> 0 | BV60: =ROUND(AI60*Worksheet!$E$33,2) -> 0 | BW60: =ROUND(ROUND(AJ60*BM60,2)*Worksheet!$E$34,2) -> 1.38 | BX60: =ROUND(AK60*Worksheet!$E$35,2) -> 0 | BY60: =ROUND(AL60*Worksheet!$E$36,2) -> 0 | BZ60: =ROUND(AM60*Worksheet!$E$38,2) -> 0 | CA60: =ROUND(AN60*Worksheet!$E$39,2) -> 0 | CB60: =IF(AND(L60>275,SUM(Y60:AD60)<100),ROUND(SUM(Y60:AD60)*Worksheet!$E$41,2),0) -> 0 | CC60: =IF(AND(L60>600,SUM(Y60:AD60)<50),ROUND((50-SUM(Y60:AD60))*(Worksheet!$E$41+1),2),0) -> 0 | CD60: 156.14 | CE60: 1.3883 | CF60: 216.77 | CG60: 2219074.49 | CH60: =MIN(ROUND(BE60*CF60*Worksheet!$D$124,2),CG60)-CG60 -> 0 | CI60: =ROUND(IF(F60=4,0,(MAX(ROUND(MAX((BE60*MIN(CF60,K60)*Worksheet!$D$127)+MAX(CF60-K60,0)*Worksheet!$F$47,SUM(J60)),2),SUM(CG60:CH60))-SUM(CG60:CH60))*MinAdj),2) -> 89599.95 | CJ60: 2308674.44 | CK60: =IF(CF60=0,0,-MIN(CJ60,ROUND(AX60*1.12+BF60,2),MIN(CJ60,ROUND(IF(ROUND(IF(CF60=0,0,N60/CF60),2)<STVPP*0.2,STVPP*0.2*CF60*Worksheet!$F$86/1000,N60*Worksheet!$F$86/1000),2)))) -> -709771.44 | CL60: =-MIN(SUM(CJ60,CK60),IF($P60=0,(ROUND(Worksheet!$E$75*S60,2)+ROUND(Worksheet!$E$76*T60,2)+ROUND(Worksheet!$E$77*U60,2)+ROUND(Worksheet!$E$78*V60,2)+ROUND(Worksheet!$E$79*W60,2)+ROUND(Worksheet!$E$80*X60,2)),(ROUND(ROUND(S60*ROUND((1-$O60/$P60),4),2)*Worksheet!$E$75,2)+ROUND(ROUND(T60*ROUND((1-$O60/$P60),4),2)*Worksheet!$E$76,2)+ROUND(ROUND(U60*ROUND((1-$O60/$P60),4),2)*Worksheet!$E$77,2)+ROUND(ROUND(V60*ROUND((1-$O60/$P60),4),2)*Worksheet!$E$78,2)+ROUND(ROUND(W60*ROUND((1-$O60/$P60),4),2)*Worksheet!$E$79,2)+ROUND(ROUND(X60*ROUND((1-$O60/$P60),4),2)*Worksheet!$E$80,2)))) -> -21004.32 | CM60: 1577898.68 | CN60: =MIN(AW60,ROUND(AO60*Worksheet!$C$104,2)+ROUND(AR60*Worksheet!$C$107,2)+ROUND(AP60*Worksheet!$C$105,2)+ROUND(AS60*Worksheet!$C$108,2)+ROUND(AQ60*Worksheet!$C$106,2)+ROUND(AT60*Worksheet!$C$109,2)+ROUND(AU60*Worksheet!$C$110,2)+ROUND(AV60*Worksheet!$C$111,2)) -> 120298.5 | CU60: 0 | CV60: =MAX(-CN60,MIN(0,ROUND($R60*EFBPercent+EFBAdd,2)-$Q60),MIN(0,SUM($CM60:CM60)+MIN(0,ROUND($R60*EFBPercent+EFBAdd,2)-$Q60))) -> 0 | CW60: =MAX(-CO60,MIN(0,ROUND($R60*EFBPercent+EFBAdd,2)-$Q60),MIN(0,SUM($CM60:CN60)+MIN(0,ROUND($R60*EFBPercent+EFBAdd,2)-$Q60))) -> 0 | CX60: =MAX(-CP60,MIN(0,ROUND($R60*EFBPercent+EFBAdd,2)-$Q60),MIN(0,SUM($CM60:CO60)+MIN(0,ROUND($R60*EFBPercent+EFBAdd,2)-$Q60))) -> 0 | CY60: =MAX(-CQ60,MIN(0,ROUND($R60*EFBPercent+EFBAdd,2)-$Q60),MIN(0,SUM($CM60:CP60)+MIN(0,ROUND($R60*EFBPercent+EFBAdd,2)-$Q60))) -> 0 | CZ60: =MAX(-CR60,MIN(0,ROUND($R60*EFBPercent+EFBAdd,2)-$Q60),MIN(0,SUM($CM60:CQ60)+MIN(0,ROUND($R60*EFBPercent+EFBAdd,2)-$Q60))) -> 0 | DA60: =MAX(-CS60,MIN(0,ROUND($R60*EFBPercent+EFBAdd,2)-$Q60),MIN(0,SUM($CM60:CR60)+MIN(0,ROUND($R60*EFBPercent+EFBAdd,2)-$Q60))) -> 0 | DC60: 1577898.68 | DD60: 120298.5 | DE60: 0 | DF60: 0 | DG60: 0 | DH60: 0 | DI60: 0
A61: 15-010 | B61: 1005 | C61: 0000008407 | D61: 2023 | E61: Bakker 10 | F61: 2 | G61: 24-718 | H61: 100 | I61: 0 | J61: 245465.45 | K61: 11.4 | L61: 83.63 | M61: 0 | N61: 4311324 | O61: 0 | P61: 42 | Q61: 0 | R61: 0 | S61: 0 | T61: 0 | U61: 0 | V61: 4315.45 | W61: 16.25 | X61: 674.92 | Y61: 0 | Z61: 0 | AA61: 3 | AB61: 0 | AC61: 0 | AD61: 0 | AE61: 0.1 | AF61: 0 | AG61: 0 | AH61: 0 | AI61: 0 | AJ61: 0 | AK61: 0 | AL61: 0 | AM61: 0 | AN61: 0 | AO61: 0 | AP61: 20587 | AQ61: 346 | AR61: 0 | AS61: 0 | AT61: 0 | AU61: 0 | AV61: 0 | AW61: 36674.55 | AX61: 224533.81 | AY61: =MAX(ROUND(IF(F61<4,IF(H61=0,(SUM(Y61:AD61)*Worksheet!$E$26+Y61*Worksheet!$E$27+AN61*Worksheet!$E$39)*-BaseRate,0)),2),MIN(0,-DC61)) -> 0 | AZ61: =MAX(ROUND(IF(F61=4,0,IF(I61=0,0,ROUND(SUM(Y61:AD61)*Worksheet!$E$28,2)*-BaseRate)),2),MIN(0,-DC61-AY61)) -> 0 | BA61: 0 | BB61: 0 | BD61: 888932.78 | BE61: 21532.06 | BF61: =IFERROR(ROUND(IF(AND(AX61*1.12<N61*60/1000,N61/CF61<STVPP*0.2),(CF61*STVPP*0.2*Worksheet!$F$86/1000-AX61*1.12)*PropTaxAdj,IF(AX61*1.12<N61*60/1000,(N61*60/1000-AX61*1.12)*PropTaxAdj,0)),2),0) -> 2880.63 | BG61: =ROUND(IF($F61=4,0,Y61*Worksheet!$E$16),2) -> 0 | BH61: =ROUND(IF($F61=4,0,Z61*Worksheet!$E$17),2) -> 0 | BI61: =ROUND(IF($F61=4,0,AA61*Worksheet!$E$18),2) -> 3 | BJ61: =ROUND(IF($F61=4,0,AB61*Worksheet!$E$19),2) -> 0 | BK61: =ROUND(IF($F61=4,0,AC61*Worksheet!$E$20),2) -> 0 | BL61: =ROUND(AD61*Worksheet!$E$21,2) -> 0 | BM61: 3 | BN61: =ROUND(AD61*Worksheet!$E$25,2) -> 0 | BO61: =ROUND(SUM(BM61)*Worksheet!$E$26,2) -> 0.25 | BP61: =ROUND(Y61*Worksheet!$E$27,2) -> 0 | BQ61: =ROUND(AE61*Worksheet!$E$29,2) -> 0.07 | BR61: =ROUND(AF61*Worksheet!$E$30,2) -> 0 | BS61: =ROUND(IF($I61<>0,$BM61*Worksheet!$E$28,0),2) -> 0 | BT61: =ROUND(AG61*Worksheet!$E$31,2) -> 0 | BU61: =ROUND(AH61*Worksheet!$E$32,2) -> 0 | BV61: =ROUND(AI61*Worksheet!$E$33,2) -> 0 | BW61: =ROUND(ROUND(AJ61*BM61,2)*Worksheet!$E$34,2) -> 0 | BX61: =ROUND(AK61*Worksheet!$E$35,2) -> 0 | BY61: =ROUND(AL61*Worksheet!$E$36,2) -> 0 | BZ61: =ROUND(AM61*Worksheet!$E$38,2) -> 0 | CA61: =ROUND(AN61*Worksheet!$E$39,2) -> 0 | CB61: =IF(AND(L61>275,SUM(Y61:AD61)<100),ROUND(SUM(Y61:AD61)*Worksheet!$E$41,2),0) -> 0 | CC61: =IF(AND(L61>600,SUM(Y61:AD61)<50),ROUND((50-SUM(Y61:AD61))*(Worksheet!$E$41+1),2),0) -> 0 | CD61: 3.32 | CE61: 1.46 | CF61: 4.85 | CG61: 49649.45 | CH61: =MIN(ROUND(BE61*CF61*Worksheet!$D$124,2),CG61)-CG61 -> 0 | CI61: =ROUND(IF(F61=4,0,(MAX(ROUND(MAX((BE61*MIN(CF61,K61)*Worksheet!$D$127)+MAX(CF61-K61,0)*Worksheet!$F$47,SUM(J61)),2),SUM(CG61:CH61))-SUM(CG61:CH61))*MinAdj),2) -> 137071.2 | CJ61: 186720.65 | CK61: =IF(CF61=0,0,-MIN(CJ61,ROUND(AX61*1.12+BF61,2),MIN(CJ61,ROUND(IF(ROUND(IF(CF61=0,0,N61/CF61),2)<STVPP*0.2,STVPP*0.2*CF61*Worksheet!$F$86/1000,N61*Worksheet!$F$86/1000),2)))) -> -186720.65 | CL61: =-MIN(SUM(CJ61,CK61),IF($P61=0,(ROUND(Worksheet!$E$75*S61,2)+ROUND(Worksheet!$E$76*T61,2)+ROUND(Worksheet!$E$77*U61,2)+ROUND(Worksheet!$E$78*V61,2)+ROUND(Worksheet!$E$79*W61,2)+ROUND(Worksheet!$E$80*X61,2)),(ROUND(ROUND(S61*ROUND((1-$O61/$P61),4),2)*Worksheet!$E$75,2)+ROUND(ROUND(T61*ROUND((1-$O61/$P61),4),2)*Worksheet!$E$76,2)+ROUND(ROUND(U61*ROUND((1-$O61/$P61),4),2)*Worksheet!$E$77,2)+ROUND(ROUND(V61*ROUND((1-$O61/$P61),4),2)*Worksheet!$E$78,2)+ROUND(ROUND(W61*ROUND((1-$O61/$P61),4),2)*Worksheet!$E$79,2)+ROUND(ROUND(X61*ROUND((1-$O61/$P61),4),2)*Worksheet!$E$80,2)))) -> 0 | CM61: 0 | CN61: =MIN(AW61,ROUND(AO61*Worksheet!$C$104,2)+ROUND(AR61*Worksheet!$C$107,2)+ROUND(AP61*Worksheet!$C$105,2)+ROUND(AS61*Worksheet!$C$108,2)+ROUND(AQ61*Worksheet!$C$106,2)+ROUND(AT61*Worksheet!$C$109,2)+ROUND(AU61*Worksheet!$C$110,2)+ROUND(AV61*Worksheet!$C$111,2)) -> 22955.37 | CU61: 0 | CV61: =MAX(-CN61,MIN(0,ROUND($R61*EFBPercent+EFBAdd,2)-$Q61),MIN(0,SUM($CM61:CM61)+MIN(0,ROUND($R61*EFBPercent+EFBAdd,2)-$Q61))) -> 0 | CW61: =MAX(-CO61,MIN(0,ROUND($R61*EFBPercent+EFBAdd,2)-$Q61),MIN(0,SUM($CM61:CN61)+MIN(0,ROUND($R61*EFBPercent+EFBAdd,2)-$Q61))) -> 0 | CX61: =MAX(-CP61,MIN(0,ROUND($R61*EFBPercent+EFBAdd,2)-$Q61),MIN(0,SUM($CM61:CO61)+MIN(0,ROUND($R61*EFBPercent+EFBAdd,2)-$Q61))) -> 0 | CY61: =MAX(-CQ61,MIN(0,ROUND($R61*EFBPercent+EFBAdd,2)-$Q61),MIN(0,SUM($CM61:CP61)+MIN(0,ROUND($R61*EFBPercent+EFBAdd,2)-$Q61))) -> 0 | CZ61: =MAX(-CR61,MIN(0,ROUND($R61*EFBPercent+EFBAdd,2)-$Q61),MIN(0,SUM($CM61:CQ61)+MIN(0,ROUND($R61*EFBPercent+EFBAdd,2)-$Q61))) -> 0 | DA61: =MAX(-CS61,MIN(0,ROUND($R61*EFBPercent+EFBAdd,2)-$Q61),MIN(0,SUM($CM61:CR61)+MIN(0,ROUND($R61*EFBPercent+EFBAdd,2)-$Q61))) -> 0 | DC61: 0 | DD61: 22955.37 | DE61: 0 | DF61: 0 | DG61: 0 | DH61: 0 | DI61: 0
A62: 15-015 | B62: 1153 | C62: 0000008631 | D62: 2023 | E62: Strasburg 15 | F62: 1 | G62: 24-718 | H62: 100 | I62: 08-378 | J62: 1792516.17 | K62: 185.83 | L62: 354.9 | M62: 0 | N62: 9412959 | O62: 29.5 | P62: 96.5 | Q62: 0 | R62: 0 | S62: 78169.9 | T62: 0 | U62: 2854.39 | V62: 6759.06 | W62: 6700.61 | X62: 3231.39 | Y62: 0 | Z62: 3 | AA62: 49 | AB62: 15 | AC62: 48 | AD62: 0 | AE62: 2.27 | AF62: 0 | AG62: 0 | AH62: 0 | AI62: 0 | AJ62: 0.463 | AK62: 0 | AL62: 0 | AM62: 1.05 | AN62: 0 | AO62: 0 | AP62: 80920 | AQ62: 31280 | AR62: 0 | AS62: 0 | AT62: 0 | AU62: 0 | AV62: 0 | AW62: 172984.26 | AX62: 553244.88 | AY62: =MAX(ROUND(IF(F62<4,IF(H62=0,(SUM(Y62:AD62)*Worksheet!$E$26+Y62*Worksheet!$E$27+AN62*Worksheet!$E$39)*-BaseRate,0)),2),MIN(0,-DC62)) -> 0 | AZ62: =MAX(ROUND(IF(F62=4,0,IF(I62=0,0,ROUND(SUM(Y62:AD62)*Worksheet!$E$28,2)*-BaseRate)),2),MIN(0,-DC62-AY62)) -> -2354.51 | BA62: 0 | BB62: 1403 | BD62: 50985.59 | BE62: 9646 | BF62: =IFERROR(ROUND(IF(AND(AX62*1.12<N62*60/1000,N62/CF62<STVPP*0.2),(CF62*STVPP*0.2*Worksheet!$F$86/1000-AX62*1.12)*PropTaxAdj,IF(AX62*1.12<N62*60/1000,(N62*60/1000-AX62*1.12)*PropTaxAdj,0)),2),0) -> 0 | BG62: =ROUND(IF($F62=4,0,Y62*Worksheet!$E$16),2) -> 0 | BH62: =ROUND(IF($F62=4,0,Z62*Worksheet!$E$17),2) -> 3 | BI62: =ROUND(IF($F62=4,0,AA62*Worksheet!$E$18),2) -> 49 | BJ62: =ROUND(IF($F62=4,0,AB62*Worksheet!$E$19),2) -> 15 | BK62: =ROUND(IF($F62=4,0,AC62*Worksheet!$E$20),2) -> 48 | BL62: =ROUND(AD62*Worksheet!$E$21,2) -> 0 | BM62: 115 | BN62: =ROUND(AD62*Worksheet!$E$25,2) -> 0 | BO62: =ROUND(SUM(BM62)*Worksheet!$E$26,2) -> 9.43 | BP62: =ROUND(Y62*Worksheet!$E$27,2) -> 0 | BQ62: =ROUND(AE62*Worksheet!$E$29,2) -> 1.59 | BR62: =ROUND(AF62*Worksheet!$E$30,2) -> 0 | BS62: =ROUND(IF($I62<>0,$BM62*Worksheet!$E$28,0),2) -> 0.23 | BT62: =ROUND(AG62*Worksheet!$E$31,2) -> 0 | BU62: =ROUND(AH62*Worksheet!$E$32,2) -> 0 | BV62: =ROUND(AI62*Worksheet!$E$33,2) -> 0 | BW62: =ROUND(ROUND(AJ62*BM62,2)*Worksheet!$E$34,2) -> 1.33 | BX62: =ROUND(AK62*Worksheet!$E$35,2) -> 0 | BY62: =ROUND(AL62*Worksheet!$E$36,2) -> 0 | BZ62: =ROUND(AM62*Worksheet!$E$38,2) -> 0.63 | CA62: =ROUND(AN62*Worksheet!$E$39,2) -> 0 | CB62: =IF(AND(L62>275,SUM(Y62:AD62)<100),ROUND(SUM(Y62:AD62)*Worksheet!$E$41,2),0) -> 0 | CC62: =IF(AND(L62>600,SUM(Y62:AD62)<50),ROUND((50-SUM(Y62:AD62))*(Worksheet!$E$41+1),2),0) -> 0 | CD62: 128.21 | CE62: 1.44 | CF62: 184.62 | CG62: 1889954.94 | CH62: =MIN(ROUND(BE62*CF62*Worksheet!$D$124,2),CG62)-CG62 -> 0 | CI62: =ROUND(IF(F62=4,0,(MAX(ROUND(MAX((BE62*MIN(CF62,K62)*Worksheet!$D$127)+MAX(CF62-K62,0)*Worksheet!$F$47,SUM(J62)),2),SUM(CG62:CH62))-SUM(CG62:CH62))*MinAdj),2) -> 0 | CJ62: 1889954.94 | CK62: =IF(CF62=0,0,-MIN(CJ62,ROUND(AX62*1.12+BF62,2),MIN(CJ62,ROUND(IF(ROUND(IF(CF62=0,0,N62/CF62),2)<STVPP*0.2,STVPP*0.2*CF62*Worksheet!$F$86/1000,N62*Worksheet!$F$86/1000),2)))) -> -564777.54 | CL62: =-MIN(SUM(CJ62,CK62),IF($P62=0,(ROUND(Worksheet!$E$75*S62,2)+ROUND(Worksheet!$E$76*T62,2)+ROUND(Worksheet!$E$77*U62,2)+ROUND(Worksheet!$E$78*V62,2)+ROUND(Worksheet!$E$79*W62,2)+ROUND(Worksheet!$E$80*X62,2)),(ROUND(ROUND(S62*ROUND((1-$O62/$P62),4),2)*Worksheet!$E$75,2)+ROUND(ROUND(T62*ROUND((1-$O62/$P62),4),2)*Worksheet!$E$76,2)+ROUND(ROUND(U62*ROUND((1-$O62/$P62),4),2)*Worksheet!$E$77,2)+ROUND(ROUND(V62*ROUND((1-$O62/$P62),4),2)*Worksheet!$E$78,2)+ROUND(ROUND(W62*ROUND((1-$O62/$P62),4),2)*Worksheet!$E$79,2)+ROUND(ROUND(X62*ROUND((1-$O62/$P62),4),2)*Worksheet!$E$80,2)))) -> -50882.82 | CM62: 1274294.58 | CN62: =MIN(AW62,ROUND(AO62*Worksheet!$C$104,2)+ROUND(AR62*Worksheet!$C$107,2)+ROUND(AP62*Worksheet!$C$105,2)+ROUND(AS62*Worksheet!$C$108,2)+ROUND(AQ62*Worksheet!$C$106,2)+ROUND(AT62*Worksheet!$C$109,2)+ROUND(AU62*Worksheet!$C$110,2)+ROUND(AV62*Worksheet!$C$111,2)) -> 99205.2 | CU62: 0 | CV62: =MAX(-CN62,MIN(0,ROUND($R62*EFBPercent+EFBAdd,2)-$Q62),MIN(0,SUM($CM62:CM62)+MIN(0,ROUND($R62*EFBPercent+EFBAdd,2)-$Q62))) -> 0 | CW62: =MAX(-CO62,MIN(0,ROUND($R62*EFBPercent+EFBAdd,2)-$Q62),MIN(0,SUM($CM62:CN62)+MIN(0,ROUND($R62*EFBPercent+EFBAdd,2)-$Q62))) -> 0 | CX62: =MAX(-CP62,MIN(0,ROUND($R62*EFBPercent+EFBAdd,2)-$Q62),MIN(0,SUM($CM62:CO62)+MIN(0,ROUND($R62*EFBPercent+EFBAdd,2)-$Q62))) -> 0 | CY62: =MAX(-CQ62,MIN(0,ROUND($R62*EFBPercent+EFBAdd,2)-$Q62),MIN(0,SUM($CM62:CP62)+MIN(0,ROUND($R62*EFBPercent+EFBAdd,2)-$Q62))) -> 0 | CZ62: =MAX(-CR62,MIN(0,ROUND($R62*EFBPercent+EFBAdd,2)-$Q62),MIN(0,SUM($CM62:CQ62)+MIN(0,ROUND($R62*EFBPercent+EFBAdd,2)-$Q62))) -> 0 | DA62: =MAX(-CS62,MIN(0,ROUND($R62*EFBPercent+EFBAdd,2)-$Q62),MIN(0,SUM($CM62:CR62)+MIN(0,ROUND($R62*EFBPercent+EFBAdd,2)-$Q62))) -> 0 | DC62: 1274294.58 | DD62: 99205.2 | DE62: 0 | DF62: 0 | DG62: 0 | DH62: 0 | DI62: 0
